{"text_format":"1","workbook":"xlsx","n_sheets":12,"sheets":["Report By Group","Report All","Sheet1","Issu Transactions","Is.Order","Transfer Transaction","Tr.Order","Received Transaction","R.Order","Counting","Data","Sheet2"],"not_rendered":{"charts":0,"images":0,"macros":0,"external_links":0,"defined_names":19,"comments":4,"pivot_tables":1},"unopened":[],"bounds":{"document_bytes":16777216,"sheet_cells":100000,"rows_first":2000,"rows_last":500,"rows_between":2000,"halvings":0,"cell_chars":16384,"cell_head_chars":4096},"cells_cut":0,"cells_raw":0,"read":"whole","date_system":"1900"}

{"sheet":"Report By Group","index":0,"n_rows":133,"n_cols":12,"rows_kept":133,"cut":false,"hidden":false,"merged":[]}
[]
[]
[]
[]
[null,null,null,null,null,null,null,null,null,null,null,"ELECTRICAL MATERIALS"]
[null,null,null,null,null,null,null,null,null,null,null,"GENERAL MATERIAL IN STORE"]
[null,null,null,null,null,null,null,null,null,null,null,"MECHANICAL CHILLAR ITEM"]
["Category","MECHANICAL / MEDICAL GAS",null,null,null,null,null,null,null,null,null,"MECHANICAL DUCT ITEM"]
[null,null,null,null,null,null,null,null,null,null,null,"MECHANICAL / MEDICAL GAS"]
["SL","ITEM NAME","UNIT","Opening Balance","Received","Issue","TransFer","Balance",null,null,null,"NURSE CALL SYSTEM"]
[{"$f":"IF(B11=\"\",\"\",SUBTOTAL(3,B$11:B11))","v":""},{"$f":"IFERROR(INDEX(Report[],SMALL(IF(Report[Category]=$B$8,ROW(Report[])-ROW(Report[#Headers])),ROW(1:1)),MATCH($B$10,Report[#Headers],0)),\"\")","v":""},{"$f":"IFERROR(VLOOKUP(Print_Out[[#This Row],[ITEM NAME]],ItemsName,2,FALSE),\"\")","v":""},{"$f":"IFERROR(INDEX(Report[],SMALL(IF(Report[Category]=$B$8,ROW(Report[])-ROW(Report[#Headers])),ROW(1:1)),MATCH($D$10,Report[#Headers],0)),\"\")","v":""},{"$f":"IFERROR(INDEX(Report[],SMALL(IF(Report[Category]=$B$8,ROW(Report[])-ROW(Report[#Headers])),ROW(1:1)),MATCH($E$10,Report[#Headers],0)),\"\")","v":""},{"$f":"IFERROR(INDEX(Report[],SMALL(IF(Report[Category]=$B$8,ROW(Report[])-ROW(Report[#Headers])),ROW(1:1)),MATCH($F$10,Report[#Headers],0)),\"\")","v":""},{"$f":"IFERROR(INDEX(Report[],SMALL(IF(Report[Category]=$B$8,ROW(Report[])-ROW(Report[#Headers])),ROW(1:1)),MATCH($G$10,Report[#Headers],0)),\"\")","v":""},{"$f":"IFERROR(INDEX(Report[],SMALL(IF(Report[Category]=$B$8,ROW(Report[])-ROW(Report[#Headers])),ROW(1:1)),MATCH($H$10,Report[#Headers],0)),\"\")","v":""},null,null,null,"PLUMBING MATERIALS CPVC"]
[{"$f":"IF(B12=\"\",\"\",SUBTOTAL(3,B$11:B12))","v":""},{"$f":"IFERROR(INDEX(Report[],SMALL(IF(Report[Category]=$B$8,ROW(Report[])-ROW(Report[#Headers])),ROW(2:2)),MATCH($B$10,Report[#Headers],0)),\"\")","v":""},{"$f":"IFERROR(VLOOKUP(Print_Out[[#This Row],[ITEM NAME]],ItemsName,2,FALSE),\"\")","v":""},{"$f":"IFERROR(INDEX(Report[],SMALL(IF(Report[Category]=$B$8,ROW(Report[])-ROW(Report[#Headers])),ROW(2:2)),MATCH($D$10,Report[#Headers],0)),\"\")","v":""},{"$f":"IFERROR(INDEX(Report[],SMALL(IF(Report[Category]=$B$8,ROW(Report[])-ROW(Report[#Headers])),ROW(2:2)),MATCH($E$10,Report[#Headers],0)),\"\")","v":""},{"$f":"IFERROR(INDEX(Report[],SMALL(IF(Report[Category]=$B$8,ROW(Report[])-ROW(Report[#Headers])),ROW(2:2)),MATCH($F$10,Report[#Headers],0)),\"\")","v":""},{"$f":"IFERROR(INDEX(Report[],SMALL(IF(Report[Category]=$B$8,ROW(Report[])-ROW(Report[#Headers])),ROW(2:2)),MATCH($G$10,Report[#Headers],0)),\"\")","v":""},{"$f":"IFERROR(INDEX(Report[],SMALL(IF(Report[Category]=$B$8,ROW(Report[])-ROW(Report[#Headers])),ROW(2:2)),MATCH($H$10,Report[#Headers],0)),\"\")","v":""}]
[{"$f":"IF(B13=\"\",\"\",SUBTOTAL(3,B$11:B13))","v":""},{"$f":"IFERROR(INDEX(Report[],SMALL(IF(Report[Category]=$B$8,ROW(Report[])-ROW(Report[#Headers])),ROW(3:3)),MATCH($B$10,Report[#Headers],0)),\"\")","v":""},{"$f":"IFERROR(VLOOKUP(Print_Out[[#This Row],[ITEM NAME]],ItemsName,2,FALSE),\"\")","v":""},{"$f":"IFERROR(INDEX(Report[],SMALL(IF(Report[Category]=$B$8,ROW(Report[])-ROW(Report[#Headers])),ROW(3:3)),MATCH($D$10,Report[#Headers],0)),\"\")","v":""},{"$f":"IFERROR(INDEX(Report[],SMALL(IF(Report[Category]=$B$8,ROW(Report[])-ROW(Report[#Headers])),ROW(3:3)),MATCH($E$10,Report[#Headers],0)),\"\")","v":""},{"$f":"IFERROR(INDEX(Report[],SMALL(IF(Report[Category]=$B$8,ROW(Report[])-ROW(Report[#Headers])),ROW(3:3)),MATCH($F$10,Report[#Headers],0)),\"\")","v":""},{"$f":"IFERROR(INDEX(Report[],SMALL(IF(Report[Category]=$B$8,ROW(Report[])-ROW(Report[#Headers])),ROW(3:3)),MATCH($G$10,Report[#Headers],0)),\"\")","v":""},{"$f":"IFERROR(INDEX(Report[],SMALL(IF(Report[Category]=$B$8,ROW(Report[])-ROW(Report[#Headers])),ROW(3:3)),MATCH($H$10,Report[#Headers],0)),\"\")","v":""}]
[{"$f":"IF(B14=\"\",\"\",SUBTOTAL(3,B$11:B14))","v":""},{"$f":"IFERROR(INDEX(Report[],SMALL(IF(Report[Category]=$B$8,ROW(Report[])-ROW(Report[#Headers])),ROW(4:4)),MATCH($B$10,Report[#Headers],0)),\"\")","v":""},{"$f":"IFERROR(VLOOKUP(Print_Out[[#This Row],[ITEM NAME]],ItemsName,2,FALSE),\"\")","v":""},{"$f":"IFERROR(INDEX(Report[],SMALL(IF(Report[Category]=$B$8,ROW(Report[])-ROW(Report[#Headers])),ROW(4:4)),MATCH($D$10,Report[#Headers],0)),\"\")","v":""},{"$f":"IFERROR(INDEX(Report[],SMALL(IF(Report[Category]=$B$8,ROW(Report[])-ROW(Report[#Headers])),ROW(4:4)),MATCH($E$10,Report[#Headers],0)),\"\")","v":""},{"$f":"IFERROR(INDEX(Report[],SMALL(IF(Report[Category]=$B$8,ROW(Report[])-ROW(Report[#Headers])),ROW(4:4)),MATCH($F$10,Report[#Headers],0)),\"\")","v":""},{"$f":"IFERROR(INDEX(Report[],SMALL(IF(Report[Category]=$B$8,ROW(Report[])-ROW(Report[#Headers])),ROW(4:4)),MATCH($G$10,Report[#Headers],0)),\"\")","v":""},{"$f":"IFERROR(INDEX(Report[],SMALL(IF(Report[Category]=$B$8,ROW(Report[])-ROW(Report[#Headers])),ROW(4:4)),MATCH($H$10,Report[#Headers],0)),\"\")","v":""}]
[{"$f":"IF(B15=\"\",\"\",SUBTOTAL(3,B$11:B15))","v":""},{"$f":"IFERROR(INDEX(Report[],SMALL(IF(Report[Category]=$B$8,ROW(Report[])-ROW(Report[#Headers])),ROW(5:5)),MATCH($B$10,Report[#Headers],0)),\"\")","v":""},{"$f":"IFERROR(VLOOKUP(Print_Out[[#This Row],[ITEM NAME]],ItemsName,2,FALSE),\"\")","v":""},{"$f":"IFERROR(INDEX(Report[],SMALL(IF(Report[Category]=$B$8,ROW(Report[])-ROW(Report[#Headers])),ROW(5:5)),MATCH($D$10,Report[#Headers],0)),\"\")","v":""},{"$f":"IFERROR(INDEX(Report[],SMALL(IF(Report[Category]=$B$8,ROW(Report[])-ROW(Report[#Headers])),ROW(5:5)),MATCH($E$10,Report[#Headers],0)),\"\")","v":""},{"$f":"IFERROR(INDEX(Report[],SMALL(IF(Report[Category]=$B$8,ROW(Report[])-ROW(Report[#Headers])),ROW(5:5)),MATCH($F$10,Report[#Headers],0)),\"\")","v":""},{"$f":"IFERROR(INDEX(Report[],SMALL(IF(Report[Category]=$B$8,ROW(Report[])-ROW(Report[#Headers])),ROW(5:5)),MATCH($G$10,Report[#Headers],0)),\"\")","v":""},{"$f":"IFERROR(INDEX(Report[],SMALL(IF(Report[Category]=$B$8,ROW(Report[])-ROW(Report[#Headers])),ROW(5:5)),MATCH($H$10,Report[#Headers],0)),\"\")","v":""}]
[{"$f":"IF(B16=\"\",\"\",SUBTOTAL(3,B$11:B16))","v":""},{"$f":"IFERROR(INDEX(Report[],SMALL(IF(Report[Category]=$B$8,ROW(Report[])-ROW(Report[#Headers])),ROW(6:6)),MATCH($B$10,Report[#Headers],0)),\"\")","v":""},{"$f":"IFERROR(VLOOKUP(Print_Out[[#This Row],[ITEM NAME]],ItemsName,2,FALSE),\"\")","v":""},{"$f":"IFERROR(INDEX(Report[],SMALL(IF(Report[Category]=$B$8,ROW(Report[])-ROW(Report[#Headers])),ROW(6:6)),MATCH($D$10,Report[#Headers],0)),\"\")","v":""},{"$f":"IFERROR(INDEX(Report[],SMALL(IF(Report[Category]=$B$8,ROW(Report[])-ROW(Report[#Headers])),ROW(6:6)),MATCH($E$10,Report[#Headers],0)),\"\")","v":""},{"$f":"IFERROR(INDEX(Report[],SMALL(IF(Report[Category]=$B$8,ROW(Report[])-ROW(Report[#Headers])),ROW(6:6)),MATCH($F$10,Report[#Headers],0)),\"\")","v":""},{"$f":"IFERROR(INDEX(Report[],SMALL(IF(Report[Category]=$B$8,ROW(Report[])-ROW(Report[#Headers])),ROW(6:6)),MATCH($G$10,Report[#Headers],0)),\"\")","v":""},{"$f":"IFERROR(INDEX(Report[],SMALL(IF(Report[Category]=$B$8,ROW(Report[])-ROW(Report[#Headers])),ROW(6:6)),MATCH($H$10,Report[#Headers],0)),\"\")","v":""}]
[{"$f":"IF(B17=\"\",\"\",SUBTOTAL(3,B$11:B17))","v":""},{"$f":"IFERROR(INDEX(Report[],SMALL(IF(Report[Category]=$B$8,ROW(Report[])-ROW(Report[#Headers])),ROW(7:7)),MATCH($B$10,Report[#Headers],0)),\"\")","v":""},{"$f":"IFERROR(VLOOKUP(Print_Out[[#This Row],[ITEM NAME]],ItemsName,2,FALSE),\"\")","v":""},{"$f":"IFERROR(INDEX(Report[],SMALL(IF(Report[Category]=$B$8,ROW(Report[])-ROW(Report[#Headers])),ROW(7:7)),MATCH($D$10,Report[#Headers],0)),\"\")","v":""},{"$f":"IFERROR(INDEX(Report[],SMALL(IF(Report[Category]=$B$8,ROW(Report[])-ROW(Report[#Headers])),ROW(7:7)),MATCH($E$10,Report[#Headers],0)),\"\")","v":""},{"$f":"IFERROR(INDEX(Report[],SMALL(IF(Report[Category]=$B$8,ROW(Report[])-ROW(Report[#Headers])),ROW(7:7)),MATCH($F$10,Report[#Headers],0)),\"\")","v":""},{"$f":"IFERROR(INDEX(Report[],SMALL(IF(Report[Category]=$B$8,ROW(Report[])-ROW(Report[#Headers])),ROW(7:7)),MATCH($G$10,Report[#Headers],0)),\"\")","v":""},{"$f":"IFERROR(INDEX(Report[],SMALL(IF(Report[Category]=$B$8,ROW(Report[])-ROW(Report[#Headers])),ROW(7:7)),MATCH($H$10,Report[#Headers],0)),\"\")","v":""}]
[{"$f":"IF(B18=\"\",\"\",SUBTOTAL(3,B$11:B18))","v":""},{"$f":"IFERROR(INDEX(Report[],SMALL(IF(Report[Category]=$B$8,ROW(Report[])-ROW(Report[#Headers])),ROW(8:8)),MATCH($B$10,Report[#Headers],0)),\"\")","v":""},{"$f":"IFERROR(VLOOKUP(Print_Out[[#This Row],[ITEM NAME]],ItemsName,2,FALSE),\"\")","v":""},{"$f":"IFERROR(INDEX(Report[],SMALL(IF(Report[Category]=$B$8,ROW(Report[])-ROW(Report[#Headers])),ROW(8:8)),MATCH($D$10,Report[#Headers],0)),\"\")","v":""},{"$f":"IFERROR(INDEX(Report[],SMALL(IF(Report[Category]=$B$8,ROW(Report[])-ROW(Report[#Headers])),ROW(8:8)),MATCH($E$10,Report[#Headers],0)),\"\")","v":""},{"$f":"IFERROR(INDEX(Report[],SMALL(IF(Report[Category]=$B$8,ROW(Report[])-ROW(Report[#Headers])),ROW(8:8)),MATCH($F$10,Report[#Headers],0)),\"\")","v":""},{"$f":"IFERROR(INDEX(Report[],SMALL(IF(Report[Category]=$B$8,ROW(Report[])-ROW(Report[#Headers])),ROW(8:8)),MATCH($G$10,Report[#Headers],0)),\"\")","v":""},{"$f":"IFERROR(INDEX(Report[],SMALL(IF(Report[Category]=$B$8,ROW(Report[])-ROW(Report[#Headers])),ROW(8:8)),MATCH($H$10,Report[#Headers],0)),\"\")","v":""}]
[{"$f":"IF(B19=\"\",\"\",SUBTOTAL(3,B$11:B19))","v":""},{"$f":"IFERROR(INDEX(Report[],SMALL(IF(Report[Category]=$B$8,ROW(Report[])-ROW(Report[#Headers])),ROW(9:9)),MATCH($B$10,Report[#Headers],0)),\"\")","v":""},{"$f":"IFERROR(VLOOKUP(Print_Out[[#This Row],[ITEM NAME]],ItemsName,2,FALSE),\"\")","v":""},{"$f":"IFERROR(INDEX(Report[],SMALL(IF(Report[Category]=$B$8,ROW(Report[])-ROW(Report[#Headers])),ROW(9:9)),MATCH($D$10,Report[#Headers],0)),\"\")","v":""},{"$f":"IFERROR(INDEX(Report[],SMALL(IF(Report[Category]=$B$8,ROW(Report[])-ROW(Report[#Headers])),ROW(9:9)),MATCH($E$10,Report[#Headers],0)),\"\")","v":""},{"$f":"IFERROR(INDEX(Report[],SMALL(IF(Report[Category]=$B$8,ROW(Report[])-ROW(Report[#Headers])),ROW(9:9)),MATCH($F$10,Report[#Headers],0)),\"\")","v":""},{"$f":"IFERROR(INDEX(Report[],SMALL(IF(Report[Category]=$B$8,ROW(Report[])-ROW(Report[#Headers])),ROW(9:9)),MATCH($G$10,Report[#Headers],0)),\"\")","v":""},{"$f":"IFERROR(INDEX(Report[],SMALL(IF(Report[Category]=$B$8,ROW(Report[])-ROW(Report[#Headers])),ROW(9:9)),MATCH($H$10,Report[#Headers],0)),\"\")","v":""}]
[{"$f":"IF(B20=\"\",\"\",SUBTOTAL(3,B$11:B20))","v":""},{"$f":"IFERROR(INDEX(Report[],SMALL(IF(Report[Category]=$B$8,ROW(Report[])-ROW(Report[#Headers])),ROW(10:10)),MATCH($B$10,Report[#Headers],0)),\"\")","v":""},{"$f":"IFERROR(VLOOKUP(Print_Out[[#This Row],[ITEM NAME]],ItemsName,2,FALSE),\"\")","v":""},{"$f":"IFERROR(INDEX(Report[],SMALL(IF(Report[Category]=$B$8,ROW(Report[])-ROW(Report[#Headers])),ROW(10:10)),MATCH($D$10,Report[#Headers],0)),\"\")","v":""},{"$f":"IFERROR(INDEX(Report[],SMALL(IF(Report[Category]=$B$8,ROW(Report[])-ROW(Report[#Headers])),ROW(10:10)),MATCH($E$10,Report[#Headers],0)),\"\")","v":""},{"$f":"IFERROR(INDEX(Report[],SMALL(IF(Report[Category]=$B$8,ROW(Report[])-ROW(Report[#Headers])),ROW(10:10)),MATCH($F$10,Report[#Headers],0)),\"\")","v":""},{"$f":"IFERROR(INDEX(Report[],SMALL(IF(Report[Category]=$B$8,ROW(Report[])-ROW(Report[#Headers])),ROW(10:10)),MATCH($G$10,Report[#Headers],0)),\"\")","v":""},{"$f":"IFERROR(INDEX(Report[],SMALL(IF(Report[Category]=$B$8,ROW(Report[])-ROW(Report[#Headers])),ROW(10:10)),MATCH($H$10,Report[#Headers],0)),\"\")","v":""}]
[{"$f":"IF(B21=\"\",\"\",SUBTOTAL(3,B$11:B21))","v":""},{"$f":"IFERROR(INDEX(Report[],SMALL(IF(Report[Category]=$B$8,ROW(Report[])-ROW(Report[#Headers])),ROW(11:11)),MATCH($B$10,Report[#Headers],0)),\"\")","v":""},{"$f":"IFERROR(VLOOKUP(Print_Out[[#This Row],[ITEM NAME]],ItemsName,2,FALSE),\"\")","v":""},{"$f":"IFERROR(INDEX(Report[],SMALL(IF(Report[Category]=$B$8,ROW(Report[])-ROW(Report[#Headers])),ROW(11:11)),MATCH($D$10,Report[#Headers],0)),\"\")","v":""},{"$f":"IFERROR(INDEX(Report[],SMALL(IF(Report[Category]=$B$8,ROW(Report[])-ROW(Report[#Headers])),ROW(11:11)),MATCH($E$10,Report[#Headers],0)),\"\")","v":""},{"$f":"IFERROR(INDEX(Report[],SMALL(IF(Report[Category]=$B$8,ROW(Report[])-ROW(Report[#Headers])),ROW(11:11)),MATCH($F$10,Report[#Headers],0)),\"\")","v":""},{"$f":"IFERROR(INDEX(Report[],SMALL(IF(Report[Category]=$B$8,ROW(Report[])-ROW(Report[#Headers])),ROW(11:11)),MATCH($G$10,Report[#Headers],0)),\"\")","v":""},{"$f":"IFERROR(INDEX(Report[],SMALL(IF(Report[Category]=$B$8,ROW(Report[])-ROW(Report[#Headers])),ROW(11:11)),MATCH($H$10,Report[#Headers],0)),\"\")","v":""}]
[{"$f":"IF(B22=\"\",\"\",SUBTOTAL(3,B$11:B22))","v":""},{"$f":"IFERROR(INDEX(Report[],SMALL(IF(Report[Category]=$B$8,ROW(Report[])-ROW(Report[#Headers])),ROW(12:12)),MATCH($B$10,Report[#Headers],0)),\"\")","v":""},{"$f":"IFERROR(VLOOKUP(Print_Out[[#This Row],[ITEM NAME]],ItemsName,2,FALSE),\"\")","v":""},{"$f":"IFERROR(INDEX(Report[],SMALL(IF(Report[Category]=$B$8,ROW(Report[])-ROW(Report[#Headers])),ROW(12:12)),MATCH($D$10,Report[#Headers],0)),\"\")","v":""},{"$f":"IFERROR(INDEX(Report[],SMALL(IF(Report[Category]=$B$8,ROW(Report[])-ROW(Report[#Headers])),ROW(12:12)),MATCH($E$10,Report[#Headers],0)),\"\")","v":""},{"$f":"IFERROR(INDEX(Report[],SMALL(IF(Report[Category]=$B$8,ROW(Report[])-ROW(Report[#Headers])),ROW(12:12)),MATCH($F$10,Report[#Headers],0)),\"\")","v":""},{"$f":"IFERROR(INDEX(Report[],SMALL(IF(Report[Category]=$B$8,ROW(Report[])-ROW(Report[#Headers])),ROW(12:12)),MATCH($G$10,Report[#Headers],0)),\"\")","v":""},{"$f":"IFERROR(INDEX(Report[],SMALL(IF(Report[Category]=$B$8,ROW(Report[])-ROW(Report[#Headers])),ROW(12:12)),MATCH($H$10,Report[#Headers],0)),\"\")","v":""}]
[{"$f":"IF(B23=\"\",\"\",SUBTOTAL(3,B$11:B23))","v":""},{"$f":"IFERROR(INDEX(Report[],SMALL(IF(Report[Category]=$B$8,ROW(Report[])-ROW(Report[#Headers])),ROW(13:13)),MATCH($B$10,Report[#Headers],0)),\"\")","v":""},{"$f":"IFERROR(VLOOKUP(Print_Out[[#This Row],[ITEM NAME]],ItemsName,2,FALSE),\"\")","v":""},{"$f":"IFERROR(INDEX(Report[],SMALL(IF(Report[Category]=$B$8,ROW(Report[])-ROW(Report[#Headers])),ROW(13:13)),MATCH($D$10,Report[#Headers],0)),\"\")","v":""},{"$f":"IFERROR(INDEX(Report[],SMALL(IF(Report[Category]=$B$8,ROW(Report[])-ROW(Report[#Headers])),ROW(13:13)),MATCH($E$10,Report[#Headers],0)),\"\")","v":""},{"$f":"IFERROR(INDEX(Report[],SMALL(IF(Report[Category]=$B$8,ROW(Report[])-ROW(Report[#Headers])),ROW(13:13)),MATCH($F$10,Report[#Headers],0)),\"\")","v":""},{"$f":"IFERROR(INDEX(Report[],SMALL(IF(Report[Category]=$B$8,ROW(Report[])-ROW(Report[#Headers])),ROW(13:13)),MATCH($G$10,Report[#Headers],0)),\"\")","v":""},{"$f":"IFERROR(INDEX(Report[],SMALL(IF(Report[Category]=$B$8,ROW(Report[])-ROW(Report[#Headers])),ROW(13:13)),MATCH($H$10,Report[#Headers],0)),\"\")","v":""}]
[{"$f":"IF(B24=\"\",\"\",SUBTOTAL(3,B$11:B24))","v":""},{"$f":"IFERROR(INDEX(Report[],SMALL(IF(Report[Category]=$B$8,ROW(Report[])-ROW(Report[#Headers])),ROW(14:14)),MATCH($B$10,Report[#Headers],0)),\"\")","v":""},{"$f":"IFERROR(VLOOKUP(Print_Out[[#This Row],[ITEM NAME]],ItemsName,2,FALSE),\"\")","v":""},{"$f":"IFERROR(INDEX(Report[],SMALL(IF(Report[Category]=$B$8,ROW(Report[])-ROW(Report[#Headers])),ROW(14:14)),MATCH($D$10,Report[#Headers],0)),\"\")","v":""},{"$f":"IFERROR(INDEX(Report[],SMALL(IF(Report[Category]=$B$8,ROW(Report[])-ROW(Report[#Headers])),ROW(14:14)),MATCH($E$10,Report[#Headers],0)),\"\")","v":""},{"$f":"IFERROR(INDEX(Report[],SMALL(IF(Report[Category]=$B$8,ROW(Report[])-ROW(Report[#Headers])),ROW(14:14)),MATCH($F$10,Report[#Headers],0)),\"\")","v":""},{"$f":"IFERROR(INDEX(Report[],SMALL(IF(Report[Category]=$B$8,ROW(Report[])-ROW(Report[#Headers])),ROW(14:14)),MATCH($G$10,Report[#Headers],0)),\"\")","v":""},{"$f":"IFERROR(INDEX(Report[],SMALL(IF(Report[Category]=$B$8,ROW(Report[])-ROW(Report[#Headers])),ROW(14:14)),MATCH($H$10,Report[#Headers],0)),\"\")","v":""}]
[{"$f":"IF(B25=\"\",\"\",SUBTOTAL(3,B$11:B25))","v":""},{"$f":"IFERROR(INDEX(Report[],SMALL(IF(Report[Category]=$B$8,ROW(Report[])-ROW(Report[#Headers])),ROW(15:15)),MATCH($B$10,Report[#Headers],0)),\"\")","v":""},{"$f":"IFERROR(VLOOKUP(Print_Out[[#This Row],[ITEM NAME]],ItemsName,2,FALSE),\"\")","v":""},{"$f":"IFERROR(INDEX(Report[],SMALL(IF(Report[Category]=$B$8,ROW(Report[])-ROW(Report[#Headers])),ROW(15:15)),MATCH($D$10,Report[#Headers],0)),\"\")","v":""},{"$f":"IFERROR(INDEX(Report[],SMALL(IF(Report[Category]=$B$8,ROW(Report[])-ROW(Report[#Headers])),ROW(15:15)),MATCH($E$10,Report[#Headers],0)),\"\")","v":""},{"$f":"IFERROR(INDEX(Report[],SMALL(IF(Report[Category]=$B$8,ROW(Report[])-ROW(Report[#Headers])),ROW(15:15)),MATCH($F$10,Report[#Headers],0)),\"\")","v":""},{"$f":"IFERROR(INDEX(Report[],SMALL(IF(Report[Category]=$B$8,ROW(Report[])-ROW(Report[#Headers])),ROW(15:15)),MATCH($G$10,Report[#Headers],0)),\"\")","v":""},{"$f":"IFERROR(INDEX(Report[],SMALL(IF(Report[Category]=$B$8,ROW(Report[])-ROW(Report[#Headers])),ROW(15:15)),MATCH($H$10,Report[#Headers],0)),\"\")","v":""}]
[{"$f":"IF(B26=\"\",\"\",SUBTOTAL(3,B$11:B26))","v":""},{"$f":"IFERROR(INDEX(Report[],SMALL(IF(Report[Category]=$B$8,ROW(Report[])-ROW(Report[#Headers])),ROW(16:16)),MATCH($B$10,Report[#Headers],0)),\"\")","v":""},{"$f":"IFERROR(VLOOKUP(Print_Out[[#This Row],[ITEM NAME]],ItemsName,2,FALSE),\"\")","v":""},{"$f":"IFERROR(INDEX(Report[],SMALL(IF(Report[Category]=$B$8,ROW(Report[])-ROW(Report[#Headers])),ROW(16:16)),MATCH($D$10,Report[#Headers],0)),\"\")","v":""},{"$f":"IFERROR(INDEX(Report[],SMALL(IF(Report[Category]=$B$8,ROW(Report[])-ROW(Report[#Headers])),ROW(16:16)),MATCH($E$10,Report[#Headers],0)),\"\")","v":""},{"$f":"IFERROR(INDEX(Report[],SMALL(IF(Report[Category]=$B$8,ROW(Report[])-ROW(Report[#Headers])),ROW(16:16)),MATCH($F$10,Report[#Headers],0)),\"\")","v":""},{"$f":"IFERROR(INDEX(Report[],SMALL(IF(Report[Category]=$B$8,ROW(Report[])-ROW(Report[#Headers])),ROW(16:16)),MATCH($G$10,Report[#Headers],0)),\"\")","v":""},{"$f":"IFERROR(INDEX(Report[],SMALL(IF(Report[Category]=$B$8,ROW(Report[])-ROW(Report[#Headers])),ROW(16:16)),MATCH($H$10,Report[#Headers],0)),\"\")","v":""}]
[{"$f":"IF(B27=\"\",\"\",SUBTOTAL(3,B$11:B27))","v":""},{"$f":"IFERROR(INDEX(Report[],SMALL(IF(Report[Category]=$B$8,ROW(Report[])-ROW(Report[#Headers])),ROW(17:17)),MATCH($B$10,Report[#Headers],0)),\"\")","v":""},{"$f":"IFERROR(VLOOKUP(Print_Out[[#This Row],[ITEM NAME]],ItemsName,2,FALSE),\"\")","v":""},{"$f":"IFERROR(INDEX(Report[],SMALL(IF(Report[Category]=$B$8,ROW(Report[])-ROW(Report[#Headers])),ROW(17:17)),MATCH($D$10,Report[#Headers],0)),\"\")","v":""},{"$f":"IFERROR(INDEX(Report[],SMALL(IF(Report[Category]=$B$8,ROW(Report[])-ROW(Report[#Headers])),ROW(17:17)),MATCH($E$10,Report[#Headers],0)),\"\")","v":""},{"$f":"IFERROR(INDEX(Report[],SMALL(IF(Report[Category]=$B$8,ROW(Report[])-ROW(Report[#Headers])),ROW(17:17)),MATCH($F$10,Report[#Headers],0)),\"\")","v":""},{"$f":"IFERROR(INDEX(Report[],SMALL(IF(Report[Category]=$B$8,ROW(Report[])-ROW(Report[#Headers])),ROW(17:17)),MATCH($G$10,Report[#Headers],0)),\"\")","v":""},{"$f":"IFERROR(INDEX(Report[],SMALL(IF(Report[Category]=$B$8,ROW(Report[])-ROW(Report[#Headers])),ROW(17:17)),MATCH($H$10,Report[#Headers],0)),\"\")","v":""}]
[{"$f":"IF(B28=\"\",\"\",SUBTOTAL(3,B$11:B28))","v":""},{"$f":"IFERROR(INDEX(Report[],SMALL(IF(Report[Category]=$B$8,ROW(Report[])-ROW(Report[#Headers])),ROW(18:18)),MATCH($B$10,Report[#Headers],0)),\"\")","v":""},{"$f":"IFERROR(VLOOKUP(Print_Out[[#This Row],[ITEM NAME]],ItemsName,2,FALSE),\"\")","v":""},{"$f":"IFERROR(INDEX(Report[],SMALL(IF(Report[Category]=$B$8,ROW(Report[])-ROW(Report[#Headers])),ROW(18:18)),MATCH($D$10,Report[#Headers],0)),\"\")","v":""},{"$f":"IFERROR(INDEX(Report[],SMALL(IF(Report[Category]=$B$8,ROW(Report[])-ROW(Report[#Headers])),ROW(18:18)),MATCH($E$10,Report[#Headers],0)),\"\")","v":""},{"$f":"IFERROR(INDEX(Report[],SMALL(IF(Report[Category]=$B$8,ROW(Report[])-ROW(Report[#Headers])),ROW(18:18)),MATCH($F$10,Report[#Headers],0)),\"\")","v":""},{"$f":"IFERROR(INDEX(Report[],SMALL(IF(Report[Category]=$B$8,ROW(Report[])-ROW(Report[#Headers])),ROW(18:18)),MATCH($G$10,Report[#Headers],0)),\"\")","v":""},{"$f":"IFERROR(INDEX(Report[],SMALL(IF(Report[Category]=$B$8,ROW(Report[])-ROW(Report[#Headers])),ROW(18:18)),MATCH($H$10,Report[#Headers],0)),\"\")","v":""}]
[{"$f":"IF(B29=\"\",\"\",SUBTOTAL(3,B$11:B29))","v":""},{"$f":"IFERROR(INDEX(Report[],SMALL(IF(Report[Category]=$B$8,ROW(Report[])-ROW(Report[#Headers])),ROW(19:19)),MATCH($B$10,Report[#Headers],0)),\"\")","v":""},{"$f":"IFERROR(VLOOKUP(Print_Out[[#This Row],[ITEM NAME]],ItemsName,2,FALSE),\"\")","v":""},{"$f":"IFERROR(INDEX(Report[],SMALL(IF(Report[Category]=$B$8,ROW(Report[])-ROW(Report[#Headers])),ROW(19:19)),MATCH($D$10,Report[#Headers],0)),\"\")","v":""},{"$f":"IFERROR(INDEX(Report[],SMALL(IF(Report[Category]=$B$8,ROW(Report[])-ROW(Report[#Headers])),ROW(19:19)),MATCH($E$10,Report[#Headers],0)),\"\")","v":""},{"$f":"IFERROR(INDEX(Report[],SMALL(IF(Report[Category]=$B$8,ROW(Report[])-ROW(Report[#Headers])),ROW(19:19)),MATCH($F$10,Report[#Headers],0)),\"\")","v":""},{"$f":"IFERROR(INDEX(Report[],SMALL(IF(Report[Category]=$B$8,ROW(Report[])-ROW(Report[#Headers])),ROW(19:19)),MATCH($G$10,Report[#Headers],0)),\"\")","v":""},{"$f":"IFERROR(INDEX(Report[],SMALL(IF(Report[Category]=$B$8,ROW(Report[])-ROW(Report[#Headers])),ROW(19:19)),MATCH($H$10,Report[#Headers],0)),\"\")","v":""}]
[{"$f":"IF(B30=\"\",\"\",SUBTOTAL(3,B$11:B30))","v":""},{"$f":"IFERROR(INDEX(Report[],SMALL(IF(Report[Category]=$B$8,ROW(Report[])-ROW(Report[#Headers])),ROW(20:20)),MATCH($B$10,Report[#Headers],0)),\"\")","v":""},{"$f":"IFERROR(VLOOKUP(Print_Out[[#This Row],[ITEM NAME]],ItemsName,2,FALSE),\"\")","v":""},{"$f":"IFERROR(INDEX(Report[],SMALL(IF(Report[Category]=$B$8,ROW(Report[])-ROW(Report[#Headers])),ROW(20:20)),MATCH($D$10,Report[#Headers],0)),\"\")","v":""},{"$f":"IFERROR(INDEX(Report[],SMALL(IF(Report[Category]=$B$8,ROW(Report[])-ROW(Report[#Headers])),ROW(20:20)),MATCH($E$10,Report[#Headers],0)),\"\")","v":""},{"$f":"IFERROR(INDEX(Report[],SMALL(IF(Report[Category]=$B$8,ROW(Report[])-ROW(Report[#Headers])),ROW(20:20)),MATCH($F$10,Report[#Headers],0)),\"\")","v":""},{"$f":"IFERROR(INDEX(Report[],SMALL(IF(Report[Category]=$B$8,ROW(Report[])-ROW(Report[#Headers])),ROW(20:20)),MATCH($G$10,Report[#Headers],0)),\"\")","v":""},{"$f":"IFERROR(INDEX(Report[],SMALL(IF(Report[Category]=$B$8,ROW(Report[])-ROW(Report[#Headers])),ROW(20:20)),MATCH($H$10,Report[#Headers],0)),\"\")","v":""}]
[{"$f":"IF(B31=\"\",\"\",SUBTOTAL(3,B$11:B31))","v":""},{"$f":"IFERROR(INDEX(Report[],SMALL(IF(Report[Category]=$B$8,ROW(Report[])-ROW(Report[#Headers])),ROW(21:21)),MATCH($B$10,Report[#Headers],0)),\"\")","v":""},{"$f":"IFERROR(VLOOKUP(Print_Out[[#This Row],[ITEM NAME]],ItemsName,2,FALSE),\"\")","v":""},{"$f":"IFERROR(INDEX(Report[],SMALL(IF(Report[Category]=$B$8,ROW(Report[])-ROW(Report[#Headers])),ROW(21:21)),MATCH($D$10,Report[#Headers],0)),\"\")","v":""},{"$f":"IFERROR(INDEX(Report[],SMALL(IF(Report[Category]=$B$8,ROW(Report[])-ROW(Report[#Headers])),ROW(21:21)),MATCH($E$10,Report[#Headers],0)),\"\")","v":""},{"$f":"IFERROR(INDEX(Report[],SMALL(IF(Report[Category]=$B$8,ROW(Report[])-ROW(Report[#Headers])),ROW(21:21)),MATCH($F$10,Report[#Headers],0)),\"\")","v":""},{"$f":"IFERROR(INDEX(Report[],SMALL(IF(Report[Category]=$B$8,ROW(Report[])-ROW(Report[#Headers])),ROW(21:21)),MATCH($G$10,Report[#Headers],0)),\"\")","v":""},{"$f":"IFERROR(INDEX(Report[],SMALL(IF(Report[Category]=$B$8,ROW(Report[])-ROW(Report[#Headers])),ROW(21:21)),MATCH($H$10,Report[#Headers],0)),\"\")","v":""}]
[{"$f":"IF(B32=\"\",\"\",SUBTOTAL(3,B$11:B32))","v":""},{"$f":"IFERROR(INDEX(Report[],SMALL(IF(Report[Category]=$B$8,ROW(Report[])-ROW(Report[#Headers])),ROW(22:22)),MATCH($B$10,Report[#Headers],0)),\"\")","v":""},{"$f":"IFERROR(VLOOKUP(Print_Out[[#This Row],[ITEM NAME]],ItemsName,2,FALSE),\"\")","v":""},{"$f":"IFERROR(INDEX(Report[],SMALL(IF(Report[Category]=$B$8,ROW(Report[])-ROW(Report[#Headers])),ROW(22:22)),MATCH($D$10,Report[#Headers],0)),\"\")","v":""},{"$f":"IFERROR(INDEX(Report[],SMALL(IF(Report[Category]=$B$8,ROW(Report[])-ROW(Report[#Headers])),ROW(22:22)),MATCH($E$10,Report[#Headers],0)),\"\")","v":""},{"$f":"IFERROR(INDEX(Report[],SMALL(IF(Report[Category]=$B$8,ROW(Report[])-ROW(Report[#Headers])),ROW(22:22)),MATCH($F$10,Report[#Headers],0)),\"\")","v":""},{"$f":"IFERROR(INDEX(Report[],SMALL(IF(Report[Category]=$B$8,ROW(Report[])-ROW(Report[#Headers])),ROW(22:22)),MATCH($G$10,Report[#Headers],0)),\"\")","v":""},{"$f":"IFERROR(INDEX(Report[],SMALL(IF(Report[Category]=$B$8,ROW(Report[])-ROW(Report[#Headers])),ROW(22:22)),MATCH($H$10,Report[#Headers],0)),\"\")","v":""}]
[{"$f":"IF(B33=\"\",\"\",SUBTOTAL(3,B$11:B33))","v":""},{"$f":"IFERROR(INDEX(Report[],SMALL(IF(Report[Category]=$B$8,ROW(Report[])-ROW(Report[#Headers])),ROW(23:23)),MATCH($B$10,Report[#Headers],0)),\"\")","v":""},{"$f":"IFERROR(VLOOKUP(Print_Out[[#This Row],[ITEM NAME]],ItemsName,2,FALSE),\"\")","v":""},{"$f":"IFERROR(INDEX(Report[],SMALL(IF(Report[Category]=$B$8,ROW(Report[])-ROW(Report[#Headers])),ROW(23:23)),MATCH($D$10,Report[#Headers],0)),\"\")","v":""},{"$f":"IFERROR(INDEX(Report[],SMALL(IF(Report[Category]=$B$8,ROW(Report[])-ROW(Report[#Headers])),ROW(23:23)),MATCH($E$10,Report[#Headers],0)),\"\")","v":""},{"$f":"IFERROR(INDEX(Report[],SMALL(IF(Report[Category]=$B$8,ROW(Report[])-ROW(Report[#Headers])),ROW(23:23)),MATCH($F$10,Report[#Headers],0)),\"\")","v":""},{"$f":"IFERROR(INDEX(Report[],SMALL(IF(Report[Category]=$B$8,ROW(Report[])-ROW(Report[#Headers])),ROW(23:23)),MATCH($G$10,Report[#Headers],0)),\"\")","v":""},{"$f":"IFERROR(INDEX(Report[],SMALL(IF(Report[Category]=$B$8,ROW(Report[])-ROW(Report[#Headers])),ROW(23:23)),MATCH($H$10,Report[#Headers],0)),\"\")","v":""}]
[{"$f":"IF(B34=\"\",\"\",SUBTOTAL(3,B$11:B34))","v":""},{"$f":"IFERROR(INDEX(Report[],SMALL(IF(Report[Category]=$B$8,ROW(Report[])-ROW(Report[#Headers])),ROW(24:24)),MATCH($B$10,Report[#Headers],0)),\"\")","v":""},{"$f":"IFERROR(VLOOKUP(Print_Out[[#This Row],[ITEM NAME]],ItemsName,2,FALSE),\"\")","v":""},{"$f":"IFERROR(INDEX(Report[],SMALL(IF(Report[Category]=$B$8,ROW(Report[])-ROW(Report[#Headers])),ROW(24:24)),MATCH($D$10,Report[#Headers],0)),\"\")","v":""},{"$f":"IFERROR(INDEX(Report[],SMALL(IF(Report[Category]=$B$8,ROW(Report[])-ROW(Report[#Headers])),ROW(24:24)),MATCH($E$10,Report[#Headers],0)),\"\")","v":""},{"$f":"IFERROR(INDEX(Report[],SMALL(IF(Report[Category]=$B$8,ROW(Report[])-ROW(Report[#Headers])),ROW(24:24)),MATCH($F$10,Report[#Headers],0)),\"\")","v":""},{"$f":"IFERROR(INDEX(Report[],SMALL(IF(Report[Category]=$B$8,ROW(Report[])-ROW(Report[#Headers])),ROW(24:24)),MATCH($G$10,Report[#Headers],0)),\"\")","v":""},{"$f":"IFERROR(INDEX(Report[],SMALL(IF(Report[Category]=$B$8,ROW(Report[])-ROW(Report[#Headers])),ROW(24:24)),MATCH($H$10,Report[#Headers],0)),\"\")","v":""}]
[{"$f":"IF(B35=\"\",\"\",SUBTOTAL(3,B$11:B35))","v":""},{"$f":"IFERROR(INDEX(Report[],SMALL(IF(Report[Category]=$B$8,ROW(Report[])-ROW(Report[#Headers])),ROW(25:25)),MATCH($B$10,Report[#Headers],0)),\"\")","v":""},{"$f":"IFERROR(VLOOKUP(Print_Out[[#This Row],[ITEM NAME]],ItemsName,2,FALSE),\"\")","v":""},{"$f":"IFERROR(INDEX(Report[],SMALL(IF(Report[Category]=$B$8,ROW(Report[])-ROW(Report[#Headers])),ROW(25:25)),MATCH($D$10,Report[#Headers],0)),\"\")","v":""},{"$f":"IFERROR(INDEX(Report[],SMALL(IF(Report[Category]=$B$8,ROW(Report[])-ROW(Report[#Headers])),ROW(25:25)),MATCH($E$10,Report[#Headers],0)),\"\")","v":""},{"$f":"IFERROR(INDEX(Report[],SMALL(IF(Report[Category]=$B$8,ROW(Report[])-ROW(Report[#Headers])),ROW(25:25)),MATCH($F$10,Report[#Headers],0)),\"\")","v":""},{"$f":"IFERROR(INDEX(Report[],SMALL(IF(Report[Category]=$B$8,ROW(Report[])-ROW(Report[#Headers])),ROW(25:25)),MATCH($G$10,Report[#Headers],0)),\"\")","v":""},{"$f":"IFERROR(INDEX(Report[],SMALL(IF(Report[Category]=$B$8,ROW(Report[])-ROW(Report[#Headers])),ROW(25:25)),MATCH($H$10,Report[#Headers],0)),\"\")","v":""}]
[{"$f":"IF(B36=\"\",\"\",SUBTOTAL(3,B$11:B36))","v":""},{"$f":"IFERROR(INDEX(Report[],SMALL(IF(Report[Category]=$B$8,ROW(Report[])-ROW(Report[#Headers])),ROW(26:26)),MATCH($B$10,Report[#Headers],0)),\"\")","v":""},{"$f":"IFERROR(VLOOKUP(Print_Out[[#This Row],[ITEM NAME]],ItemsName,2,FALSE),\"\")","v":""},{"$f":"IFERROR(INDEX(Report[],SMALL(IF(Report[Category]=$B$8,ROW(Report[])-ROW(Report[#Headers])),ROW(26:26)),MATCH($D$10,Report[#Headers],0)),\"\")","v":""},{"$f":"IFERROR(INDEX(Report[],SMALL(IF(Report[Category]=$B$8,ROW(Report[])-ROW(Report[#Headers])),ROW(26:26)),MATCH($E$10,Report[#Headers],0)),\"\")","v":""},{"$f":"IFERROR(INDEX(Report[],SMALL(IF(Report[Category]=$B$8,ROW(Report[])-ROW(Report[#Headers])),ROW(26:26)),MATCH($F$10,Report[#Headers],0)),\"\")","v":""},{"$f":"IFERROR(INDEX(Report[],SMALL(IF(Report[Category]=$B$8,ROW(Report[])-ROW(Report[#Headers])),ROW(26:26)),MATCH($G$10,Report[#Headers],0)),\"\")","v":""},{"$f":"IFERROR(INDEX(Report[],SMALL(IF(Report[Category]=$B$8,ROW(Report[])-ROW(Report[#Headers])),ROW(26:26)),MATCH($H$10,Report[#Headers],0)),\"\")","v":""}]
[{"$f":"IF(B37=\"\",\"\",SUBTOTAL(3,B$11:B37))","v":""},{"$f":"IFERROR(INDEX(Report[],SMALL(IF(Report[Category]=$B$8,ROW(Report[])-ROW(Report[#Headers])),ROW(27:27)),MATCH($B$10,Report[#Headers],0)),\"\")","v":""},{"$f":"IFERROR(VLOOKUP(Print_Out[[#This Row],[ITEM NAME]],ItemsName,2,FALSE),\"\")","v":""},{"$f":"IFERROR(INDEX(Report[],SMALL(IF(Report[Category]=$B$8,ROW(Report[])-ROW(Report[#Headers])),ROW(27:27)),MATCH($D$10,Report[#Headers],0)),\"\")","v":""},{"$f":"IFERROR(INDEX(Report[],SMALL(IF(Report[Category]=$B$8,ROW(Report[])-ROW(Report[#Headers])),ROW(27:27)),MATCH($E$10,Report[#Headers],0)),\"\")","v":""},{"$f":"IFERROR(INDEX(Report[],SMALL(IF(Report[Category]=$B$8,ROW(Report[])-ROW(Report[#Headers])),ROW(27:27)),MATCH($F$10,Report[#Headers],0)),\"\")","v":""},{"$f":"IFERROR(INDEX(Report[],SMALL(IF(Report[Category]=$B$8,ROW(Report[])-ROW(Report[#Headers])),ROW(27:27)),MATCH($G$10,Report[#Headers],0)),\"\")","v":""},{"$f":"IFERROR(INDEX(Report[],SMALL(IF(Report[Category]=$B$8,ROW(Report[])-ROW(Report[#Headers])),ROW(27:27)),MATCH($H$10,Report[#Headers],0)),\"\")","v":""}]
[{"$f":"IF(B38=\"\",\"\",SUBTOTAL(3,B$11:B38))","v":""},{"$f":"IFERROR(INDEX(Report[],SMALL(IF(Report[Category]=$B$8,ROW(Report[])-ROW(Report[#Headers])),ROW(28:28)),MATCH($B$10,Report[#Headers],0)),\"\")","v":""},{"$f":"IFERROR(VLOOKUP(Print_Out[[#This Row],[ITEM NAME]],ItemsName,2,FALSE),\"\")","v":""},{"$f":"IFERROR(INDEX(Report[],SMALL(IF(Report[Category]=$B$8,ROW(Report[])-ROW(Report[#Headers])),ROW(28:28)),MATCH($D$10,Report[#Headers],0)),\"\")","v":""},{"$f":"IFERROR(INDEX(Report[],SMALL(IF(Report[Category]=$B$8,ROW(Report[])-ROW(Report[#Headers])),ROW(28:28)),MATCH($E$10,Report[#Headers],0)),\"\")","v":""},{"$f":"IFERROR(INDEX(Report[],SMALL(IF(Report[Category]=$B$8,ROW(Report[])-ROW(Report[#Headers])),ROW(28:28)),MATCH($F$10,Report[#Headers],0)),\"\")","v":""},{"$f":"IFERROR(INDEX(Report[],SMALL(IF(Report[Category]=$B$8,ROW(Report[])-ROW(Report[#Headers])),ROW(28:28)),MATCH($G$10,Report[#Headers],0)),\"\")","v":""},{"$f":"IFERROR(INDEX(Report[],SMALL(IF(Report[Category]=$B$8,ROW(Report[])-ROW(Report[#Headers])),ROW(28:28)),MATCH($H$10,Report[#Headers],0)),\"\")","v":""}]
[{"$f":"IF(B39=\"\",\"\",SUBTOTAL(3,B$11:B39))","v":""},{"$f":"IFERROR(INDEX(Report[],SMALL(IF(Report[Category]=$B$8,ROW(Report[])-ROW(Report[#Headers])),ROW(29:29)),MATCH($B$10,Report[#Headers],0)),\"\")","v":""},{"$f":"IFERROR(VLOOKUP(Print_Out[[#This Row],[ITEM NAME]],ItemsName,2,FALSE),\"\")","v":""},{"$f":"IFERROR(INDEX(Report[],SMALL(IF(Report[Category]=$B$8,ROW(Report[])-ROW(Report[#Headers])),ROW(29:29)),MATCH($D$10,Report[#Headers],0)),\"\")","v":""},{"$f":"IFERROR(INDEX(Report[],SMALL(IF(Report[Category]=$B$8,ROW(Report[])-ROW(Report[#Headers])),ROW(29:29)),MATCH($E$10,Report[#Headers],0)),\"\")","v":""},{"$f":"IFERROR(INDEX(Report[],SMALL(IF(Report[Category]=$B$8,ROW(Report[])-ROW(Report[#Headers])),ROW(29:29)),MATCH($F$10,Report[#Headers],0)),\"\")","v":""},{"$f":"IFERROR(INDEX(Report[],SMALL(IF(Report[Category]=$B$8,ROW(Report[])-ROW(Report[#Headers])),ROW(29:29)),MATCH($G$10,Report[#Headers],0)),\"\")","v":""},{"$f":"IFERROR(INDEX(Report[],SMALL(IF(Report[Category]=$B$8,ROW(Report[])-ROW(Report[#Headers])),ROW(29:29)),MATCH($H$10,Report[#Headers],0)),\"\")","v":""}]
[{"$f":"IF(B40=\"\",\"\",SUBTOTAL(3,B$11:B40))","v":""},{"$f":"IFERROR(INDEX(Report[],SMALL(IF(Report[Category]=$B$8,ROW(Report[])-ROW(Report[#Headers])),ROW(30:30)),MATCH($B$10,Report[#Headers],0)),\"\")","v":""},{"$f":"IFERROR(VLOOKUP(Print_Out[[#This Row],[ITEM NAME]],ItemsName,2,FALSE),\"\")","v":""},{"$f":"IFERROR(INDEX(Report[],SMALL(IF(Report[Category]=$B$8,ROW(Report[])-ROW(Report[#Headers])),ROW(30:30)),MATCH($D$10,Report[#Headers],0)),\"\")","v":""},{"$f":"IFERROR(INDEX(Report[],SMALL(IF(Report[Category]=$B$8,ROW(Report[])-ROW(Report[#Headers])),ROW(30:30)),MATCH($E$10,Report[#Headers],0)),\"\")","v":""},{"$f":"IFERROR(INDEX(Report[],SMALL(IF(Report[Category]=$B$8,ROW(Report[])-ROW(Report[#Headers])),ROW(30:30)),MATCH($F$10,Report[#Headers],0)),\"\")","v":""},{"$f":"IFERROR(INDEX(Report[],SMALL(IF(Report[Category]=$B$8,ROW(Report[])-ROW(Report[#Headers])),ROW(30:30)),MATCH($G$10,Report[#Headers],0)),\"\")","v":""},{"$f":"IFERROR(INDEX(Report[],SMALL(IF(Report[Category]=$B$8,ROW(Report[])-ROW(Report[#Headers])),ROW(30:30)),MATCH($H$10,Report[#Headers],0)),\"\")","v":""}]
[{"$f":"IF(B41=\"\",\"\",SUBTOTAL(3,B$11:B41))","v":""},{"$f":"IFERROR(INDEX(Report[],SMALL(IF(Report[Category]=$B$8,ROW(Report[])-ROW(Report[#Headers])),ROW(31:31)),MATCH($B$10,Report[#Headers],0)),\"\")","v":""},{"$f":"IFERROR(VLOOKUP(Print_Out[[#This Row],[ITEM NAME]],ItemsName,2,FALSE),\"\")","v":""},{"$f":"IFERROR(INDEX(Report[],SMALL(IF(Report[Category]=$B$8,ROW(Report[])-ROW(Report[#Headers])),ROW(31:31)),MATCH($D$10,Report[#Headers],0)),\"\")","v":""},{"$f":"IFERROR(INDEX(Report[],SMALL(IF(Report[Category]=$B$8,ROW(Report[])-ROW(Report[#Headers])),ROW(31:31)),MATCH($E$10,Report[#Headers],0)),\"\")","v":""},{"$f":"IFERROR(INDEX(Report[],SMALL(IF(Report[Category]=$B$8,ROW(Report[])-ROW(Report[#Headers])),ROW(31:31)),MATCH($F$10,Report[#Headers],0)),\"\")","v":""},{"$f":"IFERROR(INDEX(Report[],SMALL(IF(Report[Category]=$B$8,ROW(Report[])-ROW(Report[#Headers])),ROW(31:31)),MATCH($G$10,Report[#Headers],0)),\"\")","v":""},{"$f":"IFERROR(INDEX(Report[],SMALL(IF(Report[Category]=$B$8,ROW(Report[])-ROW(Report[#Headers])),ROW(31:31)),MATCH($H$10,Report[#Headers],0)),\"\")","v":""}]
[{"$f":"IF(B42=\"\",\"\",SUBTOTAL(3,B$11:B42))","v":""},{"$f":"IFERROR(INDEX(Report[],SMALL(IF(Report[Category]=$B$8,ROW(Report[])-ROW(Report[#Headers])),ROW(32:32)),MATCH($B$10,Report[#Headers],0)),\"\")","v":""},{"$f":"IFERROR(VLOOKUP(Print_Out[[#This Row],[ITEM NAME]],ItemsName,2,FALSE),\"\")","v":""},{"$f":"IFERROR(INDEX(Report[],SMALL(IF(Report[Category]=$B$8,ROW(Report[])-ROW(Report[#Headers])),ROW(32:32)),MATCH($D$10,Report[#Headers],0)),\"\")","v":""},{"$f":"IFERROR(INDEX(Report[],SMALL(IF(Report[Category]=$B$8,ROW(Report[])-ROW(Report[#Headers])),ROW(32:32)),MATCH($E$10,Report[#Headers],0)),\"\")","v":""},{"$f":"IFERROR(INDEX(Report[],SMALL(IF(Report[Category]=$B$8,ROW(Report[])-ROW(Report[#Headers])),ROW(32:32)),MATCH($F$10,Report[#Headers],0)),\"\")","v":""},{"$f":"IFERROR(INDEX(Report[],SMALL(IF(Report[Category]=$B$8,ROW(Report[])-ROW(Report[#Headers])),ROW(32:32)),MATCH($G$10,Report[#Headers],0)),\"\")","v":""},{"$f":"IFERROR(INDEX(Report[],SMALL(IF(Report[Category]=$B$8,ROW(Report[])-ROW(Report[#Headers])),ROW(32:32)),MATCH($H$10,Report[#Headers],0)),\"\")","v":""}]
[{"$f":"IF(B43=\"\",\"\",SUBTOTAL(3,B$11:B43))","v":""},{"$f":"IFERROR(INDEX(Report[],SMALL(IF(Report[Category]=$B$8,ROW(Report[])-ROW(Report[#Headers])),ROW(33:33)),MATCH($B$10,Report[#Headers],0)),\"\")","v":""},{"$f":"IFERROR(VLOOKUP(Print_Out[[#This Row],[ITEM NAME]],ItemsName,2,FALSE),\"\")","v":""},{"$f":"IFERROR(INDEX(Report[],SMALL(IF(Report[Category]=$B$8,ROW(Report[])-ROW(Report[#Headers])),ROW(33:33)),MATCH($D$10,Report[#Headers],0)),\"\")","v":""},{"$f":"IFERROR(INDEX(Report[],SMALL(IF(Report[Category]=$B$8,ROW(Report[])-ROW(Report[#Headers])),ROW(33:33)),MATCH($E$10,Report[#Headers],0)),\"\")","v":""},{"$f":"IFERROR(INDEX(Report[],SMALL(IF(Report[Category]=$B$8,ROW(Report[])-ROW(Report[#Headers])),ROW(33:33)),MATCH($F$10,Report[#Headers],0)),\"\")","v":""},{"$f":"IFERROR(INDEX(Report[],SMALL(IF(Report[Category]=$B$8,ROW(Report[])-ROW(Report[#Headers])),ROW(33:33)),MATCH($G$10,Report[#Headers],0)),\"\")","v":""},{"$f":"IFERROR(INDEX(Report[],SMALL(IF(Report[Category]=$B$8,ROW(Report[])-ROW(Report[#Headers])),ROW(33:33)),MATCH($H$10,Report[#Headers],0)),\"\")","v":""}]
[{"$f":"IF(B44=\"\",\"\",SUBTOTAL(3,B$11:B44))","v":""},{"$f":"IFERROR(INDEX(Report[],SMALL(IF(Report[Category]=$B$8,ROW(Report[])-ROW(Report[#Headers])),ROW(34:34)),MATCH($B$10,Report[#Headers],0)),\"\")","v":""},{"$f":"IFERROR(VLOOKUP(Print_Out[[#This Row],[ITEM NAME]],ItemsName,2,FALSE),\"\")","v":""},{"$f":"IFERROR(INDEX(Report[],SMALL(IF(Report[Category]=$B$8,ROW(Report[])-ROW(Report[#Headers])),ROW(34:34)),MATCH($D$10,Report[#Headers],0)),\"\")","v":""},{"$f":"IFERROR(INDEX(Report[],SMALL(IF(Report[Category]=$B$8,ROW(Report[])-ROW(Report[#Headers])),ROW(34:34)),MATCH($E$10,Report[#Headers],0)),\"\")","v":""},{"$f":"IFERROR(INDEX(Report[],SMALL(IF(Report[Category]=$B$8,ROW(Report[])-ROW(Report[#Headers])),ROW(34:34)),MATCH($F$10,Report[#Headers],0)),\"\")","v":""},{"$f":"IFERROR(INDEX(Report[],SMALL(IF(Report[Category]=$B$8,ROW(Report[])-ROW(Report[#Headers])),ROW(34:34)),MATCH($G$10,Report[#Headers],0)),\"\")","v":""},{"$f":"IFERROR(INDEX(Report[],SMALL(IF(Report[Category]=$B$8,ROW(Report[])-ROW(Report[#Headers])),ROW(34:34)),MATCH($H$10,Report[#Headers],0)),\"\")","v":""}]
[{"$f":"IF(B45=\"\",\"\",SUBTOTAL(3,B$11:B45))","v":""},{"$f":"IFERROR(INDEX(Report[],SMALL(IF(Report[Category]=$B$8,ROW(Report[])-ROW(Report[#Headers])),ROW(35:35)),MATCH($B$10,Report[#Headers],0)),\"\")","v":""},{"$f":"IFERROR(VLOOKUP(Print_Out[[#This Row],[ITEM NAME]],ItemsName,2,FALSE),\"\")","v":""},{"$f":"IFERROR(INDEX(Report[],SMALL(IF(Report[Category]=$B$8,ROW(Report[])-ROW(Report[#Headers])),ROW(35:35)),MATCH($D$10,Report[#Headers],0)),\"\")","v":""},{"$f":"IFERROR(INDEX(Report[],SMALL(IF(Report[Category]=$B$8,ROW(Report[])-ROW(Report[#Headers])),ROW(35:35)),MATCH($E$10,Report[#Headers],0)),\"\")","v":""},{"$f":"IFERROR(INDEX(Report[],SMALL(IF(Report[Category]=$B$8,ROW(Report[])-ROW(Report[#Headers])),ROW(35:35)),MATCH($F$10,Report[#Headers],0)),\"\")","v":""},{"$f":"IFERROR(INDEX(Report[],SMALL(IF(Report[Category]=$B$8,ROW(Report[])-ROW(Report[#Headers])),ROW(35:35)),MATCH($G$10,Report[#Headers],0)),\"\")","v":""},{"$f":"IFERROR(INDEX(Report[],SMALL(IF(Report[Category]=$B$8,ROW(Report[])-ROW(Report[#Headers])),ROW(35:35)),MATCH($H$10,Report[#Headers],0)),\"\")","v":""}]
[{"$f":"IF(B46=\"\",\"\",SUBTOTAL(3,B$11:B46))","v":""},{"$f":"IFERROR(INDEX(Report[],SMALL(IF(Report[Category]=$B$8,ROW(Report[])-ROW(Report[#Headers])),ROW(36:36)),MATCH($B$10,Report[#Headers],0)),\"\")","v":""},{"$f":"IFERROR(VLOOKUP(Print_Out[[#This Row],[ITEM NAME]],ItemsName,2,FALSE),\"\")","v":""},{"$f":"IFERROR(INDEX(Report[],SMALL(IF(Report[Category]=$B$8,ROW(Report[])-ROW(Report[#Headers])),ROW(36:36)),MATCH($D$10,Report[#Headers],0)),\"\")","v":""},{"$f":"IFERROR(INDEX(Report[],SMALL(IF(Report[Category]=$B$8,ROW(Report[])-ROW(Report[#Headers])),ROW(36:36)),MATCH($E$10,Report[#Headers],0)),\"\")","v":""},{"$f":"IFERROR(INDEX(Report[],SMALL(IF(Report[Category]=$B$8,ROW(Report[])-ROW(Report[#Headers])),ROW(36:36)),MATCH($F$10,Report[#Headers],0)),\"\")","v":""},{"$f":"IFERROR(INDEX(Report[],SMALL(IF(Report[Category]=$B$8,ROW(Report[])-ROW(Report[#Headers])),ROW(36:36)),MATCH($G$10,Report[#Headers],0)),\"\")","v":""},{"$f":"IFERROR(INDEX(Report[],SMALL(IF(Report[Category]=$B$8,ROW(Report[])-ROW(Report[#Headers])),ROW(36:36)),MATCH($H$10,Report[#Headers],0)),\"\")","v":""}]
[{"$f":"IF(B47=\"\",\"\",SUBTOTAL(3,B$11:B47))","v":""},{"$f":"IFERROR(INDEX(Report[],SMALL(IF(Report[Category]=$B$8,ROW(Report[])-ROW(Report[#Headers])),ROW(37:37)),MATCH($B$10,Report[#Headers],0)),\"\")","v":""},{"$f":"IFERROR(VLOOKUP(Print_Out[[#This Row],[ITEM NAME]],ItemsName,2,FALSE),\"\")","v":""},{"$f":"IFERROR(INDEX(Report[],SMALL(IF(Report[Category]=$B$8,ROW(Report[])-ROW(Report[#Headers])),ROW(37:37)),MATCH($D$10,Report[#Headers],0)),\"\")","v":""},{"$f":"IFERROR(INDEX(Report[],SMALL(IF(Report[Category]=$B$8,ROW(Report[])-ROW(Report[#Headers])),ROW(37:37)),MATCH($E$10,Report[#Headers],0)),\"\")","v":""},{"$f":"IFERROR(INDEX(Report[],SMALL(IF(Report[Category]=$B$8,ROW(Report[])-ROW(Report[#Headers])),ROW(37:37)),MATCH($F$10,Report[#Headers],0)),\"\")","v":""},{"$f":"IFERROR(INDEX(Report[],SMALL(IF(Report[Category]=$B$8,ROW(Report[])-ROW(Report[#Headers])),ROW(37:37)),MATCH($G$10,Report[#Headers],0)),\"\")","v":""},{"$f":"IFERROR(INDEX(Report[],SMALL(IF(Report[Category]=$B$8,ROW(Report[])-ROW(Report[#Headers])),ROW(37:37)),MATCH($H$10,Report[#Headers],0)),\"\")","v":""}]
[{"$f":"IF(B48=\"\",\"\",SUBTOTAL(3,B$11:B48))","v":""},{"$f":"IFERROR(INDEX(Report[],SMALL(IF(Report[Category]=$B$8,ROW(Report[])-ROW(Report[#Headers])),ROW(38:38)),MATCH($B$10,Report[#Headers],0)),\"\")","v":""},{"$f":"IFERROR(VLOOKUP(Print_Out[[#This Row],[ITEM NAME]],ItemsName,2,FALSE),\"\")","v":""},{"$f":"IFERROR(INDEX(Report[],SMALL(IF(Report[Category]=$B$8,ROW(Report[])-ROW(Report[#Headers])),ROW(38:38)),MATCH($D$10,Report[#Headers],0)),\"\")","v":""},{"$f":"IFERROR(INDEX(Report[],SMALL(IF(Report[Category]=$B$8,ROW(Report[])-ROW(Report[#Headers])),ROW(38:38)),MATCH($E$10,Report[#Headers],0)),\"\")","v":""},{"$f":"IFERROR(INDEX(Report[],SMALL(IF(Report[Category]=$B$8,ROW(Report[])-ROW(Report[#Headers])),ROW(38:38)),MATCH($F$10,Report[#Headers],0)),\"\")","v":""},{"$f":"IFERROR(INDEX(Report[],SMALL(IF(Report[Category]=$B$8,ROW(Report[])-ROW(Report[#Headers])),ROW(38:38)),MATCH($G$10,Report[#Headers],0)),\"\")","v":""},{"$f":"IFERROR(INDEX(Report[],SMALL(IF(Report[Category]=$B$8,ROW(Report[])-ROW(Report[#Headers])),ROW(38:38)),MATCH($H$10,Report[#Headers],0)),\"\")","v":""}]
[{"$f":"IF(B49=\"\",\"\",SUBTOTAL(3,B$11:B49))","v":""},{"$f":"IFERROR(INDEX(Report[],SMALL(IF(Report[Category]=$B$8,ROW(Report[])-ROW(Report[#Headers])),ROW(39:39)),MATCH($B$10,Report[#Headers],0)),\"\")","v":""},{"$f":"IFERROR(VLOOKUP(Print_Out[[#This Row],[ITEM NAME]],ItemsName,2,FALSE),\"\")","v":""},{"$f":"IFERROR(INDEX(Report[],SMALL(IF(Report[Category]=$B$8,ROW(Report[])-ROW(Report[#Headers])),ROW(39:39)),MATCH($D$10,Report[#Headers],0)),\"\")","v":""},{"$f":"IFERROR(INDEX(Report[],SMALL(IF(Report[Category]=$B$8,ROW(Report[])-ROW(Report[#Headers])),ROW(39:39)),MATCH($E$10,Report[#Headers],0)),\"\")","v":""},{"$f":"IFERROR(INDEX(Report[],SMALL(IF(Report[Category]=$B$8,ROW(Report[])-ROW(Report[#Headers])),ROW(39:39)),MATCH($F$10,Report[#Headers],0)),\"\")","v":""},{"$f":"IFERROR(INDEX(Report[],SMALL(IF(Report[Category]=$B$8,ROW(Report[])-ROW(Report[#Headers])),ROW(39:39)),MATCH($G$10,Report[#Headers],0)),\"\")","v":""},{"$f":"IFERROR(INDEX(Report[],SMALL(IF(Report[Category]=$B$8,ROW(Report[])-ROW(Report[#Headers])),ROW(39:39)),MATCH($H$10,Report[#Headers],0)),\"\")","v":""}]
[{"$f":"IF(B50=\"\",\"\",SUBTOTAL(3,B$11:B50))","v":""},{"$f":"IFERROR(INDEX(Report[],SMALL(IF(Report[Category]=$B$8,ROW(Report[])-ROW(Report[#Headers])),ROW(40:40)),MATCH($B$10,Report[#Headers],0)),\"\")","v":""},{"$f":"IFERROR(VLOOKUP(Print_Out[[#This Row],[ITEM NAME]],ItemsName,2,FALSE),\"\")","v":""},{"$f":"IFERROR(INDEX(Report[],SMALL(IF(Report[Category]=$B$8,ROW(Report[])-ROW(Report[#Headers])),ROW(40:40)),MATCH($D$10,Report[#Headers],0)),\"\")","v":""},{"$f":"IFERROR(INDEX(Report[],SMALL(IF(Report[Category]=$B$8,ROW(Report[])-ROW(Report[#Headers])),ROW(40:40)),MATCH($E$10,Report[#Headers],0)),\"\")","v":""},{"$f":"IFERROR(INDEX(Report[],SMALL(IF(Report[Category]=$B$8,ROW(Report[])-ROW(Report[#Headers])),ROW(40:40)),MATCH($F$10,Report[#Headers],0)),\"\")","v":""},{"$f":"IFERROR(INDEX(Report[],SMALL(IF(Report[Category]=$B$8,ROW(Report[])-ROW(Report[#Headers])),ROW(40:40)),MATCH($G$10,Report[#Headers],0)),\"\")","v":""},{"$f":"IFERROR(INDEX(Report[],SMALL(IF(Report[Category]=$B$8,ROW(Report[])-ROW(Report[#Headers])),ROW(40:40)),MATCH($H$10,Report[#Headers],0)),\"\")","v":""}]
[{"$f":"IF(B51=\"\",\"\",SUBTOTAL(3,B$11:B51))","v":""},{"$f":"IFERROR(INDEX(Report[],SMALL(IF(Report[Category]=$B$8,ROW(Report[])-ROW(Report[#Headers])),ROW(41:41)),MATCH($B$10,Report[#Headers],0)),\"\")","v":""},{"$f":"IFERROR(VLOOKUP(Print_Out[[#This Row],[ITEM NAME]],ItemsName,2,FALSE),\"\")","v":""},{"$f":"IFERROR(INDEX(Report[],SMALL(IF(Report[Category]=$B$8,ROW(Report[])-ROW(Report[#Headers])),ROW(41:41)),MATCH($D$10,Report[#Headers],0)),\"\")","v":""},{"$f":"IFERROR(INDEX(Report[],SMALL(IF(Report[Category]=$B$8,ROW(Report[])-ROW(Report[#Headers])),ROW(41:41)),MATCH($E$10,Report[#Headers],0)),\"\")","v":""},{"$f":"IFERROR(INDEX(Report[],SMALL(IF(Report[Category]=$B$8,ROW(Report[])-ROW(Report[#Headers])),ROW(41:41)),MATCH($F$10,Report[#Headers],0)),\"\")","v":""},{"$f":"IFERROR(INDEX(Report[],SMALL(IF(Report[Category]=$B$8,ROW(Report[])-ROW(Report[#Headers])),ROW(41:41)),MATCH($G$10,Report[#Headers],0)),\"\")","v":""},{"$f":"IFERROR(INDEX(Report[],SMALL(IF(Report[Category]=$B$8,ROW(Report[])-ROW(Report[#Headers])),ROW(41:41)),MATCH($H$10,Report[#Headers],0)),\"\")","v":""}]
[{"$f":"IF(B52=\"\",\"\",SUBTOTAL(3,B$11:B52))","v":""},{"$f":"IFERROR(INDEX(Report[],SMALL(IF(Report[Category]=$B$8,ROW(Report[])-ROW(Report[#Headers])),ROW(42:42)),MATCH($B$10,Report[#Headers],0)),\"\")","v":""},{"$f":"IFERROR(VLOOKUP(Print_Out[[#This Row],[ITEM NAME]],ItemsName,2,FALSE),\"\")","v":""},{"$f":"IFERROR(INDEX(Report[],SMALL(IF(Report[Category]=$B$8,ROW(Report[])-ROW(Report[#Headers])),ROW(42:42)),MATCH($D$10,Report[#Headers],0)),\"\")","v":""},{"$f":"IFERROR(INDEX(Report[],SMALL(IF(Report[Category]=$B$8,ROW(Report[])-ROW(Report[#Headers])),ROW(42:42)),MATCH($E$10,Report[#Headers],0)),\"\")","v":""},{"$f":"IFERROR(INDEX(Report[],SMALL(IF(Report[Category]=$B$8,ROW(Report[])-ROW(Report[#Headers])),ROW(42:42)),MATCH($F$10,Report[#Headers],0)),\"\")","v":""},{"$f":"IFERROR(INDEX(Report[],SMALL(IF(Report[Category]=$B$8,ROW(Report[])-ROW(Report[#Headers])),ROW(42:42)),MATCH($G$10,Report[#Headers],0)),\"\")","v":""},{"$f":"IFERROR(INDEX(Report[],SMALL(IF(Report[Category]=$B$8,ROW(Report[])-ROW(Report[#Headers])),ROW(42:42)),MATCH($H$10,Report[#Headers],0)),\"\")","v":""}]
[{"$f":"IF(B53=\"\",\"\",SUBTOTAL(3,B$11:B53))","v":""},{"$f":"IFERROR(INDEX(Report[],SMALL(IF(Report[Category]=$B$8,ROW(Report[])-ROW(Report[#Headers])),ROW(43:43)),MATCH($B$10,Report[#Headers],0)),\"\")","v":""},{"$f":"IFERROR(VLOOKUP(Print_Out[[#This Row],[ITEM NAME]],ItemsName,2,FALSE),\"\")","v":""},{"$f":"IFERROR(INDEX(Report[],SMALL(IF(Report[Category]=$B$8,ROW(Report[])-ROW(Report[#Headers])),ROW(43:43)),MATCH($D$10,Report[#Headers],0)),\"\")","v":""},{"$f":"IFERROR(INDEX(Report[],SMALL(IF(Report[Category]=$B$8,ROW(Report[])-ROW(Report[#Headers])),ROW(43:43)),MATCH($E$10,Report[#Headers],0)),\"\")","v":""},{"$f":"IFERROR(INDEX(Report[],SMALL(IF(Report[Category]=$B$8,ROW(Report[])-ROW(Report[#Headers])),ROW(43:43)),MATCH($F$10,Report[#Headers],0)),\"\")","v":""},{"$f":"IFERROR(INDEX(Report[],SMALL(IF(Report[Category]=$B$8,ROW(Report[])-ROW(Report[#Headers])),ROW(43:43)),MATCH($G$10,Report[#Headers],0)),\"\")","v":""},{"$f":"IFERROR(INDEX(Report[],SMALL(IF(Report[Category]=$B$8,ROW(Report[])-ROW(Report[#Headers])),ROW(43:43)),MATCH($H$10,Report[#Headers],0)),\"\")","v":""}]
[{"$f":"IF(B54=\"\",\"\",SUBTOTAL(3,B$11:B54))","v":""},{"$f":"IFERROR(INDEX(Report[],SMALL(IF(Report[Category]=$B$8,ROW(Report[])-ROW(Report[#Headers])),ROW(44:44)),MATCH($B$10,Report[#Headers],0)),\"\")","v":""},{"$f":"IFERROR(VLOOKUP(Print_Out[[#This Row],[ITEM NAME]],ItemsName,2,FALSE),\"\")","v":""},{"$f":"IFERROR(INDEX(Report[],SMALL(IF(Report[Category]=$B$8,ROW(Report[])-ROW(Report[#Headers])),ROW(44:44)),MATCH($D$10,Report[#Headers],0)),\"\")","v":""},{"$f":"IFERROR(INDEX(Report[],SMALL(IF(Report[Category]=$B$8,ROW(Report[])-ROW(Report[#Headers])),ROW(44:44)),MATCH($E$10,Report[#Headers],0)),\"\")","v":""},{"$f":"IFERROR(INDEX(Report[],SMALL(IF(Report[Category]=$B$8,ROW(Report[])-ROW(Report[#Headers])),ROW(44:44)),MATCH($F$10,Report[#Headers],0)),\"\")","v":""},{"$f":"IFERROR(INDEX(Report[],SMALL(IF(Report[Category]=$B$8,ROW(Report[])-ROW(Report[#Headers])),ROW(44:44)),MATCH($G$10,Report[#Headers],0)),\"\")","v":""},{"$f":"IFERROR(INDEX(Report[],SMALL(IF(Report[Category]=$B$8,ROW(Report[])-ROW(Report[#Headers])),ROW(44:44)),MATCH($H$10,Report[#Headers],0)),\"\")","v":""}]
[{"$f":"IF(B55=\"\",\"\",SUBTOTAL(3,B$11:B55))","v":""},{"$f":"IFERROR(INDEX(Report[],SMALL(IF(Report[Category]=$B$8,ROW(Report[])-ROW(Report[#Headers])),ROW(45:45)),MATCH($B$10,Report[#Headers],0)),\"\")","v":""},{"$f":"IFERROR(VLOOKUP(Print_Out[[#This Row],[ITEM NAME]],ItemsName,2,FALSE),\"\")","v":""},{"$f":"IFERROR(INDEX(Report[],SMALL(IF(Report[Category]=$B$8,ROW(Report[])-ROW(Report[#Headers])),ROW(45:45)),MATCH($D$10,Report[#Headers],0)),\"\")","v":""},{"$f":"IFERROR(INDEX(Report[],SMALL(IF(Report[Category]=$B$8,ROW(Report[])-ROW(Report[#Headers])),ROW(45:45)),MATCH($E$10,Report[#Headers],0)),\"\")","v":""},{"$f":"IFERROR(INDEX(Report[],SMALL(IF(Report[Category]=$B$8,ROW(Report[])-ROW(Report[#Headers])),ROW(45:45)),MATCH($F$10,Report[#Headers],0)),\"\")","v":""},{"$f":"IFERROR(INDEX(Report[],SMALL(IF(Report[Category]=$B$8,ROW(Report[])-ROW(Report[#Headers])),ROW(45:45)),MATCH($G$10,Report[#Headers],0)),\"\")","v":""},{"$f":"IFERROR(INDEX(Report[],SMALL(IF(Report[Category]=$B$8,ROW(Report[])-ROW(Report[#Headers])),ROW(45:45)),MATCH($H$10,Report[#Headers],0)),\"\")","v":""}]
[{"$f":"IF(B56=\"\",\"\",SUBTOTAL(3,B$11:B56))","v":""},{"$f":"IFERROR(INDEX(Report[],SMALL(IF(Report[Category]=$B$8,ROW(Report[])-ROW(Report[#Headers])),ROW(46:46)),MATCH($B$10,Report[#Headers],0)),\"\")","v":""},{"$f":"IFERROR(VLOOKUP(Print_Out[[#This Row],[ITEM NAME]],ItemsName,2,FALSE),\"\")","v":""},{"$f":"IFERROR(INDEX(Report[],SMALL(IF(Report[Category]=$B$8,ROW(Report[])-ROW(Report[#Headers])),ROW(46:46)),MATCH($D$10,Report[#Headers],0)),\"\")","v":""},{"$f":"IFERROR(INDEX(Report[],SMALL(IF(Report[Category]=$B$8,ROW(Report[])-ROW(Report[#Headers])),ROW(46:46)),MATCH($E$10,Report[#Headers],0)),\"\")","v":""},{"$f":"IFERROR(INDEX(Report[],SMALL(IF(Report[Category]=$B$8,ROW(Report[])-ROW(Report[#Headers])),ROW(46:46)),MATCH($F$10,Report[#Headers],0)),\"\")","v":""},{"$f":"IFERROR(INDEX(Report[],SMALL(IF(Report[Category]=$B$8,ROW(Report[])-ROW(Report[#Headers])),ROW(46:46)),MATCH($G$10,Report[#Headers],0)),\"\")","v":""},{"$f":"IFERROR(INDEX(Report[],SMALL(IF(Report[Category]=$B$8,ROW(Report[])-ROW(Report[#Headers])),ROW(46:46)),MATCH($H$10,Report[#Headers],0)),\"\")","v":""}]
[{"$f":"IF(B57=\"\",\"\",SUBTOTAL(3,B$11:B57))","v":""},{"$f":"IFERROR(INDEX(Report[],SMALL(IF(Report[Category]=$B$8,ROW(Report[])-ROW(Report[#Headers])),ROW(47:47)),MATCH($B$10,Report[#Headers],0)),\"\")","v":""},{"$f":"IFERROR(VLOOKUP(Print_Out[[#This Row],[ITEM NAME]],ItemsName,2,FALSE),\"\")","v":""},{"$f":"IFERROR(INDEX(Report[],SMALL(IF(Report[Category]=$B$8,ROW(Report[])-ROW(Report[#Headers])),ROW(47:47)),MATCH($D$10,Report[#Headers],0)),\"\")","v":""},{"$f":"IFERROR(INDEX(Report[],SMALL(IF(Report[Category]=$B$8,ROW(Report[])-ROW(Report[#Headers])),ROW(47:47)),MATCH($E$10,Report[#Headers],0)),\"\")","v":""},{"$f":"IFERROR(INDEX(Report[],SMALL(IF(Report[Category]=$B$8,ROW(Report[])-ROW(Report[#Headers])),ROW(47:47)),MATCH($F$10,Report[#Headers],0)),\"\")","v":""},{"$f":"IFERROR(INDEX(Report[],SMALL(IF(Report[Category]=$B$8,ROW(Report[])-ROW(Report[#Headers])),ROW(47:47)),MATCH($G$10,Report[#Headers],0)),\"\")","v":""},{"$f":"IFERROR(INDEX(Report[],SMALL(IF(Report[Category]=$B$8,ROW(Report[])-ROW(Report[#Headers])),ROW(47:47)),MATCH($H$10,Report[#Headers],0)),\"\")","v":""}]
[{"$f":"IF(B58=\"\",\"\",SUBTOTAL(3,B$11:B58))","v":""},{"$f":"IFERROR(INDEX(Report[],SMALL(IF(Report[Category]=$B$8,ROW(Report[])-ROW(Report[#Headers])),ROW(48:48)),MATCH($B$10,Report[#Headers],0)),\"\")","v":""},{"$f":"IFERROR(VLOOKUP(Print_Out[[#This Row],[ITEM NAME]],ItemsName,2,FALSE),\"\")","v":""},{"$f":"IFERROR(INDEX(Report[],SMALL(IF(Report[Category]=$B$8,ROW(Report[])-ROW(Report[#Headers])),ROW(48:48)),MATCH($D$10,Report[#Headers],0)),\"\")","v":""},{"$f":"IFERROR(INDEX(Report[],SMALL(IF(Report[Category]=$B$8,ROW(Report[])-ROW(Report[#Headers])),ROW(48:48)),MATCH($E$10,Report[#Headers],0)),\"\")","v":""},{"$f":"IFERROR(INDEX(Report[],SMALL(IF(Report[Category]=$B$8,ROW(Report[])-ROW(Report[#Headers])),ROW(48:48)),MATCH($F$10,Report[#Headers],0)),\"\")","v":""},{"$f":"IFERROR(INDEX(Report[],SMALL(IF(Report[Category]=$B$8,ROW(Report[])-ROW(Report[#Headers])),ROW(48:48)),MATCH($G$10,Report[#Headers],0)),\"\")","v":""},{"$f":"IFERROR(INDEX(Report[],SMALL(IF(Report[Category]=$B$8,ROW(Report[])-ROW(Report[#Headers])),ROW(48:48)),MATCH($H$10,Report[#Headers],0)),\"\")","v":""}]
[{"$f":"IF(B59=\"\",\"\",SUBTOTAL(3,B$11:B59))","v":""},{"$f":"IFERROR(INDEX(Report[],SMALL(IF(Report[Category]=$B$8,ROW(Report[])-ROW(Report[#Headers])),ROW(49:49)),MATCH($B$10,Report[#Headers],0)),\"\")","v":""},{"$f":"IFERROR(VLOOKUP(Print_Out[[#This Row],[ITEM NAME]],ItemsName,2,FALSE),\"\")","v":""},{"$f":"IFERROR(INDEX(Report[],SMALL(IF(Report[Category]=$B$8,ROW(Report[])-ROW(Report[#Headers])),ROW(49:49)),MATCH($D$10,Report[#Headers],0)),\"\")","v":""},{"$f":"IFERROR(INDEX(Report[],SMALL(IF(Report[Category]=$B$8,ROW(Report[])-ROW(Report[#Headers])),ROW(49:49)),MATCH($E$10,Report[#Headers],0)),\"\")","v":""},{"$f":"IFERROR(INDEX(Report[],SMALL(IF(Report[Category]=$B$8,ROW(Report[])-ROW(Report[#Headers])),ROW(49:49)),MATCH($F$10,Report[#Headers],0)),\"\")","v":""},{"$f":"IFERROR(INDEX(Report[],SMALL(IF(Report[Category]=$B$8,ROW(Report[])-ROW(Report[#Headers])),ROW(49:49)),MATCH($G$10,Report[#Headers],0)),\"\")","v":""},{"$f":"IFERROR(INDEX(Report[],SMALL(IF(Report[Category]=$B$8,ROW(Report[])-ROW(Report[#Headers])),ROW(49:49)),MATCH($H$10,Report[#Headers],0)),\"\")","v":""}]
[{"$f":"IF(B60=\"\",\"\",SUBTOTAL(3,B$11:B60))","v":""},{"$f":"IFERROR(INDEX(Report[],SMALL(IF(Report[Category]=$B$8,ROW(Report[])-ROW(Report[#Headers])),ROW(50:50)),MATCH($B$10,Report[#Headers],0)),\"\")","v":""},{"$f":"IFERROR(VLOOKUP(Print_Out[[#This Row],[ITEM NAME]],ItemsName,2,FALSE),\"\")","v":""},{"$f":"IFERROR(INDEX(Report[],SMALL(IF(Report[Category]=$B$8,ROW(Report[])-ROW(Report[#Headers])),ROW(50:50)),MATCH($D$10,Report[#Headers],0)),\"\")","v":""},{"$f":"IFERROR(INDEX(Report[],SMALL(IF(Report[Category]=$B$8,ROW(Report[])-ROW(Report[#Headers])),ROW(50:50)),MATCH($E$10,Report[#Headers],0)),\"\")","v":""},{"$f":"IFERROR(INDEX(Report[],SMALL(IF(Report[Category]=$B$8,ROW(Report[])-ROW(Report[#Headers])),ROW(50:50)),MATCH($F$10,Report[#Headers],0)),\"\")","v":""},{"$f":"IFERROR(INDEX(Report[],SMALL(IF(Report[Category]=$B$8,ROW(Report[])-ROW(Report[#Headers])),ROW(50:50)),MATCH($G$10,Report[#Headers],0)),\"\")","v":""},{"$f":"IFERROR(INDEX(Report[],SMALL(IF(Report[Category]=$B$8,ROW(Report[])-ROW(Report[#Headers])),ROW(50:50)),MATCH($H$10,Report[#Headers],0)),\"\")","v":""}]
[{"$f":"IF(B61=\"\",\"\",SUBTOTAL(3,B$11:B61))","v":""},{"$f":"IFERROR(INDEX(Report[],SMALL(IF(Report[Category]=$B$8,ROW(Report[])-ROW(Report[#Headers])),ROW(51:51)),MATCH($B$10,Report[#Headers],0)),\"\")","v":""},{"$f":"IFERROR(VLOOKUP(Print_Out[[#This Row],[ITEM NAME]],ItemsName,2,FALSE),\"\")","v":""},{"$f":"IFERROR(INDEX(Report[],SMALL(IF(Report[Category]=$B$8,ROW(Report[])-ROW(Report[#Headers])),ROW(51:51)),MATCH($D$10,Report[#Headers],0)),\"\")","v":""},{"$f":"IFERROR(INDEX(Report[],SMALL(IF(Report[Category]=$B$8,ROW(Report[])-ROW(Report[#Headers])),ROW(51:51)),MATCH($E$10,Report[#Headers],0)),\"\")","v":""},{"$f":"IFERROR(INDEX(Report[],SMALL(IF(Report[Category]=$B$8,ROW(Report[])-ROW(Report[#Headers])),ROW(51:51)),MATCH($F$10,Report[#Headers],0)),\"\")","v":""},{"$f":"IFERROR(INDEX(Report[],SMALL(IF(Report[Category]=$B$8,ROW(Report[])-ROW(Report[#Headers])),ROW(51:51)),MATCH($G$10,Report[#Headers],0)),\"\")","v":""},{"$f":"IFERROR(INDEX(Report[],SMALL(IF(Report[Category]=$B$8,ROW(Report[])-ROW(Report[#Headers])),ROW(51:51)),MATCH($H$10,Report[#Headers],0)),\"\")","v":""}]
[{"$f":"IF(B62=\"\",\"\",SUBTOTAL(3,B$11:B62))","v":""},{"$f":"IFERROR(INDEX(Report[],SMALL(IF(Report[Category]=$B$8,ROW(Report[])-ROW(Report[#Headers])),ROW(52:52)),MATCH($B$10,Report[#Headers],0)),\"\")","v":""},{"$f":"IFERROR(VLOOKUP(Print_Out[[#This Row],[ITEM NAME]],ItemsName,2,FALSE),\"\")","v":""},{"$f":"IFERROR(INDEX(Report[],SMALL(IF(Report[Category]=$B$8,ROW(Report[])-ROW(Report[#Headers])),ROW(52:52)),MATCH($D$10,Report[#Headers],0)),\"\")","v":""},{"$f":"IFERROR(INDEX(Report[],SMALL(IF(Report[Category]=$B$8,ROW(Report[])-ROW(Report[#Headers])),ROW(52:52)),MATCH($E$10,Report[#Headers],0)),\"\")","v":""},{"$f":"IFERROR(INDEX(Report[],SMALL(IF(Report[Category]=$B$8,ROW(Report[])-ROW(Report[#Headers])),ROW(52:52)),MATCH($F$10,Report[#Headers],0)),\"\")","v":""},{"$f":"IFERROR(INDEX(Report[],SMALL(IF(Report[Category]=$B$8,ROW(Report[])-ROW(Report[#Headers])),ROW(52:52)),MATCH($G$10,Report[#Headers],0)),\"\")","v":""},{"$f":"IFERROR(INDEX(Report[],SMALL(IF(Report[Category]=$B$8,ROW(Report[])-ROW(Report[#Headers])),ROW(52:52)),MATCH($H$10,Report[#Headers],0)),\"\")","v":""}]
[{"$f":"IF(B63=\"\",\"\",SUBTOTAL(3,B$11:B63))","v":""},{"$f":"IFERROR(INDEX(Report[],SMALL(IF(Report[Category]=$B$8,ROW(Report[])-ROW(Report[#Headers])),ROW(53:53)),MATCH($B$10,Report[#Headers],0)),\"\")","v":""},{"$f":"IFERROR(VLOOKUP(Print_Out[[#This Row],[ITEM NAME]],ItemsName,2,FALSE),\"\")","v":""},{"$f":"IFERROR(INDEX(Report[],SMALL(IF(Report[Category]=$B$8,ROW(Report[])-ROW(Report[#Headers])),ROW(53:53)),MATCH($D$10,Report[#Headers],0)),\"\")","v":""},{"$f":"IFERROR(INDEX(Report[],SMALL(IF(Report[Category]=$B$8,ROW(Report[])-ROW(Report[#Headers])),ROW(53:53)),MATCH($E$10,Report[#Headers],0)),\"\")","v":""},{"$f":"IFERROR(INDEX(Report[],SMALL(IF(Report[Category]=$B$8,ROW(Report[])-ROW(Report[#Headers])),ROW(53:53)),MATCH($F$10,Report[#Headers],0)),\"\")","v":""},{"$f":"IFERROR(INDEX(Report[],SMALL(IF(Report[Category]=$B$8,ROW(Report[])-ROW(Report[#Headers])),ROW(53:53)),MATCH($G$10,Report[#Headers],0)),\"\")","v":""},{"$f":"IFERROR(INDEX(Report[],SMALL(IF(Report[Category]=$B$8,ROW(Report[])-ROW(Report[#Headers])),ROW(53:53)),MATCH($H$10,Report[#Headers],0)),\"\")","v":""}]
[{"$f":"IF(B64=\"\",\"\",SUBTOTAL(3,B$11:B64))","v":""},{"$f":"IFERROR(INDEX(Report[],SMALL(IF(Report[Category]=$B$8,ROW(Report[])-ROW(Report[#Headers])),ROW(54:54)),MATCH($B$10,Report[#Headers],0)),\"\")","v":""},{"$f":"IFERROR(VLOOKUP(Print_Out[[#This Row],[ITEM NAME]],ItemsName,2,FALSE),\"\")","v":""},{"$f":"IFERROR(INDEX(Report[],SMALL(IF(Report[Category]=$B$8,ROW(Report[])-ROW(Report[#Headers])),ROW(54:54)),MATCH($D$10,Report[#Headers],0)),\"\")","v":""},{"$f":"IFERROR(INDEX(Report[],SMALL(IF(Report[Category]=$B$8,ROW(Report[])-ROW(Report[#Headers])),ROW(54:54)),MATCH($E$10,Report[#Headers],0)),\"\")","v":""},{"$f":"IFERROR(INDEX(Report[],SMALL(IF(Report[Category]=$B$8,ROW(Report[])-ROW(Report[#Headers])),ROW(54:54)),MATCH($F$10,Report[#Headers],0)),\"\")","v":""},{"$f":"IFERROR(INDEX(Report[],SMALL(IF(Report[Category]=$B$8,ROW(Report[])-ROW(Report[#Headers])),ROW(54:54)),MATCH($G$10,Report[#Headers],0)),\"\")","v":""},{"$f":"IFERROR(INDEX(Report[],SMALL(IF(Report[Category]=$B$8,ROW(Report[])-ROW(Report[#Headers])),ROW(54:54)),MATCH($H$10,Report[#Headers],0)),\"\")","v":""}]
[{"$f":"IF(B65=\"\",\"\",SUBTOTAL(3,B$11:B65))","v":""},{"$f":"IFERROR(INDEX(Report[],SMALL(IF(Report[Category]=$B$8,ROW(Report[])-ROW(Report[#Headers])),ROW(55:55)),MATCH($B$10,Report[#Headers],0)),\"\")","v":""},{"$f":"IFERROR(VLOOKUP(Print_Out[[#This Row],[ITEM NAME]],ItemsName,2,FALSE),\"\")","v":""},{"$f":"IFERROR(INDEX(Report[],SMALL(IF(Report[Category]=$B$8,ROW(Report[])-ROW(Report[#Headers])),ROW(55:55)),MATCH($D$10,Report[#Headers],0)),\"\")","v":""},{"$f":"IFERROR(INDEX(Report[],SMALL(IF(Report[Category]=$B$8,ROW(Report[])-ROW(Report[#Headers])),ROW(55:55)),MATCH($E$10,Report[#Headers],0)),\"\")","v":""},{"$f":"IFERROR(INDEX(Report[],SMALL(IF(Report[Category]=$B$8,ROW(Report[])-ROW(Report[#Headers])),ROW(55:55)),MATCH($F$10,Report[#Headers],0)),\"\")","v":""},{"$f":"IFERROR(INDEX(Report[],SMALL(IF(Report[Category]=$B$8,ROW(Report[])-ROW(Report[#Headers])),ROW(55:55)),MATCH($G$10,Report[#Headers],0)),\"\")","v":""},{"$f":"IFERROR(INDEX(Report[],SMALL(IF(Report[Category]=$B$8,ROW(Report[])-ROW(Report[#Headers])),ROW(55:55)),MATCH($H$10,Report[#Headers],0)),\"\")","v":""}]
[{"$f":"IF(B66=\"\",\"\",SUBTOTAL(3,B$11:B66))","v":""},{"$f":"IFERROR(INDEX(Report[],SMALL(IF(Report[Category]=$B$8,ROW(Report[])-ROW(Report[#Headers])),ROW(56:56)),MATCH($B$10,Report[#Headers],0)),\"\")","v":""},{"$f":"IFERROR(VLOOKUP(Print_Out[[#This Row],[ITEM NAME]],ItemsName,2,FALSE),\"\")","v":""},{"$f":"IFERROR(INDEX(Report[],SMALL(IF(Report[Category]=$B$8,ROW(Report[])-ROW(Report[#Headers])),ROW(56:56)),MATCH($D$10,Report[#Headers],0)),\"\")","v":""},{"$f":"IFERROR(INDEX(Report[],SMALL(IF(Report[Category]=$B$8,ROW(Report[])-ROW(Report[#Headers])),ROW(56:56)),MATCH($E$10,Report[#Headers],0)),\"\")","v":""},{"$f":"IFERROR(INDEX(Report[],SMALL(IF(Report[Category]=$B$8,ROW(Report[])-ROW(Report[#Headers])),ROW(56:56)),MATCH($F$10,Report[#Headers],0)),\"\")","v":""},{"$f":"IFERROR(INDEX(Report[],SMALL(IF(Report[Category]=$B$8,ROW(Report[])-ROW(Report[#Headers])),ROW(56:56)),MATCH($G$10,Report[#Headers],0)),\"\")","v":""},{"$f":"IFERROR(INDEX(Report[],SMALL(IF(Report[Category]=$B$8,ROW(Report[])-ROW(Report[#Headers])),ROW(56:56)),MATCH($H$10,Report[#Headers],0)),\"\")","v":""}]
[{"$f":"IF(B67=\"\",\"\",SUBTOTAL(3,B$11:B67))","v":""},{"$f":"IFERROR(INDEX(Report[],SMALL(IF(Report[Category]=$B$8,ROW(Report[])-ROW(Report[#Headers])),ROW(57:57)),MATCH($B$10,Report[#Headers],0)),\"\")","v":""},{"$f":"IFERROR(VLOOKUP(Print_Out[[#This Row],[ITEM NAME]],ItemsName,2,FALSE),\"\")","v":""},{"$f":"IFERROR(INDEX(Report[],SMALL(IF(Report[Category]=$B$8,ROW(Report[])-ROW(Report[#Headers])),ROW(57:57)),MATCH($D$10,Report[#Headers],0)),\"\")","v":""},{"$f":"IFERROR(INDEX(Report[],SMALL(IF(Report[Category]=$B$8,ROW(Report[])-ROW(Report[#Headers])),ROW(57:57)),MATCH($E$10,Report[#Headers],0)),\"\")","v":""},{"$f":"IFERROR(INDEX(Report[],SMALL(IF(Report[Category]=$B$8,ROW(Report[])-ROW(Report[#Headers])),ROW(57:57)),MATCH($F$10,Report[#Headers],0)),\"\")","v":""},{"$f":"IFERROR(INDEX(Report[],SMALL(IF(Report[Category]=$B$8,ROW(Report[])-ROW(Report[#Headers])),ROW(57:57)),MATCH($G$10,Report[#Headers],0)),\"\")","v":""},{"$f":"IFERROR(INDEX(Report[],SMALL(IF(Report[Category]=$B$8,ROW(Report[])-ROW(Report[#Headers])),ROW(57:57)),MATCH($H$10,Report[#Headers],0)),\"\")","v":""}]
[{"$f":"IF(B68=\"\",\"\",SUBTOTAL(3,B$11:B68))","v":""},{"$f":"IFERROR(INDEX(Report[],SMALL(IF(Report[Category]=$B$8,ROW(Report[])-ROW(Report[#Headers])),ROW(58:58)),MATCH($B$10,Report[#Headers],0)),\"\")","v":""},{"$f":"IFERROR(VLOOKUP(Print_Out[[#This Row],[ITEM NAME]],ItemsName,2,FALSE),\"\")","v":""},{"$f":"IFERROR(INDEX(Report[],SMALL(IF(Report[Category]=$B$8,ROW(Report[])-ROW(Report[#Headers])),ROW(58:58)),MATCH($D$10,Report[#Headers],0)),\"\")","v":""},{"$f":"IFERROR(INDEX(Report[],SMALL(IF(Report[Category]=$B$8,ROW(Report[])-ROW(Report[#Headers])),ROW(58:58)),MATCH($E$10,Report[#Headers],0)),\"\")","v":""},{"$f":"IFERROR(INDEX(Report[],SMALL(IF(Report[Category]=$B$8,ROW(Report[])-ROW(Report[#Headers])),ROW(58:58)),MATCH($F$10,Report[#Headers],0)),\"\")","v":""},{"$f":"IFERROR(INDEX(Report[],SMALL(IF(Report[Category]=$B$8,ROW(Report[])-ROW(Report[#Headers])),ROW(58:58)),MATCH($G$10,Report[#Headers],0)),\"\")","v":""},{"$f":"IFERROR(INDEX(Report[],SMALL(IF(Report[Category]=$B$8,ROW(Report[])-ROW(Report[#Headers])),ROW(58:58)),MATCH($H$10,Report[#Headers],0)),\"\")","v":""}]
[{"$f":"IF(B69=\"\",\"\",SUBTOTAL(3,B$11:B69))","v":""},{"$f":"IFERROR(INDEX(Report[],SMALL(IF(Report[Category]=$B$8,ROW(Report[])-ROW(Report[#Headers])),ROW(59:59)),MATCH($B$10,Report[#Headers],0)),\"\")","v":""},{"$f":"IFERROR(VLOOKUP(Print_Out[[#This Row],[ITEM NAME]],ItemsName,2,FALSE),\"\")","v":""},{"$f":"IFERROR(INDEX(Report[],SMALL(IF(Report[Category]=$B$8,ROW(Report[])-ROW(Report[#Headers])),ROW(59:59)),MATCH($D$10,Report[#Headers],0)),\"\")","v":""},{"$f":"IFERROR(INDEX(Report[],SMALL(IF(Report[Category]=$B$8,ROW(Report[])-ROW(Report[#Headers])),ROW(59:59)),MATCH($E$10,Report[#Headers],0)),\"\")","v":""},{"$f":"IFERROR(INDEX(Report[],SMALL(IF(Report[Category]=$B$8,ROW(Report[])-ROW(Report[#Headers])),ROW(59:59)),MATCH($F$10,Report[#Headers],0)),\"\")","v":""},{"$f":"IFERROR(INDEX(Report[],SMALL(IF(Report[Category]=$B$8,ROW(Report[])-ROW(Report[#Headers])),ROW(59:59)),MATCH($G$10,Report[#Headers],0)),\"\")","v":""},{"$f":"IFERROR(INDEX(Report[],SMALL(IF(Report[Category]=$B$8,ROW(Report[])-ROW(Report[#Headers])),ROW(59:59)),MATCH($H$10,Report[#Headers],0)),\"\")","v":""}]
[{"$f":"IF(B70=\"\",\"\",SUBTOTAL(3,B$11:B70))","v":""},{"$f":"IFERROR(INDEX(Report[],SMALL(IF(Report[Category]=$B$8,ROW(Report[])-ROW(Report[#Headers])),ROW(60:60)),MATCH($B$10,Report[#Headers],0)),\"\")","v":""},{"$f":"IFERROR(VLOOKUP(Print_Out[[#This Row],[ITEM NAME]],ItemsName,2,FALSE),\"\")","v":""},{"$f":"IFERROR(INDEX(Report[],SMALL(IF(Report[Category]=$B$8,ROW(Report[])-ROW(Report[#Headers])),ROW(60:60)),MATCH($D$10,Report[#Headers],0)),\"\")","v":""},{"$f":"IFERROR(INDEX(Report[],SMALL(IF(Report[Category]=$B$8,ROW(Report[])-ROW(Report[#Headers])),ROW(60:60)),MATCH($E$10,Report[#Headers],0)),\"\")","v":""},{"$f":"IFERROR(INDEX(Report[],SMALL(IF(Report[Category]=$B$8,ROW(Report[])-ROW(Report[#Headers])),ROW(60:60)),MATCH($F$10,Report[#Headers],0)),\"\")","v":""},{"$f":"IFERROR(INDEX(Report[],SMALL(IF(Report[Category]=$B$8,ROW(Report[])-ROW(Report[#Headers])),ROW(60:60)),MATCH($G$10,Report[#Headers],0)),\"\")","v":""},{"$f":"IFERROR(INDEX(Report[],SMALL(IF(Report[Category]=$B$8,ROW(Report[])-ROW(Report[#Headers])),ROW(60:60)),MATCH($H$10,Report[#Headers],0)),\"\")","v":""}]
[{"$f":"IF(B71=\"\",\"\",SUBTOTAL(3,B$11:B71))","v":""},{"$f":"IFERROR(INDEX(Report[],SMALL(IF(Report[Category]=$B$8,ROW(Report[])-ROW(Report[#Headers])),ROW(61:61)),MATCH($B$10,Report[#Headers],0)),\"\")","v":""},{"$f":"IFERROR(VLOOKUP(Print_Out[[#This Row],[ITEM NAME]],ItemsName,2,FALSE),\"\")","v":""},{"$f":"IFERROR(INDEX(Report[],SMALL(IF(Report[Category]=$B$8,ROW(Report[])-ROW(Report[#Headers])),ROW(61:61)),MATCH($D$10,Report[#Headers],0)),\"\")","v":""},{"$f":"IFERROR(INDEX(Report[],SMALL(IF(Report[Category]=$B$8,ROW(Report[])-ROW(Report[#Headers])),ROW(61:61)),MATCH($E$10,Report[#Headers],0)),\"\")","v":""},{"$f":"IFERROR(INDEX(Report[],SMALL(IF(Report[Category]=$B$8,ROW(Report[])-ROW(Report[#Headers])),ROW(61:61)),MATCH($F$10,Report[#Headers],0)),\"\")","v":""},{"$f":"IFERROR(INDEX(Report[],SMALL(IF(Report[Category]=$B$8,ROW(Report[])-ROW(Report[#Headers])),ROW(61:61)),MATCH($G$10,Report[#Headers],0)),\"\")","v":""},{"$f":"IFERROR(INDEX(Report[],SMALL(IF(Report[Category]=$B$8,ROW(Report[])-ROW(Report[#Headers])),ROW(61:61)),MATCH($H$10,Report[#Headers],0)),\"\")","v":""}]
[{"$f":"IF(B72=\"\",\"\",SUBTOTAL(3,B$11:B72))","v":""},{"$f":"IFERROR(INDEX(Report[],SMALL(IF(Report[Category]=$B$8,ROW(Report[])-ROW(Report[#Headers])),ROW(62:62)),MATCH($B$10,Report[#Headers],0)),\"\")","v":""},{"$f":"IFERROR(VLOOKUP(Print_Out[[#This Row],[ITEM NAME]],ItemsName,2,FALSE),\"\")","v":""},{"$f":"IFERROR(INDEX(Report[],SMALL(IF(Report[Category]=$B$8,ROW(Report[])-ROW(Report[#Headers])),ROW(62:62)),MATCH($D$10,Report[#Headers],0)),\"\")","v":""},{"$f":"IFERROR(INDEX(Report[],SMALL(IF(Report[Category]=$B$8,ROW(Report[])-ROW(Report[#Headers])),ROW(62:62)),MATCH($E$10,Report[#Headers],0)),\"\")","v":""},{"$f":"IFERROR(INDEX(Report[],SMALL(IF(Report[Category]=$B$8,ROW(Report[])-ROW(Report[#Headers])),ROW(62:62)),MATCH($F$10,Report[#Headers],0)),\"\")","v":""},{"$f":"IFERROR(INDEX(Report[],SMALL(IF(Report[Category]=$B$8,ROW(Report[])-ROW(Report[#Headers])),ROW(62:62)),MATCH($G$10,Report[#Headers],0)),\"\")","v":""},{"$f":"IFERROR(INDEX(Report[],SMALL(IF(Report[Category]=$B$8,ROW(Report[])-ROW(Report[#Headers])),ROW(62:62)),MATCH($H$10,Report[#Headers],0)),\"\")","v":""}]
[{"$f":"IF(B73=\"\",\"\",SUBTOTAL(3,B$11:B73))","v":""},{"$f":"IFERROR(INDEX(Report[],SMALL(IF(Report[Category]=$B$8,ROW(Report[])-ROW(Report[#Headers])),ROW(63:63)),MATCH($B$10,Report[#Headers],0)),\"\")","v":""},{"$f":"IFERROR(VLOOKUP(Print_Out[[#This Row],[ITEM NAME]],ItemsName,2,FALSE),\"\")","v":""},{"$f":"IFERROR(INDEX(Report[],SMALL(IF(Report[Category]=$B$8,ROW(Report[])-ROW(Report[#Headers])),ROW(63:63)),MATCH($D$10,Report[#Headers],0)),\"\")","v":""},{"$f":"IFERROR(INDEX(Report[],SMALL(IF(Report[Category]=$B$8,ROW(Report[])-ROW(Report[#Headers])),ROW(63:63)),MATCH($E$10,Report[#Headers],0)),\"\")","v":""},{"$f":"IFERROR(INDEX(Report[],SMALL(IF(Report[Category]=$B$8,ROW(Report[])-ROW(Report[#Headers])),ROW(63:63)),MATCH($F$10,Report[#Headers],0)),\"\")","v":""},{"$f":"IFERROR(INDEX(Report[],SMALL(IF(Report[Category]=$B$8,ROW(Report[])-ROW(Report[#Headers])),ROW(63:63)),MATCH($G$10,Report[#Headers],0)),\"\")","v":""},{"$f":"IFERROR(INDEX(Report[],SMALL(IF(Report[Category]=$B$8,ROW(Report[])-ROW(Report[#Headers])),ROW(63:63)),MATCH($H$10,Report[#Headers],0)),\"\")","v":""}]
[{"$f":"IF(B74=\"\",\"\",SUBTOTAL(3,B$11:B74))","v":""},{"$f":"IFERROR(INDEX(Report[],SMALL(IF(Report[Category]=$B$8,ROW(Report[])-ROW(Report[#Headers])),ROW(64:64)),MATCH($B$10,Report[#Headers],0)),\"\")","v":""},{"$f":"IFERROR(VLOOKUP(Print_Out[[#This Row],[ITEM NAME]],ItemsName,2,FALSE),\"\")","v":""},{"$f":"IFERROR(INDEX(Report[],SMALL(IF(Report[Category]=$B$8,ROW(Report[])-ROW(Report[#Headers])),ROW(64:64)),MATCH($D$10,Report[#Headers],0)),\"\")","v":""},{"$f":"IFERROR(INDEX(Report[],SMALL(IF(Report[Category]=$B$8,ROW(Report[])-ROW(Report[#Headers])),ROW(64:64)),MATCH($E$10,Report[#Headers],0)),\"\")","v":""},{"$f":"IFERROR(INDEX(Report[],SMALL(IF(Report[Category]=$B$8,ROW(Report[])-ROW(Report[#Headers])),ROW(64:64)),MATCH($F$10,Report[#Headers],0)),\"\")","v":""},{"$f":"IFERROR(INDEX(Report[],SMALL(IF(Report[Category]=$B$8,ROW(Report[])-ROW(Report[#Headers])),ROW(64:64)),MATCH($G$10,Report[#Headers],0)),\"\")","v":""},{"$f":"IFERROR(INDEX(Report[],SMALL(IF(Report[Category]=$B$8,ROW(Report[])-ROW(Report[#Headers])),ROW(64:64)),MATCH($H$10,Report[#Headers],0)),\"\")","v":""}]
[{"$f":"IF(B75=\"\",\"\",SUBTOTAL(3,B$11:B75))","v":""},{"$f":"IFERROR(INDEX(Report[],SMALL(IF(Report[Category]=$B$8,ROW(Report[])-ROW(Report[#Headers])),ROW(65:65)),MATCH($B$10,Report[#Headers],0)),\"\")","v":""},{"$f":"IFERROR(VLOOKUP(Print_Out[[#This Row],[ITEM NAME]],ItemsName,2,FALSE),\"\")","v":""},{"$f":"IFERROR(INDEX(Report[],SMALL(IF(Report[Category]=$B$8,ROW(Report[])-ROW(Report[#Headers])),ROW(65:65)),MATCH($D$10,Report[#Headers],0)),\"\")","v":""},{"$f":"IFERROR(INDEX(Report[],SMALL(IF(Report[Category]=$B$8,ROW(Report[])-ROW(Report[#Headers])),ROW(65:65)),MATCH($E$10,Report[#Headers],0)),\"\")","v":""},{"$f":"IFERROR(INDEX(Report[],SMALL(IF(Report[Category]=$B$8,ROW(Report[])-ROW(Report[#Headers])),ROW(65:65)),MATCH($F$10,Report[#Headers],0)),\"\")","v":""},{"$f":"IFERROR(INDEX(Report[],SMALL(IF(Report[Category]=$B$8,ROW(Report[])-ROW(Report[#Headers])),ROW(65:65)),MATCH($G$10,Report[#Headers],0)),\"\")","v":""},{"$f":"IFERROR(INDEX(Report[],SMALL(IF(Report[Category]=$B$8,ROW(Report[])-ROW(Report[#Headers])),ROW(65:65)),MATCH($H$10,Report[#Headers],0)),\"\")","v":""}]
[{"$f":"IF(B76=\"\",\"\",SUBTOTAL(3,B$11:B76))","v":""},{"$f":"IFERROR(INDEX(Report[],SMALL(IF(Report[Category]=$B$8,ROW(Report[])-ROW(Report[#Headers])),ROW(66:66)),MATCH($B$10,Report[#Headers],0)),\"\")","v":""},{"$f":"IFERROR(VLOOKUP(Print_Out[[#This Row],[ITEM NAME]],ItemsName,2,FALSE),\"\")","v":""},{"$f":"IFERROR(INDEX(Report[],SMALL(IF(Report[Category]=$B$8,ROW(Report[])-ROW(Report[#Headers])),ROW(66:66)),MATCH($D$10,Report[#Headers],0)),\"\")","v":""},{"$f":"IFERROR(INDEX(Report[],SMALL(IF(Report[Category]=$B$8,ROW(Report[])-ROW(Report[#Headers])),ROW(66:66)),MATCH($E$10,Report[#Headers],0)),\"\")","v":""},{"$f":"IFERROR(INDEX(Report[],SMALL(IF(Report[Category]=$B$8,ROW(Report[])-ROW(Report[#Headers])),ROW(66:66)),MATCH($F$10,Report[#Headers],0)),\"\")","v":""},{"$f":"IFERROR(INDEX(Report[],SMALL(IF(Report[Category]=$B$8,ROW(Report[])-ROW(Report[#Headers])),ROW(66:66)),MATCH($G$10,Report[#Headers],0)),\"\")","v":""},{"$f":"IFERROR(INDEX(Report[],SMALL(IF(Report[Category]=$B$8,ROW(Report[])-ROW(Report[#Headers])),ROW(66:66)),MATCH($H$10,Report[#Headers],0)),\"\")","v":""}]
[{"$f":"IF(B77=\"\",\"\",SUBTOTAL(3,B$11:B77))","v":""},{"$f":"IFERROR(INDEX(Report[],SMALL(IF(Report[Category]=$B$8,ROW(Report[])-ROW(Report[#Headers])),ROW(67:67)),MATCH($B$10,Report[#Headers],0)),\"\")","v":""},{"$f":"IFERROR(VLOOKUP(Print_Out[[#This Row],[ITEM NAME]],ItemsName,2,FALSE),\"\")","v":""},{"$f":"IFERROR(INDEX(Report[],SMALL(IF(Report[Category]=$B$8,ROW(Report[])-ROW(Report[#Headers])),ROW(67:67)),MATCH($D$10,Report[#Headers],0)),\"\")","v":""},{"$f":"IFERROR(INDEX(Report[],SMALL(IF(Report[Category]=$B$8,ROW(Report[])-ROW(Report[#Headers])),ROW(67:67)),MATCH($E$10,Report[#Headers],0)),\"\")","v":""},{"$f":"IFERROR(INDEX(Report[],SMALL(IF(Report[Category]=$B$8,ROW(Report[])-ROW(Report[#Headers])),ROW(67:67)),MATCH($F$10,Report[#Headers],0)),\"\")","v":""},{"$f":"IFERROR(INDEX(Report[],SMALL(IF(Report[Category]=$B$8,ROW(Report[])-ROW(Report[#Headers])),ROW(67:67)),MATCH($G$10,Report[#Headers],0)),\"\")","v":""},{"$f":"IFERROR(INDEX(Report[],SMALL(IF(Report[Category]=$B$8,ROW(Report[])-ROW(Report[#Headers])),ROW(67:67)),MATCH($H$10,Report[#Headers],0)),\"\")","v":""}]
[{"$f":"IF(B78=\"\",\"\",SUBTOTAL(3,B$11:B78))","v":""},{"$f":"IFERROR(INDEX(Report[],SMALL(IF(Report[Category]=$B$8,ROW(Report[])-ROW(Report[#Headers])),ROW(68:68)),MATCH($B$10,Report[#Headers],0)),\"\")","v":""},{"$f":"IFERROR(VLOOKUP(Print_Out[[#This Row],[ITEM NAME]],ItemsName,2,FALSE),\"\")","v":""},{"$f":"IFERROR(INDEX(Report[],SMALL(IF(Report[Category]=$B$8,ROW(Report[])-ROW(Report[#Headers])),ROW(68:68)),MATCH($D$10,Report[#Headers],0)),\"\")","v":""},{"$f":"IFERROR(INDEX(Report[],SMALL(IF(Report[Category]=$B$8,ROW(Report[])-ROW(Report[#Headers])),ROW(68:68)),MATCH($E$10,Report[#Headers],0)),\"\")","v":""},{"$f":"IFERROR(INDEX(Report[],SMALL(IF(Report[Category]=$B$8,ROW(Report[])-ROW(Report[#Headers])),ROW(68:68)),MATCH($F$10,Report[#Headers],0)),\"\")","v":""},{"$f":"IFERROR(INDEX(Report[],SMALL(IF(Report[Category]=$B$8,ROW(Report[])-ROW(Report[#Headers])),ROW(68:68)),MATCH($G$10,Report[#Headers],0)),\"\")","v":""},{"$f":"IFERROR(INDEX(Report[],SMALL(IF(Report[Category]=$B$8,ROW(Report[])-ROW(Report[#Headers])),ROW(68:68)),MATCH($H$10,Report[#Headers],0)),\"\")","v":""}]
[{"$f":"IF(B79=\"\",\"\",SUBTOTAL(3,B$11:B79))","v":""},{"$f":"IFERROR(INDEX(Report[],SMALL(IF(Report[Category]=$B$8,ROW(Report[])-ROW(Report[#Headers])),ROW(69:69)),MATCH($B$10,Report[#Headers],0)),\"\")","v":""},{"$f":"IFERROR(VLOOKUP(Print_Out[[#This Row],[ITEM NAME]],ItemsName,2,FALSE),\"\")","v":""},{"$f":"IFERROR(INDEX(Report[],SMALL(IF(Report[Category]=$B$8,ROW(Report[])-ROW(Report[#Headers])),ROW(69:69)),MATCH($D$10,Report[#Headers],0)),\"\")","v":""},{"$f":"IFERROR(INDEX(Report[],SMALL(IF(Report[Category]=$B$8,ROW(Report[])-ROW(Report[#Headers])),ROW(69:69)),MATCH($E$10,Report[#Headers],0)),\"\")","v":""},{"$f":"IFERROR(INDEX(Report[],SMALL(IF(Report[Category]=$B$8,ROW(Report[])-ROW(Report[#Headers])),ROW(69:69)),MATCH($F$10,Report[#Headers],0)),\"\")","v":""},{"$f":"IFERROR(INDEX(Report[],SMALL(IF(Report[Category]=$B$8,ROW(Report[])-ROW(Report[#Headers])),ROW(69:69)),MATCH($G$10,Report[#Headers],0)),\"\")","v":""},{"$f":"IFERROR(INDEX(Report[],SMALL(IF(Report[Category]=$B$8,ROW(Report[])-ROW(Report[#Headers])),ROW(69:69)),MATCH($H$10,Report[#Headers],0)),\"\")","v":""}]
[{"$f":"IF(B80=\"\",\"\",SUBTOTAL(3,B$11:B80))","v":""},{"$f":"IFERROR(INDEX(Report[],SMALL(IF(Report[Category]=$B$8,ROW(Report[])-ROW(Report[#Headers])),ROW(70:70)),MATCH($B$10,Report[#Headers],0)),\"\")","v":""},{"$f":"IFERROR(VLOOKUP(Print_Out[[#This Row],[ITEM NAME]],ItemsName,2,FALSE),\"\")","v":""},{"$f":"IFERROR(INDEX(Report[],SMALL(IF(Report[Category]=$B$8,ROW(Report[])-ROW(Report[#Headers])),ROW(70:70)),MATCH($D$10,Report[#Headers],0)),\"\")","v":""},{"$f":"IFERROR(INDEX(Report[],SMALL(IF(Report[Category]=$B$8,ROW(Report[])-ROW(Report[#Headers])),ROW(70:70)),MATCH($E$10,Report[#Headers],0)),\"\")","v":""},{"$f":"IFERROR(INDEX(Report[],SMALL(IF(Report[Category]=$B$8,ROW(Report[])-ROW(Report[#Headers])),ROW(70:70)),MATCH($F$10,Report[#Headers],0)),\"\")","v":""},{"$f":"IFERROR(INDEX(Report[],SMALL(IF(Report[Category]=$B$8,ROW(Report[])-ROW(Report[#Headers])),ROW(70:70)),MATCH($G$10,Report[#Headers],0)),\"\")","v":""},{"$f":"IFERROR(INDEX(Report[],SMALL(IF(Report[Category]=$B$8,ROW(Report[])-ROW(Report[#Headers])),ROW(70:70)),MATCH($H$10,Report[#Headers],0)),\"\")","v":""}]
[{"$f":"IF(B81=\"\",\"\",SUBTOTAL(3,B$11:B81))","v":""},{"$f":"IFERROR(INDEX(Report[],SMALL(IF(Report[Category]=$B$8,ROW(Report[])-ROW(Report[#Headers])),ROW(71:71)),MATCH($B$10,Report[#Headers],0)),\"\")","v":""},{"$f":"IFERROR(VLOOKUP(Print_Out[[#This Row],[ITEM NAME]],ItemsName,2,FALSE),\"\")","v":""},{"$f":"IFERROR(INDEX(Report[],SMALL(IF(Report[Category]=$B$8,ROW(Report[])-ROW(Report[#Headers])),ROW(71:71)),MATCH($D$10,Report[#Headers],0)),\"\")","v":""},{"$f":"IFERROR(INDEX(Report[],SMALL(IF(Report[Category]=$B$8,ROW(Report[])-ROW(Report[#Headers])),ROW(71:71)),MATCH($E$10,Report[#Headers],0)),\"\")","v":""},{"$f":"IFERROR(INDEX(Report[],SMALL(IF(Report[Category]=$B$8,ROW(Report[])-ROW(Report[#Headers])),ROW(71:71)),MATCH($F$10,Report[#Headers],0)),\"\")","v":""},{"$f":"IFERROR(INDEX(Report[],SMALL(IF(Report[Category]=$B$8,ROW(Report[])-ROW(Report[#Headers])),ROW(71:71)),MATCH($G$10,Report[#Headers],0)),\"\")","v":""},{"$f":"IFERROR(INDEX(Report[],SMALL(IF(Report[Category]=$B$8,ROW(Report[])-ROW(Report[#Headers])),ROW(71:71)),MATCH($H$10,Report[#Headers],0)),\"\")","v":""}]
[{"$f":"IF(B82=\"\",\"\",SUBTOTAL(3,B$11:B82))","v":""},{"$f":"IFERROR(INDEX(Report[],SMALL(IF(Report[Category]=$B$8,ROW(Report[])-ROW(Report[#Headers])),ROW(72:72)),MATCH($B$10,Report[#Headers],0)),\"\")","v":""},{"$f":"IFERROR(VLOOKUP(Print_Out[[#This Row],[ITEM NAME]],ItemsName,2,FALSE),\"\")","v":""},{"$f":"IFERROR(INDEX(Report[],SMALL(IF(Report[Category]=$B$8,ROW(Report[])-ROW(Report[#Headers])),ROW(72:72)),MATCH($D$10,Report[#Headers],0)),\"\")","v":""},{"$f":"IFERROR(INDEX(Report[],SMALL(IF(Report[Category]=$B$8,ROW(Report[])-ROW(Report[#Headers])),ROW(72:72)),MATCH($E$10,Report[#Headers],0)),\"\")","v":""},{"$f":"IFERROR(INDEX(Report[],SMALL(IF(Report[Category]=$B$8,ROW(Report[])-ROW(Report[#Headers])),ROW(72:72)),MATCH($F$10,Report[#Headers],0)),\"\")","v":""},{"$f":"IFERROR(INDEX(Report[],SMALL(IF(Report[Category]=$B$8,ROW(Report[])-ROW(Report[#Headers])),ROW(72:72)),MATCH($G$10,Report[#Headers],0)),\"\")","v":""},{"$f":"IFERROR(INDEX(Report[],SMALL(IF(Report[Category]=$B$8,ROW(Report[])-ROW(Report[#Headers])),ROW(72:72)),MATCH($H$10,Report[#Headers],0)),\"\")","v":""}]
[{"$f":"IF(B83=\"\",\"\",SUBTOTAL(3,B$11:B83))","v":""},{"$f":"IFERROR(INDEX(Report[],SMALL(IF(Report[Category]=$B$8,ROW(Report[])-ROW(Report[#Headers])),ROW(73:73)),MATCH($B$10,Report[#Headers],0)),\"\")","v":""},{"$f":"IFERROR(VLOOKUP(Print_Out[[#This Row],[ITEM NAME]],ItemsName,2,FALSE),\"\")","v":""},{"$f":"IFERROR(INDEX(Report[],SMALL(IF(Report[Category]=$B$8,ROW(Report[])-ROW(Report[#Headers])),ROW(73:73)),MATCH($D$10,Report[#Headers],0)),\"\")","v":""},{"$f":"IFERROR(INDEX(Report[],SMALL(IF(Report[Category]=$B$8,ROW(Report[])-ROW(Report[#Headers])),ROW(73:73)),MATCH($E$10,Report[#Headers],0)),\"\")","v":""},{"$f":"IFERROR(INDEX(Report[],SMALL(IF(Report[Category]=$B$8,ROW(Report[])-ROW(Report[#Headers])),ROW(73:73)),MATCH($F$10,Report[#Headers],0)),\"\")","v":""},{"$f":"IFERROR(INDEX(Report[],SMALL(IF(Report[Category]=$B$8,ROW(Report[])-ROW(Report[#Headers])),ROW(73:73)),MATCH($G$10,Report[#Headers],0)),\"\")","v":""},{"$f":"IFERROR(INDEX(Report[],SMALL(IF(Report[Category]=$B$8,ROW(Report[])-ROW(Report[#Headers])),ROW(73:73)),MATCH($H$10,Report[#Headers],0)),\"\")","v":""}]
[{"$f":"IF(B84=\"\",\"\",SUBTOTAL(3,B$11:B84))","v":""},{"$f":"IFERROR(INDEX(Report[],SMALL(IF(Report[Category]=$B$8,ROW(Report[])-ROW(Report[#Headers])),ROW(74:74)),MATCH($B$10,Report[#Headers],0)),\"\")","v":""},{"$f":"IFERROR(VLOOKUP(Print_Out[[#This Row],[ITEM NAME]],ItemsName,2,FALSE),\"\")","v":""},{"$f":"IFERROR(INDEX(Report[],SMALL(IF(Report[Category]=$B$8,ROW(Report[])-ROW(Report[#Headers])),ROW(74:74)),MATCH($D$10,Report[#Headers],0)),\"\")","v":""},{"$f":"IFERROR(INDEX(Report[],SMALL(IF(Report[Category]=$B$8,ROW(Report[])-ROW(Report[#Headers])),ROW(74:74)),MATCH($E$10,Report[#Headers],0)),\"\")","v":""},{"$f":"IFERROR(INDEX(Report[],SMALL(IF(Report[Category]=$B$8,ROW(Report[])-ROW(Report[#Headers])),ROW(74:74)),MATCH($F$10,Report[#Headers],0)),\"\")","v":""},{"$f":"IFERROR(INDEX(Report[],SMALL(IF(Report[Category]=$B$8,ROW(Report[])-ROW(Report[#Headers])),ROW(74:74)),MATCH($G$10,Report[#Headers],0)),\"\")","v":""},{"$f":"IFERROR(INDEX(Report[],SMALL(IF(Report[Category]=$B$8,ROW(Report[])-ROW(Report[#Headers])),ROW(74:74)),MATCH($H$10,Report[#Headers],0)),\"\")","v":""}]
[{"$f":"IF(B85=\"\",\"\",SUBTOTAL(3,B$11:B85))","v":""},{"$f":"IFERROR(INDEX(Report[],SMALL(IF(Report[Category]=$B$8,ROW(Report[])-ROW(Report[#Headers])),ROW(75:75)),MATCH($B$10,Report[#Headers],0)),\"\")","v":""},{"$f":"IFERROR(VLOOKUP(Print_Out[[#This Row],[ITEM NAME]],ItemsName,2,FALSE),\"\")","v":""},{"$f":"IFERROR(INDEX(Report[],SMALL(IF(Report[Category]=$B$8,ROW(Report[])-ROW(Report[#Headers])),ROW(75:75)),MATCH($D$10,Report[#Headers],0)),\"\")","v":""},{"$f":"IFERROR(INDEX(Report[],SMALL(IF(Report[Category]=$B$8,ROW(Report[])-ROW(Report[#Headers])),ROW(75:75)),MATCH($E$10,Report[#Headers],0)),\"\")","v":""},{"$f":"IFERROR(INDEX(Report[],SMALL(IF(Report[Category]=$B$8,ROW(Report[])-ROW(Report[#Headers])),ROW(75:75)),MATCH($F$10,Report[#Headers],0)),\"\")","v":""},{"$f":"IFERROR(INDEX(Report[],SMALL(IF(Report[Category]=$B$8,ROW(Report[])-ROW(Report[#Headers])),ROW(75:75)),MATCH($G$10,Report[#Headers],0)),\"\")","v":""},{"$f":"IFERROR(INDEX(Report[],SMALL(IF(Report[Category]=$B$8,ROW(Report[])-ROW(Report[#Headers])),ROW(75:75)),MATCH($H$10,Report[#Headers],0)),\"\")","v":""}]
[{"$f":"IF(B86=\"\",\"\",SUBTOTAL(3,B$11:B86))","v":""},{"$f":"IFERROR(INDEX(Report[],SMALL(IF(Report[Category]=$B$8,ROW(Report[])-ROW(Report[#Headers])),ROW(76:76)),MATCH($B$10,Report[#Headers],0)),\"\")","v":""},{"$f":"IFERROR(VLOOKUP(Print_Out[[#This Row],[ITEM NAME]],ItemsName,2,FALSE),\"\")","v":""},{"$f":"IFERROR(INDEX(Report[],SMALL(IF(Report[Category]=$B$8,ROW(Report[])-ROW(Report[#Headers])),ROW(76:76)),MATCH($D$10,Report[#Headers],0)),\"\")","v":""},{"$f":"IFERROR(INDEX(Report[],SMALL(IF(Report[Category]=$B$8,ROW(Report[])-ROW(Report[#Headers])),ROW(76:76)),MATCH($E$10,Report[#Headers],0)),\"\")","v":""},{"$f":"IFERROR(INDEX(Report[],SMALL(IF(Report[Category]=$B$8,ROW(Report[])-ROW(Report[#Headers])),ROW(76:76)),MATCH($F$10,Report[#Headers],0)),\"\")","v":""},{"$f":"IFERROR(INDEX(Report[],SMALL(IF(Report[Category]=$B$8,ROW(Report[])-ROW(Report[#Headers])),ROW(76:76)),MATCH($G$10,Report[#Headers],0)),\"\")","v":""},{"$f":"IFERROR(INDEX(Report[],SMALL(IF(Report[Category]=$B$8,ROW(Report[])-ROW(Report[#Headers])),ROW(76:76)),MATCH($H$10,Report[#Headers],0)),\"\")","v":""}]
[{"$f":"IF(B87=\"\",\"\",SUBTOTAL(3,B$11:B87))","v":""},{"$f":"IFERROR(INDEX(Report[],SMALL(IF(Report[Category]=$B$8,ROW(Report[])-ROW(Report[#Headers])),ROW(77:77)),MATCH($B$10,Report[#Headers],0)),\"\")","v":""},{"$f":"IFERROR(VLOOKUP(Print_Out[[#This Row],[ITEM NAME]],ItemsName,2,FALSE),\"\")","v":""},{"$f":"IFERROR(INDEX(Report[],SMALL(IF(Report[Category]=$B$8,ROW(Report[])-ROW(Report[#Headers])),ROW(77:77)),MATCH($D$10,Report[#Headers],0)),\"\")","v":""},{"$f":"IFERROR(INDEX(Report[],SMALL(IF(Report[Category]=$B$8,ROW(Report[])-ROW(Report[#Headers])),ROW(77:77)),MATCH($E$10,Report[#Headers],0)),\"\")","v":""},{"$f":"IFERROR(INDEX(Report[],SMALL(IF(Report[Category]=$B$8,ROW(Report[])-ROW(Report[#Headers])),ROW(77:77)),MATCH($F$10,Report[#Headers],0)),\"\")","v":""},{"$f":"IFERROR(INDEX(Report[],SMALL(IF(Report[Category]=$B$8,ROW(Report[])-ROW(Report[#Headers])),ROW(77:77)),MATCH($G$10,Report[#Headers],0)),\"\")","v":""},{"$f":"IFERROR(INDEX(Report[],SMALL(IF(Report[Category]=$B$8,ROW(Report[])-ROW(Report[#Headers])),ROW(77:77)),MATCH($H$10,Report[#Headers],0)),\"\")","v":""}]
[{"$f":"IF(B88=\"\",\"\",SUBTOTAL(3,B$11:B88))","v":""},{"$f":"IFERROR(INDEX(Report[],SMALL(IF(Report[Category]=$B$8,ROW(Report[])-ROW(Report[#Headers])),ROW(78:78)),MATCH($B$10,Report[#Headers],0)),\"\")","v":""},{"$f":"IFERROR(VLOOKUP(Print_Out[[#This Row],[ITEM NAME]],ItemsName,2,FALSE),\"\")","v":""},{"$f":"IFERROR(INDEX(Report[],SMALL(IF(Report[Category]=$B$8,ROW(Report[])-ROW(Report[#Headers])),ROW(78:78)),MATCH($D$10,Report[#Headers],0)),\"\")","v":""},{"$f":"IFERROR(INDEX(Report[],SMALL(IF(Report[Category]=$B$8,ROW(Report[])-ROW(Report[#Headers])),ROW(78:78)),MATCH($E$10,Report[#Headers],0)),\"\")","v":""},{"$f":"IFERROR(INDEX(Report[],SMALL(IF(Report[Category]=$B$8,ROW(Report[])-ROW(Report[#Headers])),ROW(78:78)),MATCH($F$10,Report[#Headers],0)),\"\")","v":""},{"$f":"IFERROR(INDEX(Report[],SMALL(IF(Report[Category]=$B$8,ROW(Report[])-ROW(Report[#Headers])),ROW(78:78)),MATCH($G$10,Report[#Headers],0)),\"\")","v":""},{"$f":"IFERROR(INDEX(Report[],SMALL(IF(Report[Category]=$B$8,ROW(Report[])-ROW(Report[#Headers])),ROW(78:78)),MATCH($H$10,Report[#Headers],0)),\"\")","v":""}]
[{"$f":"IF(B89=\"\",\"\",SUBTOTAL(3,B$11:B89))","v":""},{"$f":"IFERROR(INDEX(Report[],SMALL(IF(Report[Category]=$B$8,ROW(Report[])-ROW(Report[#Headers])),ROW(79:79)),MATCH($B$10,Report[#Headers],0)),\"\")","v":""},{"$f":"IFERROR(VLOOKUP(Print_Out[[#This Row],[ITEM NAME]],ItemsName,2,FALSE),\"\")","v":""},{"$f":"IFERROR(INDEX(Report[],SMALL(IF(Report[Category]=$B$8,ROW(Report[])-ROW(Report[#Headers])),ROW(79:79)),MATCH($D$10,Report[#Headers],0)),\"\")","v":""},{"$f":"IFERROR(INDEX(Report[],SMALL(IF(Report[Category]=$B$8,ROW(Report[])-ROW(Report[#Headers])),ROW(79:79)),MATCH($E$10,Report[#Headers],0)),\"\")","v":""},{"$f":"IFERROR(INDEX(Report[],SMALL(IF(Report[Category]=$B$8,ROW(Report[])-ROW(Report[#Headers])),ROW(79:79)),MATCH($F$10,Report[#Headers],0)),\"\")","v":""},{"$f":"IFERROR(INDEX(Report[],SMALL(IF(Report[Category]=$B$8,ROW(Report[])-ROW(Report[#Headers])),ROW(79:79)),MATCH($G$10,Report[#Headers],0)),\"\")","v":""},{"$f":"IFERROR(INDEX(Report[],SMALL(IF(Report[Category]=$B$8,ROW(Report[])-ROW(Report[#Headers])),ROW(79:79)),MATCH($H$10,Report[#Headers],0)),\"\")","v":""}]
[{"$f":"IF(B90=\"\",\"\",SUBTOTAL(3,B$11:B90))","v":""},{"$f":"IFERROR(INDEX(Report[],SMALL(IF(Report[Category]=$B$8,ROW(Report[])-ROW(Report[#Headers])),ROW(80:80)),MATCH($B$10,Report[#Headers],0)),\"\")","v":""},{"$f":"IFERROR(VLOOKUP(Print_Out[[#This Row],[ITEM NAME]],ItemsName,2,FALSE),\"\")","v":""},{"$f":"IFERROR(INDEX(Report[],SMALL(IF(Report[Category]=$B$8,ROW(Report[])-ROW(Report[#Headers])),ROW(80:80)),MATCH($D$10,Report[#Headers],0)),\"\")","v":""},{"$f":"IFERROR(INDEX(Report[],SMALL(IF(Report[Category]=$B$8,ROW(Report[])-ROW(Report[#Headers])),ROW(80:80)),MATCH($E$10,Report[#Headers],0)),\"\")","v":""},{"$f":"IFERROR(INDEX(Report[],SMALL(IF(Report[Category]=$B$8,ROW(Report[])-ROW(Report[#Headers])),ROW(80:80)),MATCH($F$10,Report[#Headers],0)),\"\")","v":""},{"$f":"IFERROR(INDEX(Report[],SMALL(IF(Report[Category]=$B$8,ROW(Report[])-ROW(Report[#Headers])),ROW(80:80)),MATCH($G$10,Report[#Headers],0)),\"\")","v":""},{"$f":"IFERROR(INDEX(Report[],SMALL(IF(Report[Category]=$B$8,ROW(Report[])-ROW(Report[#Headers])),ROW(80:80)),MATCH($H$10,Report[#Headers],0)),\"\")","v":""}]
[{"$f":"IF(B91=\"\",\"\",SUBTOTAL(3,B$11:B91))","v":""},{"$f":"IFERROR(INDEX(Report[],SMALL(IF(Report[Category]=$B$8,ROW(Report[])-ROW(Report[#Headers])),ROW(81:81)),MATCH($B$10,Report[#Headers],0)),\"\")","v":""},{"$f":"IFERROR(VLOOKUP(Print_Out[[#This Row],[ITEM NAME]],ItemsName,2,FALSE),\"\")","v":""},{"$f":"IFERROR(INDEX(Report[],SMALL(IF(Report[Category]=$B$8,ROW(Report[])-ROW(Report[#Headers])),ROW(81:81)),MATCH($D$10,Report[#Headers],0)),\"\")","v":""},{"$f":"IFERROR(INDEX(Report[],SMALL(IF(Report[Category]=$B$8,ROW(Report[])-ROW(Report[#Headers])),ROW(81:81)),MATCH($E$10,Report[#Headers],0)),\"\")","v":""},{"$f":"IFERROR(INDEX(Report[],SMALL(IF(Report[Category]=$B$8,ROW(Report[])-ROW(Report[#Headers])),ROW(81:81)),MATCH($F$10,Report[#Headers],0)),\"\")","v":""},{"$f":"IFERROR(INDEX(Report[],SMALL(IF(Report[Category]=$B$8,ROW(Report[])-ROW(Report[#Headers])),ROW(81:81)),MATCH($G$10,Report[#Headers],0)),\"\")","v":""},{"$f":"IFERROR(INDEX(Report[],SMALL(IF(Report[Category]=$B$8,ROW(Report[])-ROW(Report[#Headers])),ROW(81:81)),MATCH($H$10,Report[#Headers],0)),\"\")","v":""}]
[{"$f":"IF(B92=\"\",\"\",SUBTOTAL(3,B$11:B92))","v":""},{"$f":"IFERROR(INDEX(Report[],SMALL(IF(Report[Category]=$B$8,ROW(Report[])-ROW(Report[#Headers])),ROW(82:82)),MATCH($B$10,Report[#Headers],0)),\"\")","v":""},{"$f":"IFERROR(VLOOKUP(Print_Out[[#This Row],[ITEM NAME]],ItemsName,2,FALSE),\"\")","v":""},{"$f":"IFERROR(INDEX(Report[],SMALL(IF(Report[Category]=$B$8,ROW(Report[])-ROW(Report[#Headers])),ROW(82:82)),MATCH($D$10,Report[#Headers],0)),\"\")","v":""},{"$f":"IFERROR(INDEX(Report[],SMALL(IF(Report[Category]=$B$8,ROW(Report[])-ROW(Report[#Headers])),ROW(82:82)),MATCH($E$10,Report[#Headers],0)),\"\")","v":""},{"$f":"IFERROR(INDEX(Report[],SMALL(IF(Report[Category]=$B$8,ROW(Report[])-ROW(Report[#Headers])),ROW(82:82)),MATCH($F$10,Report[#Headers],0)),\"\")","v":""},{"$f":"IFERROR(INDEX(Report[],SMALL(IF(Report[Category]=$B$8,ROW(Report[])-ROW(Report[#Headers])),ROW(82:82)),MATCH($G$10,Report[#Headers],0)),\"\")","v":""},{"$f":"IFERROR(INDEX(Report[],SMALL(IF(Report[Category]=$B$8,ROW(Report[])-ROW(Report[#Headers])),ROW(82:82)),MATCH($H$10,Report[#Headers],0)),\"\")","v":""}]
[{"$f":"IF(B93=\"\",\"\",SUBTOTAL(3,B$11:B93))","v":""},{"$f":"IFERROR(INDEX(Report[],SMALL(IF(Report[Category]=$B$8,ROW(Report[])-ROW(Report[#Headers])),ROW(83:83)),MATCH($B$10,Report[#Headers],0)),\"\")","v":""},{"$f":"IFERROR(VLOOKUP(Print_Out[[#This Row],[ITEM NAME]],ItemsName,2,FALSE),\"\")","v":""},{"$f":"IFERROR(INDEX(Report[],SMALL(IF(Report[Category]=$B$8,ROW(Report[])-ROW(Report[#Headers])),ROW(83:83)),MATCH($D$10,Report[#Headers],0)),\"\")","v":""},{"$f":"IFERROR(INDEX(Report[],SMALL(IF(Report[Category]=$B$8,ROW(Report[])-ROW(Report[#Headers])),ROW(83:83)),MATCH($E$10,Report[#Headers],0)),\"\")","v":""},{"$f":"IFERROR(INDEX(Report[],SMALL(IF(Report[Category]=$B$8,ROW(Report[])-ROW(Report[#Headers])),ROW(83:83)),MATCH($F$10,Report[#Headers],0)),\"\")","v":""},{"$f":"IFERROR(INDEX(Report[],SMALL(IF(Report[Category]=$B$8,ROW(Report[])-ROW(Report[#Headers])),ROW(83:83)),MATCH($G$10,Report[#Headers],0)),\"\")","v":""},{"$f":"IFERROR(INDEX(Report[],SMALL(IF(Report[Category]=$B$8,ROW(Report[])-ROW(Report[#Headers])),ROW(83:83)),MATCH($H$10,Report[#Headers],0)),\"\")","v":""}]
[{"$f":"IF(B94=\"\",\"\",SUBTOTAL(3,B$11:B94))","v":""},{"$f":"IFERROR(INDEX(Report[],SMALL(IF(Report[Category]=$B$8,ROW(Report[])-ROW(Report[#Headers])),ROW(84:84)),MATCH($B$10,Report[#Headers],0)),\"\")","v":""},{"$f":"IFERROR(VLOOKUP(Print_Out[[#This Row],[ITEM NAME]],ItemsName,2,FALSE),\"\")","v":""},{"$f":"IFERROR(INDEX(Report[],SMALL(IF(Report[Category]=$B$8,ROW(Report[])-ROW(Report[#Headers])),ROW(84:84)),MATCH($D$10,Report[#Headers],0)),\"\")","v":""},{"$f":"IFERROR(INDEX(Report[],SMALL(IF(Report[Category]=$B$8,ROW(Report[])-ROW(Report[#Headers])),ROW(84:84)),MATCH($E$10,Report[#Headers],0)),\"\")","v":""},{"$f":"IFERROR(INDEX(Report[],SMALL(IF(Report[Category]=$B$8,ROW(Report[])-ROW(Report[#Headers])),ROW(84:84)),MATCH($F$10,Report[#Headers],0)),\"\")","v":""},{"$f":"IFERROR(INDEX(Report[],SMALL(IF(Report[Category]=$B$8,ROW(Report[])-ROW(Report[#Headers])),ROW(84:84)),MATCH($G$10,Report[#Headers],0)),\"\")","v":""},{"$f":"IFERROR(INDEX(Report[],SMALL(IF(Report[Category]=$B$8,ROW(Report[])-ROW(Report[#Headers])),ROW(84:84)),MATCH($H$10,Report[#Headers],0)),\"\")","v":""}]
[{"$f":"IF(B95=\"\",\"\",SUBTOTAL(3,B$11:B95))","v":""},{"$f":"IFERROR(INDEX(Report[],SMALL(IF(Report[Category]=$B$8,ROW(Report[])-ROW(Report[#Headers])),ROW(85:85)),MATCH($B$10,Report[#Headers],0)),\"\")","v":""},{"$f":"IFERROR(VLOOKUP(Print_Out[[#This Row],[ITEM NAME]],ItemsName,2,FALSE),\"\")","v":""},{"$f":"IFERROR(INDEX(Report[],SMALL(IF(Report[Category]=$B$8,ROW(Report[])-ROW(Report[#Headers])),ROW(85:85)),MATCH($D$10,Report[#Headers],0)),\"\")","v":""},{"$f":"IFERROR(INDEX(Report[],SMALL(IF(Report[Category]=$B$8,ROW(Report[])-ROW(Report[#Headers])),ROW(85:85)),MATCH($E$10,Report[#Headers],0)),\"\")","v":""},{"$f":"IFERROR(INDEX(Report[],SMALL(IF(Report[Category]=$B$8,ROW(Report[])-ROW(Report[#Headers])),ROW(85:85)),MATCH($F$10,Report[#Headers],0)),\"\")","v":""},{"$f":"IFERROR(INDEX(Report[],SMALL(IF(Report[Category]=$B$8,ROW(Report[])-ROW(Report[#Headers])),ROW(85:85)),MATCH($G$10,Report[#Headers],0)),\"\")","v":""},{"$f":"IFERROR(INDEX(Report[],SMALL(IF(Report[Category]=$B$8,ROW(Report[])-ROW(Report[#Headers])),ROW(85:85)),MATCH($H$10,Report[#Headers],0)),\"\")","v":""}]
[{"$f":"IF(B96=\"\",\"\",SUBTOTAL(3,B$11:B96))","v":""},{"$f":"IFERROR(INDEX(Report[],SMALL(IF(Report[Category]=$B$8,ROW(Report[])-ROW(Report[#Headers])),ROW(86:86)),MATCH($B$10,Report[#Headers],0)),\"\")","v":""},{"$f":"IFERROR(VLOOKUP(Print_Out[[#This Row],[ITEM NAME]],ItemsName,2,FALSE),\"\")","v":""},{"$f":"IFERROR(INDEX(Report[],SMALL(IF(Report[Category]=$B$8,ROW(Report[])-ROW(Report[#Headers])),ROW(86:86)),MATCH($D$10,Report[#Headers],0)),\"\")","v":""},{"$f":"IFERROR(INDEX(Report[],SMALL(IF(Report[Category]=$B$8,ROW(Report[])-ROW(Report[#Headers])),ROW(86:86)),MATCH($E$10,Report[#Headers],0)),\"\")","v":""},{"$f":"IFERROR(INDEX(Report[],SMALL(IF(Report[Category]=$B$8,ROW(Report[])-ROW(Report[#Headers])),ROW(86:86)),MATCH($F$10,Report[#Headers],0)),\"\")","v":""},{"$f":"IFERROR(INDEX(Report[],SMALL(IF(Report[Category]=$B$8,ROW(Report[])-ROW(Report[#Headers])),ROW(86:86)),MATCH($G$10,Report[#Headers],0)),\"\")","v":""},{"$f":"IFERROR(INDEX(Report[],SMALL(IF(Report[Category]=$B$8,ROW(Report[])-ROW(Report[#Headers])),ROW(86:86)),MATCH($H$10,Report[#Headers],0)),\"\")","v":""}]
[{"$f":"IF(B97=\"\",\"\",SUBTOTAL(3,B$11:B97))","v":""},{"$f":"IFERROR(INDEX(Report[],SMALL(IF(Report[Category]=$B$8,ROW(Report[])-ROW(Report[#Headers])),ROW(87:87)),MATCH($B$10,Report[#Headers],0)),\"\")","v":""},{"$f":"IFERROR(VLOOKUP(Print_Out[[#This Row],[ITEM NAME]],ItemsName,2,FALSE),\"\")","v":""},{"$f":"IFERROR(INDEX(Report[],SMALL(IF(Report[Category]=$B$8,ROW(Report[])-ROW(Report[#Headers])),ROW(87:87)),MATCH($D$10,Report[#Headers],0)),\"\")","v":""},{"$f":"IFERROR(INDEX(Report[],SMALL(IF(Report[Category]=$B$8,ROW(Report[])-ROW(Report[#Headers])),ROW(87:87)),MATCH($E$10,Report[#Headers],0)),\"\")","v":""},{"$f":"IFERROR(INDEX(Report[],SMALL(IF(Report[Category]=$B$8,ROW(Report[])-ROW(Report[#Headers])),ROW(87:87)),MATCH($F$10,Report[#Headers],0)),\"\")","v":""},{"$f":"IFERROR(INDEX(Report[],SMALL(IF(Report[Category]=$B$8,ROW(Report[])-ROW(Report[#Headers])),ROW(87:87)),MATCH($G$10,Report[#Headers],0)),\"\")","v":""},{"$f":"IFERROR(INDEX(Report[],SMALL(IF(Report[Category]=$B$8,ROW(Report[])-ROW(Report[#Headers])),ROW(87:87)),MATCH($H$10,Report[#Headers],0)),\"\")","v":""}]
[{"$f":"IF(B98=\"\",\"\",SUBTOTAL(3,B$11:B98))","v":""},{"$f":"IFERROR(INDEX(Report[],SMALL(IF(Report[Category]=$B$8,ROW(Report[])-ROW(Report[#Headers])),ROW(88:88)),MATCH($B$10,Report[#Headers],0)),\"\")","v":""},{"$f":"IFERROR(VLOOKUP(Print_Out[[#This Row],[ITEM NAME]],ItemsName,2,FALSE),\"\")","v":""},{"$f":"IFERROR(INDEX(Report[],SMALL(IF(Report[Category]=$B$8,ROW(Report[])-ROW(Report[#Headers])),ROW(88:88)),MATCH($D$10,Report[#Headers],0)),\"\")","v":""},{"$f":"IFERROR(INDEX(Report[],SMALL(IF(Report[Category]=$B$8,ROW(Report[])-ROW(Report[#Headers])),ROW(88:88)),MATCH($E$10,Report[#Headers],0)),\"\")","v":""},{"$f":"IFERROR(INDEX(Report[],SMALL(IF(Report[Category]=$B$8,ROW(Report[])-ROW(Report[#Headers])),ROW(88:88)),MATCH($F$10,Report[#Headers],0)),\"\")","v":""},{"$f":"IFERROR(INDEX(Report[],SMALL(IF(Report[Category]=$B$8,ROW(Report[])-ROW(Report[#Headers])),ROW(88:88)),MATCH($G$10,Report[#Headers],0)),\"\")","v":""},{"$f":"IFERROR(INDEX(Report[],SMALL(IF(Report[Category]=$B$8,ROW(Report[])-ROW(Report[#Headers])),ROW(88:88)),MATCH($H$10,Report[#Headers],0)),\"\")","v":""}]
[{"$f":"IF(B99=\"\",\"\",SUBTOTAL(3,B$11:B99))","v":""},{"$f":"IFERROR(INDEX(Report[],SMALL(IF(Report[Category]=$B$8,ROW(Report[])-ROW(Report[#Headers])),ROW(89:89)),MATCH($B$10,Report[#Headers],0)),\"\")","v":""},{"$f":"IFERROR(VLOOKUP(Print_Out[[#This Row],[ITEM NAME]],ItemsName,2,FALSE),\"\")","v":""},{"$f":"IFERROR(INDEX(Report[],SMALL(IF(Report[Category]=$B$8,ROW(Report[])-ROW(Report[#Headers])),ROW(89:89)),MATCH($D$10,Report[#Headers],0)),\"\")","v":""},{"$f":"IFERROR(INDEX(Report[],SMALL(IF(Report[Category]=$B$8,ROW(Report[])-ROW(Report[#Headers])),ROW(89:89)),MATCH($E$10,Report[#Headers],0)),\"\")","v":""},{"$f":"IFERROR(INDEX(Report[],SMALL(IF(Report[Category]=$B$8,ROW(Report[])-ROW(Report[#Headers])),ROW(89:89)),MATCH($F$10,Report[#Headers],0)),\"\")","v":""},{"$f":"IFERROR(INDEX(Report[],SMALL(IF(Report[Category]=$B$8,ROW(Report[])-ROW(Report[#Headers])),ROW(89:89)),MATCH($G$10,Report[#Headers],0)),\"\")","v":""},{"$f":"IFERROR(INDEX(Report[],SMALL(IF(Report[Category]=$B$8,ROW(Report[])-ROW(Report[#Headers])),ROW(89:89)),MATCH($H$10,Report[#Headers],0)),\"\")","v":""}]
[{"$f":"IF(B100=\"\",\"\",SUBTOTAL(3,B$11:B100))","v":""},{"$f":"IFERROR(INDEX(Report[],SMALL(IF(Report[Category]=$B$8,ROW(Report[])-ROW(Report[#Headers])),ROW(90:90)),MATCH($B$10,Report[#Headers],0)),\"\")","v":""},{"$f":"IFERROR(VLOOKUP(Print_Out[[#This Row],[ITEM NAME]],ItemsName,2,FALSE),\"\")","v":""},{"$f":"IFERROR(INDEX(Report[],SMALL(IF(Report[Category]=$B$8,ROW(Report[])-ROW(Report[#Headers])),ROW(90:90)),MATCH($D$10,Report[#Headers],0)),\"\")","v":""},{"$f":"IFERROR(INDEX(Report[],SMALL(IF(Report[Category]=$B$8,ROW(Report[])-ROW(Report[#Headers])),ROW(90:90)),MATCH($E$10,Report[#Headers],0)),\"\")","v":""},{"$f":"IFERROR(INDEX(Report[],SMALL(IF(Report[Category]=$B$8,ROW(Report[])-ROW(Report[#Headers])),ROW(90:90)),MATCH($F$10,Report[#Headers],0)),\"\")","v":""},{"$f":"IFERROR(INDEX(Report[],SMALL(IF(Report[Category]=$B$8,ROW(Report[])-ROW(Report[#Headers])),ROW(90:90)),MATCH($G$10,Report[#Headers],0)),\"\")","v":""},{"$f":"IFERROR(INDEX(Report[],SMALL(IF(Report[Category]=$B$8,ROW(Report[])-ROW(Report[#Headers])),ROW(90:90)),MATCH($H$10,Report[#Headers],0)),\"\")","v":""}]
[{"$f":"IF(B101=\"\",\"\",SUBTOTAL(3,B$11:B101))","v":""},{"$f":"IFERROR(INDEX(Report[],SMALL(IF(Report[Category]=$B$8,ROW(Report[])-ROW(Report[#Headers])),ROW(91:91)),MATCH($B$10,Report[#Headers],0)),\"\")","v":""},{"$f":"IFERROR(VLOOKUP(Print_Out[[#This Row],[ITEM NAME]],ItemsName,2,FALSE),\"\")","v":""},{"$f":"IFERROR(INDEX(Report[],SMALL(IF(Report[Category]=$B$8,ROW(Report[])-ROW(Report[#Headers])),ROW(91:91)),MATCH($D$10,Report[#Headers],0)),\"\")","v":""},{"$f":"IFERROR(INDEX(Report[],SMALL(IF(Report[Category]=$B$8,ROW(Report[])-ROW(Report[#Headers])),ROW(91:91)),MATCH($E$10,Report[#Headers],0)),\"\")","v":""},{"$f":"IFERROR(INDEX(Report[],SMALL(IF(Report[Category]=$B$8,ROW(Report[])-ROW(Report[#Headers])),ROW(91:91)),MATCH($F$10,Report[#Headers],0)),\"\")","v":""},{"$f":"IFERROR(INDEX(Report[],SMALL(IF(Report[Category]=$B$8,ROW(Report[])-ROW(Report[#Headers])),ROW(91:91)),MATCH($G$10,Report[#Headers],0)),\"\")","v":""},{"$f":"IFERROR(INDEX(Report[],SMALL(IF(Report[Category]=$B$8,ROW(Report[])-ROW(Report[#Headers])),ROW(91:91)),MATCH($H$10,Report[#Headers],0)),\"\")","v":""}]
[{"$f":"IF(B102=\"\",\"\",SUBTOTAL(3,B$11:B102))","v":""},{"$f":"IFERROR(INDEX(Report[],SMALL(IF(Report[Category]=$B$8,ROW(Report[])-ROW(Report[#Headers])),ROW(92:92)),MATCH($B$10,Report[#Headers],0)),\"\")","v":""},{"$f":"IFERROR(VLOOKUP(Print_Out[[#This Row],[ITEM NAME]],ItemsName,2,FALSE),\"\")","v":""},{"$f":"IFERROR(INDEX(Report[],SMALL(IF(Report[Category]=$B$8,ROW(Report[])-ROW(Report[#Headers])),ROW(92:92)),MATCH($D$10,Report[#Headers],0)),\"\")","v":""},{"$f":"IFERROR(INDEX(Report[],SMALL(IF(Report[Category]=$B$8,ROW(Report[])-ROW(Report[#Headers])),ROW(92:92)),MATCH($E$10,Report[#Headers],0)),\"\")","v":""},{"$f":"IFERROR(INDEX(Report[],SMALL(IF(Report[Category]=$B$8,ROW(Report[])-ROW(Report[#Headers])),ROW(92:92)),MATCH($F$10,Report[#Headers],0)),\"\")","v":""},{"$f":"IFERROR(INDEX(Report[],SMALL(IF(Report[Category]=$B$8,ROW(Report[])-ROW(Report[#Headers])),ROW(92:92)),MATCH($G$10,Report[#Headers],0)),\"\")","v":""},{"$f":"IFERROR(INDEX(Report[],SMALL(IF(Report[Category]=$B$8,ROW(Report[])-ROW(Report[#Headers])),ROW(92:92)),MATCH($H$10,Report[#Headers],0)),\"\")","v":""}]
[{"$f":"IF(B103=\"\",\"\",SUBTOTAL(3,B$11:B103))","v":""},{"$f":"IFERROR(INDEX(Report[],SMALL(IF(Report[Category]=$B$8,ROW(Report[])-ROW(Report[#Headers])),ROW(93:93)),MATCH($B$10,Report[#Headers],0)),\"\")","v":""},{"$f":"IFERROR(VLOOKUP(Print_Out[[#This Row],[ITEM NAME]],ItemsName,2,FALSE),\"\")","v":""},{"$f":"IFERROR(INDEX(Report[],SMALL(IF(Report[Category]=$B$8,ROW(Report[])-ROW(Report[#Headers])),ROW(93:93)),MATCH($D$10,Report[#Headers],0)),\"\")","v":""},{"$f":"IFERROR(INDEX(Report[],SMALL(IF(Report[Category]=$B$8,ROW(Report[])-ROW(Report[#Headers])),ROW(93:93)),MATCH($E$10,Report[#Headers],0)),\"\")","v":""},{"$f":"IFERROR(INDEX(Report[],SMALL(IF(Report[Category]=$B$8,ROW(Report[])-ROW(Report[#Headers])),ROW(93:93)),MATCH($F$10,Report[#Headers],0)),\"\")","v":""},{"$f":"IFERROR(INDEX(Report[],SMALL(IF(Report[Category]=$B$8,ROW(Report[])-ROW(Report[#Headers])),ROW(93:93)),MATCH($G$10,Report[#Headers],0)),\"\")","v":""},{"$f":"IFERROR(INDEX(Report[],SMALL(IF(Report[Category]=$B$8,ROW(Report[])-ROW(Report[#Headers])),ROW(93:93)),MATCH($H$10,Report[#Headers],0)),\"\")","v":""}]
[{"$f":"IF(B104=\"\",\"\",SUBTOTAL(3,B$11:B104))","v":""},{"$f":"IFERROR(INDEX(Report[],SMALL(IF(Report[Category]=$B$8,ROW(Report[])-ROW(Report[#Headers])),ROW(94:94)),MATCH($B$10,Report[#Headers],0)),\"\")","v":""},{"$f":"IFERROR(VLOOKUP(Print_Out[[#This Row],[ITEM NAME]],ItemsName,2,FALSE),\"\")","v":""},{"$f":"IFERROR(INDEX(Report[],SMALL(IF(Report[Category]=$B$8,ROW(Report[])-ROW(Report[#Headers])),ROW(94:94)),MATCH($D$10,Report[#Headers],0)),\"\")","v":""},{"$f":"IFERROR(INDEX(Report[],SMALL(IF(Report[Category]=$B$8,ROW(Report[])-ROW(Report[#Headers])),ROW(94:94)),MATCH($E$10,Report[#Headers],0)),\"\")","v":""},{"$f":"IFERROR(INDEX(Report[],SMALL(IF(Report[Category]=$B$8,ROW(Report[])-ROW(Report[#Headers])),ROW(94:94)),MATCH($F$10,Report[#Headers],0)),\"\")","v":""},{"$f":"IFERROR(INDEX(Report[],SMALL(IF(Report[Category]=$B$8,ROW(Report[])-ROW(Report[#Headers])),ROW(94:94)),MATCH($G$10,Report[#Headers],0)),\"\")","v":""},{"$f":"IFERROR(INDEX(Report[],SMALL(IF(Report[Category]=$B$8,ROW(Report[])-ROW(Report[#Headers])),ROW(94:94)),MATCH($H$10,Report[#Headers],0)),\"\")","v":""}]
[{"$f":"IF(B105=\"\",\"\",SUBTOTAL(3,B$11:B105))","v":""},{"$f":"IFERROR(INDEX(Report[],SMALL(IF(Report[Category]=$B$8,ROW(Report[])-ROW(Report[#Headers])),ROW(95:95)),MATCH($B$10,Report[#Headers],0)),\"\")","v":""},{"$f":"IFERROR(VLOOKUP(Print_Out[[#This Row],[ITEM NAME]],ItemsName,2,FALSE),\"\")","v":""},{"$f":"IFERROR(INDEX(Report[],SMALL(IF(Report[Category]=$B$8,ROW(Report[])-ROW(Report[#Headers])),ROW(95:95)),MATCH($D$10,Report[#Headers],0)),\"\")","v":""},{"$f":"IFERROR(INDEX(Report[],SMALL(IF(Report[Category]=$B$8,ROW(Report[])-ROW(Report[#Headers])),ROW(95:95)),MATCH($E$10,Report[#Headers],0)),\"\")","v":""},{"$f":"IFERROR(INDEX(Report[],SMALL(IF(Report[Category]=$B$8,ROW(Report[])-ROW(Report[#Headers])),ROW(95:95)),MATCH($F$10,Report[#Headers],0)),\"\")","v":""},{"$f":"IFERROR(INDEX(Report[],SMALL(IF(Report[Category]=$B$8,ROW(Report[])-ROW(Report[#Headers])),ROW(95:95)),MATCH($G$10,Report[#Headers],0)),\"\")","v":""},{"$f":"IFERROR(INDEX(Report[],SMALL(IF(Report[Category]=$B$8,ROW(Report[])-ROW(Report[#Headers])),ROW(95:95)),MATCH($H$10,Report[#Headers],0)),\"\")","v":""}]
[{"$f":"IF(B106=\"\",\"\",SUBTOTAL(3,B$11:B106))","v":""},{"$f":"IFERROR(INDEX(Report[],SMALL(IF(Report[Category]=$B$8,ROW(Report[])-ROW(Report[#Headers])),ROW(96:96)),MATCH($B$10,Report[#Headers],0)),\"\")","v":""},{"$f":"IFERROR(VLOOKUP(Print_Out[[#This Row],[ITEM NAME]],ItemsName,2,FALSE),\"\")","v":""},{"$f":"IFERROR(INDEX(Report[],SMALL(IF(Report[Category]=$B$8,ROW(Report[])-ROW(Report[#Headers])),ROW(96:96)),MATCH($D$10,Report[#Headers],0)),\"\")","v":""},{"$f":"IFERROR(INDEX(Report[],SMALL(IF(Report[Category]=$B$8,ROW(Report[])-ROW(Report[#Headers])),ROW(96:96)),MATCH($E$10,Report[#Headers],0)),\"\")","v":""},{"$f":"IFERROR(INDEX(Report[],SMALL(IF(Report[Category]=$B$8,ROW(Report[])-ROW(Report[#Headers])),ROW(96:96)),MATCH($F$10,Report[#Headers],0)),\"\")","v":""},{"$f":"IFERROR(INDEX(Report[],SMALL(IF(Report[Category]=$B$8,ROW(Report[])-ROW(Report[#Headers])),ROW(96:96)),MATCH($G$10,Report[#Headers],0)),\"\")","v":""},{"$f":"IFERROR(INDEX(Report[],SMALL(IF(Report[Category]=$B$8,ROW(Report[])-ROW(Report[#Headers])),ROW(96:96)),MATCH($H$10,Report[#Headers],0)),\"\")","v":""}]
[{"$f":"IF(B107=\"\",\"\",SUBTOTAL(3,B$11:B107))","v":""},{"$f":"IFERROR(INDEX(Report[],SMALL(IF(Report[Category]=$B$8,ROW(Report[])-ROW(Report[#Headers])),ROW(97:97)),MATCH($B$10,Report[#Headers],0)),\"\")","v":""},{"$f":"IFERROR(VLOOKUP(Print_Out[[#This Row],[ITEM NAME]],ItemsName,2,FALSE),\"\")","v":""},{"$f":"IFERROR(INDEX(Report[],SMALL(IF(Report[Category]=$B$8,ROW(Report[])-ROW(Report[#Headers])),ROW(97:97)),MATCH($D$10,Report[#Headers],0)),\"\")","v":""},{"$f":"IFERROR(INDEX(Report[],SMALL(IF(Report[Category]=$B$8,ROW(Report[])-ROW(Report[#Headers])),ROW(97:97)),MATCH($E$10,Report[#Headers],0)),\"\")","v":""},{"$f":"IFERROR(INDEX(Report[],SMALL(IF(Report[Category]=$B$8,ROW(Report[])-ROW(Report[#Headers])),ROW(97:97)),MATCH($F$10,Report[#Headers],0)),\"\")","v":""},{"$f":"IFERROR(INDEX(Report[],SMALL(IF(Report[Category]=$B$8,ROW(Report[])-ROW(Report[#Headers])),ROW(97:97)),MATCH($G$10,Report[#Headers],0)),\"\")","v":""},{"$f":"IFERROR(INDEX(Report[],SMALL(IF(Report[Category]=$B$8,ROW(Report[])-ROW(Report[#Headers])),ROW(97:97)),MATCH($H$10,Report[#Headers],0)),\"\")","v":""}]
[{"$f":"IF(B108=\"\",\"\",SUBTOTAL(3,B$11:B108))","v":""},{"$f":"IFERROR(INDEX(Report[],SMALL(IF(Report[Category]=$B$8,ROW(Report[])-ROW(Report[#Headers])),ROW(98:98)),MATCH($B$10,Report[#Headers],0)),\"\")","v":""},{"$f":"IFERROR(VLOOKUP(Print_Out[[#This Row],[ITEM NAME]],ItemsName,2,FALSE),\"\")","v":""},{"$f":"IFERROR(INDEX(Report[],SMALL(IF(Report[Category]=$B$8,ROW(Report[])-ROW(Report[#Headers])),ROW(98:98)),MATCH($D$10,Report[#Headers],0)),\"\")","v":""},{"$f":"IFERROR(INDEX(Report[],SMALL(IF(Report[Category]=$B$8,ROW(Report[])-ROW(Report[#Headers])),ROW(98:98)),MATCH($E$10,Report[#Headers],0)),\"\")","v":""},{"$f":"IFERROR(INDEX(Report[],SMALL(IF(Report[Category]=$B$8,ROW(Report[])-ROW(Report[#Headers])),ROW(98:98)),MATCH($F$10,Report[#Headers],0)),\"\")","v":""},{"$f":"IFERROR(INDEX(Report[],SMALL(IF(Report[Category]=$B$8,ROW(Report[])-ROW(Report[#Headers])),ROW(98:98)),MATCH($G$10,Report[#Headers],0)),\"\")","v":""},{"$f":"IFERROR(INDEX(Report[],SMALL(IF(Report[Category]=$B$8,ROW(Report[])-ROW(Report[#Headers])),ROW(98:98)),MATCH($H$10,Report[#Headers],0)),\"\")","v":""}]
[{"$f":"IF(B109=\"\",\"\",SUBTOTAL(3,B$11:B109))","v":""},{"$f":"IFERROR(INDEX(Report[],SMALL(IF(Report[Category]=$B$8,ROW(Report[])-ROW(Report[#Headers])),ROW(99:99)),MATCH($B$10,Report[#Headers],0)),\"\")","v":""},{"$f":"IFERROR(VLOOKUP(Print_Out[[#This Row],[ITEM NAME]],ItemsName,2,FALSE),\"\")","v":""},{"$f":"IFERROR(INDEX(Report[],SMALL(IF(Report[Category]=$B$8,ROW(Report[])-ROW(Report[#Headers])),ROW(99:99)),MATCH($D$10,Report[#Headers],0)),\"\")","v":""},{"$f":"IFERROR(INDEX(Report[],SMALL(IF(Report[Category]=$B$8,ROW(Report[])-ROW(Report[#Headers])),ROW(99:99)),MATCH($E$10,Report[#Headers],0)),\"\")","v":""},{"$f":"IFERROR(INDEX(Report[],SMALL(IF(Report[Category]=$B$8,ROW(Report[])-ROW(Report[#Headers])),ROW(99:99)),MATCH($F$10,Report[#Headers],0)),\"\")","v":""},{"$f":"IFERROR(INDEX(Report[],SMALL(IF(Report[Category]=$B$8,ROW(Report[])-ROW(Report[#Headers])),ROW(99:99)),MATCH($G$10,Report[#Headers],0)),\"\")","v":""},{"$f":"IFERROR(INDEX(Report[],SMALL(IF(Report[Category]=$B$8,ROW(Report[])-ROW(Report[#Headers])),ROW(99:99)),MATCH($H$10,Report[#Headers],0)),\"\")","v":""}]
[{"$f":"IF(B110=\"\",\"\",SUBTOTAL(3,B$11:B110))","v":""},{"$f":"IFERROR(INDEX(Report[],SMALL(IF(Report[Category]=$B$8,ROW(Report[])-ROW(Report[#Headers])),ROW(100:100)),MATCH($B$10,Report[#Headers],0)),\"\")","v":""},{"$f":"IFERROR(VLOOKUP(Print_Out[[#This Row],[ITEM NAME]],ItemsName,2,FALSE),\"\")","v":""},{"$f":"IFERROR(INDEX(Report[],SMALL(IF(Report[Category]=$B$8,ROW(Report[])-ROW(Report[#Headers])),ROW(100:100)),MATCH($D$10,Report[#Headers],0)),\"\")","v":""},{"$f":"IFERROR(INDEX(Report[],SMALL(IF(Report[Category]=$B$8,ROW(Report[])-ROW(Report[#Headers])),ROW(100:100)),MATCH($E$10,Report[#Headers],0)),\"\")","v":""},{"$f":"IFERROR(INDEX(Report[],SMALL(IF(Report[Category]=$B$8,ROW(Report[])-ROW(Report[#Headers])),ROW(100:100)),MATCH($F$10,Report[#Headers],0)),\"\")","v":""},{"$f":"IFERROR(INDEX(Report[],SMALL(IF(Report[Category]=$B$8,ROW(Report[])-ROW(Report[#Headers])),ROW(100:100)),MATCH($G$10,Report[#Headers],0)),\"\")","v":""},{"$f":"IFERROR(INDEX(Report[],SMALL(IF(Report[Category]=$B$8,ROW(Report[])-ROW(Report[#Headers])),ROW(100:100)),MATCH($H$10,Report[#Headers],0)),\"\")","v":""}]
[{"$f":"IF(B111=\"\",\"\",SUBTOTAL(3,B$11:B111))","v":""},{"$f":"IFERROR(INDEX(Report[],SMALL(IF(Report[Category]=$B$8,ROW(Report[])-ROW(Report[#Headers])),ROW(101:101)),MATCH($B$10,Report[#Headers],0)),\"\")","v":""},{"$f":"IFERROR(VLOOKUP(Print_Out[[#This Row],[ITEM NAME]],ItemsName,2,FALSE),\"\")","v":""},{"$f":"IFERROR(INDEX(Report[],SMALL(IF(Report[Category]=$B$8,ROW(Report[])-ROW(Report[#Headers])),ROW(101:101)),MATCH($D$10,Report[#Headers],0)),\"\")","v":""},{"$f":"IFERROR(INDEX(Report[],SMALL(IF(Report[Category]=$B$8,ROW(Report[])-ROW(Report[#Headers])),ROW(101:101)),MATCH($E$10,Report[#Headers],0)),\"\")","v":""},{"$f":"IFERROR(INDEX(Report[],SMALL(IF(Report[Category]=$B$8,ROW(Report[])-ROW(Report[#Headers])),ROW(101:101)),MATCH($F$10,Report[#Headers],0)),\"\")","v":""},{"$f":"IFERROR(INDEX(Report[],SMALL(IF(Report[Category]=$B$8,ROW(Report[])-ROW(Report[#Headers])),ROW(101:101)),MATCH($G$10,Report[#Headers],0)),\"\")","v":""},{"$f":"IFERROR(INDEX(Report[],SMALL(IF(Report[Category]=$B$8,ROW(Report[])-ROW(Report[#Headers])),ROW(101:101)),MATCH($H$10,Report[#Headers],0)),\"\")","v":""}]
[{"$f":"IF(B112=\"\",\"\",SUBTOTAL(3,B$11:B112))","v":""},{"$f":"IFERROR(INDEX(Report[],SMALL(IF(Report[Category]=$B$8,ROW(Report[])-ROW(Report[#Headers])),ROW(102:102)),MATCH($B$10,Report[#Headers],0)),\"\")","v":""},{"$f":"IFERROR(VLOOKUP(Print_Out[[#This Row],[ITEM NAME]],ItemsName,2,FALSE),\"\")","v":""},{"$f":"IFERROR(INDEX(Report[],SMALL(IF(Report[Category]=$B$8,ROW(Report[])-ROW(Report[#Headers])),ROW(102:102)),MATCH($D$10,Report[#Headers],0)),\"\")","v":""},{"$f":"IFERROR(INDEX(Report[],SMALL(IF(Report[Category]=$B$8,ROW(Report[])-ROW(Report[#Headers])),ROW(102:102)),MATCH($E$10,Report[#Headers],0)),\"\")","v":""},{"$f":"IFERROR(INDEX(Report[],SMALL(IF(Report[Category]=$B$8,ROW(Report[])-ROW(Report[#Headers])),ROW(102:102)),MATCH($F$10,Report[#Headers],0)),\"\")","v":""},{"$f":"IFERROR(INDEX(Report[],SMALL(IF(Report[Category]=$B$8,ROW(Report[])-ROW(Report[#Headers])),ROW(102:102)),MATCH($G$10,Report[#Headers],0)),\"\")","v":""},{"$f":"IFERROR(INDEX(Report[],SMALL(IF(Report[Category]=$B$8,ROW(Report[])-ROW(Report[#Headers])),ROW(102:102)),MATCH($H$10,Report[#Headers],0)),\"\")","v":""}]
[{"$f":"IF(B113=\"\",\"\",SUBTOTAL(3,B$11:B113))","v":""},{"$f":"IFERROR(INDEX(Report[],SMALL(IF(Report[Category]=$B$8,ROW(Report[])-ROW(Report[#Headers])),ROW(103:103)),MATCH($B$10,Report[#Headers],0)),\"\")","v":""},{"$f":"IFERROR(VLOOKUP(Print_Out[[#This Row],[ITEM NAME]],ItemsName,2,FALSE),\"\")","v":""},{"$f":"IFERROR(INDEX(Report[],SMALL(IF(Report[Category]=$B$8,ROW(Report[])-ROW(Report[#Headers])),ROW(103:103)),MATCH($D$10,Report[#Headers],0)),\"\")","v":""},{"$f":"IFERROR(INDEX(Report[],SMALL(IF(Report[Category]=$B$8,ROW(Report[])-ROW(Report[#Headers])),ROW(103:103)),MATCH($E$10,Report[#Headers],0)),\"\")","v":""},{"$f":"IFERROR(INDEX(Report[],SMALL(IF(Report[Category]=$B$8,ROW(Report[])-ROW(Report[#Headers])),ROW(103:103)),MATCH($F$10,Report[#Headers],0)),\"\")","v":""},{"$f":"IFERROR(INDEX(Report[],SMALL(IF(Report[Category]=$B$8,ROW(Report[])-ROW(Report[#Headers])),ROW(103:103)),MATCH($G$10,Report[#Headers],0)),\"\")","v":""},{"$f":"IFERROR(INDEX(Report[],SMALL(IF(Report[Category]=$B$8,ROW(Report[])-ROW(Report[#Headers])),ROW(103:103)),MATCH($H$10,Report[#Headers],0)),\"\")","v":""}]
[{"$f":"IF(B114=\"\",\"\",SUBTOTAL(3,B$11:B114))","v":""},{"$f":"IFERROR(INDEX(Report[],SMALL(IF(Report[Category]=$B$8,ROW(Report[])-ROW(Report[#Headers])),ROW(104:104)),MATCH($B$10,Report[#Headers],0)),\"\")","v":""},{"$f":"IFERROR(VLOOKUP(Print_Out[[#This Row],[ITEM NAME]],ItemsName,2,FALSE),\"\")","v":""},{"$f":"IFERROR(INDEX(Report[],SMALL(IF(Report[Category]=$B$8,ROW(Report[])-ROW(Report[#Headers])),ROW(104:104)),MATCH($D$10,Report[#Headers],0)),\"\")","v":""},{"$f":"IFERROR(INDEX(Report[],SMALL(IF(Report[Category]=$B$8,ROW(Report[])-ROW(Report[#Headers])),ROW(104:104)),MATCH($E$10,Report[#Headers],0)),\"\")","v":""},{"$f":"IFERROR(INDEX(Report[],SMALL(IF(Report[Category]=$B$8,ROW(Report[])-ROW(Report[#Headers])),ROW(104:104)),MATCH($F$10,Report[#Headers],0)),\"\")","v":""},{"$f":"IFERROR(INDEX(Report[],SMALL(IF(Report[Category]=$B$8,ROW(Report[])-ROW(Report[#Headers])),ROW(104:104)),MATCH($G$10,Report[#Headers],0)),\"\")","v":""},{"$f":"IFERROR(INDEX(Report[],SMALL(IF(Report[Category]=$B$8,ROW(Report[])-ROW(Report[#Headers])),ROW(104:104)),MATCH($H$10,Report[#Headers],0)),\"\")","v":""}]
[{"$f":"IF(B115=\"\",\"\",SUBTOTAL(3,B$11:B115))","v":""},{"$f":"IFERROR(INDEX(Report[],SMALL(IF(Report[Category]=$B$8,ROW(Report[])-ROW(Report[#Headers])),ROW(105:105)),MATCH($B$10,Report[#Headers],0)),\"\")","v":""},{"$f":"IFERROR(VLOOKUP(Print_Out[[#This Row],[ITEM NAME]],ItemsName,2,FALSE),\"\")","v":""},{"$f":"IFERROR(INDEX(Report[],SMALL(IF(Report[Category]=$B$8,ROW(Report[])-ROW(Report[#Headers])),ROW(105:105)),MATCH($D$10,Report[#Headers],0)),\"\")","v":""},{"$f":"IFERROR(INDEX(Report[],SMALL(IF(Report[Category]=$B$8,ROW(Report[])-ROW(Report[#Headers])),ROW(105:105)),MATCH($E$10,Report[#Headers],0)),\"\")","v":""},{"$f":"IFERROR(INDEX(Report[],SMALL(IF(Report[Category]=$B$8,ROW(Report[])-ROW(Report[#Headers])),ROW(105:105)),MATCH($F$10,Report[#Headers],0)),\"\")","v":""},{"$f":"IFERROR(INDEX(Report[],SMALL(IF(Report[Category]=$B$8,ROW(Report[])-ROW(Report[#Headers])),ROW(105:105)),MATCH($G$10,Report[#Headers],0)),\"\")","v":""},{"$f":"IFERROR(INDEX(Report[],SMALL(IF(Report[Category]=$B$8,ROW(Report[])-ROW(Report[#Headers])),ROW(105:105)),MATCH($H$10,Report[#Headers],0)),\"\")","v":""}]
[{"$f":"IF(B116=\"\",\"\",SUBTOTAL(3,B$11:B116))","v":""},{"$f":"IFERROR(INDEX(Report[],SMALL(IF(Report[Category]=$B$8,ROW(Report[])-ROW(Report[#Headers])),ROW(106:106)),MATCH($B$10,Report[#Headers],0)),\"\")","v":""},{"$f":"IFERROR(VLOOKUP(Print_Out[[#This Row],[ITEM NAME]],ItemsName,2,FALSE),\"\")","v":""},{"$f":"IFERROR(INDEX(Report[],SMALL(IF(Report[Category]=$B$8,ROW(Report[])-ROW(Report[#Headers])),ROW(106:106)),MATCH($D$10,Report[#Headers],0)),\"\")","v":""},{"$f":"IFERROR(INDEX(Report[],SMALL(IF(Report[Category]=$B$8,ROW(Report[])-ROW(Report[#Headers])),ROW(106:106)),MATCH($E$10,Report[#Headers],0)),\"\")","v":""},{"$f":"IFERROR(INDEX(Report[],SMALL(IF(Report[Category]=$B$8,ROW(Report[])-ROW(Report[#Headers])),ROW(106:106)),MATCH($F$10,Report[#Headers],0)),\"\")","v":""},{"$f":"IFERROR(INDEX(Report[],SMALL(IF(Report[Category]=$B$8,ROW(Report[])-ROW(Report[#Headers])),ROW(106:106)),MATCH($G$10,Report[#Headers],0)),\"\")","v":""},{"$f":"IFERROR(INDEX(Report[],SMALL(IF(Report[Category]=$B$8,ROW(Report[])-ROW(Report[#Headers])),ROW(106:106)),MATCH($H$10,Report[#Headers],0)),\"\")","v":""}]
[{"$f":"IF(B117=\"\",\"\",SUBTOTAL(3,B$11:B117))","v":""},{"$f":"IFERROR(INDEX(Report[],SMALL(IF(Report[Category]=$B$8,ROW(Report[])-ROW(Report[#Headers])),ROW(107:107)),MATCH($B$10,Report[#Headers],0)),\"\")","v":""},{"$f":"IFERROR(VLOOKUP(Print_Out[[#This Row],[ITEM NAME]],ItemsName,2,FALSE),\"\")","v":""},{"$f":"IFERROR(INDEX(Report[],SMALL(IF(Report[Category]=$B$8,ROW(Report[])-ROW(Report[#Headers])),ROW(107:107)),MATCH($D$10,Report[#Headers],0)),\"\")","v":""},{"$f":"IFERROR(INDEX(Report[],SMALL(IF(Report[Category]=$B$8,ROW(Report[])-ROW(Report[#Headers])),ROW(107:107)),MATCH($E$10,Report[#Headers],0)),\"\")","v":""},{"$f":"IFERROR(INDEX(Report[],SMALL(IF(Report[Category]=$B$8,ROW(Report[])-ROW(Report[#Headers])),ROW(107:107)),MATCH($F$10,Report[#Headers],0)),\"\")","v":""},{"$f":"IFERROR(INDEX(Report[],SMALL(IF(Report[Category]=$B$8,ROW(Report[])-ROW(Report[#Headers])),ROW(107:107)),MATCH($G$10,Report[#Headers],0)),\"\")","v":""},{"$f":"IFERROR(INDEX(Report[],SMALL(IF(Report[Category]=$B$8,ROW(Report[])-ROW(Report[#Headers])),ROW(107:107)),MATCH($H$10,Report[#Headers],0)),\"\")","v":""}]
[{"$f":"IF(B118=\"\",\"\",SUBTOTAL(3,B$11:B118))","v":""},{"$f":"IFERROR(INDEX(Report[],SMALL(IF(Report[Category]=$B$8,ROW(Report[])-ROW(Report[#Headers])),ROW(108:108)),MATCH($B$10,Report[#Headers],0)),\"\")","v":""},{"$f":"IFERROR(VLOOKUP(Print_Out[[#This Row],[ITEM NAME]],ItemsName,2,FALSE),\"\")","v":""},{"$f":"IFERROR(INDEX(Report[],SMALL(IF(Report[Category]=$B$8,ROW(Report[])-ROW(Report[#Headers])),ROW(108:108)),MATCH($D$10,Report[#Headers],0)),\"\")","v":""},{"$f":"IFERROR(INDEX(Report[],SMALL(IF(Report[Category]=$B$8,ROW(Report[])-ROW(Report[#Headers])),ROW(108:108)),MATCH($E$10,Report[#Headers],0)),\"\")","v":""},{"$f":"IFERROR(INDEX(Report[],SMALL(IF(Report[Category]=$B$8,ROW(Report[])-ROW(Report[#Headers])),ROW(108:108)),MATCH($F$10,Report[#Headers],0)),\"\")","v":""},{"$f":"IFERROR(INDEX(Report[],SMALL(IF(Report[Category]=$B$8,ROW(Report[])-ROW(Report[#Headers])),ROW(108:108)),MATCH($G$10,Report[#Headers],0)),\"\")","v":""},{"$f":"IFERROR(INDEX(Report[],SMALL(IF(Report[Category]=$B$8,ROW(Report[])-ROW(Report[#Headers])),ROW(108:108)),MATCH($H$10,Report[#Headers],0)),\"\")","v":""}]
[{"$f":"IF(B119=\"\",\"\",SUBTOTAL(3,B$11:B133))","v":""},{"$f":"IFERROR(INDEX(Report[],SMALL(IF(Report[Category]=$B$8,ROW(Report[])-ROW(Report[#Headers])),ROW(109:109)),MATCH($B$10,Report[#Headers],0)),\"\")","v":""},{"$f":"IFERROR(VLOOKUP(Print_Out[[#This Row],[ITEM NAME]],ItemsName,2,FALSE),\"\")","v":""},{"$f":"IFERROR(INDEX(Report[],SMALL(IF(Report[Category]=$B$8,ROW(Report[])-ROW(Report[#Headers])),ROW(109:109)),MATCH($D$10,Report[#Headers],0)),\"\")","v":""},{"$f":"IFERROR(INDEX(Report[],SMALL(IF(Report[Category]=$B$8,ROW(Report[])-ROW(Report[#Headers])),ROW(109:109)),MATCH($E$10,Report[#Headers],0)),\"\")","v":""},{"$f":"IFERROR(INDEX(Report[],SMALL(IF(Report[Category]=$B$8,ROW(Report[])-ROW(Report[#Headers])),ROW(109:109)),MATCH($F$10,Report[#Headers],0)),\"\")","v":""},{"$f":"IFERROR(INDEX(Report[],SMALL(IF(Report[Category]=$B$8,ROW(Report[])-ROW(Report[#Headers])),ROW(109:109)),MATCH($G$10,Report[#Headers],0)),\"\")","v":""},{"$f":"IFERROR(INDEX(Report[],SMALL(IF(Report[Category]=$B$8,ROW(Report[])-ROW(Report[#Headers])),ROW(109:109)),MATCH($H$10,Report[#Headers],0)),\"\")","v":""}]
[{"$f":"IF(B120=\"\",\"\",SUBTOTAL(3,B$11:B120))","v":""},{"$f":"IFERROR(INDEX(Report[],SMALL(IF(Report[Category]=$B$8,ROW(Report[])-ROW(Report[#Headers])),ROW(110:110)),MATCH($B$10,Report[#Headers],0)),\"\")","v":""},{"$f":"IFERROR(VLOOKUP(Print_Out[[#This Row],[ITEM NAME]],ItemsName,2,FALSE),\"\")","v":""},{"$f":"IFERROR(INDEX(Report[],SMALL(IF(Report[Category]=$B$8,ROW(Report[])-ROW(Report[#Headers])),ROW(110:110)),MATCH($D$10,Report[#Headers],0)),\"\")","v":""},{"$f":"IFERROR(INDEX(Report[],SMALL(IF(Report[Category]=$B$8,ROW(Report[])-ROW(Report[#Headers])),ROW(110:110)),MATCH($E$10,Report[#Headers],0)),\"\")","v":""},{"$f":"IFERROR(INDEX(Report[],SMALL(IF(Report[Category]=$B$8,ROW(Report[])-ROW(Report[#Headers])),ROW(110:110)),MATCH($F$10,Report[#Headers],0)),\"\")","v":""},{"$f":"IFERROR(INDEX(Report[],SMALL(IF(Report[Category]=$B$8,ROW(Report[])-ROW(Report[#Headers])),ROW(110:110)),MATCH($G$10,Report[#Headers],0)),\"\")","v":""},{"$f":"IFERROR(INDEX(Report[],SMALL(IF(Report[Category]=$B$8,ROW(Report[])-ROW(Report[#Headers])),ROW(110:110)),MATCH($H$10,Report[#Headers],0)),\"\")","v":""}]
[{"$f":"IF(B121=\"\",\"\",SUBTOTAL(3,B$11:B121))","v":""},{"$f":"IFERROR(INDEX(Report[],SMALL(IF(Report[Category]=$B$8,ROW(Report[])-ROW(Report[#Headers])),ROW(111:111)),MATCH($B$10,Report[#Headers],0)),\"\")","v":""},{"$f":"IFERROR(VLOOKUP(Print_Out[[#This Row],[ITEM NAME]],ItemsName,2,FALSE),\"\")","v":""},{"$f":"IFERROR(INDEX(Report[],SMALL(IF(Report[Category]=$B$8,ROW(Report[])-ROW(Report[#Headers])),ROW(111:111)),MATCH($D$10,Report[#Headers],0)),\"\")","v":""},{"$f":"IFERROR(INDEX(Report[],SMALL(IF(Report[Category]=$B$8,ROW(Report[])-ROW(Report[#Headers])),ROW(111:111)),MATCH($E$10,Report[#Headers],0)),\"\")","v":""},{"$f":"IFERROR(INDEX(Report[],SMALL(IF(Report[Category]=$B$8,ROW(Report[])-ROW(Report[#Headers])),ROW(111:111)),MATCH($F$10,Report[#Headers],0)),\"\")","v":""},{"$f":"IFERROR(INDEX(Report[],SMALL(IF(Report[Category]=$B$8,ROW(Report[])-ROW(Report[#Headers])),ROW(111:111)),MATCH($G$10,Report[#Headers],0)),\"\")","v":""},{"$f":"IFERROR(INDEX(Report[],SMALL(IF(Report[Category]=$B$8,ROW(Report[])-ROW(Report[#Headers])),ROW(111:111)),MATCH($H$10,Report[#Headers],0)),\"\")","v":""}]
[{"$f":"IF(B122=\"\",\"\",SUBTOTAL(3,B$11:B122))","v":""},{"$f":"IFERROR(INDEX(Report[],SMALL(IF(Report[Category]=$B$8,ROW(Report[])-ROW(Report[#Headers])),ROW(112:112)),MATCH($B$10,Report[#Headers],0)),\"\")","v":""},{"$f":"IFERROR(VLOOKUP(Print_Out[[#This Row],[ITEM NAME]],ItemsName,2,FALSE),\"\")","v":""},{"$f":"IFERROR(INDEX(Report[],SMALL(IF(Report[Category]=$B$8,ROW(Report[])-ROW(Report[#Headers])),ROW(112:112)),MATCH($D$10,Report[#Headers],0)),\"\")","v":""},{"$f":"IFERROR(INDEX(Report[],SMALL(IF(Report[Category]=$B$8,ROW(Report[])-ROW(Report[#Headers])),ROW(112:112)),MATCH($E$10,Report[#Headers],0)),\"\")","v":""},{"$f":"IFERROR(INDEX(Report[],SMALL(IF(Report[Category]=$B$8,ROW(Report[])-ROW(Report[#Headers])),ROW(112:112)),MATCH($F$10,Report[#Headers],0)),\"\")","v":""},{"$f":"IFERROR(INDEX(Report[],SMALL(IF(Report[Category]=$B$8,ROW(Report[])-ROW(Report[#Headers])),ROW(112:112)),MATCH($G$10,Report[#Headers],0)),\"\")","v":""},{"$f":"IFERROR(INDEX(Report[],SMALL(IF(Report[Category]=$B$8,ROW(Report[])-ROW(Report[#Headers])),ROW(112:112)),MATCH($H$10,Report[#Headers],0)),\"\")","v":""}]
[{"$f":"IF(B123=\"\",\"\",SUBTOTAL(3,B$11:B123))","v":""},{"$f":"IFERROR(INDEX(Report[],SMALL(IF(Report[Category]=$B$8,ROW(Report[])-ROW(Report[#Headers])),ROW(113:113)),MATCH($B$10,Report[#Headers],0)),\"\")","v":""},{"$f":"IFERROR(VLOOKUP(Print_Out[[#This Row],[ITEM NAME]],ItemsName,2,FALSE),\"\")","v":""},{"$f":"IFERROR(INDEX(Report[],SMALL(IF(Report[Category]=$B$8,ROW(Report[])-ROW(Report[#Headers])),ROW(113:113)),MATCH($D$10,Report[#Headers],0)),\"\")","v":""},{"$f":"IFERROR(INDEX(Report[],SMALL(IF(Report[Category]=$B$8,ROW(Report[])-ROW(Report[#Headers])),ROW(113:113)),MATCH($E$10,Report[#Headers],0)),\"\")","v":""},{"$f":"IFERROR(INDEX(Report[],SMALL(IF(Report[Category]=$B$8,ROW(Report[])-ROW(Report[#Headers])),ROW(113:113)),MATCH($F$10,Report[#Headers],0)),\"\")","v":""},{"$f":"IFERROR(INDEX(Report[],SMALL(IF(Report[Category]=$B$8,ROW(Report[])-ROW(Report[#Headers])),ROW(113:113)),MATCH($G$10,Report[#Headers],0)),\"\")","v":""},{"$f":"IFERROR(INDEX(Report[],SMALL(IF(Report[Category]=$B$8,ROW(Report[])-ROW(Report[#Headers])),ROW(113:113)),MATCH($H$10,Report[#Headers],0)),\"\")","v":""}]
[{"$f":"IF(B124=\"\",\"\",SUBTOTAL(3,B$11:B124))","v":""},{"$f":"IFERROR(INDEX(Report[],SMALL(IF(Report[Category]=$B$8,ROW(Report[])-ROW(Report[#Headers])),ROW(114:114)),MATCH($B$10,Report[#Headers],0)),\"\")","v":""},{"$f":"IFERROR(VLOOKUP(Print_Out[[#This Row],[ITEM NAME]],ItemsName,2,FALSE),\"\")","v":""},{"$f":"IFERROR(INDEX(Report[],SMALL(IF(Report[Category]=$B$8,ROW(Report[])-ROW(Report[#Headers])),ROW(114:114)),MATCH($D$10,Report[#Headers],0)),\"\")","v":""},{"$f":"IFERROR(INDEX(Report[],SMALL(IF(Report[Category]=$B$8,ROW(Report[])-ROW(Report[#Headers])),ROW(114:114)),MATCH($E$10,Report[#Headers],0)),\"\")","v":""},{"$f":"IFERROR(INDEX(Report[],SMALL(IF(Report[Category]=$B$8,ROW(Report[])-ROW(Report[#Headers])),ROW(114:114)),MATCH($F$10,Report[#Headers],0)),\"\")","v":""},{"$f":"IFERROR(INDEX(Report[],SMALL(IF(Report[Category]=$B$8,ROW(Report[])-ROW(Report[#Headers])),ROW(114:114)),MATCH($G$10,Report[#Headers],0)),\"\")","v":""},{"$f":"IFERROR(INDEX(Report[],SMALL(IF(Report[Category]=$B$8,ROW(Report[])-ROW(Report[#Headers])),ROW(114:114)),MATCH($H$10,Report[#Headers],0)),\"\")","v":""}]
[{"$f":"IF(B125=\"\",\"\",SUBTOTAL(3,B$11:B125))","v":""},{"$f":"IFERROR(INDEX(Report[],SMALL(IF(Report[Category]=$B$8,ROW(Report[])-ROW(Report[#Headers])),ROW(115:115)),MATCH($B$10,Report[#Headers],0)),\"\")","v":""},{"$f":"IFERROR(VLOOKUP(Print_Out[[#This Row],[ITEM NAME]],ItemsName,2,FALSE),\"\")","v":""},{"$f":"IFERROR(INDEX(Report[],SMALL(IF(Report[Category]=$B$8,ROW(Report[])-ROW(Report[#Headers])),ROW(115:115)),MATCH($D$10,Report[#Headers],0)),\"\")","v":""},{"$f":"IFERROR(INDEX(Report[],SMALL(IF(Report[Category]=$B$8,ROW(Report[])-ROW(Report[#Headers])),ROW(115:115)),MATCH($E$10,Report[#Headers],0)),\"\")","v":""},{"$f":"IFERROR(INDEX(Report[],SMALL(IF(Report[Category]=$B$8,ROW(Report[])-ROW(Report[#Headers])),ROW(115:115)),MATCH($F$10,Report[#Headers],0)),\"\")","v":""},{"$f":"IFERROR(INDEX(Report[],SMALL(IF(Report[Category]=$B$8,ROW(Report[])-ROW(Report[#Headers])),ROW(115:115)),MATCH($G$10,Report[#Headers],0)),\"\")","v":""},{"$f":"IFERROR(INDEX(Report[],SMALL(IF(Report[Category]=$B$8,ROW(Report[])-ROW(Report[#Headers])),ROW(115:115)),MATCH($H$10,Report[#Headers],0)),\"\")","v":""}]
[{"$f":"IF(B126=\"\",\"\",SUBTOTAL(3,B$11:B126))","v":""},{"$f":"IFERROR(INDEX(Report[],SMALL(IF(Report[Category]=$B$8,ROW(Report[])-ROW(Report[#Headers])),ROW(116:116)),MATCH($B$10,Report[#Headers],0)),\"\")","v":""},{"$f":"IFERROR(VLOOKUP(Print_Out[[#This Row],[ITEM NAME]],ItemsName,2,FALSE),\"\")","v":""},{"$f":"IFERROR(INDEX(Report[],SMALL(IF(Report[Category]=$B$8,ROW(Report[])-ROW(Report[#Headers])),ROW(116:116)),MATCH($D$10,Report[#Headers],0)),\"\")","v":""},{"$f":"IFERROR(INDEX(Report[],SMALL(IF(Report[Category]=$B$8,ROW(Report[])-ROW(Report[#Headers])),ROW(116:116)),MATCH($E$10,Report[#Headers],0)),\"\")","v":""},{"$f":"IFERROR(INDEX(Report[],SMALL(IF(Report[Category]=$B$8,ROW(Report[])-ROW(Report[#Headers])),ROW(116:116)),MATCH($F$10,Report[#Headers],0)),\"\")","v":""},{"$f":"IFERROR(INDEX(Report[],SMALL(IF(Report[Category]=$B$8,ROW(Report[])-ROW(Report[#Headers])),ROW(116:116)),MATCH($G$10,Report[#Headers],0)),\"\")","v":""},{"$f":"IFERROR(INDEX(Report[],SMALL(IF(Report[Category]=$B$8,ROW(Report[])-ROW(Report[#Headers])),ROW(116:116)),MATCH($H$10,Report[#Headers],0)),\"\")","v":""}]
[{"$f":"IF(B127=\"\",\"\",SUBTOTAL(3,B$11:B127))","v":""},{"$f":"IFERROR(INDEX(Report[],SMALL(IF(Report[Category]=$B$8,ROW(Report[])-ROW(Report[#Headers])),ROW(117:117)),MATCH($B$10,Report[#Headers],0)),\"\")","v":""},{"$f":"IFERROR(VLOOKUP(Print_Out[[#This Row],[ITEM NAME]],ItemsName,2,FALSE),\"\")","v":""},{"$f":"IFERROR(INDEX(Report[],SMALL(IF(Report[Category]=$B$8,ROW(Report[])-ROW(Report[#Headers])),ROW(117:117)),MATCH($D$10,Report[#Headers],0)),\"\")","v":""},{"$f":"IFERROR(INDEX(Report[],SMALL(IF(Report[Category]=$B$8,ROW(Report[])-ROW(Report[#Headers])),ROW(117:117)),MATCH($E$10,Report[#Headers],0)),\"\")","v":""},{"$f":"IFERROR(INDEX(Report[],SMALL(IF(Report[Category]=$B$8,ROW(Report[])-ROW(Report[#Headers])),ROW(117:117)),MATCH($F$10,Report[#Headers],0)),\"\")","v":""},{"$f":"IFERROR(INDEX(Report[],SMALL(IF(Report[Category]=$B$8,ROW(Report[])-ROW(Report[#Headers])),ROW(117:117)),MATCH($G$10,Report[#Headers],0)),\"\")","v":""},{"$f":"IFERROR(INDEX(Report[],SMALL(IF(Report[Category]=$B$8,ROW(Report[])-ROW(Report[#Headers])),ROW(117:117)),MATCH($H$10,Report[#Headers],0)),\"\")","v":""}]
[{"$f":"IF(B128=\"\",\"\",SUBTOTAL(3,B$11:B128))","v":""},{"$f":"IFERROR(INDEX(Report[],SMALL(IF(Report[Category]=$B$8,ROW(Report[])-ROW(Report[#Headers])),ROW(118:118)),MATCH($B$10,Report[#Headers],0)),\"\")","v":""},{"$f":"IFERROR(VLOOKUP(Print_Out[[#This Row],[ITEM NAME]],ItemsName,2,FALSE),\"\")","v":""},{"$f":"IFERROR(INDEX(Report[],SMALL(IF(Report[Category]=$B$8,ROW(Report[])-ROW(Report[#Headers])),ROW(118:118)),MATCH($D$10,Report[#Headers],0)),\"\")","v":""},{"$f":"IFERROR(INDEX(Report[],SMALL(IF(Report[Category]=$B$8,ROW(Report[])-ROW(Report[#Headers])),ROW(118:118)),MATCH($E$10,Report[#Headers],0)),\"\")","v":""},{"$f":"IFERROR(INDEX(Report[],SMALL(IF(Report[Category]=$B$8,ROW(Report[])-ROW(Report[#Headers])),ROW(118:118)),MATCH($F$10,Report[#Headers],0)),\"\")","v":""},{"$f":"IFERROR(INDEX(Report[],SMALL(IF(Report[Category]=$B$8,ROW(Report[])-ROW(Report[#Headers])),ROW(118:118)),MATCH($G$10,Report[#Headers],0)),\"\")","v":""},{"$f":"IFERROR(INDEX(Report[],SMALL(IF(Report[Category]=$B$8,ROW(Report[])-ROW(Report[#Headers])),ROW(118:118)),MATCH($H$10,Report[#Headers],0)),\"\")","v":""}]
[{"$f":"IF(B129=\"\",\"\",SUBTOTAL(3,B$11:B129))","v":""},{"$f":"IFERROR(INDEX(Report[],SMALL(IF(Report[Category]=$B$8,ROW(Report[])-ROW(Report[#Headers])),ROW(119:119)),MATCH($B$10,Report[#Headers],0)),\"\")","v":""},{"$f":"IFERROR(VLOOKUP(Print_Out[[#This Row],[ITEM NAME]],ItemsName,2,FALSE),\"\")","v":""},{"$f":"IFERROR(INDEX(Report[],SMALL(IF(Report[Category]=$B$8,ROW(Report[])-ROW(Report[#Headers])),ROW(119:119)),MATCH($D$10,Report[#Headers],0)),\"\")","v":""},{"$f":"IFERROR(INDEX(Report[],SMALL(IF(Report[Category]=$B$8,ROW(Report[])-ROW(Report[#Headers])),ROW(119:119)),MATCH($E$10,Report[#Headers],0)),\"\")","v":""},{"$f":"IFERROR(INDEX(Report[],SMALL(IF(Report[Category]=$B$8,ROW(Report[])-ROW(Report[#Headers])),ROW(119:119)),MATCH($F$10,Report[#Headers],0)),\"\")","v":""},{"$f":"IFERROR(INDEX(Report[],SMALL(IF(Report[Category]=$B$8,ROW(Report[])-ROW(Report[#Headers])),ROW(119:119)),MATCH($G$10,Report[#Headers],0)),\"\")","v":""},{"$f":"IFERROR(INDEX(Report[],SMALL(IF(Report[Category]=$B$8,ROW(Report[])-ROW(Report[#Headers])),ROW(119:119)),MATCH($H$10,Report[#Headers],0)),\"\")","v":""}]
[{"$f":"IF(B130=\"\",\"\",SUBTOTAL(3,B$11:B130))","v":""},{"$f":"IFERROR(INDEX(Report[],SMALL(IF(Report[Category]=$B$8,ROW(Report[])-ROW(Report[#Headers])),ROW(120:120)),MATCH($B$10,Report[#Headers],0)),\"\")","v":""},{"$f":"IFERROR(VLOOKUP(Print_Out[[#This Row],[ITEM NAME]],ItemsName,2,FALSE),\"\")","v":""},{"$f":"IFERROR(INDEX(Report[],SMALL(IF(Report[Category]=$B$8,ROW(Report[])-ROW(Report[#Headers])),ROW(120:120)),MATCH($D$10,Report[#Headers],0)),\"\")","v":""},{"$f":"IFERROR(INDEX(Report[],SMALL(IF(Report[Category]=$B$8,ROW(Report[])-ROW(Report[#Headers])),ROW(120:120)),MATCH($E$10,Report[#Headers],0)),\"\")","v":""},{"$f":"IFERROR(INDEX(Report[],SMALL(IF(Report[Category]=$B$8,ROW(Report[])-ROW(Report[#Headers])),ROW(120:120)),MATCH($F$10,Report[#Headers],0)),\"\")","v":""},{"$f":"IFERROR(INDEX(Report[],SMALL(IF(Report[Category]=$B$8,ROW(Report[])-ROW(Report[#Headers])),ROW(120:120)),MATCH($G$10,Report[#Headers],0)),\"\")","v":""},{"$f":"IFERROR(INDEX(Report[],SMALL(IF(Report[Category]=$B$8,ROW(Report[])-ROW(Report[#Headers])),ROW(120:120)),MATCH($H$10,Report[#Headers],0)),\"\")","v":""}]
[{"$f":"IF(B131=\"\",\"\",SUBTOTAL(3,B$11:B131))","v":""},{"$f":"IFERROR(INDEX(Report[],SMALL(IF(Report[Category]=$B$8,ROW(Report[])-ROW(Report[#Headers])),ROW(121:121)),MATCH($B$10,Report[#Headers],0)),\"\")","v":""},{"$f":"IFERROR(VLOOKUP(Print_Out[[#This Row],[ITEM NAME]],ItemsName,2,FALSE),\"\")","v":""},{"$f":"IFERROR(INDEX(Report[],SMALL(IF(Report[Category]=$B$8,ROW(Report[])-ROW(Report[#Headers])),ROW(121:121)),MATCH($D$10,Report[#Headers],0)),\"\")","v":""},{"$f":"IFERROR(INDEX(Report[],SMALL(IF(Report[Category]=$B$8,ROW(Report[])-ROW(Report[#Headers])),ROW(121:121)),MATCH($E$10,Report[#Headers],0)),\"\")","v":""},{"$f":"IFERROR(INDEX(Report[],SMALL(IF(Report[Category]=$B$8,ROW(Report[])-ROW(Report[#Headers])),ROW(121:121)),MATCH($F$10,Report[#Headers],0)),\"\")","v":""},{"$f":"IFERROR(INDEX(Report[],SMALL(IF(Report[Category]=$B$8,ROW(Report[])-ROW(Report[#Headers])),ROW(121:121)),MATCH($G$10,Report[#Headers],0)),\"\")","v":""},{"$f":"IFERROR(INDEX(Report[],SMALL(IF(Report[Category]=$B$8,ROW(Report[])-ROW(Report[#Headers])),ROW(121:121)),MATCH($H$10,Report[#Headers],0)),\"\")","v":""}]
[{"$f":"IF(B132=\"\",\"\",SUBTOTAL(3,B$11:B132))","v":""},{"$f":"IFERROR(INDEX(Report[],SMALL(IF(Report[Category]=$B$8,ROW(Report[])-ROW(Report[#Headers])),ROW(122:122)),MATCH($B$10,Report[#Headers],0)),\"\")","v":""},{"$f":"IFERROR(VLOOKUP(Print_Out[[#This Row],[ITEM NAME]],ItemsName,2,FALSE),\"\")","v":""},{"$f":"IFERROR(INDEX(Report[],SMALL(IF(Report[Category]=$B$8,ROW(Report[])-ROW(Report[#Headers])),ROW(122:122)),MATCH($D$10,Report[#Headers],0)),\"\")","v":""},{"$f":"IFERROR(INDEX(Report[],SMALL(IF(Report[Category]=$B$8,ROW(Report[])-ROW(Report[#Headers])),ROW(122:122)),MATCH($E$10,Report[#Headers],0)),\"\")","v":""},{"$f":"IFERROR(INDEX(Report[],SMALL(IF(Report[Category]=$B$8,ROW(Report[])-ROW(Report[#Headers])),ROW(122:122)),MATCH($F$10,Report[#Headers],0)),\"\")","v":""},{"$f":"IFERROR(INDEX(Report[],SMALL(IF(Report[Category]=$B$8,ROW(Report[])-ROW(Report[#Headers])),ROW(122:122)),MATCH($G$10,Report[#Headers],0)),\"\")","v":""},{"$f":"IFERROR(INDEX(Report[],SMALL(IF(Report[Category]=$B$8,ROW(Report[])-ROW(Report[#Headers])),ROW(122:122)),MATCH($H$10,Report[#Headers],0)),\"\")","v":""}]
[{"$f":"IF(B133=\"\",\"\",SUBTOTAL(3,B$11:B133))","v":""},{"$f":"IFERROR(INDEX(Report[],SMALL(IF(Report[Category]=$B$8,ROW(Report[])-ROW(Report[#Headers])),ROW(123:123)),MATCH($B$10,Report[#Headers],0)),\"\")","v":""},{"$f":"IFERROR(VLOOKUP(Print_Out[[#This Row],[ITEM NAME]],ItemsName,2,FALSE),\"\")","v":""},{"$f":"IFERROR(INDEX(Report[],SMALL(IF(Report[Category]=$B$8,ROW(Report[])-ROW(Report[#Headers])),ROW(123:123)),MATCH($D$10,Report[#Headers],0)),\"\")","v":""},{"$f":"IFERROR(INDEX(Report[],SMALL(IF(Report[Category]=$B$8,ROW(Report[])-ROW(Report[#Headers])),ROW(123:123)),MATCH($E$10,Report[#Headers],0)),\"\")","v":""},{"$f":"IFERROR(INDEX(Report[],SMALL(IF(Report[Category]=$B$8,ROW(Report[])-ROW(Report[#Headers])),ROW(123:123)),MATCH($F$10,Report[#Headers],0)),\"\")","v":""},{"$f":"IFERROR(INDEX(Report[],SMALL(IF(Report[Category]=$B$8,ROW(Report[])-ROW(Report[#Headers])),ROW(123:123)),MATCH($G$10,Report[#Headers],0)),\"\")","v":""},{"$f":"IFERROR(INDEX(Report[],SMALL(IF(Report[Category]=$B$8,ROW(Report[])-ROW(Report[#Headers])),ROW(123:123)),MATCH($H$10,Report[#Headers],0)),\"\")","v":""}]

{"sheet":"Report All","index":1,"n_rows":106,"n_cols":15,"rows_kept":106,"cut":false,"hidden":false,"merged":[[7,14,7,15],[6,7,6,8]]}
[]
[]
[]
[]
[]
[]
[null,"From",{"$f":"TODAY()","v":"2018-07-11"},null,null,null,"To",{"$f":"TODAY()","v":"2018-07-11"},null,null,null,null,null,"Item Code","GEM-00015"]
[null,null,null,null,null,null,null,null,null,null,null,null,null,"Item Name",{"$f":"IFERROR(VLOOKUP(O7,ItemRepo,3,FALSE),\"\")","v":""}]
["Sl","Item Code","Category","Item Name","Unit","Opening Balance","Received","Issue","TransFer","Balance"]
[{"$f":"IF(B10=\"\",\"\",SUBTOTAL(3,B$10:B10))","v":""},null,null,{"$f":"IFERROR(VLOOKUP(Report[[#This Row],[Item Code]],Product[],2,FALSE),\"\")","v":""},{"$f":"IFERROR(VLOOKUP(Report[[#This Row],[Item Code]],Product[],3,FALSE),\"\")","v":""},{"$f":"SUMIFS(Count_Table[Opening Balance 1],Count_Table[Item Code],Report[[#This Row],[Item Code]])","v":0},{"$f":"IFERROR(SUMIFS(Received_Tr[Qty],Received_Tr[Item Code],Report[Item Code]),\"\")","v":0},{"$f":"IFERROR(SUMIFS(Issu_Tr[Qty],Issu_Tr[Item Code],Report[Item Code]),\"\")","v":0},{"$f":"IFERROR(SUMIFS(Transfer_Tr[Qty],Transfer_Tr[Item Code],Report[Item Code]),\"\")","v":0},{"$f":"Report[[#This Row],[Opening Balance]]+Report[[#This Row],[Received]]-Report[[#This Row],[Issue]]-Report[[#This Row],[TransFer]]","v":0},null,null,null,"O.P (Qty)",{"$f":"SUMIFS(Report[Opening Balance],Report[Item Code],$O$7)","v":0}]
[{"$f":"IF(B11=\"\",\"\",SUBTOTAL(3,B$10:B11))","v":""},null,null,{"$f":"IFERROR(VLOOKUP(Report[[#This Row],[Item Code]],Product[],2,FALSE),\"\")","v":""},{"$f":"IFERROR(VLOOKUP(Report[[#This Row],[Item Code]],Product[],3,FALSE),\"\")","v":""},{"$f":"SUMIFS(Count_Table[Opening Balance 1],Count_Table[Item Code],Report[[#This Row],[Item Code]])","v":0},{"$f":"IFERROR(SUMIFS(Received_Tr[Qty],Received_Tr[Item Code],Report[Item Code]),\"\")","v":0},{"$f":"IFERROR(SUMIFS(Issu_Tr[Qty],Issu_Tr[Item Code],Report[Item Code]),\"\")","v":0},{"$f":"IFERROR(SUMIFS(Transfer_Tr[Qty],Transfer_Tr[Item Code],Report[Item Code]),\"\")","v":0},{"$f":"Report[[#This Row],[Opening Balance]]+Report[[#This Row],[Received]]-Report[[#This Row],[Issue]]-Report[[#This Row],[TransFer]]","v":0},null,null,null,"Delivey (Qty)",{"$f":"SUMIFS(Report[Received],Report[Item Code],$O$7)","v":0}]
[{"$f":"IF(B12=\"\",\"\",SUBTOTAL(3,B$10:B12))","v":""},null,null,{"$f":"IFERROR(VLOOKUP(Report[[#This Row],[Item Code]],Product[],2,FALSE),\"\")","v":""},{"$f":"IFERROR(VLOOKUP(Report[[#This Row],[Item Code]],Product[],3,FALSE),\"\")","v":""},{"$f":"SUMIFS(Count_Table[Opening Balance 1],Count_Table[Item Code],Report[[#This Row],[Item Code]])","v":0},{"$f":"IFERROR(SUMIFS(Received_Tr[Qty],Received_Tr[Item Code],Report[Item Code]),\"\")","v":0},{"$f":"IFERROR(SUMIFS(Issu_Tr[Qty],Issu_Tr[Item Code],Report[Item Code]),\"\")","v":0},{"$f":"IFERROR(SUMIFS(Transfer_Tr[Qty],Transfer_Tr[Item Code],Report[Item Code]),\"\")","v":0},{"$f":"Report[[#This Row],[Opening Balance]]+Report[[#This Row],[Received]]-Report[[#This Row],[Issue]]-Report[[#This Row],[TransFer]]","v":0},null,null,null,"Issu (Qty)",{"$f":"SUMIFS(Report[Issue],Report[Item Code],$O$7)","v":0}]
[{"$f":"IF(B13=\"\",\"\",SUBTOTAL(3,B$10:B13))","v":""},null,null,{"$f":"IFERROR(VLOOKUP(Report[[#This Row],[Item Code]],Product[],2,FALSE),\"\")","v":""},{"$f":"IFERROR(VLOOKUP(Report[[#This Row],[Item Code]],Product[],3,FALSE),\"\")","v":""},{"$f":"SUMIFS(Count_Table[Opening Balance 1],Count_Table[Item Code],Report[[#This Row],[Item Code]])","v":0},{"$f":"IFERROR(SUMIFS(Received_Tr[Qty],Received_Tr[Item Code],Report[Item Code]),\"\")","v":0},{"$f":"IFERROR(SUMIFS(Issu_Tr[Qty],Issu_Tr[Item Code],Report[Item Code]),\"\")","v":0},{"$f":"IFERROR(SUMIFS(Transfer_Tr[Qty],Transfer_Tr[Item Code],Report[Item Code]),\"\")","v":0},{"$f":"Report[[#This Row],[Opening Balance]]+Report[[#This Row],[Received]]-Report[[#This Row],[Issue]]-Report[[#This Row],[TransFer]]","v":0},null,null,null,"Transfer (Qty)",{"$f":"SUMIFS(Report[TransFer],Report[Item Code],$O$7)","v":0}]
[{"$f":"IF(B14=\"\",\"\",SUBTOTAL(3,B$10:B14))","v":""},null,null,{"$f":"IFERROR(VLOOKUP(Report[[#This Row],[Item Code]],Product[],2,FALSE),\"\")","v":""},{"$f":"IFERROR(VLOOKUP(Report[[#This Row],[Item Code]],Product[],3,FALSE),\"\")","v":""},{"$f":"SUMIFS(Count_Table[Opening Balance 1],Count_Table[Item Code],Report[[#This Row],[Item Code]])","v":0},{"$f":"IFERROR(SUMIFS(Received_Tr[Qty],Received_Tr[Item Code],Report[Item Code]),\"\")","v":0},{"$f":"IFERROR(SUMIFS(Issu_Tr[Qty],Issu_Tr[Item Code],Report[Item Code]),\"\")","v":0},{"$f":"IFERROR(SUMIFS(Transfer_Tr[Qty],Transfer_Tr[Item Code],Report[Item Code]),\"\")","v":0},{"$f":"Report[[#This Row],[Opening Balance]]+Report[[#This Row],[Received]]-Report[[#This Row],[Issue]]-Report[[#This Row],[TransFer]]","v":0}]
[{"$f":"IF(B15=\"\",\"\",SUBTOTAL(3,B$10:B15))","v":""},null,null,{"$f":"IFERROR(VLOOKUP(Report[[#This Row],[Item Code]],Product[],2,FALSE),\"\")","v":""},{"$f":"IFERROR(VLOOKUP(Report[[#This Row],[Item Code]],Product[],3,FALSE),\"\")","v":""},{"$f":"SUMIFS(Count_Table[Opening Balance 1],Count_Table[Item Code],Report[[#This Row],[Item Code]])","v":0},{"$f":"IFERROR(SUMIFS(Received_Tr[Qty],Received_Tr[Item Code],Report[Item Code]),\"\")","v":0},{"$f":"IFERROR(SUMIFS(Issu_Tr[Qty],Issu_Tr[Item Code],Report[Item Code]),\"\")","v":0},{"$f":"IFERROR(SUMIFS(Transfer_Tr[Qty],Transfer_Tr[Item Code],Report[Item Code]),\"\")","v":0},{"$f":"Report[[#This Row],[Opening Balance]]+Report[[#This Row],[Received]]-Report[[#This Row],[Issue]]-Report[[#This Row],[TransFer]]","v":0},null,null,null,"Balance",{"$f":"O10+O11-O12-O13","v":0}]
[{"$f":"IF(B16=\"\",\"\",SUBTOTAL(3,B$10:B16))","v":""},null,null,{"$f":"IFERROR(VLOOKUP(Report[[#This Row],[Item Code]],Product[],2,FALSE),\"\")","v":""},{"$f":"IFERROR(VLOOKUP(Report[[#This Row],[Item Code]],Product[],3,FALSE),\"\")","v":""},{"$f":"SUMIFS(Count_Table[Opening Balance 1],Count_Table[Item Code],Report[[#This Row],[Item Code]])","v":0},{"$f":"IFERROR(SUMIFS(Received_Tr[Qty],Received_Tr[Item Code],Report[Item Code]),\"\")","v":0},{"$f":"IFERROR(SUMIFS(Issu_Tr[Qty],Issu_Tr[Item Code],Report[Item Code]),\"\")","v":0},{"$f":"IFERROR(SUMIFS(Transfer_Tr[Qty],Transfer_Tr[Item Code],Report[Item Code]),\"\")","v":0},{"$f":"Report[[#This Row],[Opening Balance]]+Report[[#This Row],[Received]]-Report[[#This Row],[Issue]]-Report[[#This Row],[TransFer]]","v":0}]
[{"$f":"IF(B17=\"\",\"\",SUBTOTAL(3,B$10:B17))","v":""},null,null,{"$f":"IFERROR(VLOOKUP(Report[[#This Row],[Item Code]],Product[],2,FALSE),\"\")","v":""},{"$f":"IFERROR(VLOOKUP(Report[[#This Row],[Item Code]],Product[],3,FALSE),\"\")","v":""},{"$f":"SUMIFS(Count_Table[Opening Balance 1],Count_Table[Item Code],Report[[#This Row],[Item Code]])","v":0},{"$f":"IFERROR(SUMIFS(Received_Tr[Qty],Received_Tr[Item Code],Report[Item Code]),\"\")","v":0},{"$f":"IFERROR(SUMIFS(Issu_Tr[Qty],Issu_Tr[Item Code],Report[Item Code]),\"\")","v":0},{"$f":"IFERROR(SUMIFS(Transfer_Tr[Qty],Transfer_Tr[Item Code],Report[Item Code]),\"\")","v":0},{"$f":"Report[[#This Row],[Opening Balance]]+Report[[#This Row],[Received]]-Report[[#This Row],[Issue]]-Report[[#This Row],[TransFer]]","v":0}]
[{"$f":"IF(B18=\"\",\"\",SUBTOTAL(3,B$10:B18))","v":""},null,null,{"$f":"IFERROR(VLOOKUP(Report[[#This Row],[Item Code]],Product[],2,FALSE),\"\")","v":""},{"$f":"IFERROR(VLOOKUP(Report[[#This Row],[Item Code]],Product[],3,FALSE),\"\")","v":""},{"$f":"SUMIFS(Count_Table[Opening Balance 1],Count_Table[Item Code],Report[[#This Row],[Item Code]])","v":0},{"$f":"IFERROR(SUMIFS(Received_Tr[Qty],Received_Tr[Item Code],Report[Item Code]),\"\")","v":0},{"$f":"IFERROR(SUMIFS(Issu_Tr[Qty],Issu_Tr[Item Code],Report[Item Code]),\"\")","v":0},{"$f":"IFERROR(SUMIFS(Transfer_Tr[Qty],Transfer_Tr[Item Code],Report[Item Code]),\"\")","v":0},{"$f":"Report[[#This Row],[Opening Balance]]+Report[[#This Row],[Received]]-Report[[#This Row],[Issue]]-Report[[#This Row],[TransFer]]","v":0}]
[{"$f":"IF(B19=\"\",\"\",SUBTOTAL(3,B$10:B19))","v":""},null,null,{"$f":"IFERROR(VLOOKUP(Report[[#This Row],[Item Code]],Product[],2,FALSE),\"\")","v":""},{"$f":"IFERROR(VLOOKUP(Report[[#This Row],[Item Code]],Product[],3,FALSE),\"\")","v":""},{"$f":"SUMIFS(Count_Table[Opening Balance 1],Count_Table[Item Code],Report[[#This Row],[Item Code]])","v":0},{"$f":"IFERROR(SUMIFS(Received_Tr[Qty],Received_Tr[Item Code],Report[Item Code]),\"\")","v":0},{"$f":"IFERROR(SUMIFS(Issu_Tr[Qty],Issu_Tr[Item Code],Report[Item Code]),\"\")","v":0},{"$f":"IFERROR(SUMIFS(Transfer_Tr[Qty],Transfer_Tr[Item Code],Report[Item Code]),\"\")","v":0},{"$f":"Report[[#This Row],[Opening Balance]]+Report[[#This Row],[Received]]-Report[[#This Row],[Issue]]-Report[[#This Row],[TransFer]]","v":0}]
[{"$f":"IF(B20=\"\",\"\",SUBTOTAL(3,B$10:B20))","v":""},null,null,{"$f":"IFERROR(VLOOKUP(Report[[#This Row],[Item Code]],Product[],2,FALSE),\"\")","v":""},{"$f":"IFERROR(VLOOKUP(Report[[#This Row],[Item Code]],Product[],3,FALSE),\"\")","v":""},{"$f":"SUMIFS(Count_Table[Opening Balance 1],Count_Table[Item Code],Report[[#This Row],[Item Code]])","v":0},{"$f":"IFERROR(SUMIFS(Received_Tr[Qty],Received_Tr[Item Code],Report[Item Code]),\"\")","v":0},{"$f":"IFERROR(SUMIFS(Issu_Tr[Qty],Issu_Tr[Item Code],Report[Item Code]),\"\")","v":0},{"$f":"IFERROR(SUMIFS(Transfer_Tr[Qty],Transfer_Tr[Item Code],Report[Item Code]),\"\")","v":0},{"$f":"Report[[#This Row],[Opening Balance]]+Report[[#This Row],[Received]]-Report[[#This Row],[Issue]]-Report[[#This Row],[TransFer]]","v":0}]
[{"$f":"IF(B21=\"\",\"\",SUBTOTAL(3,B$10:B21))","v":""},null,null,{"$f":"IFERROR(VLOOKUP(Report[[#This Row],[Item Code]],Product[],2,FALSE),\"\")","v":""},{"$f":"IFERROR(VLOOKUP(Report[[#This Row],[Item Code]],Product[],3,FALSE),\"\")","v":""},{"$f":"SUMIFS(Count_Table[Opening Balance 1],Count_Table[Item Code],Report[[#This Row],[Item Code]])","v":0},{"$f":"IFERROR(SUMIFS(Received_Tr[Qty],Received_Tr[Item Code],Report[Item Code]),\"\")","v":0},{"$f":"IFERROR(SUMIFS(Issu_Tr[Qty],Issu_Tr[Item Code],Report[Item Code]),\"\")","v":0},{"$f":"IFERROR(SUMIFS(Transfer_Tr[Qty],Transfer_Tr[Item Code],Report[Item Code]),\"\")","v":0},{"$f":"Report[[#This Row],[Opening Balance]]+Report[[#This Row],[Received]]-Report[[#This Row],[Issue]]-Report[[#This Row],[TransFer]]","v":0}]
[{"$f":"IF(B22=\"\",\"\",SUBTOTAL(3,B$10:B22))","v":""},null,null,{"$f":"IFERROR(VLOOKUP(Report[[#This Row],[Item Code]],Product[],2,FALSE),\"\")","v":""},{"$f":"IFERROR(VLOOKUP(Report[[#This Row],[Item Code]],Product[],3,FALSE),\"\")","v":""},{"$f":"SUMIFS(Count_Table[Opening Balance 1],Count_Table[Item Code],Report[[#This Row],[Item Code]])","v":0},{"$f":"IFERROR(SUMIFS(Received_Tr[Qty],Received_Tr[Item Code],Report[Item Code]),\"\")","v":0},{"$f":"IFERROR(SUMIFS(Issu_Tr[Qty],Issu_Tr[Item Code],Report[Item Code]),\"\")","v":0},{"$f":"IFERROR(SUMIFS(Transfer_Tr[Qty],Transfer_Tr[Item Code],Report[Item Code]),\"\")","v":0},{"$f":"Report[[#This Row],[Opening Balance]]+Report[[#This Row],[Received]]-Report[[#This Row],[Issue]]-Report[[#This Row],[TransFer]]","v":0}]
[{"$f":"IF(B23=\"\",\"\",SUBTOTAL(3,B$10:B23))","v":""},null,null,{"$f":"IFERROR(VLOOKUP(Report[[#This Row],[Item Code]],Product[],2,FALSE),\"\")","v":""},{"$f":"IFERROR(VLOOKUP(Report[[#This Row],[Item Code]],Product[],3,FALSE),\"\")","v":""},{"$f":"SUMIFS(Count_Table[Opening Balance 1],Count_Table[Item Code],Report[[#This Row],[Item Code]])","v":0},{"$f":"IFERROR(SUMIFS(Received_Tr[Qty],Received_Tr[Item Code],Report[Item Code]),\"\")","v":0},{"$f":"IFERROR(SUMIFS(Issu_Tr[Qty],Issu_Tr[Item Code],Report[Item Code]),\"\")","v":0},{"$f":"IFERROR(SUMIFS(Transfer_Tr[Qty],Transfer_Tr[Item Code],Report[Item Code]),\"\")","v":0},{"$f":"Report[[#This Row],[Opening Balance]]+Report[[#This Row],[Received]]-Report[[#This Row],[Issue]]-Report[[#This Row],[TransFer]]","v":0}]
[{"$f":"IF(B24=\"\",\"\",SUBTOTAL(3,B$10:B24))","v":""},null,null,{"$f":"IFERROR(VLOOKUP(Report[[#This Row],[Item Code]],Product[],2,FALSE),\"\")","v":""},{"$f":"IFERROR(VLOOKUP(Report[[#This Row],[Item Code]],Product[],3,FALSE),\"\")","v":""},{"$f":"SUMIFS(Count_Table[Opening Balance 1],Count_Table[Item Code],Report[[#This Row],[Item Code]])","v":0},{"$f":"IFERROR(SUMIFS(Received_Tr[Qty],Received_Tr[Item Code],Report[Item Code]),\"\")","v":0},{"$f":"IFERROR(SUMIFS(Issu_Tr[Qty],Issu_Tr[Item Code],Report[Item Code]),\"\")","v":0},{"$f":"IFERROR(SUMIFS(Transfer_Tr[Qty],Transfer_Tr[Item Code],Report[Item Code]),\"\")","v":0},{"$f":"Report[[#This Row],[Opening Balance]]+Report[[#This Row],[Received]]-Report[[#This Row],[Issue]]-Report[[#This Row],[TransFer]]","v":0}]
[{"$f":"IF(B25=\"\",\"\",SUBTOTAL(3,B$10:B25))","v":""},null,null,{"$f":"IFERROR(VLOOKUP(Report[[#This Row],[Item Code]],Product[],2,FALSE),\"\")","v":""},{"$f":"IFERROR(VLOOKUP(Report[[#This Row],[Item Code]],Product[],3,FALSE),\"\")","v":""},{"$f":"SUMIFS(Count_Table[Opening Balance 1],Count_Table[Item Code],Report[[#This Row],[Item Code]])","v":0},{"$f":"IFERROR(SUMIFS(Received_Tr[Qty],Received_Tr[Item Code],Report[Item Code]),\"\")","v":0},{"$f":"IFERROR(SUMIFS(Issu_Tr[Qty],Issu_Tr[Item Code],Report[Item Code]),\"\")","v":0},{"$f":"IFERROR(SUMIFS(Transfer_Tr[Qty],Transfer_Tr[Item Code],Report[Item Code]),\"\")","v":0},{"$f":"Report[[#This Row],[Opening Balance]]+Report[[#This Row],[Received]]-Report[[#This Row],[Issue]]-Report[[#This Row],[TransFer]]","v":0}]
[{"$f":"IF(B26=\"\",\"\",SUBTOTAL(3,B$10:B26))","v":""},null,null,{"$f":"IFERROR(VLOOKUP(Report[[#This Row],[Item Code]],Product[],2,FALSE),\"\")","v":""},{"$f":"IFERROR(VLOOKUP(Report[[#This Row],[Item Code]],Product[],3,FALSE),\"\")","v":""},{"$f":"SUMIFS(Count_Table[Opening Balance 1],Count_Table[Item Code],Report[[#This Row],[Item Code]])","v":0},{"$f":"IFERROR(SUMIFS(Received_Tr[Qty],Received_Tr[Item Code],Report[Item Code]),\"\")","v":0},{"$f":"IFERROR(SUMIFS(Issu_Tr[Qty],Issu_Tr[Item Code],Report[Item Code]),\"\")","v":0},{"$f":"IFERROR(SUMIFS(Transfer_Tr[Qty],Transfer_Tr[Item Code],Report[Item Code]),\"\")","v":0},{"$f":"Report[[#This Row],[Opening Balance]]+Report[[#This Row],[Received]]-Report[[#This Row],[Issue]]-Report[[#This Row],[TransFer]]","v":0}]
[{"$f":"IF(B27=\"\",\"\",SUBTOTAL(3,B$10:B27))","v":""},null,null,{"$f":"IFERROR(VLOOKUP(Report[[#This Row],[Item Code]],Product[],2,FALSE),\"\")","v":""},{"$f":"IFERROR(VLOOKUP(Report[[#This Row],[Item Code]],Product[],3,FALSE),\"\")","v":""},{"$f":"SUMIFS(Count_Table[Opening Balance 1],Count_Table[Item Code],Report[[#This Row],[Item Code]])","v":0},{"$f":"IFERROR(SUMIFS(Received_Tr[Qty],Received_Tr[Item Code],Report[Item Code]),\"\")","v":0},{"$f":"IFERROR(SUMIFS(Issu_Tr[Qty],Issu_Tr[Item Code],Report[Item Code]),\"\")","v":0},{"$f":"IFERROR(SUMIFS(Transfer_Tr[Qty],Transfer_Tr[Item Code],Report[Item Code]),\"\")","v":0},{"$f":"Report[[#This Row],[Opening Balance]]+Report[[#This Row],[Received]]-Report[[#This Row],[Issue]]-Report[[#This Row],[TransFer]]","v":0}]
[{"$f":"IF(B28=\"\",\"\",SUBTOTAL(3,B$10:B28))","v":""},null,null,{"$f":"IFERROR(VLOOKUP(Report[[#This Row],[Item Code]],Product[],2,FALSE),\"\")","v":""},{"$f":"IFERROR(VLOOKUP(Report[[#This Row],[Item Code]],Product[],3,FALSE),\"\")","v":""},{"$f":"SUMIFS(Count_Table[Opening Balance 1],Count_Table[Item Code],Report[[#This Row],[Item Code]])","v":0},{"$f":"IFERROR(SUMIFS(Received_Tr[Qty],Received_Tr[Item Code],Report[Item Code]),\"\")","v":0},{"$f":"IFERROR(SUMIFS(Issu_Tr[Qty],Issu_Tr[Item Code],Report[Item Code]),\"\")","v":0},{"$f":"IFERROR(SUMIFS(Transfer_Tr[Qty],Transfer_Tr[Item Code],Report[Item Code]),\"\")","v":0},{"$f":"Report[[#This Row],[Opening Balance]]+Report[[#This Row],[Received]]-Report[[#This Row],[Issue]]-Report[[#This Row],[TransFer]]","v":0}]
[{"$f":"IF(B29=\"\",\"\",SUBTOTAL(3,B$10:B29))","v":""},null,null,{"$f":"IFERROR(VLOOKUP(Report[[#This Row],[Item Code]],Product[],2,FALSE),\"\")","v":""},{"$f":"IFERROR(VLOOKUP(Report[[#This Row],[Item Code]],Product[],3,FALSE),\"\")","v":""},{"$f":"SUMIFS(Count_Table[Opening Balance 1],Count_Table[Item Code],Report[[#This Row],[Item Code]])","v":0},{"$f":"IFERROR(SUMIFS(Received_Tr[Qty],Received_Tr[Item Code],Report[Item Code]),\"\")","v":0},{"$f":"IFERROR(SUMIFS(Issu_Tr[Qty],Issu_Tr[Item Code],Report[Item Code]),\"\")","v":0},{"$f":"IFERROR(SUMIFS(Transfer_Tr[Qty],Transfer_Tr[Item Code],Report[Item Code]),\"\")","v":0},{"$f":"Report[[#This Row],[Opening Balance]]+Report[[#This Row],[Received]]-Report[[#This Row],[Issue]]-Report[[#This Row],[TransFer]]","v":0}]
[{"$f":"IF(B30=\"\",\"\",SUBTOTAL(3,B$10:B30))","v":""},null,null,{"$f":"IFERROR(VLOOKUP(Report[[#This Row],[Item Code]],Product[],2,FALSE),\"\")","v":""},{"$f":"IFERROR(VLOOKUP(Report[[#This Row],[Item Code]],Product[],3,FALSE),\"\")","v":""},{"$f":"SUMIFS(Count_Table[Opening Balance 1],Count_Table[Item Code],Report[[#This Row],[Item Code]])","v":0},{"$f":"IFERROR(SUMIFS(Received_Tr[Qty],Received_Tr[Item Code],Report[Item Code]),\"\")","v":0},{"$f":"IFERROR(SUMIFS(Issu_Tr[Qty],Issu_Tr[Item Code],Report[Item Code]),\"\")","v":0},{"$f":"IFERROR(SUMIFS(Transfer_Tr[Qty],Transfer_Tr[Item Code],Report[Item Code]),\"\")","v":0},{"$f":"Report[[#This Row],[Opening Balance]]+Report[[#This Row],[Received]]-Report[[#This Row],[Issue]]-Report[[#This Row],[TransFer]]","v":0}]
[{"$f":"IF(B31=\"\",\"\",SUBTOTAL(3,B$10:B31))","v":""},null,null,{"$f":"IFERROR(VLOOKUP(Report[[#This Row],[Item Code]],Product[],2,FALSE),\"\")","v":""},{"$f":"IFERROR(VLOOKUP(Report[[#This Row],[Item Code]],Product[],3,FALSE),\"\")","v":""},{"$f":"SUMIFS(Count_Table[Opening Balance 1],Count_Table[Item Code],Report[[#This Row],[Item Code]])","v":0},{"$f":"IFERROR(SUMIFS(Received_Tr[Qty],Received_Tr[Item Code],Report[Item Code]),\"\")","v":0},{"$f":"IFERROR(SUMIFS(Issu_Tr[Qty],Issu_Tr[Item Code],Report[Item Code]),\"\")","v":0},{"$f":"IFERROR(SUMIFS(Transfer_Tr[Qty],Transfer_Tr[Item Code],Report[Item Code]),\"\")","v":0},{"$f":"Report[[#This Row],[Opening Balance]]+Report[[#This Row],[Received]]-Report[[#This Row],[Issue]]-Report[[#This Row],[TransFer]]","v":0}]
[{"$f":"IF(B32=\"\",\"\",SUBTOTAL(3,B$10:B32))","v":""},null,null,{"$f":"IFERROR(VLOOKUP(Report[[#This Row],[Item Code]],Product[],2,FALSE),\"\")","v":""},{"$f":"IFERROR(VLOOKUP(Report[[#This Row],[Item Code]],Product[],3,FALSE),\"\")","v":""},{"$f":"SUMIFS(Count_Table[Opening Balance 1],Count_Table[Item Code],Report[[#This Row],[Item Code]])","v":0},{"$f":"IFERROR(SUMIFS(Received_Tr[Qty],Received_Tr[Item Code],Report[Item Code]),\"\")","v":0},{"$f":"IFERROR(SUMIFS(Issu_Tr[Qty],Issu_Tr[Item Code],Report[Item Code]),\"\")","v":0},{"$f":"IFERROR(SUMIFS(Transfer_Tr[Qty],Transfer_Tr[Item Code],Report[Item Code]),\"\")","v":0},{"$f":"Report[[#This Row],[Opening Balance]]+Report[[#This Row],[Received]]-Report[[#This Row],[Issue]]-Report[[#This Row],[TransFer]]","v":0}]
[{"$f":"IF(B33=\"\",\"\",SUBTOTAL(3,B$10:B33))","v":""},null,null,{"$f":"IFERROR(VLOOKUP(Report[[#This Row],[Item Code]],Product[],2,FALSE),\"\")","v":""},{"$f":"IFERROR(VLOOKUP(Report[[#This Row],[Item Code]],Product[],3,FALSE),\"\")","v":""},{"$f":"SUMIFS(Count_Table[Opening Balance 1],Count_Table[Item Code],Report[[#This Row],[Item Code]])","v":0},{"$f":"IFERROR(SUMIFS(Received_Tr[Qty],Received_Tr[Item Code],Report[Item Code]),\"\")","v":0},{"$f":"IFERROR(SUMIFS(Issu_Tr[Qty],Issu_Tr[Item Code],Report[Item Code]),\"\")","v":0},{"$f":"IFERROR(SUMIFS(Transfer_Tr[Qty],Transfer_Tr[Item Code],Report[Item Code]),\"\")","v":0},{"$f":"Report[[#This Row],[Opening Balance]]+Report[[#This Row],[Received]]-Report[[#This Row],[Issue]]-Report[[#This Row],[TransFer]]","v":0}]
[{"$f":"IF(B34=\"\",\"\",SUBTOTAL(3,B$10:B34))","v":""},null,null,{"$f":"IFERROR(VLOOKUP(Report[[#This Row],[Item Code]],Product[],2,FALSE),\"\")","v":""},{"$f":"IFERROR(VLOOKUP(Report[[#This Row],[Item Code]],Product[],3,FALSE),\"\")","v":""},{"$f":"SUMIFS(Count_Table[Opening Balance 1],Count_Table[Item Code],Report[[#This Row],[Item Code]])","v":0},{"$f":"IFERROR(SUMIFS(Received_Tr[Qty],Received_Tr[Item Code],Report[Item Code]),\"\")","v":0},{"$f":"IFERROR(SUMIFS(Issu_Tr[Qty],Issu_Tr[Item Code],Report[Item Code]),\"\")","v":0},{"$f":"IFERROR(SUMIFS(Transfer_Tr[Qty],Transfer_Tr[Item Code],Report[Item Code]),\"\")","v":0},{"$f":"Report[[#This Row],[Opening Balance]]+Report[[#This Row],[Received]]-Report[[#This Row],[Issue]]-Report[[#This Row],[TransFer]]","v":0}]
[{"$f":"IF(B35=\"\",\"\",SUBTOTAL(3,B$10:B35))","v":""},null,null,{"$f":"IFERROR(VLOOKUP(Report[[#This Row],[Item Code]],Product[],2,FALSE),\"\")","v":""},{"$f":"IFERROR(VLOOKUP(Report[[#This Row],[Item Code]],Product[],3,FALSE),\"\")","v":""},{"$f":"SUMIFS(Count_Table[Opening Balance 1],Count_Table[Item Code],Report[[#This Row],[Item Code]])","v":0},{"$f":"IFERROR(SUMIFS(Received_Tr[Qty],Received_Tr[Item Code],Report[Item Code]),\"\")","v":0},{"$f":"IFERROR(SUMIFS(Issu_Tr[Qty],Issu_Tr[Item Code],Report[Item Code]),\"\")","v":0},{"$f":"IFERROR(SUMIFS(Transfer_Tr[Qty],Transfer_Tr[Item Code],Report[Item Code]),\"\")","v":0},{"$f":"Report[[#This Row],[Opening Balance]]+Report[[#This Row],[Received]]-Report[[#This Row],[Issue]]-Report[[#This Row],[TransFer]]","v":0}]
[{"$f":"IF(B36=\"\",\"\",SUBTOTAL(3,B$10:B36))","v":""},null,null,{"$f":"IFERROR(VLOOKUP(Report[[#This Row],[Item Code]],Product[],2,FALSE),\"\")","v":""},{"$f":"IFERROR(VLOOKUP(Report[[#This Row],[Item Code]],Product[],3,FALSE),\"\")","v":""},{"$f":"SUMIFS(Count_Table[Opening Balance 1],Count_Table[Item Code],Report[[#This Row],[Item Code]])","v":0},{"$f":"IFERROR(SUMIFS(Received_Tr[Qty],Received_Tr[Item Code],Report[Item Code]),\"\")","v":0},{"$f":"IFERROR(SUMIFS(Issu_Tr[Qty],Issu_Tr[Item Code],Report[Item Code]),\"\")","v":0},{"$f":"IFERROR(SUMIFS(Transfer_Tr[Qty],Transfer_Tr[Item Code],Report[Item Code]),\"\")","v":0},{"$f":"Report[[#This Row],[Opening Balance]]+Report[[#This Row],[Received]]-Report[[#This Row],[Issue]]-Report[[#This Row],[TransFer]]","v":0}]
[{"$f":"IF(B37=\"\",\"\",SUBTOTAL(3,B$10:B37))","v":""},null,null,{"$f":"IFERROR(VLOOKUP(Report[[#This Row],[Item Code]],Product[],2,FALSE),\"\")","v":""},{"$f":"IFERROR(VLOOKUP(Report[[#This Row],[Item Code]],Product[],3,FALSE),\"\")","v":""},{"$f":"SUMIFS(Count_Table[Opening Balance 1],Count_Table[Item Code],Report[[#This Row],[Item Code]])","v":0},{"$f":"IFERROR(SUMIFS(Received_Tr[Qty],Received_Tr[Item Code],Report[Item Code]),\"\")","v":0},{"$f":"IFERROR(SUMIFS(Issu_Tr[Qty],Issu_Tr[Item Code],Report[Item Code]),\"\")","v":0},{"$f":"IFERROR(SUMIFS(Transfer_Tr[Qty],Transfer_Tr[Item Code],Report[Item Code]),\"\")","v":0},{"$f":"Report[[#This Row],[Opening Balance]]+Report[[#This Row],[Received]]-Report[[#This Row],[Issue]]-Report[[#This Row],[TransFer]]","v":0}]
[{"$f":"IF(B38=\"\",\"\",SUBTOTAL(3,B$10:B38))","v":""},null,null,{"$f":"IFERROR(VLOOKUP(Report[[#This Row],[Item Code]],Product[],2,FALSE),\"\")","v":""},{"$f":"IFERROR(VLOOKUP(Report[[#This Row],[Item Code]],Product[],3,FALSE),\"\")","v":""},{"$f":"SUMIFS(Count_Table[Opening Balance 1],Count_Table[Item Code],Report[[#This Row],[Item Code]])","v":0},{"$f":"IFERROR(SUMIFS(Received_Tr[Qty],Received_Tr[Item Code],Report[Item Code]),\"\")","v":0},{"$f":"IFERROR(SUMIFS(Issu_Tr[Qty],Issu_Tr[Item Code],Report[Item Code]),\"\")","v":0},{"$f":"IFERROR(SUMIFS(Transfer_Tr[Qty],Transfer_Tr[Item Code],Report[Item Code]),\"\")","v":0},{"$f":"Report[[#This Row],[Opening Balance]]+Report[[#This Row],[Received]]-Report[[#This Row],[Issue]]-Report[[#This Row],[TransFer]]","v":0}]
[{"$f":"IF(B39=\"\",\"\",SUBTOTAL(3,B$10:B39))","v":""},null,null,{"$f":"IFERROR(VLOOKUP(Report[[#This Row],[Item Code]],Product[],2,FALSE),\"\")","v":""},{"$f":"IFERROR(VLOOKUP(Report[[#This Row],[Item Code]],Product[],3,FALSE),\"\")","v":""},{"$f":"SUMIFS(Count_Table[Opening Balance 1],Count_Table[Item Code],Report[[#This Row],[Item Code]])","v":0},{"$f":"IFERROR(SUMIFS(Received_Tr[Qty],Received_Tr[Item Code],Report[Item Code]),\"\")","v":0},{"$f":"IFERROR(SUMIFS(Issu_Tr[Qty],Issu_Tr[Item Code],Report[Item Code]),\"\")","v":0},{"$f":"IFERROR(SUMIFS(Transfer_Tr[Qty],Transfer_Tr[Item Code],Report[Item Code]),\"\")","v":0},{"$f":"Report[[#This Row],[Opening Balance]]+Report[[#This Row],[Received]]-Report[[#This Row],[Issue]]-Report[[#This Row],[TransFer]]","v":0}]
[{"$f":"IF(B40=\"\",\"\",SUBTOTAL(3,B$10:B40))","v":""},null,null,{"$f":"IFERROR(VLOOKUP(Report[[#This Row],[Item Code]],Product[],2,FALSE),\"\")","v":""},{"$f":"IFERROR(VLOOKUP(Report[[#This Row],[Item Code]],Product[],3,FALSE),\"\")","v":""},{"$f":"SUMIFS(Count_Table[Opening Balance 1],Count_Table[Item Code],Report[[#This Row],[Item Code]])","v":0},{"$f":"IFERROR(SUMIFS(Received_Tr[Qty],Received_Tr[Item Code],Report[Item Code]),\"\")","v":0},{"$f":"IFERROR(SUMIFS(Issu_Tr[Qty],Issu_Tr[Item Code],Report[Item Code]),\"\")","v":0},{"$f":"IFERROR(SUMIFS(Transfer_Tr[Qty],Transfer_Tr[Item Code],Report[Item Code]),\"\")","v":0},{"$f":"Report[[#This Row],[Opening Balance]]+Report[[#This Row],[Received]]-Report[[#This Row],[Issue]]-Report[[#This Row],[TransFer]]","v":0}]
[{"$f":"IF(B41=\"\",\"\",SUBTOTAL(3,B$10:B41))","v":""},null,null,{"$f":"IFERROR(VLOOKUP(Report[[#This Row],[Item Code]],Product[],2,FALSE),\"\")","v":""},{"$f":"IFERROR(VLOOKUP(Report[[#This Row],[Item Code]],Product[],3,FALSE),\"\")","v":""},{"$f":"SUMIFS(Count_Table[Opening Balance 1],Count_Table[Item Code],Report[[#This Row],[Item Code]])","v":0},{"$f":"IFERROR(SUMIFS(Received_Tr[Qty],Received_Tr[Item Code],Report[Item Code]),\"\")","v":0},{"$f":"IFERROR(SUMIFS(Issu_Tr[Qty],Issu_Tr[Item Code],Report[Item Code]),\"\")","v":0},{"$f":"IFERROR(SUMIFS(Transfer_Tr[Qty],Transfer_Tr[Item Code],Report[Item Code]),\"\")","v":0},{"$f":"Report[[#This Row],[Opening Balance]]+Report[[#This Row],[Received]]-Report[[#This Row],[Issue]]-Report[[#This Row],[TransFer]]","v":0}]
[{"$f":"IF(B42=\"\",\"\",SUBTOTAL(3,B$10:B42))","v":""},null,null,{"$f":"IFERROR(VLOOKUP(Report[[#This Row],[Item Code]],Product[],2,FALSE),\"\")","v":""},{"$f":"IFERROR(VLOOKUP(Report[[#This Row],[Item Code]],Product[],3,FALSE),\"\")","v":""},{"$f":"SUMIFS(Count_Table[Opening Balance 1],Count_Table[Item Code],Report[[#This Row],[Item Code]])","v":0},{"$f":"IFERROR(SUMIFS(Received_Tr[Qty],Received_Tr[Item Code],Report[Item Code]),\"\")","v":0},{"$f":"IFERROR(SUMIFS(Issu_Tr[Qty],Issu_Tr[Item Code],Report[Item Code]),\"\")","v":0},{"$f":"IFERROR(SUMIFS(Transfer_Tr[Qty],Transfer_Tr[Item Code],Report[Item Code]),\"\")","v":0},{"$f":"Report[[#This Row],[Opening Balance]]+Report[[#This Row],[Received]]-Report[[#This Row],[Issue]]-Report[[#This Row],[TransFer]]","v":0}]
[{"$f":"IF(B43=\"\",\"\",SUBTOTAL(3,B$10:B43))","v":""},null,null,{"$f":"IFERROR(VLOOKUP(Report[[#This Row],[Item Code]],Product[],2,FALSE),\"\")","v":""},{"$f":"IFERROR(VLOOKUP(Report[[#This Row],[Item Code]],Product[],3,FALSE),\"\")","v":""},{"$f":"SUMIFS(Count_Table[Opening Balance 1],Count_Table[Item Code],Report[[#This Row],[Item Code]])","v":0},{"$f":"IFERROR(SUMIFS(Received_Tr[Qty],Received_Tr[Item Code],Report[Item Code]),\"\")","v":0},{"$f":"IFERROR(SUMIFS(Issu_Tr[Qty],Issu_Tr[Item Code],Report[Item Code]),\"\")","v":0},{"$f":"IFERROR(SUMIFS(Transfer_Tr[Qty],Transfer_Tr[Item Code],Report[Item Code]),\"\")","v":0},{"$f":"Report[[#This Row],[Opening Balance]]+Report[[#This Row],[Received]]-Report[[#This Row],[Issue]]-Report[[#This Row],[TransFer]]","v":0}]
[{"$f":"IF(B44=\"\",\"\",SUBTOTAL(3,B$10:B44))","v":""},null,null,{"$f":"IFERROR(VLOOKUP(Report[[#This Row],[Item Code]],Product[],2,FALSE),\"\")","v":""},{"$f":"IFERROR(VLOOKUP(Report[[#This Row],[Item Code]],Product[],3,FALSE),\"\")","v":""},{"$f":"SUMIFS(Count_Table[Opening Balance 1],Count_Table[Item Code],Report[[#This Row],[Item Code]])","v":0},{"$f":"IFERROR(SUMIFS(Received_Tr[Qty],Received_Tr[Item Code],Report[Item Code]),\"\")","v":0},{"$f":"IFERROR(SUMIFS(Issu_Tr[Qty],Issu_Tr[Item Code],Report[Item Code]),\"\")","v":0},{"$f":"IFERROR(SUMIFS(Transfer_Tr[Qty],Transfer_Tr[Item Code],Report[Item Code]),\"\")","v":0},{"$f":"Report[[#This Row],[Opening Balance]]+Report[[#This Row],[Received]]-Report[[#This Row],[Issue]]-Report[[#This Row],[TransFer]]","v":0}]
[{"$f":"IF(B45=\"\",\"\",SUBTOTAL(3,B$10:B45))","v":""},null,null,{"$f":"IFERROR(VLOOKUP(Report[[#This Row],[Item Code]],Product[],2,FALSE),\"\")","v":""},{"$f":"IFERROR(VLOOKUP(Report[[#This Row],[Item Code]],Product[],3,FALSE),\"\")","v":""},{"$f":"SUMIFS(Count_Table[Opening Balance 1],Count_Table[Item Code],Report[[#This Row],[Item Code]])","v":0},{"$f":"IFERROR(SUMIFS(Received_Tr[Qty],Received_Tr[Item Code],Report[Item Code]),\"\")","v":0},{"$f":"IFERROR(SUMIFS(Issu_Tr[Qty],Issu_Tr[Item Code],Report[Item Code]),\"\")","v":0},{"$f":"IFERROR(SUMIFS(Transfer_Tr[Qty],Transfer_Tr[Item Code],Report[Item Code]),\"\")","v":0},{"$f":"Report[[#This Row],[Opening Balance]]+Report[[#This Row],[Received]]-Report[[#This Row],[Issue]]-Report[[#This Row],[TransFer]]","v":0}]
[{"$f":"IF(B46=\"\",\"\",SUBTOTAL(3,B$10:B46))","v":""},null,null,{"$f":"IFERROR(VLOOKUP(Report[[#This Row],[Item Code]],Product[],2,FALSE),\"\")","v":""},{"$f":"IFERROR(VLOOKUP(Report[[#This Row],[Item Code]],Product[],3,FALSE),\"\")","v":""},{"$f":"SUMIFS(Count_Table[Opening Balance 1],Count_Table[Item Code],Report[[#This Row],[Item Code]])","v":0},{"$f":"IFERROR(SUMIFS(Received_Tr[Qty],Received_Tr[Item Code],Report[Item Code]),\"\")","v":0},{"$f":"IFERROR(SUMIFS(Issu_Tr[Qty],Issu_Tr[Item Code],Report[Item Code]),\"\")","v":0},{"$f":"IFERROR(SUMIFS(Transfer_Tr[Qty],Transfer_Tr[Item Code],Report[Item Code]),\"\")","v":0},{"$f":"Report[[#This Row],[Opening Balance]]+Report[[#This Row],[Received]]-Report[[#This Row],[Issue]]-Report[[#This Row],[TransFer]]","v":0}]
[{"$f":"IF(B47=\"\",\"\",SUBTOTAL(3,B$10:B47))","v":""},null,null,{"$f":"IFERROR(VLOOKUP(Report[[#This Row],[Item Code]],Product[],2,FALSE),\"\")","v":""},{"$f":"IFERROR(VLOOKUP(Report[[#This Row],[Item Code]],Product[],3,FALSE),\"\")","v":""},{"$f":"SUMIFS(Count_Table[Opening Balance 1],Count_Table[Item Code],Report[[#This Row],[Item Code]])","v":0},{"$f":"IFERROR(SUMIFS(Received_Tr[Qty],Received_Tr[Item Code],Report[Item Code]),\"\")","v":0},{"$f":"IFERROR(SUMIFS(Issu_Tr[Qty],Issu_Tr[Item Code],Report[Item Code]),\"\")","v":0},{"$f":"IFERROR(SUMIFS(Transfer_Tr[Qty],Transfer_Tr[Item Code],Report[Item Code]),\"\")","v":0},{"$f":"Report[[#This Row],[Opening Balance]]+Report[[#This Row],[Received]]-Report[[#This Row],[Issue]]-Report[[#This Row],[TransFer]]","v":0}]
[{"$f":"IF(B48=\"\",\"\",SUBTOTAL(3,B$10:B48))","v":""},null,null,{"$f":"IFERROR(VLOOKUP(Report[[#This Row],[Item Code]],Product[],2,FALSE),\"\")","v":""},{"$f":"IFERROR(VLOOKUP(Report[[#This Row],[Item Code]],Product[],3,FALSE),\"\")","v":""},{"$f":"SUMIFS(Count_Table[Opening Balance 1],Count_Table[Item Code],Report[[#This Row],[Item Code]])","v":0},{"$f":"IFERROR(SUMIFS(Received_Tr[Qty],Received_Tr[Item Code],Report[Item Code]),\"\")","v":0},{"$f":"IFERROR(SUMIFS(Issu_Tr[Qty],Issu_Tr[Item Code],Report[Item Code]),\"\")","v":0},{"$f":"IFERROR(SUMIFS(Transfer_Tr[Qty],Transfer_Tr[Item Code],Report[Item Code]),\"\")","v":0},{"$f":"Report[[#This Row],[Opening Balance]]+Report[[#This Row],[Received]]-Report[[#This Row],[Issue]]-Report[[#This Row],[TransFer]]","v":0}]
[{"$f":"IF(B49=\"\",\"\",SUBTOTAL(3,B$10:B49))","v":""},null,null,{"$f":"IFERROR(VLOOKUP(Report[[#This Row],[Item Code]],Product[],2,FALSE),\"\")","v":""},{"$f":"IFERROR(VLOOKUP(Report[[#This Row],[Item Code]],Product[],3,FALSE),\"\")","v":""},{"$f":"SUMIFS(Count_Table[Opening Balance 1],Count_Table[Item Code],Report[[#This Row],[Item Code]])","v":0},{"$f":"IFERROR(SUMIFS(Received_Tr[Qty],Received_Tr[Item Code],Report[Item Code]),\"\")","v":0},{"$f":"IFERROR(SUMIFS(Issu_Tr[Qty],Issu_Tr[Item Code],Report[Item Code]),\"\")","v":0},{"$f":"IFERROR(SUMIFS(Transfer_Tr[Qty],Transfer_Tr[Item Code],Report[Item Code]),\"\")","v":0},{"$f":"Report[[#This Row],[Opening Balance]]+Report[[#This Row],[Received]]-Report[[#This Row],[Issue]]-Report[[#This Row],[TransFer]]","v":0}]
[{"$f":"IF(B50=\"\",\"\",SUBTOTAL(3,B$10:B50))","v":""},null,null,{"$f":"IFERROR(VLOOKUP(Report[[#This Row],[Item Code]],Product[],2,FALSE),\"\")","v":""},{"$f":"IFERROR(VLOOKUP(Report[[#This Row],[Item Code]],Product[],3,FALSE),\"\")","v":""},{"$f":"SUMIFS(Count_Table[Opening Balance 1],Count_Table[Item Code],Report[[#This Row],[Item Code]])","v":0},{"$f":"IFERROR(SUMIFS(Received_Tr[Qty],Received_Tr[Item Code],Report[Item Code]),\"\")","v":0},{"$f":"IFERROR(SUMIFS(Issu_Tr[Qty],Issu_Tr[Item Code],Report[Item Code]),\"\")","v":0},{"$f":"IFERROR(SUMIFS(Transfer_Tr[Qty],Transfer_Tr[Item Code],Report[Item Code]),\"\")","v":0},{"$f":"Report[[#This Row],[Opening Balance]]+Report[[#This Row],[Received]]-Report[[#This Row],[Issue]]-Report[[#This Row],[TransFer]]","v":0}]
[{"$f":"IF(B51=\"\",\"\",SUBTOTAL(3,B$10:B51))","v":""},null,null,{"$f":"IFERROR(VLOOKUP(Report[[#This Row],[Item Code]],Product[],2,FALSE),\"\")","v":""},{"$f":"IFERROR(VLOOKUP(Report[[#This Row],[Item Code]],Product[],3,FALSE),\"\")","v":""},{"$f":"SUMIFS(Count_Table[Opening Balance 1],Count_Table[Item Code],Report[[#This Row],[Item Code]])","v":0},{"$f":"IFERROR(SUMIFS(Received_Tr[Qty],Received_Tr[Item Code],Report[Item Code]),\"\")","v":0},{"$f":"IFERROR(SUMIFS(Issu_Tr[Qty],Issu_Tr[Item Code],Report[Item Code]),\"\")","v":0},{"$f":"IFERROR(SUMIFS(Transfer_Tr[Qty],Transfer_Tr[Item Code],Report[Item Code]),\"\")","v":0},{"$f":"Report[[#This Row],[Opening Balance]]+Report[[#This Row],[Received]]-Report[[#This Row],[Issue]]-Report[[#This Row],[TransFer]]","v":0}]
[{"$f":"IF(B52=\"\",\"\",SUBTOTAL(3,B$10:B52))","v":""},null,null,{"$f":"IFERROR(VLOOKUP(Report[[#This Row],[Item Code]],Product[],2,FALSE),\"\")","v":""},{"$f":"IFERROR(VLOOKUP(Report[[#This Row],[Item Code]],Product[],3,FALSE),\"\")","v":""},{"$f":"SUMIFS(Count_Table[Opening Balance 1],Count_Table[Item Code],Report[[#This Row],[Item Code]])","v":0},{"$f":"IFERROR(SUMIFS(Received_Tr[Qty],Received_Tr[Item Code],Report[Item Code]),\"\")","v":0},{"$f":"IFERROR(SUMIFS(Issu_Tr[Qty],Issu_Tr[Item Code],Report[Item Code]),\"\")","v":0},{"$f":"IFERROR(SUMIFS(Transfer_Tr[Qty],Transfer_Tr[Item Code],Report[Item Code]),\"\")","v":0},{"$f":"Report[[#This Row],[Opening Balance]]+Report[[#This Row],[Received]]-Report[[#This Row],[Issue]]-Report[[#This Row],[TransFer]]","v":0}]
[{"$f":"IF(B53=\"\",\"\",SUBTOTAL(3,B$10:B53))","v":""},null,null,{"$f":"IFERROR(VLOOKUP(Report[[#This Row],[Item Code]],Product[],2,FALSE),\"\")","v":""},{"$f":"IFERROR(VLOOKUP(Report[[#This Row],[Item Code]],Product[],3,FALSE),\"\")","v":""},{"$f":"SUMIFS(Count_Table[Opening Balance 1],Count_Table[Item Code],Report[[#This Row],[Item Code]])","v":0},{"$f":"IFERROR(SUMIFS(Received_Tr[Qty],Received_Tr[Item Code],Report[Item Code]),\"\")","v":0},{"$f":"IFERROR(SUMIFS(Issu_Tr[Qty],Issu_Tr[Item Code],Report[Item Code]),\"\")","v":0},{"$f":"IFERROR(SUMIFS(Transfer_Tr[Qty],Transfer_Tr[Item Code],Report[Item Code]),\"\")","v":0},{"$f":"Report[[#This Row],[Opening Balance]]+Report[[#This Row],[Received]]-Report[[#This Row],[Issue]]-Report[[#This Row],[TransFer]]","v":0}]
[{"$f":"IF(B54=\"\",\"\",SUBTOTAL(3,B$10:B54))","v":""},null,null,{"$f":"IFERROR(VLOOKUP(Report[[#This Row],[Item Code]],Product[],2,FALSE),\"\")","v":""},{"$f":"IFERROR(VLOOKUP(Report[[#This Row],[Item Code]],Product[],3,FALSE),\"\")","v":""},{"$f":"SUMIFS(Count_Table[Opening Balance 1],Count_Table[Item Code],Report[[#This Row],[Item Code]])","v":0},{"$f":"IFERROR(SUMIFS(Received_Tr[Qty],Received_Tr[Item Code],Report[Item Code]),\"\")","v":0},{"$f":"IFERROR(SUMIFS(Issu_Tr[Qty],Issu_Tr[Item Code],Report[Item Code]),\"\")","v":0},{"$f":"IFERROR(SUMIFS(Transfer_Tr[Qty],Transfer_Tr[Item Code],Report[Item Code]),\"\")","v":0},{"$f":"Report[[#This Row],[Opening Balance]]+Report[[#This Row],[Received]]-Report[[#This Row],[Issue]]-Report[[#This Row],[TransFer]]","v":0}]
[{"$f":"IF(B55=\"\",\"\",SUBTOTAL(3,B$10:B55))","v":""},null,null,{"$f":"IFERROR(VLOOKUP(Report[[#This Row],[Item Code]],Product[],2,FALSE),\"\")","v":""},{"$f":"IFERROR(VLOOKUP(Report[[#This Row],[Item Code]],Product[],3,FALSE),\"\")","v":""},{"$f":"SUMIFS(Count_Table[Opening Balance 1],Count_Table[Item Code],Report[[#This Row],[Item Code]])","v":0},{"$f":"IFERROR(SUMIFS(Received_Tr[Qty],Received_Tr[Item Code],Report[Item Code]),\"\")","v":0},{"$f":"IFERROR(SUMIFS(Issu_Tr[Qty],Issu_Tr[Item Code],Report[Item Code]),\"\")","v":0},{"$f":"IFERROR(SUMIFS(Transfer_Tr[Qty],Transfer_Tr[Item Code],Report[Item Code]),\"\")","v":0},{"$f":"Report[[#This Row],[Opening Balance]]+Report[[#This Row],[Received]]-Report[[#This Row],[Issue]]-Report[[#This Row],[TransFer]]","v":0}]
[{"$f":"IF(B56=\"\",\"\",SUBTOTAL(3,B$10:B56))","v":""},null,null,{"$f":"IFERROR(VLOOKUP(Report[[#This Row],[Item Code]],Product[],2,FALSE),\"\")","v":""},{"$f":"IFERROR(VLOOKUP(Report[[#This Row],[Item Code]],Product[],3,FALSE),\"\")","v":""},{"$f":"SUMIFS(Count_Table[Opening Balance 1],Count_Table[Item Code],Report[[#This Row],[Item Code]])","v":0},{"$f":"IFERROR(SUMIFS(Received_Tr[Qty],Received_Tr[Item Code],Report[Item Code]),\"\")","v":0},{"$f":"IFERROR(SUMIFS(Issu_Tr[Qty],Issu_Tr[Item Code],Report[Item Code]),\"\")","v":0},{"$f":"IFERROR(SUMIFS(Transfer_Tr[Qty],Transfer_Tr[Item Code],Report[Item Code]),\"\")","v":0},{"$f":"Report[[#This Row],[Opening Balance]]+Report[[#This Row],[Received]]-Report[[#This Row],[Issue]]-Report[[#This Row],[TransFer]]","v":0}]
[{"$f":"IF(B57=\"\",\"\",SUBTOTAL(3,B$10:B57))","v":""},null,null,{"$f":"IFERROR(VLOOKUP(Report[[#This Row],[Item Code]],Product[],2,FALSE),\"\")","v":""},{"$f":"IFERROR(VLOOKUP(Report[[#This Row],[Item Code]],Product[],3,FALSE),\"\")","v":""},{"$f":"SUMIFS(Count_Table[Opening Balance 1],Count_Table[Item Code],Report[[#This Row],[Item Code]])","v":0},{"$f":"IFERROR(SUMIFS(Received_Tr[Qty],Received_Tr[Item Code],Report[Item Code]),\"\")","v":0},{"$f":"IFERROR(SUMIFS(Issu_Tr[Qty],Issu_Tr[Item Code],Report[Item Code]),\"\")","v":0},{"$f":"IFERROR(SUMIFS(Transfer_Tr[Qty],Transfer_Tr[Item Code],Report[Item Code]),\"\")","v":0},{"$f":"Report[[#This Row],[Opening Balance]]+Report[[#This Row],[Received]]-Report[[#This Row],[Issue]]-Report[[#This Row],[TransFer]]","v":0}]
[{"$f":"IF(B58=\"\",\"\",SUBTOTAL(3,B$10:B58))","v":""},null,null,{"$f":"IFERROR(VLOOKUP(Report[[#This Row],[Item Code]],Product[],2,FALSE),\"\")","v":""},{"$f":"IFERROR(VLOOKUP(Report[[#This Row],[Item Code]],Product[],3,FALSE),\"\")","v":""},{"$f":"SUMIFS(Count_Table[Opening Balance 1],Count_Table[Item Code],Report[[#This Row],[Item Code]])","v":0},{"$f":"IFERROR(SUMIFS(Received_Tr[Qty],Received_Tr[Item Code],Report[Item Code]),\"\")","v":0},{"$f":"IFERROR(SUMIFS(Issu_Tr[Qty],Issu_Tr[Item Code],Report[Item Code]),\"\")","v":0},{"$f":"IFERROR(SUMIFS(Transfer_Tr[Qty],Transfer_Tr[Item Code],Report[Item Code]),\"\")","v":0},{"$f":"Report[[#This Row],[Opening Balance]]+Report[[#This Row],[Received]]-Report[[#This Row],[Issue]]-Report[[#This Row],[TransFer]]","v":0}]
[{"$f":"IF(B59=\"\",\"\",SUBTOTAL(3,B$10:B59))","v":""},null,null,{"$f":"IFERROR(VLOOKUP(Report[[#This Row],[Item Code]],Product[],2,FALSE),\"\")","v":""},{"$f":"IFERROR(VLOOKUP(Report[[#This Row],[Item Code]],Product[],3,FALSE),\"\")","v":""},{"$f":"SUMIFS(Count_Table[Opening Balance 1],Count_Table[Item Code],Report[[#This Row],[Item Code]])","v":0},{"$f":"IFERROR(SUMIFS(Received_Tr[Qty],Received_Tr[Item Code],Report[Item Code]),\"\")","v":0},{"$f":"IFERROR(SUMIFS(Issu_Tr[Qty],Issu_Tr[Item Code],Report[Item Code]),\"\")","v":0},{"$f":"IFERROR(SUMIFS(Transfer_Tr[Qty],Transfer_Tr[Item Code],Report[Item Code]),\"\")","v":0},{"$f":"Report[[#This Row],[Opening Balance]]+Report[[#This Row],[Received]]-Report[[#This Row],[Issue]]-Report[[#This Row],[TransFer]]","v":0}]
[{"$f":"IF(B60=\"\",\"\",SUBTOTAL(3,B$10:B60))","v":""},null,null,{"$f":"IFERROR(VLOOKUP(Report[[#This Row],[Item Code]],Product[],2,FALSE),\"\")","v":""},{"$f":"IFERROR(VLOOKUP(Report[[#This Row],[Item Code]],Product[],3,FALSE),\"\")","v":""},{"$f":"SUMIFS(Count_Table[Opening Balance 1],Count_Table[Item Code],Report[[#This Row],[Item Code]])","v":0},{"$f":"IFERROR(SUMIFS(Received_Tr[Qty],Received_Tr[Item Code],Report[Item Code]),\"\")","v":0},{"$f":"IFERROR(SUMIFS(Issu_Tr[Qty],Issu_Tr[Item Code],Report[Item Code]),\"\")","v":0},{"$f":"IFERROR(SUMIFS(Transfer_Tr[Qty],Transfer_Tr[Item Code],Report[Item Code]),\"\")","v":0},{"$f":"Report[[#This Row],[Opening Balance]]+Report[[#This Row],[Received]]-Report[[#This Row],[Issue]]-Report[[#This Row],[TransFer]]","v":0}]
[{"$f":"IF(B61=\"\",\"\",SUBTOTAL(3,B$10:B61))","v":""},null,null,{"$f":"IFERROR(VLOOKUP(Report[[#This Row],[Item Code]],Product[],2,FALSE),\"\")","v":""},{"$f":"IFERROR(VLOOKUP(Report[[#This Row],[Item Code]],Product[],3,FALSE),\"\")","v":""},{"$f":"SUMIFS(Count_Table[Opening Balance 1],Count_Table[Item Code],Report[[#This Row],[Item Code]])","v":0},{"$f":"IFERROR(SUMIFS(Received_Tr[Qty],Received_Tr[Item Code],Report[Item Code]),\"\")","v":0},{"$f":"IFERROR(SUMIFS(Issu_Tr[Qty],Issu_Tr[Item Code],Report[Item Code]),\"\")","v":0},{"$f":"IFERROR(SUMIFS(Transfer_Tr[Qty],Transfer_Tr[Item Code],Report[Item Code]),\"\")","v":0},{"$f":"Report[[#This Row],[Opening Balance]]+Report[[#This Row],[Received]]-Report[[#This Row],[Issue]]-Report[[#This Row],[TransFer]]","v":0}]
[{"$f":"IF(B62=\"\",\"\",SUBTOTAL(3,B$10:B62))","v":""},null,null,{"$f":"IFERROR(VLOOKUP(Report[[#This Row],[Item Code]],Product[],2,FALSE),\"\")","v":""},{"$f":"IFERROR(VLOOKUP(Report[[#This Row],[Item Code]],Product[],3,FALSE),\"\")","v":""},{"$f":"SUMIFS(Count_Table[Opening Balance 1],Count_Table[Item Code],Report[[#This Row],[Item Code]])","v":0},{"$f":"IFERROR(SUMIFS(Received_Tr[Qty],Received_Tr[Item Code],Report[Item Code]),\"\")","v":0},{"$f":"IFERROR(SUMIFS(Issu_Tr[Qty],Issu_Tr[Item Code],Report[Item Code]),\"\")","v":0},{"$f":"IFERROR(SUMIFS(Transfer_Tr[Qty],Transfer_Tr[Item Code],Report[Item Code]),\"\")","v":0},{"$f":"Report[[#This Row],[Opening Balance]]+Report[[#This Row],[Received]]-Report[[#This Row],[Issue]]-Report[[#This Row],[TransFer]]","v":0}]
[{"$f":"IF(B63=\"\",\"\",SUBTOTAL(3,B$10:B63))","v":""},null,null,{"$f":"IFERROR(VLOOKUP(Report[[#This Row],[Item Code]],Product[],2,FALSE),\"\")","v":""},{"$f":"IFERROR(VLOOKUP(Report[[#This Row],[Item Code]],Product[],3,FALSE),\"\")","v":""},{"$f":"SUMIFS(Count_Table[Opening Balance 1],Count_Table[Item Code],Report[[#This Row],[Item Code]])","v":0},{"$f":"IFERROR(SUMIFS(Received_Tr[Qty],Received_Tr[Item Code],Report[Item Code]),\"\")","v":0},{"$f":"IFERROR(SUMIFS(Issu_Tr[Qty],Issu_Tr[Item Code],Report[Item Code]),\"\")","v":0},{"$f":"IFERROR(SUMIFS(Transfer_Tr[Qty],Transfer_Tr[Item Code],Report[Item Code]),\"\")","v":0},{"$f":"Report[[#This Row],[Opening Balance]]+Report[[#This Row],[Received]]-Report[[#This Row],[Issue]]-Report[[#This Row],[TransFer]]","v":0}]
[{"$f":"IF(B64=\"\",\"\",SUBTOTAL(3,B$10:B64))","v":""},null,null,{"$f":"IFERROR(VLOOKUP(Report[[#This Row],[Item Code]],Product[],2,FALSE),\"\")","v":""},{"$f":"IFERROR(VLOOKUP(Report[[#This Row],[Item Code]],Product[],3,FALSE),\"\")","v":""},{"$f":"SUMIFS(Count_Table[Opening Balance 1],Count_Table[Item Code],Report[[#This Row],[Item Code]])","v":0},{"$f":"IFERROR(SUMIFS(Received_Tr[Qty],Received_Tr[Item Code],Report[Item Code]),\"\")","v":0},{"$f":"IFERROR(SUMIFS(Issu_Tr[Qty],Issu_Tr[Item Code],Report[Item Code]),\"\")","v":0},{"$f":"IFERROR(SUMIFS(Transfer_Tr[Qty],Transfer_Tr[Item Code],Report[Item Code]),\"\")","v":0},{"$f":"Report[[#This Row],[Opening Balance]]+Report[[#This Row],[Received]]-Report[[#This Row],[Issue]]-Report[[#This Row],[TransFer]]","v":0}]
[{"$f":"IF(B65=\"\",\"\",SUBTOTAL(3,B$10:B65))","v":""},null,null,{"$f":"IFERROR(VLOOKUP(Report[[#This Row],[Item Code]],Product[],2,FALSE),\"\")","v":""},{"$f":"IFERROR(VLOOKUP(Report[[#This Row],[Item Code]],Product[],3,FALSE),\"\")","v":""},{"$f":"SUMIFS(Count_Table[Opening Balance 1],Count_Table[Item Code],Report[[#This Row],[Item Code]])","v":0},{"$f":"IFERROR(SUMIFS(Received_Tr[Qty],Received_Tr[Item Code],Report[Item Code]),\"\")","v":0},{"$f":"IFERROR(SUMIFS(Issu_Tr[Qty],Issu_Tr[Item Code],Report[Item Code]),\"\")","v":0},{"$f":"IFERROR(SUMIFS(Transfer_Tr[Qty],Transfer_Tr[Item Code],Report[Item Code]),\"\")","v":0},{"$f":"Report[[#This Row],[Opening Balance]]+Report[[#This Row],[Received]]-Report[[#This Row],[Issue]]-Report[[#This Row],[TransFer]]","v":0}]
[{"$f":"IF(B66=\"\",\"\",SUBTOTAL(3,B$10:B66))","v":""},null,null,{"$f":"IFERROR(VLOOKUP(Report[[#This Row],[Item Code]],Product[],2,FALSE),\"\")","v":""},{"$f":"IFERROR(VLOOKUP(Report[[#This Row],[Item Code]],Product[],3,FALSE),\"\")","v":""},{"$f":"SUMIFS(Count_Table[Opening Balance 1],Count_Table[Item Code],Report[[#This Row],[Item Code]])","v":0},{"$f":"IFERROR(SUMIFS(Received_Tr[Qty],Received_Tr[Item Code],Report[Item Code]),\"\")","v":0},{"$f":"IFERROR(SUMIFS(Issu_Tr[Qty],Issu_Tr[Item Code],Report[Item Code]),\"\")","v":0},{"$f":"IFERROR(SUMIFS(Transfer_Tr[Qty],Transfer_Tr[Item Code],Report[Item Code]),\"\")","v":0},{"$f":"Report[[#This Row],[Opening Balance]]+Report[[#This Row],[Received]]-Report[[#This Row],[Issue]]-Report[[#This Row],[TransFer]]","v":0}]
[{"$f":"IF(B67=\"\",\"\",SUBTOTAL(3,B$10:B67))","v":""},null,null,{"$f":"IFERROR(VLOOKUP(Report[[#This Row],[Item Code]],Product[],2,FALSE),\"\")","v":""},{"$f":"IFERROR(VLOOKUP(Report[[#This Row],[Item Code]],Product[],3,FALSE),\"\")","v":""},{"$f":"SUMIFS(Count_Table[Opening Balance 1],Count_Table[Item Code],Report[[#This Row],[Item Code]])","v":0},{"$f":"IFERROR(SUMIFS(Received_Tr[Qty],Received_Tr[Item Code],Report[Item Code]),\"\")","v":0},{"$f":"IFERROR(SUMIFS(Issu_Tr[Qty],Issu_Tr[Item Code],Report[Item Code]),\"\")","v":0},{"$f":"IFERROR(SUMIFS(Transfer_Tr[Qty],Transfer_Tr[Item Code],Report[Item Code]),\"\")","v":0},{"$f":"Report[[#This Row],[Opening Balance]]+Report[[#This Row],[Received]]-Report[[#This Row],[Issue]]-Report[[#This Row],[TransFer]]","v":0}]
[{"$f":"IF(B68=\"\",\"\",SUBTOTAL(3,B$10:B68))","v":""},null,null,{"$f":"IFERROR(VLOOKUP(Report[[#This Row],[Item Code]],Product[],2,FALSE),\"\")","v":""},{"$f":"IFERROR(VLOOKUP(Report[[#This Row],[Item Code]],Product[],3,FALSE),\"\")","v":""},{"$f":"SUMIFS(Count_Table[Opening Balance 1],Count_Table[Item Code],Report[[#This Row],[Item Code]])","v":0},{"$f":"IFERROR(SUMIFS(Received_Tr[Qty],Received_Tr[Item Code],Report[Item Code]),\"\")","v":0},{"$f":"IFERROR(SUMIFS(Issu_Tr[Qty],Issu_Tr[Item Code],Report[Item Code]),\"\")","v":0},{"$f":"IFERROR(SUMIFS(Transfer_Tr[Qty],Transfer_Tr[Item Code],Report[Item Code]),\"\")","v":0},{"$f":"Report[[#This Row],[Opening Balance]]+Report[[#This Row],[Received]]-Report[[#This Row],[Issue]]-Report[[#This Row],[TransFer]]","v":0}]
[{"$f":"IF(B69=\"\",\"\",SUBTOTAL(3,B$10:B69))","v":""},null,null,{"$f":"IFERROR(VLOOKUP(Report[[#This Row],[Item Code]],Product[],2,FALSE),\"\")","v":""},{"$f":"IFERROR(VLOOKUP(Report[[#This Row],[Item Code]],Product[],3,FALSE),\"\")","v":""},{"$f":"SUMIFS(Count_Table[Opening Balance 1],Count_Table[Item Code],Report[[#This Row],[Item Code]])","v":0},{"$f":"IFERROR(SUMIFS(Received_Tr[Qty],Received_Tr[Item Code],Report[Item Code]),\"\")","v":0},{"$f":"IFERROR(SUMIFS(Issu_Tr[Qty],Issu_Tr[Item Code],Report[Item Code]),\"\")","v":0},{"$f":"IFERROR(SUMIFS(Transfer_Tr[Qty],Transfer_Tr[Item Code],Report[Item Code]),\"\")","v":0},{"$f":"Report[[#This Row],[Opening Balance]]+Report[[#This Row],[Received]]-Report[[#This Row],[Issue]]-Report[[#This Row],[TransFer]]","v":0}]
[{"$f":"IF(B70=\"\",\"\",SUBTOTAL(3,B$10:B70))","v":""},null,null,{"$f":"IFERROR(VLOOKUP(Report[[#This Row],[Item Code]],Product[],2,FALSE),\"\")","v":""},{"$f":"IFERROR(VLOOKUP(Report[[#This Row],[Item Code]],Product[],3,FALSE),\"\")","v":""},{"$f":"SUMIFS(Count_Table[Opening Balance 1],Count_Table[Item Code],Report[[#This Row],[Item Code]])","v":0},{"$f":"IFERROR(SUMIFS(Received_Tr[Qty],Received_Tr[Item Code],Report[Item Code]),\"\")","v":0},{"$f":"IFERROR(SUMIFS(Issu_Tr[Qty],Issu_Tr[Item Code],Report[Item Code]),\"\")","v":0},{"$f":"IFERROR(SUMIFS(Transfer_Tr[Qty],Transfer_Tr[Item Code],Report[Item Code]),\"\")","v":0},{"$f":"Report[[#This Row],[Opening Balance]]+Report[[#This Row],[Received]]-Report[[#This Row],[Issue]]-Report[[#This Row],[TransFer]]","v":0}]
[{"$f":"IF(B71=\"\",\"\",SUBTOTAL(3,B$10:B71))","v":""},null,null,{"$f":"IFERROR(VLOOKUP(Report[[#This Row],[Item Code]],Product[],2,FALSE),\"\")","v":""},{"$f":"IFERROR(VLOOKUP(Report[[#This Row],[Item Code]],Product[],3,FALSE),\"\")","v":""},{"$f":"SUMIFS(Count_Table[Opening Balance 1],Count_Table[Item Code],Report[[#This Row],[Item Code]])","v":0},{"$f":"IFERROR(SUMIFS(Received_Tr[Qty],Received_Tr[Item Code],Report[Item Code]),\"\")","v":0},{"$f":"IFERROR(SUMIFS(Issu_Tr[Qty],Issu_Tr[Item Code],Report[Item Code]),\"\")","v":0},{"$f":"IFERROR(SUMIFS(Transfer_Tr[Qty],Transfer_Tr[Item Code],Report[Item Code]),\"\")","v":0},{"$f":"Report[[#This Row],[Opening Balance]]+Report[[#This Row],[Received]]-Report[[#This Row],[Issue]]-Report[[#This Row],[TransFer]]","v":0}]
[{"$f":"IF(B72=\"\",\"\",SUBTOTAL(3,B$10:B72))","v":""},null,null,{"$f":"IFERROR(VLOOKUP(Report[[#This Row],[Item Code]],Product[],2,FALSE),\"\")","v":""},{"$f":"IFERROR(VLOOKUP(Report[[#This Row],[Item Code]],Product[],3,FALSE),\"\")","v":""},{"$f":"SUMIFS(Count_Table[Opening Balance 1],Count_Table[Item Code],Report[[#This Row],[Item Code]])","v":0},{"$f":"IFERROR(SUMIFS(Received_Tr[Qty],Received_Tr[Item Code],Report[Item Code]),\"\")","v":0},{"$f":"IFERROR(SUMIFS(Issu_Tr[Qty],Issu_Tr[Item Code],Report[Item Code]),\"\")","v":0},{"$f":"IFERROR(SUMIFS(Transfer_Tr[Qty],Transfer_Tr[Item Code],Report[Item Code]),\"\")","v":0},{"$f":"Report[[#This Row],[Opening Balance]]+Report[[#This Row],[Received]]-Report[[#This Row],[Issue]]-Report[[#This Row],[TransFer]]","v":0}]
[{"$f":"IF(B73=\"\",\"\",SUBTOTAL(3,B$10:B73))","v":""},null,null,{"$f":"IFERROR(VLOOKUP(Report[[#This Row],[Item Code]],Product[],2,FALSE),\"\")","v":""},{"$f":"IFERROR(VLOOKUP(Report[[#This Row],[Item Code]],Product[],3,FALSE),\"\")","v":""},{"$f":"SUMIFS(Count_Table[Opening Balance 1],Count_Table[Item Code],Report[[#This Row],[Item Code]])","v":0},{"$f":"IFERROR(SUMIFS(Received_Tr[Qty],Received_Tr[Item Code],Report[Item Code]),\"\")","v":0},{"$f":"IFERROR(SUMIFS(Issu_Tr[Qty],Issu_Tr[Item Code],Report[Item Code]),\"\")","v":0},{"$f":"IFERROR(SUMIFS(Transfer_Tr[Qty],Transfer_Tr[Item Code],Report[Item Code]),\"\")","v":0},{"$f":"Report[[#This Row],[Opening Balance]]+Report[[#This Row],[Received]]-Report[[#This Row],[Issue]]-Report[[#This Row],[TransFer]]","v":0}]
[{"$f":"IF(B74=\"\",\"\",SUBTOTAL(3,B$10:B74))","v":""},null,null,{"$f":"IFERROR(VLOOKUP(Report[[#This Row],[Item Code]],Product[],2,FALSE),\"\")","v":""},{"$f":"IFERROR(VLOOKUP(Report[[#This Row],[Item Code]],Product[],3,FALSE),\"\")","v":""},{"$f":"SUMIFS(Count_Table[Opening Balance 1],Count_Table[Item Code],Report[[#This Row],[Item Code]])","v":0},{"$f":"IFERROR(SUMIFS(Received_Tr[Qty],Received_Tr[Item Code],Report[Item Code]),\"\")","v":0},{"$f":"IFERROR(SUMIFS(Issu_Tr[Qty],Issu_Tr[Item Code],Report[Item Code]),\"\")","v":0},{"$f":"IFERROR(SUMIFS(Transfer_Tr[Qty],Transfer_Tr[Item Code],Report[Item Code]),\"\")","v":0},{"$f":"Report[[#This Row],[Opening Balance]]+Report[[#This Row],[Received]]-Report[[#This Row],[Issue]]-Report[[#This Row],[TransFer]]","v":0}]
[{"$f":"IF(B75=\"\",\"\",SUBTOTAL(3,B$10:B75))","v":""},null,null,{"$f":"IFERROR(VLOOKUP(Report[[#This Row],[Item Code]],Product[],2,FALSE),\"\")","v":""},{"$f":"IFERROR(VLOOKUP(Report[[#This Row],[Item Code]],Product[],3,FALSE),\"\")","v":""},{"$f":"SUMIFS(Count_Table[Opening Balance 1],Count_Table[Item Code],Report[[#This Row],[Item Code]])","v":0},{"$f":"IFERROR(SUMIFS(Received_Tr[Qty],Received_Tr[Item Code],Report[Item Code]),\"\")","v":0},{"$f":"IFERROR(SUMIFS(Issu_Tr[Qty],Issu_Tr[Item Code],Report[Item Code]),\"\")","v":0},{"$f":"IFERROR(SUMIFS(Transfer_Tr[Qty],Transfer_Tr[Item Code],Report[Item Code]),\"\")","v":0},{"$f":"Report[[#This Row],[Opening Balance]]+Report[[#This Row],[Received]]-Report[[#This Row],[Issue]]-Report[[#This Row],[TransFer]]","v":0}]
[{"$f":"IF(B76=\"\",\"\",SUBTOTAL(3,B$10:B76))","v":""},null,null,{"$f":"IFERROR(VLOOKUP(Report[[#This Row],[Item Code]],Product[],2,FALSE),\"\")","v":""},{"$f":"IFERROR(VLOOKUP(Report[[#This Row],[Item Code]],Product[],3,FALSE),\"\")","v":""},{"$f":"SUMIFS(Count_Table[Opening Balance 1],Count_Table[Item Code],Report[[#This Row],[Item Code]])","v":0},{"$f":"IFERROR(SUMIFS(Received_Tr[Qty],Received_Tr[Item Code],Report[Item Code]),\"\")","v":0},{"$f":"IFERROR(SUMIFS(Issu_Tr[Qty],Issu_Tr[Item Code],Report[Item Code]),\"\")","v":0},{"$f":"IFERROR(SUMIFS(Transfer_Tr[Qty],Transfer_Tr[Item Code],Report[Item Code]),\"\")","v":0},{"$f":"Report[[#This Row],[Opening Balance]]+Report[[#This Row],[Received]]-Report[[#This Row],[Issue]]-Report[[#This Row],[TransFer]]","v":0}]
[{"$f":"IF(B77=\"\",\"\",SUBTOTAL(3,B$10:B77))","v":""},null,null,{"$f":"IFERROR(VLOOKUP(Report[[#This Row],[Item Code]],Product[],2,FALSE),\"\")","v":""},{"$f":"IFERROR(VLOOKUP(Report[[#This Row],[Item Code]],Product[],3,FALSE),\"\")","v":""},{"$f":"SUMIFS(Count_Table[Opening Balance 1],Count_Table[Item Code],Report[[#This Row],[Item Code]])","v":0},{"$f":"IFERROR(SUMIFS(Received_Tr[Qty],Received_Tr[Item Code],Report[Item Code]),\"\")","v":0},{"$f":"IFERROR(SUMIFS(Issu_Tr[Qty],Issu_Tr[Item Code],Report[Item Code]),\"\")","v":0},{"$f":"IFERROR(SUMIFS(Transfer_Tr[Qty],Transfer_Tr[Item Code],Report[Item Code]),\"\")","v":0},{"$f":"Report[[#This Row],[Opening Balance]]+Report[[#This Row],[Received]]-Report[[#This Row],[Issue]]-Report[[#This Row],[TransFer]]","v":0}]
[{"$f":"IF(B78=\"\",\"\",SUBTOTAL(3,B$10:B78))","v":""},null,null,{"$f":"IFERROR(VLOOKUP(Report[[#This Row],[Item Code]],Product[],2,FALSE),\"\")","v":""},{"$f":"IFERROR(VLOOKUP(Report[[#This Row],[Item Code]],Product[],3,FALSE),\"\")","v":""},{"$f":"SUMIFS(Count_Table[Opening Balance 1],Count_Table[Item Code],Report[[#This Row],[Item Code]])","v":0},{"$f":"IFERROR(SUMIFS(Received_Tr[Qty],Received_Tr[Item Code],Report[Item Code]),\"\")","v":0},{"$f":"IFERROR(SUMIFS(Issu_Tr[Qty],Issu_Tr[Item Code],Report[Item Code]),\"\")","v":0},{"$f":"IFERROR(SUMIFS(Transfer_Tr[Qty],Transfer_Tr[Item Code],Report[Item Code]),\"\")","v":0},{"$f":"Report[[#This Row],[Opening Balance]]+Report[[#This Row],[Received]]-Report[[#This Row],[Issue]]-Report[[#This Row],[TransFer]]","v":0}]
[{"$f":"IF(B79=\"\",\"\",SUBTOTAL(3,B$10:B79))","v":""},null,null,{"$f":"IFERROR(VLOOKUP(Report[[#This Row],[Item Code]],Product[],2,FALSE),\"\")","v":""},{"$f":"IFERROR(VLOOKUP(Report[[#This Row],[Item Code]],Product[],3,FALSE),\"\")","v":""},{"$f":"SUMIFS(Count_Table[Opening Balance 1],Count_Table[Item Code],Report[[#This Row],[Item Code]])","v":0},{"$f":"IFERROR(SUMIFS(Received_Tr[Qty],Received_Tr[Item Code],Report[Item Code]),\"\")","v":0},{"$f":"IFERROR(SUMIFS(Issu_Tr[Qty],Issu_Tr[Item Code],Report[Item Code]),\"\")","v":0},{"$f":"IFERROR(SUMIFS(Transfer_Tr[Qty],Transfer_Tr[Item Code],Report[Item Code]),\"\")","v":0},{"$f":"Report[[#This Row],[Opening Balance]]+Report[[#This Row],[Received]]-Report[[#This Row],[Issue]]-Report[[#This Row],[TransFer]]","v":0}]
[{"$f":"IF(B80=\"\",\"\",SUBTOTAL(3,B$10:B80))","v":""},null,null,{"$f":"IFERROR(VLOOKUP(Report[[#This Row],[Item Code]],Product[],2,FALSE),\"\")","v":""},{"$f":"IFERROR(VLOOKUP(Report[[#This Row],[Item Code]],Product[],3,FALSE),\"\")","v":""},{"$f":"SUMIFS(Count_Table[Opening Balance 1],Count_Table[Item Code],Report[[#This Row],[Item Code]])","v":0},{"$f":"IFERROR(SUMIFS(Received_Tr[Qty],Received_Tr[Item Code],Report[Item Code]),\"\")","v":0},{"$f":"IFERROR(SUMIFS(Issu_Tr[Qty],Issu_Tr[Item Code],Report[Item Code]),\"\")","v":0},{"$f":"IFERROR(SUMIFS(Transfer_Tr[Qty],Transfer_Tr[Item Code],Report[Item Code]),\"\")","v":0},{"$f":"Report[[#This Row],[Opening Balance]]+Report[[#This Row],[Received]]-Report[[#This Row],[Issue]]-Report[[#This Row],[TransFer]]","v":0}]
[{"$f":"IF(B81=\"\",\"\",SUBTOTAL(3,B$10:B81))","v":""},null,null,{"$f":"IFERROR(VLOOKUP(Report[[#This Row],[Item Code]],Product[],2,FALSE),\"\")","v":""},{"$f":"IFERROR(VLOOKUP(Report[[#This Row],[Item Code]],Product[],3,FALSE),\"\")","v":""},{"$f":"SUMIFS(Count_Table[Opening Balance 1],Count_Table[Item Code],Report[[#This Row],[Item Code]])","v":0},{"$f":"IFERROR(SUMIFS(Received_Tr[Qty],Received_Tr[Item Code],Report[Item Code]),\"\")","v":0},{"$f":"IFERROR(SUMIFS(Issu_Tr[Qty],Issu_Tr[Item Code],Report[Item Code]),\"\")","v":0},{"$f":"IFERROR(SUMIFS(Transfer_Tr[Qty],Transfer_Tr[Item Code],Report[Item Code]),\"\")","v":0},{"$f":"Report[[#This Row],[Opening Balance]]+Report[[#This Row],[Received]]-Report[[#This Row],[Issue]]-Report[[#This Row],[TransFer]]","v":0}]
[{"$f":"IF(B82=\"\",\"\",SUBTOTAL(3,B$10:B82))","v":""},null,null,{"$f":"IFERROR(VLOOKUP(Report[[#This Row],[Item Code]],Product[],2,FALSE),\"\")","v":""},{"$f":"IFERROR(VLOOKUP(Report[[#This Row],[Item Code]],Product[],3,FALSE),\"\")","v":""},{"$f":"SUMIFS(Count_Table[Opening Balance 1],Count_Table[Item Code],Report[[#This Row],[Item Code]])","v":0},{"$f":"IFERROR(SUMIFS(Received_Tr[Qty],Received_Tr[Item Code],Report[Item Code]),\"\")","v":0},{"$f":"IFERROR(SUMIFS(Issu_Tr[Qty],Issu_Tr[Item Code],Report[Item Code]),\"\")","v":0},{"$f":"IFERROR(SUMIFS(Transfer_Tr[Qty],Transfer_Tr[Item Code],Report[Item Code]),\"\")","v":0},{"$f":"Report[[#This Row],[Opening Balance]]+Report[[#This Row],[Received]]-Report[[#This Row],[Issue]]-Report[[#This Row],[TransFer]]","v":0}]
[{"$f":"IF(B83=\"\",\"\",SUBTOTAL(3,B$10:B83))","v":""},null,null,{"$f":"IFERROR(VLOOKUP(Report[[#This Row],[Item Code]],Product[],2,FALSE),\"\")","v":""},{"$f":"IFERROR(VLOOKUP(Report[[#This Row],[Item Code]],Product[],3,FALSE),\"\")","v":""},{"$f":"SUMIFS(Count_Table[Opening Balance 1],Count_Table[Item Code],Report[[#This Row],[Item Code]])","v":0},{"$f":"IFERROR(SUMIFS(Received_Tr[Qty],Received_Tr[Item Code],Report[Item Code]),\"\")","v":0},{"$f":"IFERROR(SUMIFS(Issu_Tr[Qty],Issu_Tr[Item Code],Report[Item Code]),\"\")","v":0},{"$f":"IFERROR(SUMIFS(Transfer_Tr[Qty],Transfer_Tr[Item Code],Report[Item Code]),\"\")","v":0},{"$f":"Report[[#This Row],[Opening Balance]]+Report[[#This Row],[Received]]-Report[[#This Row],[Issue]]-Report[[#This Row],[TransFer]]","v":0}]
[{"$f":"IF(B84=\"\",\"\",SUBTOTAL(3,B$10:B84))","v":""},null,null,{"$f":"IFERROR(VLOOKUP(Report[[#This Row],[Item Code]],Product[],2,FALSE),\"\")","v":""},{"$f":"IFERROR(VLOOKUP(Report[[#This Row],[Item Code]],Product[],3,FALSE),\"\")","v":""},{"$f":"SUMIFS(Count_Table[Opening Balance 1],Count_Table[Item Code],Report[[#This Row],[Item Code]])","v":0},{"$f":"IFERROR(SUMIFS(Received_Tr[Qty],Received_Tr[Item Code],Report[Item Code]),\"\")","v":0},{"$f":"IFERROR(SUMIFS(Issu_Tr[Qty],Issu_Tr[Item Code],Report[Item Code]),\"\")","v":0},{"$f":"IFERROR(SUMIFS(Transfer_Tr[Qty],Transfer_Tr[Item Code],Report[Item Code]),\"\")","v":0},{"$f":"Report[[#This Row],[Opening Balance]]+Report[[#This Row],[Received]]-Report[[#This Row],[Issue]]-Report[[#This Row],[TransFer]]","v":0}]
[{"$f":"IF(B85=\"\",\"\",SUBTOTAL(3,B$10:B85))","v":""},null,null,{"$f":"IFERROR(VLOOKUP(Report[[#This Row],[Item Code]],Product[],2,FALSE),\"\")","v":""},{"$f":"IFERROR(VLOOKUP(Report[[#This Row],[Item Code]],Product[],3,FALSE),\"\")","v":""},{"$f":"SUMIFS(Count_Table[Opening Balance 1],Count_Table[Item Code],Report[[#This Row],[Item Code]])","v":0},{"$f":"IFERROR(SUMIFS(Received_Tr[Qty],Received_Tr[Item Code],Report[Item Code]),\"\")","v":0},{"$f":"IFERROR(SUMIFS(Issu_Tr[Qty],Issu_Tr[Item Code],Report[Item Code]),\"\")","v":0},{"$f":"IFERROR(SUMIFS(Transfer_Tr[Qty],Transfer_Tr[Item Code],Report[Item Code]),\"\")","v":0},{"$f":"Report[[#This Row],[Opening Balance]]+Report[[#This Row],[Received]]-Report[[#This Row],[Issue]]-Report[[#This Row],[TransFer]]","v":0}]
[{"$f":"IF(B86=\"\",\"\",SUBTOTAL(3,B$10:B86))","v":""},null,null,{"$f":"IFERROR(VLOOKUP(Report[[#This Row],[Item Code]],Product[],2,FALSE),\"\")","v":""},{"$f":"IFERROR(VLOOKUP(Report[[#This Row],[Item Code]],Product[],3,FALSE),\"\")","v":""},{"$f":"SUMIFS(Count_Table[Opening Balance 1],Count_Table[Item Code],Report[[#This Row],[Item Code]])","v":0},{"$f":"IFERROR(SUMIFS(Received_Tr[Qty],Received_Tr[Item Code],Report[Item Code]),\"\")","v":0},{"$f":"IFERROR(SUMIFS(Issu_Tr[Qty],Issu_Tr[Item Code],Report[Item Code]),\"\")","v":0},{"$f":"IFERROR(SUMIFS(Transfer_Tr[Qty],Transfer_Tr[Item Code],Report[Item Code]),\"\")","v":0},{"$f":"Report[[#This Row],[Opening Balance]]+Report[[#This Row],[Received]]-Report[[#This Row],[Issue]]-Report[[#This Row],[TransFer]]","v":0}]
[{"$f":"IF(B87=\"\",\"\",SUBTOTAL(3,B$10:B87))","v":""},null,null,{"$f":"IFERROR(VLOOKUP(Report[[#This Row],[Item Code]],Product[],2,FALSE),\"\")","v":""},{"$f":"IFERROR(VLOOKUP(Report[[#This Row],[Item Code]],Product[],3,FALSE),\"\")","v":""},{"$f":"SUMIFS(Count_Table[Opening Balance 1],Count_Table[Item Code],Report[[#This Row],[Item Code]])","v":0},{"$f":"IFERROR(SUMIFS(Received_Tr[Qty],Received_Tr[Item Code],Report[Item Code]),\"\")","v":0},{"$f":"IFERROR(SUMIFS(Issu_Tr[Qty],Issu_Tr[Item Code],Report[Item Code]),\"\")","v":0},{"$f":"IFERROR(SUMIFS(Transfer_Tr[Qty],Transfer_Tr[Item Code],Report[Item Code]),\"\")","v":0},{"$f":"Report[[#This Row],[Opening Balance]]+Report[[#This Row],[Received]]-Report[[#This Row],[Issue]]-Report[[#This Row],[TransFer]]","v":0}]
[{"$f":"IF(B88=\"\",\"\",SUBTOTAL(3,B$10:B88))","v":""},null,null,{"$f":"IFERROR(VLOOKUP(Report[[#This Row],[Item Code]],Product[],2,FALSE),\"\")","v":""},{"$f":"IFERROR(VLOOKUP(Report[[#This Row],[Item Code]],Product[],3,FALSE),\"\")","v":""},{"$f":"SUMIFS(Count_Table[Opening Balance 1],Count_Table[Item Code],Report[[#This Row],[Item Code]])","v":0},{"$f":"IFERROR(SUMIFS(Received_Tr[Qty],Received_Tr[Item Code],Report[Item Code]),\"\")","v":0},{"$f":"IFERROR(SUMIFS(Issu_Tr[Qty],Issu_Tr[Item Code],Report[Item Code]),\"\")","v":0},{"$f":"IFERROR(SUMIFS(Transfer_Tr[Qty],Transfer_Tr[Item Code],Report[Item Code]),\"\")","v":0},{"$f":"Report[[#This Row],[Opening Balance]]+Report[[#This Row],[Received]]-Report[[#This Row],[Issue]]-Report[[#This Row],[TransFer]]","v":0}]
[{"$f":"IF(B89=\"\",\"\",SUBTOTAL(3,B$10:B89))","v":""},null,null,{"$f":"IFERROR(VLOOKUP(Report[[#This Row],[Item Code]],Product[],2,FALSE),\"\")","v":""},{"$f":"IFERROR(VLOOKUP(Report[[#This Row],[Item Code]],Product[],3,FALSE),\"\")","v":""},{"$f":"SUMIFS(Count_Table[Opening Balance 1],Count_Table[Item Code],Report[[#This Row],[Item Code]])","v":0},{"$f":"IFERROR(SUMIFS(Received_Tr[Qty],Received_Tr[Item Code],Report[Item Code]),\"\")","v":0},{"$f":"IFERROR(SUMIFS(Issu_Tr[Qty],Issu_Tr[Item Code],Report[Item Code]),\"\")","v":0},{"$f":"IFERROR(SUMIFS(Transfer_Tr[Qty],Transfer_Tr[Item Code],Report[Item Code]),\"\")","v":0},{"$f":"Report[[#This Row],[Opening Balance]]+Report[[#This Row],[Received]]-Report[[#This Row],[Issue]]-Report[[#This Row],[TransFer]]","v":0}]
[{"$f":"IF(B90=\"\",\"\",SUBTOTAL(3,B$10:B90))","v":""},null,null,{"$f":"IFERROR(VLOOKUP(Report[[#This Row],[Item Code]],Product[],2,FALSE),\"\")","v":""},{"$f":"IFERROR(VLOOKUP(Report[[#This Row],[Item Code]],Product[],3,FALSE),\"\")","v":""},{"$f":"SUMIFS(Count_Table[Opening Balance 1],Count_Table[Item Code],Report[[#This Row],[Item Code]])","v":0},{"$f":"IFERROR(SUMIFS(Received_Tr[Qty],Received_Tr[Item Code],Report[Item Code]),\"\")","v":0},{"$f":"IFERROR(SUMIFS(Issu_Tr[Qty],Issu_Tr[Item Code],Report[Item Code]),\"\")","v":0},{"$f":"IFERROR(SUMIFS(Transfer_Tr[Qty],Transfer_Tr[Item Code],Report[Item Code]),\"\")","v":0},{"$f":"Report[[#This Row],[Opening Balance]]+Report[[#This Row],[Received]]-Report[[#This Row],[Issue]]-Report[[#This Row],[TransFer]]","v":0}]
[{"$f":"IF(B91=\"\",\"\",SUBTOTAL(3,B$10:B91))","v":""},null,null,{"$f":"IFERROR(VLOOKUP(Report[[#This Row],[Item Code]],Product[],2,FALSE),\"\")","v":""},{"$f":"IFERROR(VLOOKUP(Report[[#This Row],[Item Code]],Product[],3,FALSE),\"\")","v":""},{"$f":"SUMIFS(Count_Table[Opening Balance 1],Count_Table[Item Code],Report[[#This Row],[Item Code]])","v":0},{"$f":"IFERROR(SUMIFS(Received_Tr[Qty],Received_Tr[Item Code],Report[Item Code]),\"\")","v":0},{"$f":"IFERROR(SUMIFS(Issu_Tr[Qty],Issu_Tr[Item Code],Report[Item Code]),\"\")","v":0},{"$f":"IFERROR(SUMIFS(Transfer_Tr[Qty],Transfer_Tr[Item Code],Report[Item Code]),\"\")","v":0},{"$f":"Report[[#This Row],[Opening Balance]]+Report[[#This Row],[Received]]-Report[[#This Row],[Issue]]-Report[[#This Row],[TransFer]]","v":0}]
[{"$f":"IF(B92=\"\",\"\",SUBTOTAL(3,B$10:B92))","v":""},null,null,{"$f":"IFERROR(VLOOKUP(Report[[#This Row],[Item Code]],Product[],2,FALSE),\"\")","v":""},{"$f":"IFERROR(VLOOKUP(Report[[#This Row],[Item Code]],Product[],3,FALSE),\"\")","v":""},{"$f":"SUMIFS(Count_Table[Opening Balance 1],Count_Table[Item Code],Report[[#This Row],[Item Code]])","v":0},{"$f":"IFERROR(SUMIFS(Received_Tr[Qty],Received_Tr[Item Code],Report[Item Code]),\"\")","v":0},{"$f":"IFERROR(SUMIFS(Issu_Tr[Qty],Issu_Tr[Item Code],Report[Item Code]),\"\")","v":0},{"$f":"IFERROR(SUMIFS(Transfer_Tr[Qty],Transfer_Tr[Item Code],Report[Item Code]),\"\")","v":0},{"$f":"Report[[#This Row],[Opening Balance]]+Report[[#This Row],[Received]]-Report[[#This Row],[Issue]]-Report[[#This Row],[TransFer]]","v":0}]
[{"$f":"IF(B93=\"\",\"\",SUBTOTAL(3,B$10:B93))","v":""},null,null,{"$f":"IFERROR(VLOOKUP(Report[[#This Row],[Item Code]],Product[],2,FALSE),\"\")","v":""},{"$f":"IFERROR(VLOOKUP(Report[[#This Row],[Item Code]],Product[],3,FALSE),\"\")","v":""},{"$f":"SUMIFS(Count_Table[Opening Balance 1],Count_Table[Item Code],Report[[#This Row],[Item Code]])","v":0},{"$f":"IFERROR(SUMIFS(Received_Tr[Qty],Received_Tr[Item Code],Report[Item Code]),\"\")","v":0},{"$f":"IFERROR(SUMIFS(Issu_Tr[Qty],Issu_Tr[Item Code],Report[Item Code]),\"\")","v":0},{"$f":"IFERROR(SUMIFS(Transfer_Tr[Qty],Transfer_Tr[Item Code],Report[Item Code]),\"\")","v":0},{"$f":"Report[[#This Row],[Opening Balance]]+Report[[#This Row],[Received]]-Report[[#This Row],[Issue]]-Report[[#This Row],[TransFer]]","v":0}]
[{"$f":"IF(B94=\"\",\"\",SUBTOTAL(3,B$10:B94))","v":""},null,null,{"$f":"IFERROR(VLOOKUP(Report[[#This Row],[Item Code]],Product[],2,FALSE),\"\")","v":""},{"$f":"IFERROR(VLOOKUP(Report[[#This Row],[Item Code]],Product[],3,FALSE),\"\")","v":""},{"$f":"SUMIFS(Count_Table[Opening Balance 1],Count_Table[Item Code],Report[[#This Row],[Item Code]])","v":0},{"$f":"IFERROR(SUMIFS(Received_Tr[Qty],Received_Tr[Item Code],Report[Item Code]),\"\")","v":0},{"$f":"IFERROR(SUMIFS(Issu_Tr[Qty],Issu_Tr[Item Code],Report[Item Code]),\"\")","v":0},{"$f":"IFERROR(SUMIFS(Transfer_Tr[Qty],Transfer_Tr[Item Code],Report[Item Code]),\"\")","v":0},{"$f":"Report[[#This Row],[Opening Balance]]+Report[[#This Row],[Received]]-Report[[#This Row],[Issue]]-Report[[#This Row],[TransFer]]","v":0}]
[{"$f":"IF(B95=\"\",\"\",SUBTOTAL(3,B$10:B95))","v":""},null,null,{"$f":"IFERROR(VLOOKUP(Report[[#This Row],[Item Code]],Product[],2,FALSE),\"\")","v":""},{"$f":"IFERROR(VLOOKUP(Report[[#This Row],[Item Code]],Product[],3,FALSE),\"\")","v":""},{"$f":"SUMIFS(Count_Table[Opening Balance 1],Count_Table[Item Code],Report[[#This Row],[Item Code]])","v":0},{"$f":"IFERROR(SUMIFS(Received_Tr[Qty],Received_Tr[Item Code],Report[Item Code]),\"\")","v":0},{"$f":"IFERROR(SUMIFS(Issu_Tr[Qty],Issu_Tr[Item Code],Report[Item Code]),\"\")","v":0},{"$f":"IFERROR(SUMIFS(Transfer_Tr[Qty],Transfer_Tr[Item Code],Report[Item Code]),\"\")","v":0},{"$f":"Report[[#This Row],[Opening Balance]]+Report[[#This Row],[Received]]-Report[[#This Row],[Issue]]-Report[[#This Row],[TransFer]]","v":0}]
[{"$f":"IF(B96=\"\",\"\",SUBTOTAL(3,B$10:B96))","v":""},null,null,{"$f":"IFERROR(VLOOKUP(Report[[#This Row],[Item Code]],Product[],2,FALSE),\"\")","v":""},{"$f":"IFERROR(VLOOKUP(Report[[#This Row],[Item Code]],Product[],3,FALSE),\"\")","v":""},{"$f":"SUMIFS(Count_Table[Opening Balance 1],Count_Table[Item Code],Report[[#This Row],[Item Code]])","v":0},{"$f":"IFERROR(SUMIFS(Received_Tr[Qty],Received_Tr[Item Code],Report[Item Code]),\"\")","v":0},{"$f":"IFERROR(SUMIFS(Issu_Tr[Qty],Issu_Tr[Item Code],Report[Item Code]),\"\")","v":0},{"$f":"IFERROR(SUMIFS(Transfer_Tr[Qty],Transfer_Tr[Item Code],Report[Item Code]),\"\")","v":0},{"$f":"Report[[#This Row],[Opening Balance]]+Report[[#This Row],[Received]]-Report[[#This Row],[Issue]]-Report[[#This Row],[TransFer]]","v":0}]
[{"$f":"IF(B97=\"\",\"\",SUBTOTAL(3,B$10:B97))","v":""},null,null,{"$f":"IFERROR(VLOOKUP(Report[[#This Row],[Item Code]],Product[],2,FALSE),\"\")","v":""},{"$f":"IFERROR(VLOOKUP(Report[[#This Row],[Item Code]],Product[],3,FALSE),\"\")","v":""},{"$f":"SUMIFS(Count_Table[Opening Balance 1],Count_Table[Item Code],Report[[#This Row],[Item Code]])","v":0},{"$f":"IFERROR(SUMIFS(Received_Tr[Qty],Received_Tr[Item Code],Report[Item Code]),\"\")","v":0},{"$f":"IFERROR(SUMIFS(Issu_Tr[Qty],Issu_Tr[Item Code],Report[Item Code]),\"\")","v":0},{"$f":"IFERROR(SUMIFS(Transfer_Tr[Qty],Transfer_Tr[Item Code],Report[Item Code]),\"\")","v":0},{"$f":"Report[[#This Row],[Opening Balance]]+Report[[#This Row],[Received]]-Report[[#This Row],[Issue]]-Report[[#This Row],[TransFer]]","v":0}]
[{"$f":"IF(B98=\"\",\"\",SUBTOTAL(3,B$10:B98))","v":""},null,null,{"$f":"IFERROR(VLOOKUP(Report[[#This Row],[Item Code]],Product[],2,FALSE),\"\")","v":""},{"$f":"IFERROR(VLOOKUP(Report[[#This Row],[Item Code]],Product[],3,FALSE),\"\")","v":""},{"$f":"SUMIFS(Count_Table[Opening Balance 1],Count_Table[Item Code],Report[[#This Row],[Item Code]])","v":0},{"$f":"IFERROR(SUMIFS(Received_Tr[Qty],Received_Tr[Item Code],Report[Item Code]),\"\")","v":0},{"$f":"IFERROR(SUMIFS(Issu_Tr[Qty],Issu_Tr[Item Code],Report[Item Code]),\"\")","v":0},{"$f":"IFERROR(SUMIFS(Transfer_Tr[Qty],Transfer_Tr[Item Code],Report[Item Code]),\"\")","v":0},{"$f":"Report[[#This Row],[Opening Balance]]+Report[[#This Row],[Received]]-Report[[#This Row],[Issue]]-Report[[#This Row],[TransFer]]","v":0}]
[{"$f":"IF(B99=\"\",\"\",SUBTOTAL(3,B$10:B99))","v":""},null,null,{"$f":"IFERROR(VLOOKUP(Report[[#This Row],[Item Code]],Product[],2,FALSE),\"\")","v":""},{"$f":"IFERROR(VLOOKUP(Report[[#This Row],[Item Code]],Product[],3,FALSE),\"\")","v":""},{"$f":"SUMIFS(Count_Table[Opening Balance 1],Count_Table[Item Code],Report[[#This Row],[Item Code]])","v":0},{"$f":"IFERROR(SUMIFS(Received_Tr[Qty],Received_Tr[Item Code],Report[Item Code]),\"\")","v":0},{"$f":"IFERROR(SUMIFS(Issu_Tr[Qty],Issu_Tr[Item Code],Report[Item Code]),\"\")","v":0},{"$f":"IFERROR(SUMIFS(Transfer_Tr[Qty],Transfer_Tr[Item Code],Report[Item Code]),\"\")","v":0},{"$f":"Report[[#This Row],[Opening Balance]]+Report[[#This Row],[Received]]-Report[[#This Row],[Issue]]-Report[[#This Row],[TransFer]]","v":0}]
[{"$f":"IF(B100=\"\",\"\",SUBTOTAL(3,B$10:B100))","v":""},null,null,{"$f":"IFERROR(VLOOKUP(Report[[#This Row],[Item Code]],Product[],2,FALSE),\"\")","v":""},{"$f":"IFERROR(VLOOKUP(Report[[#This Row],[Item Code]],Product[],3,FALSE),\"\")","v":""},{"$f":"SUMIFS(Count_Table[Opening Balance 1],Count_Table[Item Code],Report[[#This Row],[Item Code]])","v":0},{"$f":"IFERROR(SUMIFS(Received_Tr[Qty],Received_Tr[Item Code],Report[Item Code]),\"\")","v":0},{"$f":"IFERROR(SUMIFS(Issu_Tr[Qty],Issu_Tr[Item Code],Report[Item Code]),\"\")","v":0},{"$f":"IFERROR(SUMIFS(Transfer_Tr[Qty],Transfer_Tr[Item Code],Report[Item Code]),\"\")","v":0},{"$f":"Report[[#This Row],[Opening Balance]]+Report[[#This Row],[Received]]-Report[[#This Row],[Issue]]-Report[[#This Row],[TransFer]]","v":0}]
[{"$f":"IF(B101=\"\",\"\",SUBTOTAL(3,B$10:B101))","v":""},null,null,{"$f":"IFERROR(VLOOKUP(Report[[#This Row],[Item Code]],Product[],2,FALSE),\"\")","v":""},{"$f":"IFERROR(VLOOKUP(Report[[#This Row],[Item Code]],Product[],3,FALSE),\"\")","v":""},{"$f":"SUMIFS(Count_Table[Opening Balance 1],Count_Table[Item Code],Report[[#This Row],[Item Code]])","v":0},{"$f":"IFERROR(SUMIFS(Received_Tr[Qty],Received_Tr[Item Code],Report[Item Code]),\"\")","v":0},{"$f":"IFERROR(SUMIFS(Issu_Tr[Qty],Issu_Tr[Item Code],Report[Item Code]),\"\")","v":0},{"$f":"IFERROR(SUMIFS(Transfer_Tr[Qty],Transfer_Tr[Item Code],Report[Item Code]),\"\")","v":0},{"$f":"Report[[#This Row],[Opening Balance]]+Report[[#This Row],[Received]]-Report[[#This Row],[Issue]]-Report[[#This Row],[TransFer]]","v":0}]
[{"$f":"IF(B102=\"\",\"\",SUBTOTAL(3,B$10:B102))","v":""},null,null,{"$f":"IFERROR(VLOOKUP(Report[[#This Row],[Item Code]],Product[],2,FALSE),\"\")","v":""},{"$f":"IFERROR(VLOOKUP(Report[[#This Row],[Item Code]],Product[],3,FALSE),\"\")","v":""},{"$f":"SUMIFS(Count_Table[Opening Balance 1],Count_Table[Item Code],Report[[#This Row],[Item Code]])","v":0},{"$f":"IFERROR(SUMIFS(Received_Tr[Qty],Received_Tr[Item Code],Report[Item Code]),\"\")","v":0},{"$f":"IFERROR(SUMIFS(Issu_Tr[Qty],Issu_Tr[Item Code],Report[Item Code]),\"\")","v":0},{"$f":"IFERROR(SUMIFS(Transfer_Tr[Qty],Transfer_Tr[Item Code],Report[Item Code]),\"\")","v":0},{"$f":"Report[[#This Row],[Opening Balance]]+Report[[#This Row],[Received]]-Report[[#This Row],[Issue]]-Report[[#This Row],[TransFer]]","v":0}]
[{"$f":"IF(B103=\"\",\"\",SUBTOTAL(3,B$10:B103))","v":""},null,null,{"$f":"IFERROR(VLOOKUP(Report[[#This Row],[Item Code]],Product[],2,FALSE),\"\")","v":""},{"$f":"IFERROR(VLOOKUP(Report[[#This Row],[Item Code]],Product[],3,FALSE),\"\")","v":""},{"$f":"SUMIFS(Count_Table[Opening Balance 1],Count_Table[Item Code],Report[[#This Row],[Item Code]])","v":0},{"$f":"IFERROR(SUMIFS(Received_Tr[Qty],Received_Tr[Item Code],Report[Item Code]),\"\")","v":0},{"$f":"IFERROR(SUMIFS(Issu_Tr[Qty],Issu_Tr[Item Code],Report[Item Code]),\"\")","v":0},{"$f":"IFERROR(SUMIFS(Transfer_Tr[Qty],Transfer_Tr[Item Code],Report[Item Code]),\"\")","v":0},{"$f":"Report[[#This Row],[Opening Balance]]+Report[[#This Row],[Received]]-Report[[#This Row],[Issue]]-Report[[#This Row],[TransFer]]","v":0}]
[{"$f":"IF(B104=\"\",\"\",SUBTOTAL(3,B$10:B104))","v":""},null,null,{"$f":"IFERROR(VLOOKUP(Report[[#This Row],[Item Code]],Product[],2,FALSE),\"\")","v":""},{"$f":"IFERROR(VLOOKUP(Report[[#This Row],[Item Code]],Product[],3,FALSE),\"\")","v":""},{"$f":"SUMIFS(Count_Table[Opening Balance 1],Count_Table[Item Code],Report[[#This Row],[Item Code]])","v":0},{"$f":"IFERROR(SUMIFS(Received_Tr[Qty],Received_Tr[Item Code],Report[Item Code]),\"\")","v":0},{"$f":"IFERROR(SUMIFS(Issu_Tr[Qty],Issu_Tr[Item Code],Report[Item Code]),\"\")","v":0},{"$f":"IFERROR(SUMIFS(Transfer_Tr[Qty],Transfer_Tr[Item Code],Report[Item Code]),\"\")","v":0},{"$f":"Report[[#This Row],[Opening Balance]]+Report[[#This Row],[Received]]-Report[[#This Row],[Issue]]-Report[[#This Row],[TransFer]]","v":0}]
[{"$f":"IF(B105=\"\",\"\",SUBTOTAL(3,B$10:B105))","v":""},null,null,{"$f":"IFERROR(VLOOKUP(Report[[#This Row],[Item Code]],Product[],2,FALSE),\"\")","v":""},{"$f":"IFERROR(VLOOKUP(Report[[#This Row],[Item Code]],Product[],3,FALSE),\"\")","v":""},{"$f":"SUMIFS(Count_Table[Opening Balance 1],Count_Table[Item Code],Report[[#This Row],[Item Code]])","v":0},{"$f":"IFERROR(SUMIFS(Received_Tr[Qty],Received_Tr[Item Code],Report[Item Code]),\"\")","v":0},{"$f":"IFERROR(SUMIFS(Issu_Tr[Qty],Issu_Tr[Item Code],Report[Item Code]),\"\")","v":0},{"$f":"IFERROR(SUMIFS(Transfer_Tr[Qty],Transfer_Tr[Item Code],Report[Item Code]),\"\")","v":0},{"$f":"Report[[#This Row],[Opening Balance]]+Report[[#This Row],[Received]]-Report[[#This Row],[Issue]]-Report[[#This Row],[TransFer]]","v":0}]
[{"$f":"IF(B106=\"\",\"\",SUBTOTAL(3,B$10:B106))","v":""},null,null,{"$f":"IFERROR(VLOOKUP(Report[[#This Row],[Item Code]],Product[],2,FALSE),\"\")","v":""},{"$f":"IFERROR(VLOOKUP(Report[[#This Row],[Item Code]],Product[],3,FALSE),\"\")","v":""},{"$f":"SUMIFS(Count_Table[Opening Balance 1],Count_Table[Item Code],Report[[#This Row],[Item Code]])","v":0},{"$f":"IFERROR(SUMIFS(Received_Tr[Qty],Received_Tr[Item Code],Report[Item Code]),\"\")","v":0},{"$f":"IFERROR(SUMIFS(Issu_Tr[Qty],Issu_Tr[Item Code],Report[Item Code]),\"\")","v":0},{"$f":"IFERROR(SUMIFS(Transfer_Tr[Qty],Transfer_Tr[Item Code],Report[Item Code]),\"\")","v":0},{"$f":"Report[[#This Row],[Opening Balance]]+Report[[#This Row],[Received]]-Report[[#This Row],[Issue]]-Report[[#This Row],[TransFer]]","v":0}]

{"sheet":"Sheet1","index":2,"n_rows":116,"n_cols":7,"rows_kept":116,"cut":false,"hidden":true,"merged":[]}
[]
[null,"ELE-00001","WIRE AWG  #14 CLR: YELLOW",null,"ELE-00001","WIRE AWG  #14 CLR: YELLOW",{"$f":"F2=C2","v":true}]
[null,"ELE-00002","WIRE AWG  #14 CLR: BLUE",null,"ELE-00002","WIRE AWG  #14 CLR: BLUE",{"$f":"F3=C3","v":true}]
[null,"ELE-00003","WIRE AWG  #14 CLR: BLACK",null,"ELE-00003","WIRE AWG  #14 CLR: BLACK",true]
[null,"ELE-00004","WIRE AWG  #14 CLR: RED",null,"ELE-00004","WIRE AWG  #14 CLR: RED",true]
[null,"ELE-00005","WIRE AWG  #12 CLR: WHITE",null,"ELE-00005","WIRE AWG  #12 CLR: WHITE",true]
[null,"ELE-00006","WIRE AWG  #12 CLR: BLUE",null,"ELE-00006","WIRE AWG  #12 CLR: BLUE",true]
[null,"ELE-00007","WIRE AWG  #12 CLR: BLACK",null,"ELE-00007","WIRE AWG  #12 CLR: BLACK",true]
[null,"ELE-00008","WIRE AWG  #12 CLR: RED",null,"ELE-00008","WIRE AWG  #12 CLR: RED",true]
[null,"ELE-00009","WIRE AWG  #12 CLR: YELLOW",null,"ELE-00009","WIRE AWG  #12 CLR: YELLOW",true]
[null,"ELE-00010","WIRE AWG  #10 CLR: YELLOW",null,"ELE-00010","WIRE AWG  #10 CLR: YELLOW",true]
[null,"ELE-00011","WIRE AWG  #10 CLR: WHITE",null,"ELE-00011","WIRE AWG  #10 CLR: WHITE",true]
[null,"ELE-00012","WIRE AWG  #10 CLR: BLUE",null,"ELE-00012","WIRE AWG  #10 CLR: BLUE",true]
[null,"ELE-00013","WIRE AWG  #10 CLR: BLACK",null,"ELE-00013","WIRE AWG  #10 CLR: BLACK",true]
[null,"ELE-00014","WIRE AWG  #10 CLR: GREEN",null,"ELE-00014","WIRE AWG  #10 CLR: GREEN",true]
[null,"ELE-00015","WIRE AWG  #10 CLR: RED",null,"ELE-00015","WIRE AWG  #10 CLR: RED",true]
[null,"ELE-00016","WIRE AWG  #16 CLR: BLUE",null,"ELE-00016","WIRE AWG  #16 CLR: BLUE",true]
[null,"ELE-00017","WIRE AWG  #16 CLR: WHITE",null,"ELE-00017","WIRE AWG  #16 CLR: WHITE",true]
[null,"ELE-00018","BELDEN COMPUTER CABLE CAT- 6",null,"ELE-00018","BELDEN COMPUTER CABLE CAT- 6",true]
[null,"ELE-00019","BELDEN COMPUTER CABLE CAT- 5",null,"ELE-00019","BELDEN COMPUTER CABLE CAT- 5",true]
[null,"ELE-00020","BELDEN TELEPHONE WIRE 2-PR",null,"ELE-00020","BELDEN TELEPHONE WIRE 2-PR",true]
[null,"ELE-00021","TELEPHONE CABLE 100PR 24AWG",null,"ELE-00021","TELEPHONE CABLE 100PR 24AWG",true]
[null,"ELE-00022","BELDEN T.V CABLE RG-11",null,"ELE-00022","BELDEN T.V CABLE RG-11",true]
[null,"ELE-00023","BELDEN T.V CABLE RG-06",null,"ELE-00023","BELDEN T.V CABLE RG-06",true]
[null,"ELE-00024","SPEAKER WIRE",null,"ELE-00024","SPEAKER WIRE",true]
[null,"ELE-00025","DISBO PANNEL BOARD 150AMP",null,"ELE-00025","DISBO PANNEL BOARD 150AMP",true]
[null,"ELE-00026","DISBO PANNEL BOARD 200AMP",null,"ELE-00026","DISBO PANNEL BOARD 200AMP",true]
[null,"ELE-00027","MCB BREAKER 20AMP",null,"ELE-00027","MCB BREAKER 20AMP",true]
[null,"ELE-00028","MCB BREAKER 25AMP",null,"ELE-00028","MCB BREAKER 25AMP",true]
[null,"ELE-00029","MCB BREAKER 32AMP",null,"ELE-00029","MCB BREAKER 32AMP",true]
[null,"ELE-00030","MCB BREAKER 32AMP  3 POLE",null,"ELE-00030","MCB BREAKER 32AMP  3 POLE",true]
[null,"ELE-00031","MCB BREAKER 63AMP  3 POLE",null,"ELE-00031","MCB BREAKER 63AMP  3 POLE",true]
[null,"ELE-00032","EMT BOX  7 X 14CM  KO 3/4\" X 1/2\" [ DEEP 5CM]",null,"ELE-00032","EMT BOX  7 X 14CM  KO 3/4\" X 1/2\" [ DEEP 5CM]",true]
[null,"ELE-00033","EMT BOX  7 X 14CM  KO 3/4\" X 1/2\" [ DEEP 7CM]",null,"ELE-00033","EMT BOX  7 X 14CM  KO 3/4\" X 1/2\" [ DEEP 7CM]",true]
[null,"ELE-00034","EMT BOX  10 X 10CM  KO 3/4\" X 1/2\"",null,"ELE-00034","EMT BOX  10 X 10CM  KO 3/4\" X 1/2\"",true]
[null,"ELE-00035","EMT BOX  3\" X 3\" FOR FIRE / KO 3/4\" X 1/2\"",null,"ELE-00035","EMT BOX  3\" X 3\" FOR FIRE / KO 3/4\" X 1/2\"",true]
[null,"ELE-00036","EMT COUPLING 1/2\"",null,"ELE-00036","EMT COUPLING 1/2\"",true]
[null,"ELE-00037","EMT CONNECTOR 1/2\"",null,"ELE-00037","EMT CONNECTOR 1/2\"",true]
[null,"ELE-00038","EMT PIPE 3/4\"",null,"ELE-00038","EMT PIPE 3/4\"",true]
[null,"ELE-00039","EMT PIPE CLAMP [STRIP] 3/4\"",null,"ELE-00039","EMT PIPE CLAMP [STRIP] 3/4\"",true]
[null,"ELE-00040","EMT CONNECTOR 3/4\"",null,"ELE-00040","EMT CONNECTOR 3/4\"",true]
[null,"ELE-00041","EMT FLEXIBLE CONNECTOR 3/4\"",null,"ELE-00041","EMT FLEXIBLE CONNECTOR 3/4\"",true]
[null,"ELE-00042","EMT COUPLING 2\"",null,"ELE-00042","EMT COUPLING 2\"",true]
[null,"ELE-00043","EMT CONNECTOR 2\"",null,"ELE-00043","EMT CONNECTOR 2\"",true]
[null,"ELE-00044","EMT ELBOW 2\"",null,"ELE-00044","EMT ELBOW 2\"",true]
[null,"ELE-00045","SAFETY SWITCH 30AMP",null,"ELE-00045","SAFETY SWITCH 30AMP",true]
[null,"ELE-00046","SAFETY SWITCH 60AMP",null,"ELE-00046","SAFETY SWITCH 60AMP",true]
[null,"ELE-00047","SAFETY SWITCH 100AMP",null,"ELE-00047","SAFETY SWITCH 100AMP",true]
[null,"ELE-00048","SAFETY SWITCH 150AMP",null,"ELE-00048","SAFETY SWITCH 150AMP",true]
[null,"ELE-00049","SAFETY SWITCH 200AMP",null,"ELE-00049","SAFETY SWITCH 200AMP",true]
[null,"ELE-00050","LEGRAND OUTLET COVER # 678041",null,"ELE-00050","LEGRAND OUTLET COVER # 678041",true]
[null,"ELE-00051","LEGRAND TELEPHONE OUTLET # 617097E",null,"ELE-00051","LEGRAND TELEPHONE OUTLET # 617097E",true]
[null,"ELE-00052","LEGRAND 2WAY SWITCH # 617001E",null,"ELE-00052","LEGRAND 2WAY SWITCH # 617001E",true]
[null,"ELE-00053","LEGRAND 2G SWITCH # 617302",null,"ELE-00053","LEGRAND 2G SWITCH # 617302",true]
[null,"ELE-00054","LEGRAND DEMAR SWITCH # 617030",null,"ELE-00054","LEGRAND DEMAR SWITCH # 617030",true]
[null,"ELE-00055","LEGRAND 2WAY SWITCH # 617003E",null,"ELE-00055","LEGRAND 2WAY SWITCH # 617003E",true]
[null,"ELE-00056","LEGRAND TV SOKET # 617120",null,"ELE-00056","LEGRAND TV SOKET # 617120",true]
[null,"ELE-00057","LEGRAND 2G/1W SWITCH 617002E",null,"ELE-00057","LEGRAND 2G/1W SWITCH 617002E",true]
[null,"ELE-00058","LEGRAND SWITCH COVER # 678021",null,"ELE-00058","LEGRAND SWITCH COVER # 678021",true]
[null,"ELE-00059","LEGRAND 1G/1W SWITCH # 617000E",null,"ELE-00059","LEGRAND 1G/1W SWITCH # 617000E",true]
[null,"ELE-00060","LEGRAND SINGLE OUTLET # 678140",null,"ELE-00060","LEGRAND SINGLE OUTLET # 678140",true]
[null,"ELE-00061","LEGRAND DOUBLE OUTLET # 617048",null,"ELE-00061","LEGRAND DOUBLE OUTLET # 617048",true]
[null,"ELE-00062"," LEGRAND SINGLE OUTLET # 617043",null,"ELE-00062"," LEGRAND SINGLE OUTLET # 617043",true]
[null,"ELE-00063","13AMP SOCKET WITH 2 GANG USB OUTLET",null,"ELE-00063","13AMP SOCKET WITH 2 GANG USB OUTLET",true]
[null,"ELE-00064","FIRE SMOKE SENSOR BASE",null,"ELE-00064","FIRE SMOKE SENSOR BASE",true]
[null,"ELE-00065","FIRE SMOKE DETECTOR SENSOR",null,"ELE-00065","FIRE SMOKE DETECTOR SENSOR",true]
[null,"ELE-00066","BREAK GLASS COVER",null,"ELE-00066","BREAK GLASS COVER",{"$f":"F67=C67","v":true}]
[null,"ELE-00067","ISOLATED POWER SYSTEM FOR ISOLATION ROOM",null,"ELE-00067","ISOLATED POWER SYSTEM FOR ISOLATION ROOM",true]
[null,"ELE-00068","REMOTE ALARM INDICATOR FOR ISOLATION ROOM",null,"ELE-00068","REMOTE ALARM INDICATOR FOR ISOLATION ROOM",true]
[null,"ELE-00069","UPS BATTERY  60KVA / 120W",null,"ELE-00069","UPS BATTERY  60KVA / 120W",true]
[null,"ELE-00070","BATTERY CABINET WITH JOINT HOSE 12V 200A",null,"ELE-00070","BATTERY CABINET WITH JOINT HOSE 12V 200A",true]
[null,"ELE-00071","MODULAR UPS SYSTEM 150KVA / 50KVA EACH",null,"ELE-00071","MODULAR UPS SYSTEM 150KVA / 50KVA EACH",true]
[null,"ELE-00072","EMT FLEXIBLE LIQUED TYPE 1/2'",null,"ELE-00072","EMT FLEXIBLE LIQUED TYPE 1/2'",true]
[null,"ELE-00073","T.V SPLITER 3 WAY",null,"ELE-00073","T.V SPLITER 3 WAY",true]
[null,"ELE-00074","T.V SPLITER 5 WAY",null,"ELE-00074","T.V SPLITER 5 WAY",true]
[null,"ELE-00075","T.V CABLE CONNECTOR FEMALE",null,"ELE-00075","T.V CABLE CONNECTOR FEMALE",true]
[null,"ELE-00076","NLED4203/36W NVC LED PANNEL LIGHT",null,"ELE-00076","NLED4203/36W NVC LED PANNEL LIGHT",true]
[null,"ELE-00077","NLED552N/20W NVC LED MULTIPLE LIGHT",null,"ELE-00077","NLED552N/20W NVC LED MULTIPLE LIGHT",true]
[null,"ELE-00078","NLED551NS/12W NVC DOWN LIGHT ",null,"ELE-00078","NLED551NS/12W NVC DOWN LIGHT ",true]
[null,"ELE-00079","NLED1195DL/6W NVC LED SPOT LIGHT",null,"ELE-00079","NLED1195DL/6W NVC LED SPOT LIGHT",true]
[null,"ELE-00080","NLED9124/8W NVC LED DOWN LIGHT",null,"ELE-00080","NLED9124/8W NVC LED DOWN LIGHT",true]
[null,"ELE-00081","NLED9246/20W NVC LED DOWN LIGHT ",null,"ELE-00081","NLED9246/20W NVC LED DOWN LIGHT ",true]
[null,"ELE-00082","NAD30LED/30W LED CELLING LIGHT ",null,"ELE-00082","NAD30LED/30W LED CELLING LIGHT ",true]
[null,"ELE-00083","LED TUBE LIGHT 15W STRIP",null,"ELE-00083","LED TUBE LIGHT 15W STRIP",true]
[null,"ELE-00084","NLED105/2W NVC LED SPOT LIGHT ",null,"ELE-00084","NLED105/2W NVC LED SPOT LIGHT ",true]
[null,"ELE-00085","LED FLOOD LIGHT ",null,"ELE-00085","LED FLOOD LIGHT ",true]
[null,"ELE-00086","TELEPHONE BOX 100 - PR",null,"ELE-00086","TELEPHONE BOX 100 - PR",true]
[null,"ELE-00087","TELEPHONE CONNECTOR",null,"ELE-00087","TELEPHONE CONNECTOR",true]
[null,"ELE-00088","EXIT SIGN LIGHT ENGLISH LETTER",null,"ELE-00088","EXIT SIGN LIGHT ENGLISH LETTER",true]
[null,"ELE-00089","EXIT SIGN LIGHT ENGLISH&ARABIC LETTER",null,"ELE-00089","EXIT SIGN LIGHT ENGLISH&ARABIC LETTER",true]
[null,"ELE-00090","XLPE / PVC COPPER CABLE  4 X  50 MM2  [3 ROLL ]",null,"ELE-00090","XLPE / PVC COPPER CABLE  4 X  50 MM2  [3 ROLL ]",true]
[null,"ELE-00091","XLPE / PVC COPPER CABLE  4 X  70 MM2  [3 ROLL ]",null,"ELE-00091","XLPE / PVC COPPER CABLE  4 X  70 MM2  [3 ROLL ]",true]
[null,"ELE-00092","CU / PVC COPPER CABLE  1  X  25MM2  [ ROLL ] ",null,"ELE-00092","CU / PVC COPPER CABLE  1  X  25MM2  [ ROLL ] ",true]
[null,"ELE-00093","CABLE TRAY 80CM X 240M",null,"ELE-00093","CABLE TRAY 80CM X 240M",true]
[null,"ELE-00094","CABLE TRAY 30CM X 240M",null,"ELE-00094","CABLE TRAY 30CM X 240M",true]
[null,"ELE-00095","GARDEN POLE LIGHT ",null,"ELE-00095","GARDEN POLE LIGHT ",true]
[null,"ELE-00096","YIDUO HANGING LIGHT YD10 / 200W",null,"ELE-00096","YIDUO HANGING LIGHT YD10 / 200W",true]
[null,"ELE-00097","BARE COPPER TAPE 25X3MM 50M COOL",null,"ELE-00097","BARE COPPER TAPE 25X3MM 50M COOL",true]
[null,"ELE-00098","SQUARE CLAMP FOR 25X3MM BARE",null,"ELE-00098","SQUARE CLAMP FOR 25X3MM BARE",true]
[null,"ELE-00099","TAPER POINTED AIR ROD 16*1000MM",null,"ELE-00099","TAPER POINTED AIR ROD 16*1000MM",true]
[null,"ELE-00100","ROD TO CABLE CLAMP 16/20-16/70",null,"ELE-00100","ROD TO CABLE CLAMP 16/20-16/70",true]
[null,"ELE-00101","AIR TERMINAL BASE FOR COPPER TAP",null,"ELE-00101","AIR TERMINAL BASE FOR COPPER TAP",true]
[null,"ELE-00102","MULTIPLY POINT 15MM FOR TAPPER A",null,"ELE-00102","MULTIPLY POINT 15MM FOR TAPPER A",true]
[null,"ELE-00103","EMT BOX 7X7 KO ½X ¾ ",null,"ELE-00103","EMT BOX 7X7 KO ½X ¾ ",true]
[null,"ELE-00104","EMT FLEXIBLE HOSE ½\"",null,"ELE-00104","EMT FLEXIBLE HOSE ½\"",true]
[null,"ELE-00105","EMT SQUEEZE CONNECTOR ½\"",null,"ELE-00105","EMT SQUEEZE CONNECTOR ½\"",true]
[null,"ELE-00106","WIRE AWG  #14 CLR: GREEN",null,"ELE-00106","WIRE AWG  #14 CLR: GREEN",true]
[null,"ELE-00107","EMT PIPE PANASONIC ½\"",null,"ELE-00107","EMT PIPE PANASONIC ½\"",true]
[null,"ELE-00108","BANGER HOSE 16MM 50MTR KSA",null,"ELE-00108","BANGER HOSE 16MM 50MTR KSA",true]
[null,"ELE-00109","BANGER HOSE 21MM 50MTR KSA",null,"ELE-00109","BANGER HOSE 21MM 50MTR KSA",true]
[null,"ELE-00110","PVC CONNECTOR ½\" BLACK",null,"ELE-00110","PVC CONNECTOR ½\" BLACK",true]
[null,"ELE-00111","EMT BOX COVER PLATE 10\" X 10\" ",null,"ELE-00111","EMT BOX COVER PLATE 10\" X 10\" ",true]
[null,"ELE-00112","EMT BOX COVER PLATE 3\" X 3\"",null,"ELE-00112","EMT BOX COVER PLATE 3\" X 3\"",true]
[null,"ELE-00113","EMT BOX COVER PLATE 7cm X 7cm",null,"ELE-00113","EMT BOX COVER PLATE 7cm X 7cm",true]
[null,"ELE-00114","EMT FLIXABLE CONNECTOR ½\"",null,"ELE-00114","EMT FLIXABLE CONNECTOR ½\"",true]
[null,"ELE-00115","EMT CLAMP ½\"",null,"ELE-00115","EMT CLAMP ½\"",true]

{"sheet":"Issu Transactions","index":3,"n_rows":201,"n_cols":8,"rows_kept":201,"cut":false,"hidden":false,"merged":[]}
[]
[]
[]
[]
[]
[null,null,null,null,null,{"$f":"TODAY()","v":"2018-07-11"}]
[]
["S.N","Order No","Date","Location","Item Code","Item Name","Unit","Qty"]
[{"$f":"IF(E9=\"\",\"\",SUBTOTAL(3,E$9:E9))","v":""},null,null,null,null,{"$f":"IFERROR(VLOOKUP(Issu_Tr[[#This Row],[Item Code]],Product[],2,FALSE),\"\")","v":""},{"$f":"IFERROR(VLOOKUP(Issu_Tr[[#This Row],[Item Code]],Product[],3,FALSE),\"\")","v":""}]
[{"$f":"IF(E10=\"\",\"\",SUBTOTAL(3,E$9:E10))","v":""},null,null,null,null,{"$f":"IFERROR(VLOOKUP(Issu_Tr[[#This Row],[Item Code]],Product[],2,FALSE),\"\")","v":""},{"$f":"IFERROR(VLOOKUP(Issu_Tr[[#This Row],[Item Code]],Product[],3,FALSE),\"\")","v":""}]
[{"$f":"IF(E11=\"\",\"\",SUBTOTAL(3,E$9:E11))","v":""},null,null,null,null,{"$f":"IFERROR(VLOOKUP(Issu_Tr[[#This Row],[Item Code]],Product[],2,FALSE),\"\")","v":""},{"$f":"IFERROR(VLOOKUP(Issu_Tr[[#This Row],[Item Code]],Product[],3,FALSE),\"\")","v":""}]
[{"$f":"IF(E12=\"\",\"\",SUBTOTAL(3,E$9:E12))","v":""},null,null,null,null,{"$f":"IFERROR(VLOOKUP(Issu_Tr[[#This Row],[Item Code]],Product[],2,FALSE),\"\")","v":""},{"$f":"IFERROR(VLOOKUP(Issu_Tr[[#This Row],[Item Code]],Product[],3,FALSE),\"\")","v":""}]
[{"$f":"IF(E13=\"\",\"\",SUBTOTAL(3,E$9:E13))","v":""},null,null,null,null,{"$f":"IFERROR(VLOOKUP(Issu_Tr[[#This Row],[Item Code]],Product[],2,FALSE),\"\")","v":""},{"$f":"IFERROR(VLOOKUP(Issu_Tr[[#This Row],[Item Code]],Product[],3,FALSE),\"\")","v":""}]
[{"$f":"IF(E14=\"\",\"\",SUBTOTAL(3,E$9:E14))","v":""},null,null,null,null,{"$f":"IFERROR(VLOOKUP(Issu_Tr[[#This Row],[Item Code]],Product[],2,FALSE),\"\")","v":""},{"$f":"IFERROR(VLOOKUP(Issu_Tr[[#This Row],[Item Code]],Product[],3,FALSE),\"\")","v":""}]
[{"$f":"IF(E15=\"\",\"\",SUBTOTAL(3,E$9:E15))","v":""},null,null,null,null,{"$f":"IFERROR(VLOOKUP(Issu_Tr[[#This Row],[Item Code]],Product[],2,FALSE),\"\")","v":""},{"$f":"IFERROR(VLOOKUP(Issu_Tr[[#This Row],[Item Code]],Product[],3,FALSE),\"\")","v":""}]
[{"$f":"IF(E16=\"\",\"\",SUBTOTAL(3,E$9:E16))","v":""},null,null,null,null,{"$f":"IFERROR(VLOOKUP(Issu_Tr[[#This Row],[Item Code]],Product[],2,FALSE),\"\")","v":""},{"$f":"IFERROR(VLOOKUP(Issu_Tr[[#This Row],[Item Code]],Product[],3,FALSE),\"\")","v":""}]
[{"$f":"IF(E17=\"\",\"\",SUBTOTAL(3,E$9:E17))","v":""},null,null,null,null,{"$f":"IFERROR(VLOOKUP(Issu_Tr[[#This Row],[Item Code]],Product[],2,FALSE),\"\")","v":""},{"$f":"IFERROR(VLOOKUP(Issu_Tr[[#This Row],[Item Code]],Product[],3,FALSE),\"\")","v":""}]
[{"$f":"IF(E18=\"\",\"\",SUBTOTAL(3,E$9:E18))","v":""},null,null,null,null,{"$f":"IFERROR(VLOOKUP(Issu_Tr[[#This Row],[Item Code]],Product[],2,FALSE),\"\")","v":""},{"$f":"IFERROR(VLOOKUP(Issu_Tr[[#This Row],[Item Code]],Product[],3,FALSE),\"\")","v":""}]
[{"$f":"IF(E19=\"\",\"\",SUBTOTAL(3,E$9:E19))","v":""},null,null,null,null,{"$f":"IFERROR(VLOOKUP(Issu_Tr[[#This Row],[Item Code]],Product[],2,FALSE),\"\")","v":""},{"$f":"IFERROR(VLOOKUP(Issu_Tr[[#This Row],[Item Code]],Product[],3,FALSE),\"\")","v":""}]
[{"$f":"IF(E20=\"\",\"\",SUBTOTAL(3,E$9:E20))","v":""},null,null,null,null,{"$f":"IFERROR(VLOOKUP(Issu_Tr[[#This Row],[Item Code]],Product[],2,FALSE),\"\")","v":""},{"$f":"IFERROR(VLOOKUP(Issu_Tr[[#This Row],[Item Code]],Product[],3,FALSE),\"\")","v":""}]
[{"$f":"IF(E21=\"\",\"\",SUBTOTAL(3,E$9:E21))","v":""},null,null,null,null,{"$f":"IFERROR(VLOOKUP(Issu_Tr[[#This Row],[Item Code]],Product[],2,FALSE),\"\")","v":""},{"$f":"IFERROR(VLOOKUP(Issu_Tr[[#This Row],[Item Code]],Product[],3,FALSE),\"\")","v":""}]
[{"$f":"IF(E22=\"\",\"\",SUBTOTAL(3,E$9:E22))","v":""},null,null,null,null,{"$f":"IFERROR(VLOOKUP(Issu_Tr[[#This Row],[Item Code]],Product[],2,FALSE),\"\")","v":""},{"$f":"IFERROR(VLOOKUP(Issu_Tr[[#This Row],[Item Code]],Product[],3,FALSE),\"\")","v":""}]
[{"$f":"IF(E23=\"\",\"\",SUBTOTAL(3,E$9:E23))","v":""},null,null,null,null,{"$f":"IFERROR(VLOOKUP(Issu_Tr[[#This Row],[Item Code]],Product[],2,FALSE),\"\")","v":""},{"$f":"IFERROR(VLOOKUP(Issu_Tr[[#This Row],[Item Code]],Product[],3,FALSE),\"\")","v":""}]
[{"$f":"IF(E24=\"\",\"\",SUBTOTAL(3,E$9:E24))","v":""},null,null,null,null,{"$f":"IFERROR(VLOOKUP(Issu_Tr[[#This Row],[Item Code]],Product[],2,FALSE),\"\")","v":""},{"$f":"IFERROR(VLOOKUP(Issu_Tr[[#This Row],[Item Code]],Product[],3,FALSE),\"\")","v":""}]
[{"$f":"IF(E25=\"\",\"\",SUBTOTAL(3,E$9:E25))","v":""},null,null,null,null,{"$f":"IFERROR(VLOOKUP(Issu_Tr[[#This Row],[Item Code]],Product[],2,FALSE),\"\")","v":""},{"$f":"IFERROR(VLOOKUP(Issu_Tr[[#This Row],[Item Code]],Product[],3,FALSE),\"\")","v":""}]
[{"$f":"IF(E26=\"\",\"\",SUBTOTAL(3,E$9:E26))","v":""},null,null,null,null,{"$f":"IFERROR(VLOOKUP(Issu_Tr[[#This Row],[Item Code]],Product[],2,FALSE),\"\")","v":""},{"$f":"IFERROR(VLOOKUP(Issu_Tr[[#This Row],[Item Code]],Product[],3,FALSE),\"\")","v":""}]
[{"$f":"IF(E27=\"\",\"\",SUBTOTAL(3,E$9:E27))","v":""},null,null,null,null,{"$f":"IFERROR(VLOOKUP(Issu_Tr[[#This Row],[Item Code]],Product[],2,FALSE),\"\")","v":""},{"$f":"IFERROR(VLOOKUP(Issu_Tr[[#This Row],[Item Code]],Product[],3,FALSE),\"\")","v":""}]
[{"$f":"IF(E28=\"\",\"\",SUBTOTAL(3,E$9:E28))","v":""},null,null,null,null,{"$f":"IFERROR(VLOOKUP(Issu_Tr[[#This Row],[Item Code]],Product[],2,FALSE),\"\")","v":""},{"$f":"IFERROR(VLOOKUP(Issu_Tr[[#This Row],[Item Code]],Product[],3,FALSE),\"\")","v":""}]
[{"$f":"IF(E29=\"\",\"\",SUBTOTAL(3,E$9:E29))","v":""},null,null,null,null,{"$f":"IFERROR(VLOOKUP(Issu_Tr[[#This Row],[Item Code]],Product[],2,FALSE),\"\")","v":""},{"$f":"IFERROR(VLOOKUP(Issu_Tr[[#This Row],[Item Code]],Product[],3,FALSE),\"\")","v":""}]
[{"$f":"IF(E30=\"\",\"\",SUBTOTAL(3,E$9:E30))","v":""},null,null,null,null,{"$f":"IFERROR(VLOOKUP(Issu_Tr[[#This Row],[Item Code]],Product[],2,FALSE),\"\")","v":""},{"$f":"IFERROR(VLOOKUP(Issu_Tr[[#This Row],[Item Code]],Product[],3,FALSE),\"\")","v":""}]
[{"$f":"IF(E31=\"\",\"\",SUBTOTAL(3,E$9:E31))","v":""},null,null,null,null,{"$f":"IFERROR(VLOOKUP(Issu_Tr[[#This Row],[Item Code]],Product[],2,FALSE),\"\")","v":""},{"$f":"IFERROR(VLOOKUP(Issu_Tr[[#This Row],[Item Code]],Product[],3,FALSE),\"\")","v":""}]
[{"$f":"IF(E32=\"\",\"\",SUBTOTAL(3,E$9:E32))","v":""},null,null,null,null,{"$f":"IFERROR(VLOOKUP(Issu_Tr[[#This Row],[Item Code]],Product[],2,FALSE),\"\")","v":""},{"$f":"IFERROR(VLOOKUP(Issu_Tr[[#This Row],[Item Code]],Product[],3,FALSE),\"\")","v":""}]
[{"$f":"IF(E33=\"\",\"\",SUBTOTAL(3,E$9:E33))","v":""},null,null,null,null,{"$f":"IFERROR(VLOOKUP(Issu_Tr[[#This Row],[Item Code]],Product[],2,FALSE),\"\")","v":""},{"$f":"IFERROR(VLOOKUP(Issu_Tr[[#This Row],[Item Code]],Product[],3,FALSE),\"\")","v":""}]
[{"$f":"IF(E34=\"\",\"\",SUBTOTAL(3,E$9:E34))","v":""},null,null,null,null,{"$f":"IFERROR(VLOOKUP(Issu_Tr[[#This Row],[Item Code]],Product[],2,FALSE),\"\")","v":""},{"$f":"IFERROR(VLOOKUP(Issu_Tr[[#This Row],[Item Code]],Product[],3,FALSE),\"\")","v":""}]
[{"$f":"IF(E35=\"\",\"\",SUBTOTAL(3,E$9:E35))","v":""},null,null,null,null,{"$f":"IFERROR(VLOOKUP(Issu_Tr[[#This Row],[Item Code]],Product[],2,FALSE),\"\")","v":""},{"$f":"IFERROR(VLOOKUP(Issu_Tr[[#This Row],[Item Code]],Product[],3,FALSE),\"\")","v":""}]
[{"$f":"IF(E36=\"\",\"\",SUBTOTAL(3,E$9:E36))","v":""},null,null,null,null,{"$f":"IFERROR(VLOOKUP(Issu_Tr[[#This Row],[Item Code]],Product[],2,FALSE),\"\")","v":""},{"$f":"IFERROR(VLOOKUP(Issu_Tr[[#This Row],[Item Code]],Product[],3,FALSE),\"\")","v":""}]
[{"$f":"IF(E37=\"\",\"\",SUBTOTAL(3,E$9:E37))","v":""},null,null,null,null,{"$f":"IFERROR(VLOOKUP(Issu_Tr[[#This Row],[Item Code]],Product[],2,FALSE),\"\")","v":""},{"$f":"IFERROR(VLOOKUP(Issu_Tr[[#This Row],[Item Code]],Product[],3,FALSE),\"\")","v":""}]
[{"$f":"IF(E38=\"\",\"\",SUBTOTAL(3,E$9:E38))","v":""},null,null,null,null,{"$f":"IFERROR(VLOOKUP(Issu_Tr[[#This Row],[Item Code]],Product[],2,FALSE),\"\")","v":""},{"$f":"IFERROR(VLOOKUP(Issu_Tr[[#This Row],[Item Code]],Product[],3,FALSE),\"\")","v":""}]
[{"$f":"IF(E39=\"\",\"\",SUBTOTAL(3,E$9:E39))","v":""},null,null,null,null,{"$f":"IFERROR(VLOOKUP(Issu_Tr[[#This Row],[Item Code]],Product[],2,FALSE),\"\")","v":""},{"$f":"IFERROR(VLOOKUP(Issu_Tr[[#This Row],[Item Code]],Product[],3,FALSE),\"\")","v":""}]
[{"$f":"IF(E40=\"\",\"\",SUBTOTAL(3,E$9:E40))","v":""},null,null,null,null,{"$f":"IFERROR(VLOOKUP(Issu_Tr[[#This Row],[Item Code]],Product[],2,FALSE),\"\")","v":""},{"$f":"IFERROR(VLOOKUP(Issu_Tr[[#This Row],[Item Code]],Product[],3,FALSE),\"\")","v":""}]
[{"$f":"IF(E41=\"\",\"\",SUBTOTAL(3,E$9:E41))","v":""},null,null,null,null,{"$f":"IFERROR(VLOOKUP(Issu_Tr[[#This Row],[Item Code]],Product[],2,FALSE),\"\")","v":""},{"$f":"IFERROR(VLOOKUP(Issu_Tr[[#This Row],[Item Code]],Product[],3,FALSE),\"\")","v":""}]
[{"$f":"IF(E42=\"\",\"\",SUBTOTAL(3,E$9:E42))","v":""},null,null,null,null,{"$f":"IFERROR(VLOOKUP(Issu_Tr[[#This Row],[Item Code]],Product[],2,FALSE),\"\")","v":""},{"$f":"IFERROR(VLOOKUP(Issu_Tr[[#This Row],[Item Code]],Product[],3,FALSE),\"\")","v":""}]
[{"$f":"IF(E43=\"\",\"\",SUBTOTAL(3,E$9:E43))","v":""},null,null,null,null,{"$f":"IFERROR(VLOOKUP(Issu_Tr[[#This Row],[Item Code]],Product[],2,FALSE),\"\")","v":""},{"$f":"IFERROR(VLOOKUP(Issu_Tr[[#This Row],[Item Code]],Product[],3,FALSE),\"\")","v":""}]
[{"$f":"IF(E44=\"\",\"\",SUBTOTAL(3,E$9:E44))","v":""},null,null,null,null,{"$f":"IFERROR(VLOOKUP(Issu_Tr[[#This Row],[Item Code]],Product[],2,FALSE),\"\")","v":""},{"$f":"IFERROR(VLOOKUP(Issu_Tr[[#This Row],[Item Code]],Product[],3,FALSE),\"\")","v":""}]
[{"$f":"IF(E45=\"\",\"\",SUBTOTAL(3,E$9:E45))","v":""},null,null,null,null,{"$f":"IFERROR(VLOOKUP(Issu_Tr[[#This Row],[Item Code]],Product[],2,FALSE),\"\")","v":""},{"$f":"IFERROR(VLOOKUP(Issu_Tr[[#This Row],[Item Code]],Product[],3,FALSE),\"\")","v":""}]
[{"$f":"IF(E46=\"\",\"\",SUBTOTAL(3,E$9:E46))","v":""},null,null,null,null,{"$f":"IFERROR(VLOOKUP(Issu_Tr[[#This Row],[Item Code]],Product[],2,FALSE),\"\")","v":""},{"$f":"IFERROR(VLOOKUP(Issu_Tr[[#This Row],[Item Code]],Product[],3,FALSE),\"\")","v":""}]
[{"$f":"IF(E47=\"\",\"\",SUBTOTAL(3,E$9:E47))","v":""},null,null,null,null,{"$f":"IFERROR(VLOOKUP(Issu_Tr[[#This Row],[Item Code]],Product[],2,FALSE),\"\")","v":""},{"$f":"IFERROR(VLOOKUP(Issu_Tr[[#This Row],[Item Code]],Product[],3,FALSE),\"\")","v":""}]
[{"$f":"IF(E48=\"\",\"\",SUBTOTAL(3,E$9:E48))","v":""},null,null,null,null,{"$f":"IFERROR(VLOOKUP(Issu_Tr[[#This Row],[Item Code]],Product[],2,FALSE),\"\")","v":""},{"$f":"IFERROR(VLOOKUP(Issu_Tr[[#This Row],[Item Code]],Product[],3,FALSE),\"\")","v":""}]
[{"$f":"IF(E49=\"\",\"\",SUBTOTAL(3,E$9:E49))","v":""},null,null,null,null,{"$f":"IFERROR(VLOOKUP(Issu_Tr[[#This Row],[Item Code]],Product[],2,FALSE),\"\")","v":""},{"$f":"IFERROR(VLOOKUP(Issu_Tr[[#This Row],[Item Code]],Product[],3,FALSE),\"\")","v":""}]
[{"$f":"IF(E50=\"\",\"\",SUBTOTAL(3,E$9:E50))","v":""},null,null,null,null,{"$f":"IFERROR(VLOOKUP(Issu_Tr[[#This Row],[Item Code]],Product[],2,FALSE),\"\")","v":""},{"$f":"IFERROR(VLOOKUP(Issu_Tr[[#This Row],[Item Code]],Product[],3,FALSE),\"\")","v":""}]
[{"$f":"IF(E51=\"\",\"\",SUBTOTAL(3,E$9:E51))","v":""},null,null,null,null,{"$f":"IFERROR(VLOOKUP(Issu_Tr[[#This Row],[Item Code]],Product[],2,FALSE),\"\")","v":""},{"$f":"IFERROR(VLOOKUP(Issu_Tr[[#This Row],[Item Code]],Product[],3,FALSE),\"\")","v":""}]
[{"$f":"IF(E52=\"\",\"\",SUBTOTAL(3,E$9:E52))","v":""},null,null,null,null,{"$f":"IFERROR(VLOOKUP(Issu_Tr[[#This Row],[Item Code]],Product[],2,FALSE),\"\")","v":""},{"$f":"IFERROR(VLOOKUP(Issu_Tr[[#This Row],[Item Code]],Product[],3,FALSE),\"\")","v":""}]
[{"$f":"IF(E53=\"\",\"\",SUBTOTAL(3,E$9:E53))","v":""},null,null,null,null,{"$f":"IFERROR(VLOOKUP(Issu_Tr[[#This Row],[Item Code]],Product[],2,FALSE),\"\")","v":""},{"$f":"IFERROR(VLOOKUP(Issu_Tr[[#This Row],[Item Code]],Product[],3,FALSE),\"\")","v":""}]
[{"$f":"IF(E54=\"\",\"\",SUBTOTAL(3,E$9:E54))","v":""},null,null,null,null,{"$f":"IFERROR(VLOOKUP(Issu_Tr[[#This Row],[Item Code]],Product[],2,FALSE),\"\")","v":""},{"$f":"IFERROR(VLOOKUP(Issu_Tr[[#This Row],[Item Code]],Product[],3,FALSE),\"\")","v":""}]
[{"$f":"IF(E55=\"\",\"\",SUBTOTAL(3,E$9:E55))","v":""},null,null,null,null,{"$f":"IFERROR(VLOOKUP(Issu_Tr[[#This Row],[Item Code]],Product[],2,FALSE),\"\")","v":""},{"$f":"IFERROR(VLOOKUP(Issu_Tr[[#This Row],[Item Code]],Product[],3,FALSE),\"\")","v":""}]
[{"$f":"IF(E56=\"\",\"\",SUBTOTAL(3,E$9:E56))","v":""},null,null,null,null,{"$f":"IFERROR(VLOOKUP(Issu_Tr[[#This Row],[Item Code]],Product[],2,FALSE),\"\")","v":""},{"$f":"IFERROR(VLOOKUP(Issu_Tr[[#This Row],[Item Code]],Product[],3,FALSE),\"\")","v":""}]
[{"$f":"IF(E57=\"\",\"\",SUBTOTAL(3,E$9:E57))","v":""},null,null,null,null,{"$f":"IFERROR(VLOOKUP(Issu_Tr[[#This Row],[Item Code]],Product[],2,FALSE),\"\")","v":""},{"$f":"IFERROR(VLOOKUP(Issu_Tr[[#This Row],[Item Code]],Product[],3,FALSE),\"\")","v":""}]
[{"$f":"IF(E58=\"\",\"\",SUBTOTAL(3,E$9:E58))","v":""},null,null,null,null,{"$f":"IFERROR(VLOOKUP(Issu_Tr[[#This Row],[Item Code]],Product[],2,FALSE),\"\")","v":""},{"$f":"IFERROR(VLOOKUP(Issu_Tr[[#This Row],[Item Code]],Product[],3,FALSE),\"\")","v":""}]
[{"$f":"IF(E59=\"\",\"\",SUBTOTAL(3,E$9:E59))","v":""},null,null,null,null,{"$f":"IFERROR(VLOOKUP(Issu_Tr[[#This Row],[Item Code]],Product[],2,FALSE),\"\")","v":""},{"$f":"IFERROR(VLOOKUP(Issu_Tr[[#This Row],[Item Code]],Product[],3,FALSE),\"\")","v":""}]
[{"$f":"IF(E60=\"\",\"\",SUBTOTAL(3,E$9:E60))","v":""},null,null,null,null,{"$f":"IFERROR(VLOOKUP(Issu_Tr[[#This Row],[Item Code]],Product[],2,FALSE),\"\")","v":""},{"$f":"IFERROR(VLOOKUP(Issu_Tr[[#This Row],[Item Code]],Product[],3,FALSE),\"\")","v":""}]
[{"$f":"IF(E61=\"\",\"\",SUBTOTAL(3,E$9:E61))","v":""},null,null,null,null,{"$f":"IFERROR(VLOOKUP(Issu_Tr[[#This Row],[Item Code]],Product[],2,FALSE),\"\")","v":""},{"$f":"IFERROR(VLOOKUP(Issu_Tr[[#This Row],[Item Code]],Product[],3,FALSE),\"\")","v":""}]
[{"$f":"IF(E62=\"\",\"\",SUBTOTAL(3,E$9:E62))","v":""},null,null,null,null,{"$f":"IFERROR(VLOOKUP(Issu_Tr[[#This Row],[Item Code]],Product[],2,FALSE),\"\")","v":""},{"$f":"IFERROR(VLOOKUP(Issu_Tr[[#This Row],[Item Code]],Product[],3,FALSE),\"\")","v":""}]
[{"$f":"IF(E63=\"\",\"\",SUBTOTAL(3,E$9:E63))","v":""},null,null,null,null,{"$f":"IFERROR(VLOOKUP(Issu_Tr[[#This Row],[Item Code]],Product[],2,FALSE),\"\")","v":""},{"$f":"IFERROR(VLOOKUP(Issu_Tr[[#This Row],[Item Code]],Product[],3,FALSE),\"\")","v":""}]
[{"$f":"IF(E64=\"\",\"\",SUBTOTAL(3,E$9:E64))","v":""},null,null,null,null,{"$f":"IFERROR(VLOOKUP(Issu_Tr[[#This Row],[Item Code]],Product[],2,FALSE),\"\")","v":""},{"$f":"IFERROR(VLOOKUP(Issu_Tr[[#This Row],[Item Code]],Product[],3,FALSE),\"\")","v":""}]
[{"$f":"IF(E65=\"\",\"\",SUBTOTAL(3,E$9:E65))","v":""},null,null,null,null,{"$f":"IFERROR(VLOOKUP(Issu_Tr[[#This Row],[Item Code]],Product[],2,FALSE),\"\")","v":""},{"$f":"IFERROR(VLOOKUP(Issu_Tr[[#This Row],[Item Code]],Product[],3,FALSE),\"\")","v":""}]
[{"$f":"IF(E66=\"\",\"\",SUBTOTAL(3,E$9:E66))","v":""},null,null,null,null,{"$f":"IFERROR(VLOOKUP(Issu_Tr[[#This Row],[Item Code]],Product[],2,FALSE),\"\")","v":""},{"$f":"IFERROR(VLOOKUP(Issu_Tr[[#This Row],[Item Code]],Product[],3,FALSE),\"\")","v":""}]
[{"$f":"IF(E67=\"\",\"\",SUBTOTAL(3,E$9:E67))","v":""},null,null,null,null,{"$f":"IFERROR(VLOOKUP(Issu_Tr[[#This Row],[Item Code]],Product[],2,FALSE),\"\")","v":""},{"$f":"IFERROR(VLOOKUP(Issu_Tr[[#This Row],[Item Code]],Product[],3,FALSE),\"\")","v":""}]
[{"$f":"IF(E68=\"\",\"\",SUBTOTAL(3,E$9:E68))","v":""},null,null,null,null,{"$f":"IFERROR(VLOOKUP(Issu_Tr[[#This Row],[Item Code]],Product[],2,FALSE),\"\")","v":""},{"$f":"IFERROR(VLOOKUP(Issu_Tr[[#This Row],[Item Code]],Product[],3,FALSE),\"\")","v":""}]
[{"$f":"IF(E69=\"\",\"\",SUBTOTAL(3,E$9:E69))","v":""},null,null,null,null,{"$f":"IFERROR(VLOOKUP(Issu_Tr[[#This Row],[Item Code]],Product[],2,FALSE),\"\")","v":""},{"$f":"IFERROR(VLOOKUP(Issu_Tr[[#This Row],[Item Code]],Product[],3,FALSE),\"\")","v":""}]
[{"$f":"IF(E70=\"\",\"\",SUBTOTAL(3,E$9:E70))","v":""},null,null,null,null,{"$f":"IFERROR(VLOOKUP(Issu_Tr[[#This Row],[Item Code]],Product[],2,FALSE),\"\")","v":""},{"$f":"IFERROR(VLOOKUP(Issu_Tr[[#This Row],[Item Code]],Product[],3,FALSE),\"\")","v":""}]
[{"$f":"IF(E71=\"\",\"\",SUBTOTAL(3,E$9:E71))","v":""},null,null,null,null,{"$f":"IFERROR(VLOOKUP(Issu_Tr[[#This Row],[Item Code]],Product[],2,FALSE),\"\")","v":""},{"$f":"IFERROR(VLOOKUP(Issu_Tr[[#This Row],[Item Code]],Product[],3,FALSE),\"\")","v":""}]
[{"$f":"IF(E72=\"\",\"\",SUBTOTAL(3,E$9:E72))","v":""},null,null,null,null,{"$f":"IFERROR(VLOOKUP(Issu_Tr[[#This Row],[Item Code]],Product[],2,FALSE),\"\")","v":""},{"$f":"IFERROR(VLOOKUP(Issu_Tr[[#This Row],[Item Code]],Product[],3,FALSE),\"\")","v":""}]
[{"$f":"IF(E73=\"\",\"\",SUBTOTAL(3,E$9:E73))","v":""},null,null,null,null,{"$f":"IFERROR(VLOOKUP(Issu_Tr[[#This Row],[Item Code]],Product[],2,FALSE),\"\")","v":""},{"$f":"IFERROR(VLOOKUP(Issu_Tr[[#This Row],[Item Code]],Product[],3,FALSE),\"\")","v":""}]
[{"$f":"IF(E74=\"\",\"\",SUBTOTAL(3,E$9:E74))","v":""},null,null,null,null,{"$f":"IFERROR(VLOOKUP(Issu_Tr[[#This Row],[Item Code]],Product[],2,FALSE),\"\")","v":""},{"$f":"IFERROR(VLOOKUP(Issu_Tr[[#This Row],[Item Code]],Product[],3,FALSE),\"\")","v":""}]
[{"$f":"IF(E75=\"\",\"\",SUBTOTAL(3,E$9:E75))","v":""},null,null,null,null,{"$f":"IFERROR(VLOOKUP(Issu_Tr[[#This Row],[Item Code]],Product[],2,FALSE),\"\")","v":""},{"$f":"IFERROR(VLOOKUP(Issu_Tr[[#This Row],[Item Code]],Product[],3,FALSE),\"\")","v":""}]
[{"$f":"IF(E76=\"\",\"\",SUBTOTAL(3,E$9:E76))","v":""},null,null,null,null,{"$f":"IFERROR(VLOOKUP(Issu_Tr[[#This Row],[Item Code]],Product[],2,FALSE),\"\")","v":""},{"$f":"IFERROR(VLOOKUP(Issu_Tr[[#This Row],[Item Code]],Product[],3,FALSE),\"\")","v":""}]
[{"$f":"IF(E77=\"\",\"\",SUBTOTAL(3,E$9:E77))","v":""},null,null,null,null,{"$f":"IFERROR(VLOOKUP(Issu_Tr[[#This Row],[Item Code]],Product[],2,FALSE),\"\")","v":""},{"$f":"IFERROR(VLOOKUP(Issu_Tr[[#This Row],[Item Code]],Product[],3,FALSE),\"\")","v":""}]
[{"$f":"IF(E78=\"\",\"\",SUBTOTAL(3,E$9:E78))","v":""},null,null,null,null,{"$f":"IFERROR(VLOOKUP(Issu_Tr[[#This Row],[Item Code]],Product[],2,FALSE),\"\")","v":""},{"$f":"IFERROR(VLOOKUP(Issu_Tr[[#This Row],[Item Code]],Product[],3,FALSE),\"\")","v":""}]
[{"$f":"IF(E79=\"\",\"\",SUBTOTAL(3,E$9:E79))","v":""},null,null,null,null,{"$f":"IFERROR(VLOOKUP(Issu_Tr[[#This Row],[Item Code]],Product[],2,FALSE),\"\")","v":""},{"$f":"IFERROR(VLOOKUP(Issu_Tr[[#This Row],[Item Code]],Product[],3,FALSE),\"\")","v":""}]
[{"$f":"IF(E80=\"\",\"\",SUBTOTAL(3,E$9:E80))","v":""},null,null,null,null,{"$f":"IFERROR(VLOOKUP(Issu_Tr[[#This Row],[Item Code]],Product[],2,FALSE),\"\")","v":""},{"$f":"IFERROR(VLOOKUP(Issu_Tr[[#This Row],[Item Code]],Product[],3,FALSE),\"\")","v":""}]
[{"$f":"IF(E81=\"\",\"\",SUBTOTAL(3,E$9:E81))","v":""},null,null,null,null,{"$f":"IFERROR(VLOOKUP(Issu_Tr[[#This Row],[Item Code]],Product[],2,FALSE),\"\")","v":""},{"$f":"IFERROR(VLOOKUP(Issu_Tr[[#This Row],[Item Code]],Product[],3,FALSE),\"\")","v":""}]
[{"$f":"IF(E82=\"\",\"\",SUBTOTAL(3,E$9:E82))","v":""},null,null,null,null,{"$f":"IFERROR(VLOOKUP(Issu_Tr[[#This Row],[Item Code]],Product[],2,FALSE),\"\")","v":""},{"$f":"IFERROR(VLOOKUP(Issu_Tr[[#This Row],[Item Code]],Product[],3,FALSE),\"\")","v":""}]
[{"$f":"IF(E83=\"\",\"\",SUBTOTAL(3,E$9:E83))","v":""},null,null,null,null,{"$f":"IFERROR(VLOOKUP(Issu_Tr[[#This Row],[Item Code]],Product[],2,FALSE),\"\")","v":""},{"$f":"IFERROR(VLOOKUP(Issu_Tr[[#This Row],[Item Code]],Product[],3,FALSE),\"\")","v":""}]
[{"$f":"IF(E84=\"\",\"\",SUBTOTAL(3,E$9:E84))","v":""},null,null,null,null,{"$f":"IFERROR(VLOOKUP(Issu_Tr[[#This Row],[Item Code]],Product[],2,FALSE),\"\")","v":""},{"$f":"IFERROR(VLOOKUP(Issu_Tr[[#This Row],[Item Code]],Product[],3,FALSE),\"\")","v":""}]
[{"$f":"IF(E85=\"\",\"\",SUBTOTAL(3,E$9:E85))","v":""},null,null,null,null,{"$f":"IFERROR(VLOOKUP(Issu_Tr[[#This Row],[Item Code]],Product[],2,FALSE),\"\")","v":""},{"$f":"IFERROR(VLOOKUP(Issu_Tr[[#This Row],[Item Code]],Product[],3,FALSE),\"\")","v":""}]
[{"$f":"IF(E86=\"\",\"\",SUBTOTAL(3,E$9:E86))","v":""},null,null,null,null,{"$f":"IFERROR(VLOOKUP(Issu_Tr[[#This Row],[Item Code]],Product[],2,FALSE),\"\")","v":""},{"$f":"IFERROR(VLOOKUP(Issu_Tr[[#This Row],[Item Code]],Product[],3,FALSE),\"\")","v":""}]
[{"$f":"IF(E87=\"\",\"\",SUBTOTAL(3,E$9:E87))","v":""},null,null,null,null,{"$f":"IFERROR(VLOOKUP(Issu_Tr[[#This Row],[Item Code]],Product[],2,FALSE),\"\")","v":""},{"$f":"IFERROR(VLOOKUP(Issu_Tr[[#This Row],[Item Code]],Product[],3,FALSE),\"\")","v":""}]
[{"$f":"IF(E88=\"\",\"\",SUBTOTAL(3,E$9:E88))","v":""},null,null,null,null,{"$f":"IFERROR(VLOOKUP(Issu_Tr[[#This Row],[Item Code]],Product[],2,FALSE),\"\")","v":""},{"$f":"IFERROR(VLOOKUP(Issu_Tr[[#This Row],[Item Code]],Product[],3,FALSE),\"\")","v":""}]
[{"$f":"IF(E89=\"\",\"\",SUBTOTAL(3,E$9:E89))","v":""},null,null,null,null,{"$f":"IFERROR(VLOOKUP(Issu_Tr[[#This Row],[Item Code]],Product[],2,FALSE),\"\")","v":""},{"$f":"IFERROR(VLOOKUP(Issu_Tr[[#This Row],[Item Code]],Product[],3,FALSE),\"\")","v":""}]
[{"$f":"IF(E90=\"\",\"\",SUBTOTAL(3,E$9:E90))","v":""},null,null,null,null,{"$f":"IFERROR(VLOOKUP(Issu_Tr[[#This Row],[Item Code]],Product[],2,FALSE),\"\")","v":""},{"$f":"IFERROR(VLOOKUP(Issu_Tr[[#This Row],[Item Code]],Product[],3,FALSE),\"\")","v":""}]
[{"$f":"IF(E91=\"\",\"\",SUBTOTAL(3,E$9:E91))","v":""},null,null,null,null,{"$f":"IFERROR(VLOOKUP(Issu_Tr[[#This Row],[Item Code]],Product[],2,FALSE),\"\")","v":""},{"$f":"IFERROR(VLOOKUP(Issu_Tr[[#This Row],[Item Code]],Product[],3,FALSE),\"\")","v":""}]
[{"$f":"IF(E92=\"\",\"\",SUBTOTAL(3,E$9:E92))","v":""},null,null,null,null,{"$f":"IFERROR(VLOOKUP(Issu_Tr[[#This Row],[Item Code]],Product[],2,FALSE),\"\")","v":""},{"$f":"IFERROR(VLOOKUP(Issu_Tr[[#This Row],[Item Code]],Product[],3,FALSE),\"\")","v":""}]
[{"$f":"IF(E93=\"\",\"\",SUBTOTAL(3,E$9:E93))","v":""},null,null,null,null,{"$f":"IFERROR(VLOOKUP(Issu_Tr[[#This Row],[Item Code]],Product[],2,FALSE),\"\")","v":""},{"$f":"IFERROR(VLOOKUP(Issu_Tr[[#This Row],[Item Code]],Product[],3,FALSE),\"\")","v":""}]
[{"$f":"IF(E94=\"\",\"\",SUBTOTAL(3,E$9:E94))","v":""},null,null,null,null,{"$f":"IFERROR(VLOOKUP(Issu_Tr[[#This Row],[Item Code]],Product[],2,FALSE),\"\")","v":""},{"$f":"IFERROR(VLOOKUP(Issu_Tr[[#This Row],[Item Code]],Product[],3,FALSE),\"\")","v":""}]
[{"$f":"IF(E95=\"\",\"\",SUBTOTAL(3,E$9:E95))","v":""},null,null,null,null,{"$f":"IFERROR(VLOOKUP(Issu_Tr[[#This Row],[Item Code]],Product[],2,FALSE),\"\")","v":""},{"$f":"IFERROR(VLOOKUP(Issu_Tr[[#This Row],[Item Code]],Product[],3,FALSE),\"\")","v":""}]
[{"$f":"IF(E96=\"\",\"\",SUBTOTAL(3,E$9:E96))","v":""},null,null,null,null,{"$f":"IFERROR(VLOOKUP(Issu_Tr[[#This Row],[Item Code]],Product[],2,FALSE),\"\")","v":""},{"$f":"IFERROR(VLOOKUP(Issu_Tr[[#This Row],[Item Code]],Product[],3,FALSE),\"\")","v":""}]
[{"$f":"IF(E97=\"\",\"\",SUBTOTAL(3,E$9:E97))","v":""},null,null,null,null,{"$f":"IFERROR(VLOOKUP(Issu_Tr[[#This Row],[Item Code]],Product[],2,FALSE),\"\")","v":""},{"$f":"IFERROR(VLOOKUP(Issu_Tr[[#This Row],[Item Code]],Product[],3,FALSE),\"\")","v":""}]
[{"$f":"IF(E98=\"\",\"\",SUBTOTAL(3,E$9:E98))","v":""},null,null,null,null,{"$f":"IFERROR(VLOOKUP(Issu_Tr[[#This Row],[Item Code]],Product[],2,FALSE),\"\")","v":""},{"$f":"IFERROR(VLOOKUP(Issu_Tr[[#This Row],[Item Code]],Product[],3,FALSE),\"\")","v":""}]
[{"$f":"IF(E99=\"\",\"\",SUBTOTAL(3,E$9:E99))","v":""},null,null,null,null,{"$f":"IFERROR(VLOOKUP(Issu_Tr[[#This Row],[Item Code]],Product[],2,FALSE),\"\")","v":""},{"$f":"IFERROR(VLOOKUP(Issu_Tr[[#This Row],[Item Code]],Product[],3,FALSE),\"\")","v":""}]
[{"$f":"IF(E100=\"\",\"\",SUBTOTAL(3,E$9:E100))","v":""},null,null,null,null,{"$f":"IFERROR(VLOOKUP(Issu_Tr[[#This Row],[Item Code]],Product[],2,FALSE),\"\")","v":""},{"$f":"IFERROR(VLOOKUP(Issu_Tr[[#This Row],[Item Code]],Product[],3,FALSE),\"\")","v":""}]
[{"$f":"IF(E101=\"\",\"\",SUBTOTAL(3,E$9:E101))","v":""},null,null,null,null,{"$f":"IFERROR(VLOOKUP(Issu_Tr[[#This Row],[Item Code]],Product[],2,FALSE),\"\")","v":""},{"$f":"IFERROR(VLOOKUP(Issu_Tr[[#This Row],[Item Code]],Product[],3,FALSE),\"\")","v":""}]
[{"$f":"IF(E102=\"\",\"\",SUBTOTAL(3,E$9:E102))","v":""},null,null,null,null,{"$f":"IFERROR(VLOOKUP(Issu_Tr[[#This Row],[Item Code]],Product[],2,FALSE),\"\")","v":""},{"$f":"IFERROR(VLOOKUP(Issu_Tr[[#This Row],[Item Code]],Product[],3,FALSE),\"\")","v":""}]
[{"$f":"IF(E103=\"\",\"\",SUBTOTAL(3,E$9:E103))","v":""},null,null,null,null,{"$f":"IFERROR(VLOOKUP(Issu_Tr[[#This Row],[Item Code]],Product[],2,FALSE),\"\")","v":""},{"$f":"IFERROR(VLOOKUP(Issu_Tr[[#This Row],[Item Code]],Product[],3,FALSE),\"\")","v":""}]
[{"$f":"IF(E104=\"\",\"\",SUBTOTAL(3,E$9:E104))","v":""},null,null,null,null,{"$f":"IFERROR(VLOOKUP(Issu_Tr[[#This Row],[Item Code]],Product[],2,FALSE),\"\")","v":""},{"$f":"IFERROR(VLOOKUP(Issu_Tr[[#This Row],[Item Code]],Product[],3,FALSE),\"\")","v":""}]
[{"$f":"IF(E105=\"\",\"\",SUBTOTAL(3,E$9:E105))","v":""},null,null,null,null,{"$f":"IFERROR(VLOOKUP(Issu_Tr[[#This Row],[Item Code]],Product[],2,FALSE),\"\")","v":""},{"$f":"IFERROR(VLOOKUP(Issu_Tr[[#This Row],[Item Code]],Product[],3,FALSE),\"\")","v":""}]
[{"$f":"IF(E106=\"\",\"\",SUBTOTAL(3,E$9:E106))","v":""},null,null,null,null,{"$f":"IFERROR(VLOOKUP(Issu_Tr[[#This Row],[Item Code]],Product[],2,FALSE),\"\")","v":""},{"$f":"IFERROR(VLOOKUP(Issu_Tr[[#This Row],[Item Code]],Product[],3,FALSE),\"\")","v":""}]
[{"$f":"IF(E107=\"\",\"\",SUBTOTAL(3,E$9:E107))","v":""},null,null,null,null,{"$f":"IFERROR(VLOOKUP(Issu_Tr[[#This Row],[Item Code]],Product[],2,FALSE),\"\")","v":""},{"$f":"IFERROR(VLOOKUP(Issu_Tr[[#This Row],[Item Code]],Product[],3,FALSE),\"\")","v":""}]
[{"$f":"IF(E108=\"\",\"\",SUBTOTAL(3,E$9:E108))","v":""},null,null,null,null,{"$f":"IFERROR(VLOOKUP(Issu_Tr[[#This Row],[Item Code]],Product[],2,FALSE),\"\")","v":""},{"$f":"IFERROR(VLOOKUP(Issu_Tr[[#This Row],[Item Code]],Product[],3,FALSE),\"\")","v":""}]
[{"$f":"IF(E109=\"\",\"\",SUBTOTAL(3,E$9:E109))","v":""},null,null,null,null,{"$f":"IFERROR(VLOOKUP(Issu_Tr[[#This Row],[Item Code]],Product[],2,FALSE),\"\")","v":""},{"$f":"IFERROR(VLOOKUP(Issu_Tr[[#This Row],[Item Code]],Product[],3,FALSE),\"\")","v":""}]
[{"$f":"IF(E110=\"\",\"\",SUBTOTAL(3,E$9:E110))","v":""},null,null,null,null,{"$f":"IFERROR(VLOOKUP(Issu_Tr[[#This Row],[Item Code]],Product[],2,FALSE),\"\")","v":""},{"$f":"IFERROR(VLOOKUP(Issu_Tr[[#This Row],[Item Code]],Product[],3,FALSE),\"\")","v":""}]
[{"$f":"IF(E111=\"\",\"\",SUBTOTAL(3,E$9:E111))","v":""},null,null,null,null,{"$f":"IFERROR(VLOOKUP(Issu_Tr[[#This Row],[Item Code]],Product[],2,FALSE),\"\")","v":""},{"$f":"IFERROR(VLOOKUP(Issu_Tr[[#This Row],[Item Code]],Product[],3,FALSE),\"\")","v":""}]
[{"$f":"IF(E112=\"\",\"\",SUBTOTAL(3,E$9:E112))","v":""},null,null,null,null,{"$f":"IFERROR(VLOOKUP(Issu_Tr[[#This Row],[Item Code]],Product[],2,FALSE),\"\")","v":""},{"$f":"IFERROR(VLOOKUP(Issu_Tr[[#This Row],[Item Code]],Product[],3,FALSE),\"\")","v":""}]
[{"$f":"IF(E113=\"\",\"\",SUBTOTAL(3,E$9:E113))","v":""},null,null,null,null,{"$f":"IFERROR(VLOOKUP(Issu_Tr[[#This Row],[Item Code]],Product[],2,FALSE),\"\")","v":""},{"$f":"IFERROR(VLOOKUP(Issu_Tr[[#This Row],[Item Code]],Product[],3,FALSE),\"\")","v":""}]
[{"$f":"IF(E114=\"\",\"\",SUBTOTAL(3,E$9:E114))","v":""},null,null,null,null,{"$f":"IFERROR(VLOOKUP(Issu_Tr[[#This Row],[Item Code]],Product[],2,FALSE),\"\")","v":""},{"$f":"IFERROR(VLOOKUP(Issu_Tr[[#This Row],[Item Code]],Product[],3,FALSE),\"\")","v":""}]
[{"$f":"IF(E115=\"\",\"\",SUBTOTAL(3,E$9:E115))","v":""},null,null,null,null,{"$f":"IFERROR(VLOOKUP(Issu_Tr[[#This Row],[Item Code]],Product[],2,FALSE),\"\")","v":""},{"$f":"IFERROR(VLOOKUP(Issu_Tr[[#This Row],[Item Code]],Product[],3,FALSE),\"\")","v":""}]
[{"$f":"IF(E116=\"\",\"\",SUBTOTAL(3,E$9:E116))","v":""},null,null,null,null,{"$f":"IFERROR(VLOOKUP(Issu_Tr[[#This Row],[Item Code]],Product[],2,FALSE),\"\")","v":""},{"$f":"IFERROR(VLOOKUP(Issu_Tr[[#This Row],[Item Code]],Product[],3,FALSE),\"\")","v":""}]
[{"$f":"IF(E117=\"\",\"\",SUBTOTAL(3,E$9:E117))","v":""},null,null,null,null,{"$f":"IFERROR(VLOOKUP(Issu_Tr[[#This Row],[Item Code]],Product[],2,FALSE),\"\")","v":""},{"$f":"IFERROR(VLOOKUP(Issu_Tr[[#This Row],[Item Code]],Product[],3,FALSE),\"\")","v":""}]
[{"$f":"IF(E118=\"\",\"\",SUBTOTAL(3,E$9:E118))","v":""},null,null,null,null,{"$f":"IFERROR(VLOOKUP(Issu_Tr[[#This Row],[Item Code]],Product[],2,FALSE),\"\")","v":""},{"$f":"IFERROR(VLOOKUP(Issu_Tr[[#This Row],[Item Code]],Product[],3,FALSE),\"\")","v":""}]
[{"$f":"IF(E119=\"\",\"\",SUBTOTAL(3,E$9:E119))","v":""},null,null,null,null,{"$f":"IFERROR(VLOOKUP(Issu_Tr[[#This Row],[Item Code]],Product[],2,FALSE),\"\")","v":""},{"$f":"IFERROR(VLOOKUP(Issu_Tr[[#This Row],[Item Code]],Product[],3,FALSE),\"\")","v":""}]
[{"$f":"IF(E120=\"\",\"\",SUBTOTAL(3,E$9:E120))","v":""},null,null,null,null,{"$f":"IFERROR(VLOOKUP(Issu_Tr[[#This Row],[Item Code]],Product[],2,FALSE),\"\")","v":""},{"$f":"IFERROR(VLOOKUP(Issu_Tr[[#This Row],[Item Code]],Product[],3,FALSE),\"\")","v":""}]
[{"$f":"IF(E121=\"\",\"\",SUBTOTAL(3,E$9:E121))","v":""},null,null,null,null,{"$f":"IFERROR(VLOOKUP(Issu_Tr[[#This Row],[Item Code]],Product[],2,FALSE),\"\")","v":""},{"$f":"IFERROR(VLOOKUP(Issu_Tr[[#This Row],[Item Code]],Product[],3,FALSE),\"\")","v":""}]
[{"$f":"IF(E122=\"\",\"\",SUBTOTAL(3,E$9:E122))","v":""},null,null,null,null,{"$f":"IFERROR(VLOOKUP(Issu_Tr[[#This Row],[Item Code]],Product[],2,FALSE),\"\")","v":""},{"$f":"IFERROR(VLOOKUP(Issu_Tr[[#This Row],[Item Code]],Product[],3,FALSE),\"\")","v":""}]
[{"$f":"IF(E123=\"\",\"\",SUBTOTAL(3,E$9:E123))","v":""},null,null,null,null,{"$f":"IFERROR(VLOOKUP(Issu_Tr[[#This Row],[Item Code]],Product[],2,FALSE),\"\")","v":""},{"$f":"IFERROR(VLOOKUP(Issu_Tr[[#This Row],[Item Code]],Product[],3,FALSE),\"\")","v":""}]
[{"$f":"IF(E124=\"\",\"\",SUBTOTAL(3,E$9:E124))","v":""},null,null,null,null,{"$f":"IFERROR(VLOOKUP(Issu_Tr[[#This Row],[Item Code]],Product[],2,FALSE),\"\")","v":""},{"$f":"IFERROR(VLOOKUP(Issu_Tr[[#This Row],[Item Code]],Product[],3,FALSE),\"\")","v":""}]
[{"$f":"IF(E125=\"\",\"\",SUBTOTAL(3,E$9:E125))","v":""},null,null,null,null,{"$f":"IFERROR(VLOOKUP(Issu_Tr[[#This Row],[Item Code]],Product[],2,FALSE),\"\")","v":""},{"$f":"IFERROR(VLOOKUP(Issu_Tr[[#This Row],[Item Code]],Product[],3,FALSE),\"\")","v":""}]
[{"$f":"IF(E126=\"\",\"\",SUBTOTAL(3,E$9:E126))","v":""},null,null,null,null,{"$f":"IFERROR(VLOOKUP(Issu_Tr[[#This Row],[Item Code]],Product[],2,FALSE),\"\")","v":""},{"$f":"IFERROR(VLOOKUP(Issu_Tr[[#This Row],[Item Code]],Product[],3,FALSE),\"\")","v":""}]
[{"$f":"IF(E127=\"\",\"\",SUBTOTAL(3,E$9:E127))","v":""},null,null,null,null,{"$f":"IFERROR(VLOOKUP(Issu_Tr[[#This Row],[Item Code]],Product[],2,FALSE),\"\")","v":""},{"$f":"IFERROR(VLOOKUP(Issu_Tr[[#This Row],[Item Code]],Product[],3,FALSE),\"\")","v":""}]
[{"$f":"IF(E128=\"\",\"\",SUBTOTAL(3,E$9:E128))","v":""},null,null,null,null,{"$f":"IFERROR(VLOOKUP(Issu_Tr[[#This Row],[Item Code]],Product[],2,FALSE),\"\")","v":""},{"$f":"IFERROR(VLOOKUP(Issu_Tr[[#This Row],[Item Code]],Product[],3,FALSE),\"\")","v":""}]
[{"$f":"IF(E129=\"\",\"\",SUBTOTAL(3,E$9:E129))","v":""},null,null,null,null,{"$f":"IFERROR(VLOOKUP(Issu_Tr[[#This Row],[Item Code]],Product[],2,FALSE),\"\")","v":""},{"$f":"IFERROR(VLOOKUP(Issu_Tr[[#This Row],[Item Code]],Product[],3,FALSE),\"\")","v":""}]
[{"$f":"IF(E130=\"\",\"\",SUBTOTAL(3,E$9:E130))","v":""},null,null,null,null,{"$f":"IFERROR(VLOOKUP(Issu_Tr[[#This Row],[Item Code]],Product[],2,FALSE),\"\")","v":""},{"$f":"IFERROR(VLOOKUP(Issu_Tr[[#This Row],[Item Code]],Product[],3,FALSE),\"\")","v":""}]
[{"$f":"IF(E131=\"\",\"\",SUBTOTAL(3,E$9:E131))","v":""},null,null,null,null,{"$f":"IFERROR(VLOOKUP(Issu_Tr[[#This Row],[Item Code]],Product[],2,FALSE),\"\")","v":""},{"$f":"IFERROR(VLOOKUP(Issu_Tr[[#This Row],[Item Code]],Product[],3,FALSE),\"\")","v":""}]
[{"$f":"IF(E132=\"\",\"\",SUBTOTAL(3,E$9:E132))","v":""},null,null,null,null,{"$f":"IFERROR(VLOOKUP(Issu_Tr[[#This Row],[Item Code]],Product[],2,FALSE),\"\")","v":""},{"$f":"IFERROR(VLOOKUP(Issu_Tr[[#This Row],[Item Code]],Product[],3,FALSE),\"\")","v":""}]
[{"$f":"IF(E133=\"\",\"\",SUBTOTAL(3,E$9:E133))","v":""},null,null,null,null,{"$f":"IFERROR(VLOOKUP(Issu_Tr[[#This Row],[Item Code]],Product[],2,FALSE),\"\")","v":""},{"$f":"IFERROR(VLOOKUP(Issu_Tr[[#This Row],[Item Code]],Product[],3,FALSE),\"\")","v":""}]
[{"$f":"IF(E134=\"\",\"\",SUBTOTAL(3,E$9:E134))","v":""},null,null,null,null,{"$f":"IFERROR(VLOOKUP(Issu_Tr[[#This Row],[Item Code]],Product[],2,FALSE),\"\")","v":""},{"$f":"IFERROR(VLOOKUP(Issu_Tr[[#This Row],[Item Code]],Product[],3,FALSE),\"\")","v":""}]
[{"$f":"IF(E135=\"\",\"\",SUBTOTAL(3,E$9:E135))","v":""},null,null,null,null,{"$f":"IFERROR(VLOOKUP(Issu_Tr[[#This Row],[Item Code]],Product[],2,FALSE),\"\")","v":""},{"$f":"IFERROR(VLOOKUP(Issu_Tr[[#This Row],[Item Code]],Product[],3,FALSE),\"\")","v":""}]
[{"$f":"IF(E136=\"\",\"\",SUBTOTAL(3,E$9:E136))","v":""},null,null,null,null,{"$f":"IFERROR(VLOOKUP(Issu_Tr[[#This Row],[Item Code]],Product[],2,FALSE),\"\")","v":""},{"$f":"IFERROR(VLOOKUP(Issu_Tr[[#This Row],[Item Code]],Product[],3,FALSE),\"\")","v":""}]
[{"$f":"IF(E137=\"\",\"\",SUBTOTAL(3,E$9:E137))","v":""},null,null,null,null,{"$f":"IFERROR(VLOOKUP(Issu_Tr[[#This Row],[Item Code]],Product[],2,FALSE),\"\")","v":""},{"$f":"IFERROR(VLOOKUP(Issu_Tr[[#This Row],[Item Code]],Product[],3,FALSE),\"\")","v":""}]
[{"$f":"IF(E138=\"\",\"\",SUBTOTAL(3,E$9:E138))","v":""},null,null,null,null,{"$f":"IFERROR(VLOOKUP(Issu_Tr[[#This Row],[Item Code]],Product[],2,FALSE),\"\")","v":""},{"$f":"IFERROR(VLOOKUP(Issu_Tr[[#This Row],[Item Code]],Product[],3,FALSE),\"\")","v":""}]
[{"$f":"IF(E139=\"\",\"\",SUBTOTAL(3,E$9:E139))","v":""},null,null,null,null,{"$f":"IFERROR(VLOOKUP(Issu_Tr[[#This Row],[Item Code]],Product[],2,FALSE),\"\")","v":""},{"$f":"IFERROR(VLOOKUP(Issu_Tr[[#This Row],[Item Code]],Product[],3,FALSE),\"\")","v":""}]
[{"$f":"IF(E140=\"\",\"\",SUBTOTAL(3,E$9:E140))","v":""},null,null,null,null,{"$f":"IFERROR(VLOOKUP(Issu_Tr[[#This Row],[Item Code]],Product[],2,FALSE),\"\")","v":""},{"$f":"IFERROR(VLOOKUP(Issu_Tr[[#This Row],[Item Code]],Product[],3,FALSE),\"\")","v":""}]
[{"$f":"IF(E141=\"\",\"\",SUBTOTAL(3,E$9:E141))","v":""},null,null,null,null,{"$f":"IFERROR(VLOOKUP(Issu_Tr[[#This Row],[Item Code]],Product[],2,FALSE),\"\")","v":""},{"$f":"IFERROR(VLOOKUP(Issu_Tr[[#This Row],[Item Code]],Product[],3,FALSE),\"\")","v":""}]
[{"$f":"IF(E142=\"\",\"\",SUBTOTAL(3,E$9:E142))","v":""},null,null,null,null,{"$f":"IFERROR(VLOOKUP(Issu_Tr[[#This Row],[Item Code]],Product[],2,FALSE),\"\")","v":""},{"$f":"IFERROR(VLOOKUP(Issu_Tr[[#This Row],[Item Code]],Product[],3,FALSE),\"\")","v":""}]
[{"$f":"IF(E143=\"\",\"\",SUBTOTAL(3,E$9:E143))","v":""},null,null,null,null,{"$f":"IFERROR(VLOOKUP(Issu_Tr[[#This Row],[Item Code]],Product[],2,FALSE),\"\")","v":""},{"$f":"IFERROR(VLOOKUP(Issu_Tr[[#This Row],[Item Code]],Product[],3,FALSE),\"\")","v":""}]
[{"$f":"IF(E144=\"\",\"\",SUBTOTAL(3,E$9:E144))","v":""},null,null,null,null,{"$f":"IFERROR(VLOOKUP(Issu_Tr[[#This Row],[Item Code]],Product[],2,FALSE),\"\")","v":""},{"$f":"IFERROR(VLOOKUP(Issu_Tr[[#This Row],[Item Code]],Product[],3,FALSE),\"\")","v":""}]
[{"$f":"IF(E145=\"\",\"\",SUBTOTAL(3,E$9:E145))","v":""},null,null,null,null,{"$f":"IFERROR(VLOOKUP(Issu_Tr[[#This Row],[Item Code]],Product[],2,FALSE),\"\")","v":""},{"$f":"IFERROR(VLOOKUP(Issu_Tr[[#This Row],[Item Code]],Product[],3,FALSE),\"\")","v":""}]
[{"$f":"IF(E146=\"\",\"\",SUBTOTAL(3,E$9:E146))","v":""},null,null,null,null,{"$f":"IFERROR(VLOOKUP(Issu_Tr[[#This Row],[Item Code]],Product[],2,FALSE),\"\")","v":""},{"$f":"IFERROR(VLOOKUP(Issu_Tr[[#This Row],[Item Code]],Product[],3,FALSE),\"\")","v":""}]
[{"$f":"IF(E147=\"\",\"\",SUBTOTAL(3,E$9:E147))","v":""},null,null,null,null,{"$f":"IFERROR(VLOOKUP(Issu_Tr[[#This Row],[Item Code]],Product[],2,FALSE),\"\")","v":""},{"$f":"IFERROR(VLOOKUP(Issu_Tr[[#This Row],[Item Code]],Product[],3,FALSE),\"\")","v":""}]
[{"$f":"IF(E148=\"\",\"\",SUBTOTAL(3,E$9:E148))","v":""},null,null,null,null,{"$f":"IFERROR(VLOOKUP(Issu_Tr[[#This Row],[Item Code]],Product[],2,FALSE),\"\")","v":""},{"$f":"IFERROR(VLOOKUP(Issu_Tr[[#This Row],[Item Code]],Product[],3,FALSE),\"\")","v":""}]
[{"$f":"IF(E149=\"\",\"\",SUBTOTAL(3,E$9:E149))","v":""},null,null,null,null,{"$f":"IFERROR(VLOOKUP(Issu_Tr[[#This Row],[Item Code]],Product[],2,FALSE),\"\")","v":""},{"$f":"IFERROR(VLOOKUP(Issu_Tr[[#This Row],[Item Code]],Product[],3,FALSE),\"\")","v":""}]
[{"$f":"IF(E150=\"\",\"\",SUBTOTAL(3,E$9:E150))","v":""},null,null,null,null,{"$f":"IFERROR(VLOOKUP(Issu_Tr[[#This Row],[Item Code]],Product[],2,FALSE),\"\")","v":""},{"$f":"IFERROR(VLOOKUP(Issu_Tr[[#This Row],[Item Code]],Product[],3,FALSE),\"\")","v":""}]
[{"$f":"IF(E151=\"\",\"\",SUBTOTAL(3,E$9:E151))","v":""},null,null,null,null,{"$f":"IFERROR(VLOOKUP(Issu_Tr[[#This Row],[Item Code]],Product[],2,FALSE),\"\")","v":""},{"$f":"IFERROR(VLOOKUP(Issu_Tr[[#This Row],[Item Code]],Product[],3,FALSE),\"\")","v":""}]
[{"$f":"IF(E152=\"\",\"\",SUBTOTAL(3,E$9:E152))","v":""},null,null,null,null,{"$f":"IFERROR(VLOOKUP(Issu_Tr[[#This Row],[Item Code]],Product[],2,FALSE),\"\")","v":""},{"$f":"IFERROR(VLOOKUP(Issu_Tr[[#This Row],[Item Code]],Product[],3,FALSE),\"\")","v":""}]
[{"$f":"IF(E153=\"\",\"\",SUBTOTAL(3,E$9:E153))","v":""},null,null,null,null,{"$f":"IFERROR(VLOOKUP(Issu_Tr[[#This Row],[Item Code]],Product[],2,FALSE),\"\")","v":""},{"$f":"IFERROR(VLOOKUP(Issu_Tr[[#This Row],[Item Code]],Product[],3,FALSE),\"\")","v":""}]
[{"$f":"IF(E154=\"\",\"\",SUBTOTAL(3,E$9:E154))","v":""},null,null,null,null,{"$f":"IFERROR(VLOOKUP(Issu_Tr[[#This Row],[Item Code]],Product[],2,FALSE),\"\")","v":""},{"$f":"IFERROR(VLOOKUP(Issu_Tr[[#This Row],[Item Code]],Product[],3,FALSE),\"\")","v":""}]
[{"$f":"IF(E155=\"\",\"\",SUBTOTAL(3,E$9:E155))","v":""},null,null,null,null,{"$f":"IFERROR(VLOOKUP(Issu_Tr[[#This Row],[Item Code]],Product[],2,FALSE),\"\")","v":""},{"$f":"IFERROR(VLOOKUP(Issu_Tr[[#This Row],[Item Code]],Product[],3,FALSE),\"\")","v":""}]
[{"$f":"IF(E156=\"\",\"\",SUBTOTAL(3,E$9:E156))","v":""},null,null,null,null,{"$f":"IFERROR(VLOOKUP(Issu_Tr[[#This Row],[Item Code]],Product[],2,FALSE),\"\")","v":""},{"$f":"IFERROR(VLOOKUP(Issu_Tr[[#This Row],[Item Code]],Product[],3,FALSE),\"\")","v":""}]
[{"$f":"IF(E157=\"\",\"\",SUBTOTAL(3,E$9:E157))","v":""},null,null,null,null,{"$f":"IFERROR(VLOOKUP(Issu_Tr[[#This Row],[Item Code]],Product[],2,FALSE),\"\")","v":""},{"$f":"IFERROR(VLOOKUP(Issu_Tr[[#This Row],[Item Code]],Product[],3,FALSE),\"\")","v":""}]
[{"$f":"IF(E158=\"\",\"\",SUBTOTAL(3,E$9:E158))","v":""},null,null,null,null,{"$f":"IFERROR(VLOOKUP(Issu_Tr[[#This Row],[Item Code]],Product[],2,FALSE),\"\")","v":""},{"$f":"IFERROR(VLOOKUP(Issu_Tr[[#This Row],[Item Code]],Product[],3,FALSE),\"\")","v":""}]
[{"$f":"IF(E159=\"\",\"\",SUBTOTAL(3,E$9:E159))","v":""},null,null,null,null,{"$f":"IFERROR(VLOOKUP(Issu_Tr[[#This Row],[Item Code]],Product[],2,FALSE),\"\")","v":""},{"$f":"IFERROR(VLOOKUP(Issu_Tr[[#This Row],[Item Code]],Product[],3,FALSE),\"\")","v":""}]
[{"$f":"IF(E160=\"\",\"\",SUBTOTAL(3,E$9:E160))","v":""},null,null,null,null,{"$f":"IFERROR(VLOOKUP(Issu_Tr[[#This Row],[Item Code]],Product[],2,FALSE),\"\")","v":""},{"$f":"IFERROR(VLOOKUP(Issu_Tr[[#This Row],[Item Code]],Product[],3,FALSE),\"\")","v":""}]
[{"$f":"IF(E161=\"\",\"\",SUBTOTAL(3,E$9:E161))","v":""},null,null,null,null,{"$f":"IFERROR(VLOOKUP(Issu_Tr[[#This Row],[Item Code]],Product[],2,FALSE),\"\")","v":""},{"$f":"IFERROR(VLOOKUP(Issu_Tr[[#This Row],[Item Code]],Product[],3,FALSE),\"\")","v":""}]
[{"$f":"IF(E162=\"\",\"\",SUBTOTAL(3,E$9:E162))","v":""},null,null,null,null,{"$f":"IFERROR(VLOOKUP(Issu_Tr[[#This Row],[Item Code]],Product[],2,FALSE),\"\")","v":""},{"$f":"IFERROR(VLOOKUP(Issu_Tr[[#This Row],[Item Code]],Product[],3,FALSE),\"\")","v":""}]
[{"$f":"IF(E163=\"\",\"\",SUBTOTAL(3,E$9:E163))","v":""},null,null,null,null,{"$f":"IFERROR(VLOOKUP(Issu_Tr[[#This Row],[Item Code]],Product[],2,FALSE),\"\")","v":""},{"$f":"IFERROR(VLOOKUP(Issu_Tr[[#This Row],[Item Code]],Product[],3,FALSE),\"\")","v":""}]
[{"$f":"IF(E164=\"\",\"\",SUBTOTAL(3,E$9:E164))","v":""},null,null,null,null,{"$f":"IFERROR(VLOOKUP(Issu_Tr[[#This Row],[Item Code]],Product[],2,FALSE),\"\")","v":""},{"$f":"IFERROR(VLOOKUP(Issu_Tr[[#This Row],[Item Code]],Product[],3,FALSE),\"\")","v":""}]
[{"$f":"IF(E165=\"\",\"\",SUBTOTAL(3,E$9:E165))","v":""},null,null,null,null,{"$f":"IFERROR(VLOOKUP(Issu_Tr[[#This Row],[Item Code]],Product[],2,FALSE),\"\")","v":""},{"$f":"IFERROR(VLOOKUP(Issu_Tr[[#This Row],[Item Code]],Product[],3,FALSE),\"\")","v":""}]
[{"$f":"IF(E166=\"\",\"\",SUBTOTAL(3,E$9:E166))","v":""},null,null,null,null,{"$f":"IFERROR(VLOOKUP(Issu_Tr[[#This Row],[Item Code]],Product[],2,FALSE),\"\")","v":""},{"$f":"IFERROR(VLOOKUP(Issu_Tr[[#This Row],[Item Code]],Product[],3,FALSE),\"\")","v":""}]
[{"$f":"IF(E167=\"\",\"\",SUBTOTAL(3,E$9:E167))","v":""},null,null,null,null,{"$f":"IFERROR(VLOOKUP(Issu_Tr[[#This Row],[Item Code]],Product[],2,FALSE),\"\")","v":""},{"$f":"IFERROR(VLOOKUP(Issu_Tr[[#This Row],[Item Code]],Product[],3,FALSE),\"\")","v":""}]
[{"$f":"IF(E168=\"\",\"\",SUBTOTAL(3,E$9:E168))","v":""},null,null,null,null,{"$f":"IFERROR(VLOOKUP(Issu_Tr[[#This Row],[Item Code]],Product[],2,FALSE),\"\")","v":""},{"$f":"IFERROR(VLOOKUP(Issu_Tr[[#This Row],[Item Code]],Product[],3,FALSE),\"\")","v":""}]
[{"$f":"IF(E169=\"\",\"\",SUBTOTAL(3,E$9:E169))","v":""},null,null,null,null,{"$f":"IFERROR(VLOOKUP(Issu_Tr[[#This Row],[Item Code]],Product[],2,FALSE),\"\")","v":""},{"$f":"IFERROR(VLOOKUP(Issu_Tr[[#This Row],[Item Code]],Product[],3,FALSE),\"\")","v":""}]
[{"$f":"IF(E170=\"\",\"\",SUBTOTAL(3,E$9:E170))","v":""},null,null,null,null,{"$f":"IFERROR(VLOOKUP(Issu_Tr[[#This Row],[Item Code]],Product[],2,FALSE),\"\")","v":""},{"$f":"IFERROR(VLOOKUP(Issu_Tr[[#This Row],[Item Code]],Product[],3,FALSE),\"\")","v":""}]
[{"$f":"IF(E171=\"\",\"\",SUBTOTAL(3,E$9:E171))","v":""},null,null,null,null,{"$f":"IFERROR(VLOOKUP(Issu_Tr[[#This Row],[Item Code]],Product[],2,FALSE),\"\")","v":""},{"$f":"IFERROR(VLOOKUP(Issu_Tr[[#This Row],[Item Code]],Product[],3,FALSE),\"\")","v":""}]
[{"$f":"IF(E172=\"\",\"\",SUBTOTAL(3,E$9:E172))","v":""},null,null,null,null,{"$f":"IFERROR(VLOOKUP(Issu_Tr[[#This Row],[Item Code]],Product[],2,FALSE),\"\")","v":""},{"$f":"IFERROR(VLOOKUP(Issu_Tr[[#This Row],[Item Code]],Product[],3,FALSE),\"\")","v":""}]
[{"$f":"IF(E173=\"\",\"\",SUBTOTAL(3,E$9:E173))","v":""},null,null,null,null,{"$f":"IFERROR(VLOOKUP(Issu_Tr[[#This Row],[Item Code]],Product[],2,FALSE),\"\")","v":""},{"$f":"IFERROR(VLOOKUP(Issu_Tr[[#This Row],[Item Code]],Product[],3,FALSE),\"\")","v":""}]
[{"$f":"IF(E174=\"\",\"\",SUBTOTAL(3,E$9:E174))","v":""},null,null,null,null,{"$f":"IFERROR(VLOOKUP(Issu_Tr[[#This Row],[Item Code]],Product[],2,FALSE),\"\")","v":""},{"$f":"IFERROR(VLOOKUP(Issu_Tr[[#This Row],[Item Code]],Product[],3,FALSE),\"\")","v":""}]
[{"$f":"IF(E175=\"\",\"\",SUBTOTAL(3,E$9:E175))","v":""},null,null,null,null,{"$f":"IFERROR(VLOOKUP(Issu_Tr[[#This Row],[Item Code]],Product[],2,FALSE),\"\")","v":""},{"$f":"IFERROR(VLOOKUP(Issu_Tr[[#This Row],[Item Code]],Product[],3,FALSE),\"\")","v":""}]
[{"$f":"IF(E176=\"\",\"\",SUBTOTAL(3,E$9:E176))","v":""},null,null,null,null,{"$f":"IFERROR(VLOOKUP(Issu_Tr[[#This Row],[Item Code]],Product[],2,FALSE),\"\")","v":""},{"$f":"IFERROR(VLOOKUP(Issu_Tr[[#This Row],[Item Code]],Product[],3,FALSE),\"\")","v":""}]
[{"$f":"IF(E177=\"\",\"\",SUBTOTAL(3,E$9:E177))","v":""},null,null,null,null,{"$f":"IFERROR(VLOOKUP(Issu_Tr[[#This Row],[Item Code]],Product[],2,FALSE),\"\")","v":""},{"$f":"IFERROR(VLOOKUP(Issu_Tr[[#This Row],[Item Code]],Product[],3,FALSE),\"\")","v":""}]
[{"$f":"IF(E178=\"\",\"\",SUBTOTAL(3,E$9:E178))","v":""},null,null,null,null,{"$f":"IFERROR(VLOOKUP(Issu_Tr[[#This Row],[Item Code]],Product[],2,FALSE),\"\")","v":""},{"$f":"IFERROR(VLOOKUP(Issu_Tr[[#This Row],[Item Code]],Product[],3,FALSE),\"\")","v":""}]
[{"$f":"IF(E179=\"\",\"\",SUBTOTAL(3,E$9:E179))","v":""},null,null,null,null,{"$f":"IFERROR(VLOOKUP(Issu_Tr[[#This Row],[Item Code]],Product[],2,FALSE),\"\")","v":""},{"$f":"IFERROR(VLOOKUP(Issu_Tr[[#This Row],[Item Code]],Product[],3,FALSE),\"\")","v":""}]
[{"$f":"IF(E180=\"\",\"\",SUBTOTAL(3,E$9:E180))","v":""},null,null,null,null,{"$f":"IFERROR(VLOOKUP(Issu_Tr[[#This Row],[Item Code]],Product[],2,FALSE),\"\")","v":""},{"$f":"IFERROR(VLOOKUP(Issu_Tr[[#This Row],[Item Code]],Product[],3,FALSE),\"\")","v":""}]
[{"$f":"IF(E181=\"\",\"\",SUBTOTAL(3,E$9:E181))","v":""},null,null,null,null,{"$f":"IFERROR(VLOOKUP(Issu_Tr[[#This Row],[Item Code]],Product[],2,FALSE),\"\")","v":""},{"$f":"IFERROR(VLOOKUP(Issu_Tr[[#This Row],[Item Code]],Product[],3,FALSE),\"\")","v":""}]
[{"$f":"IF(E182=\"\",\"\",SUBTOTAL(3,E$9:E182))","v":""},null,null,null,null,{"$f":"IFERROR(VLOOKUP(Issu_Tr[[#This Row],[Item Code]],Product[],2,FALSE),\"\")","v":""},{"$f":"IFERROR(VLOOKUP(Issu_Tr[[#This Row],[Item Code]],Product[],3,FALSE),\"\")","v":""}]
[{"$f":"IF(E183=\"\",\"\",SUBTOTAL(3,E$9:E183))","v":""},null,null,null,null,{"$f":"IFERROR(VLOOKUP(Issu_Tr[[#This Row],[Item Code]],Product[],2,FALSE),\"\")","v":""},{"$f":"IFERROR(VLOOKUP(Issu_Tr[[#This Row],[Item Code]],Product[],3,FALSE),\"\")","v":""}]
[{"$f":"IF(E184=\"\",\"\",SUBTOTAL(3,E$9:E184))","v":""},null,null,null,null,{"$f":"IFERROR(VLOOKUP(Issu_Tr[[#This Row],[Item Code]],Product[],2,FALSE),\"\")","v":""},{"$f":"IFERROR(VLOOKUP(Issu_Tr[[#This Row],[Item Code]],Product[],3,FALSE),\"\")","v":""}]
[{"$f":"IF(E185=\"\",\"\",SUBTOTAL(3,E$9:E185))","v":""},null,null,null,null,{"$f":"IFERROR(VLOOKUP(Issu_Tr[[#This Row],[Item Code]],Product[],2,FALSE),\"\")","v":""},{"$f":"IFERROR(VLOOKUP(Issu_Tr[[#This Row],[Item Code]],Product[],3,FALSE),\"\")","v":""}]
[{"$f":"IF(E186=\"\",\"\",SUBTOTAL(3,E$9:E186))","v":""},null,null,null,null,{"$f":"IFERROR(VLOOKUP(Issu_Tr[[#This Row],[Item Code]],Product[],2,FALSE),\"\")","v":""},{"$f":"IFERROR(VLOOKUP(Issu_Tr[[#This Row],[Item Code]],Product[],3,FALSE),\"\")","v":""}]
[{"$f":"IF(E187=\"\",\"\",SUBTOTAL(3,E$9:E187))","v":""},null,null,null,null,{"$f":"IFERROR(VLOOKUP(Issu_Tr[[#This Row],[Item Code]],Product[],2,FALSE),\"\")","v":""},{"$f":"IFERROR(VLOOKUP(Issu_Tr[[#This Row],[Item Code]],Product[],3,FALSE),\"\")","v":""}]
[{"$f":"IF(E188=\"\",\"\",SUBTOTAL(3,E$9:E188))","v":""},null,null,null,null,{"$f":"IFERROR(VLOOKUP(Issu_Tr[[#This Row],[Item Code]],Product[],2,FALSE),\"\")","v":""},{"$f":"IFERROR(VLOOKUP(Issu_Tr[[#This Row],[Item Code]],Product[],3,FALSE),\"\")","v":""}]
[{"$f":"IF(E189=\"\",\"\",SUBTOTAL(3,E$9:E189))","v":""},null,null,null,null,{"$f":"IFERROR(VLOOKUP(Issu_Tr[[#This Row],[Item Code]],Product[],2,FALSE),\"\")","v":""},{"$f":"IFERROR(VLOOKUP(Issu_Tr[[#This Row],[Item Code]],Product[],3,FALSE),\"\")","v":""}]
[{"$f":"IF(E190=\"\",\"\",SUBTOTAL(3,E$9:E190))","v":""},null,null,null,null,{"$f":"IFERROR(VLOOKUP(Issu_Tr[[#This Row],[Item Code]],Product[],2,FALSE),\"\")","v":""},{"$f":"IFERROR(VLOOKUP(Issu_Tr[[#This Row],[Item Code]],Product[],3,FALSE),\"\")","v":""}]
[{"$f":"IF(E191=\"\",\"\",SUBTOTAL(3,E$9:E191))","v":""},null,null,null,null,{"$f":"IFERROR(VLOOKUP(Issu_Tr[[#This Row],[Item Code]],Product[],2,FALSE),\"\")","v":""},{"$f":"IFERROR(VLOOKUP(Issu_Tr[[#This Row],[Item Code]],Product[],3,FALSE),\"\")","v":""}]
[{"$f":"IF(E192=\"\",\"\",SUBTOTAL(3,E$9:E192))","v":""},null,null,null,null,{"$f":"IFERROR(VLOOKUP(Issu_Tr[[#This Row],[Item Code]],Product[],2,FALSE),\"\")","v":""},{"$f":"IFERROR(VLOOKUP(Issu_Tr[[#This Row],[Item Code]],Product[],3,FALSE),\"\")","v":""}]
[{"$f":"IF(E193=\"\",\"\",SUBTOTAL(3,E$9:E193))","v":""},null,null,null,null,{"$f":"IFERROR(VLOOKUP(Issu_Tr[[#This Row],[Item Code]],Product[],2,FALSE),\"\")","v":""},{"$f":"IFERROR(VLOOKUP(Issu_Tr[[#This Row],[Item Code]],Product[],3,FALSE),\"\")","v":""}]
[{"$f":"IF(E194=\"\",\"\",SUBTOTAL(3,E$9:E194))","v":""},null,null,null,null,{"$f":"IFERROR(VLOOKUP(Issu_Tr[[#This Row],[Item Code]],Product[],2,FALSE),\"\")","v":""},{"$f":"IFERROR(VLOOKUP(Issu_Tr[[#This Row],[Item Code]],Product[],3,FALSE),\"\")","v":""}]
[{"$f":"IF(E195=\"\",\"\",SUBTOTAL(3,E$9:E195))","v":""},null,null,null,null,{"$f":"IFERROR(VLOOKUP(Issu_Tr[[#This Row],[Item Code]],Product[],2,FALSE),\"\")","v":""},{"$f":"IFERROR(VLOOKUP(Issu_Tr[[#This Row],[Item Code]],Product[],3,FALSE),\"\")","v":""}]
[{"$f":"IF(E196=\"\",\"\",SUBTOTAL(3,E$9:E196))","v":""},null,null,null,null,{"$f":"IFERROR(VLOOKUP(Issu_Tr[[#This Row],[Item Code]],Product[],2,FALSE),\"\")","v":""},{"$f":"IFERROR(VLOOKUP(Issu_Tr[[#This Row],[Item Code]],Product[],3,FALSE),\"\")","v":""}]
[{"$f":"IF(E197=\"\",\"\",SUBTOTAL(3,E$9:E197))","v":""},null,null,null,null,{"$f":"IFERROR(VLOOKUP(Issu_Tr[[#This Row],[Item Code]],Product[],2,FALSE),\"\")","v":""},{"$f":"IFERROR(VLOOKUP(Issu_Tr[[#This Row],[Item Code]],Product[],3,FALSE),\"\")","v":""}]
[{"$f":"IF(E198=\"\",\"\",SUBTOTAL(3,E$9:E198))","v":""},null,null,null,null,{"$f":"IFERROR(VLOOKUP(Issu_Tr[[#This Row],[Item Code]],Product[],2,FALSE),\"\")","v":""},{"$f":"IFERROR(VLOOKUP(Issu_Tr[[#This Row],[Item Code]],Product[],3,FALSE),\"\")","v":""}]
[{"$f":"IF(E199=\"\",\"\",SUBTOTAL(3,E$9:E199))","v":""},null,null,null,null,{"$f":"IFERROR(VLOOKUP(Issu_Tr[[#This Row],[Item Code]],Product[],2,FALSE),\"\")","v":""},{"$f":"IFERROR(VLOOKUP(Issu_Tr[[#This Row],[Item Code]],Product[],3,FALSE),\"\")","v":""}]
[{"$f":"IF(E200=\"\",\"\",SUBTOTAL(3,E$9:E200))","v":""},null,null,null,null,{"$f":"IFERROR(VLOOKUP(Issu_Tr[[#This Row],[Item Code]],Product[],2,FALSE),\"\")","v":""},{"$f":"IFERROR(VLOOKUP(Issu_Tr[[#This Row],[Item Code]],Product[],3,FALSE),\"\")","v":""}]
[{"$f":"IF(E201=\"\",\"\",SUBTOTAL(3,E$9:E201))","v":""},null,null,null,null,{"$f":"IFERROR(VLOOKUP(Issu_Tr[[#This Row],[Item Code]],Product[],2,FALSE),\"\")","v":""},{"$f":"IFERROR(VLOOKUP(Issu_Tr[[#This Row],[Item Code]],Product[],3,FALSE),\"\")","v":""}]

{"sheet":"Is.Order","index":4,"n_rows":36,"n_cols":10,"rows_kept":36,"cut":false,"hidden":false,"merged":[[8,9,8,12],[9,9,9,12],[10,9,10,12]]}
[]
[]
[]
[]
[]
[]
[]
[]
[null,null,null,null,null,null,null,null,"S.N"]
[null,null,null,null,null,null,null,null,"Date",{"$f":"IFERROR(VLOOKUP($J$9,IssTrans,2,FALSE),\"\")","v":""}]
[null,null,null,null,null,null,null,null,"Location",{"$f":"IFERROR(VLOOKUP($J$9,IssTrans,3,FALSE),\"\")","v":""}]
[]
[]
[]
[]
[null,null,null,null,null,"Sl","Item Code","Item Name","Unit","Qty"]
[null,null,null,null,null,{"$f":"IF(H17=\"\",\"\",SUBTOTAL(3,H$17:H17))","v":""},{"$f":"IFERROR(INDEX(Issu_Tr[],SMALL(IF(Issu_Tr[Order No]=$J$9,ROW(Issu_Tr[])-ROW(Issu_Tr[#Headers])),ROW(1:1)),MATCH($G$16,Issu_Tr[#Headers],0)),\"\")","v":0},{"$f":"IFERROR(INDEX(Issu_Tr[],SMALL(IF(Issu_Tr[Order No]=$J$9,ROW(Issu_Tr[])-ROW(Issu_Tr[#Headers])),ROW(1:1)),MATCH($H$16,Issu_Tr[#Headers],0)),\"\")","v":""},{"$f":"IFERROR(INDEX(Issu_Tr[],SMALL(IF(Issu_Tr[Order No]=$J$9,ROW(Issu_Tr[])-ROW(Issu_Tr[#Headers])),ROW(1:1)),MATCH($I$16,Issu_Tr[#Headers],0)),\"\")","v":""},{"$f":"IFERROR(INDEX(Issu_Tr[],SMALL(IF(Issu_Tr[Order No]=$J$9,ROW(Issu_Tr[])-ROW(Issu_Tr[#Headers])),ROW(1:1)),MATCH($J$16,Issu_Tr[#Headers],0)),\"\")","v":0}]
[null,null,null,null,null,{"$f":"IF(H18=\"\",\"\",SUBTOTAL(3,H$17:H18))","v":""},{"$f":"IFERROR(INDEX(Issu_Tr[],SMALL(IF(Issu_Tr[Order No]=$J$9,ROW(Issu_Tr[])-ROW(Issu_Tr[#Headers])),ROW(2:2)),MATCH($G$16,Issu_Tr[#Headers],0)),\"\")","v":0},{"$f":"IFERROR(INDEX(Issu_Tr[],SMALL(IF(Issu_Tr[Order No]=$J$9,ROW(Issu_Tr[])-ROW(Issu_Tr[#Headers])),ROW(2:2)),MATCH($H$16,Issu_Tr[#Headers],0)),\"\")","v":""},{"$f":"IFERROR(INDEX(Issu_Tr[],SMALL(IF(Issu_Tr[Order No]=$J$9,ROW(Issu_Tr[])-ROW(Issu_Tr[#Headers])),ROW(2:2)),MATCH($I$16,Issu_Tr[#Headers],0)),\"\")","v":""},{"$f":"IFERROR(INDEX(Issu_Tr[],SMALL(IF(Issu_Tr[Order No]=$J$9,ROW(Issu_Tr[])-ROW(Issu_Tr[#Headers])),ROW(2:2)),MATCH($J$16,Issu_Tr[#Headers],0)),\"\")","v":0}]
[null,null,null,null,null,{"$f":"IF(H19=\"\",\"\",SUBTOTAL(3,H$17:H19))","v":""},{"$f":"IFERROR(INDEX(Issu_Tr[],SMALL(IF(Issu_Tr[Order No]=$J$9,ROW(Issu_Tr[])-ROW(Issu_Tr[#Headers])),ROW(3:3)),MATCH($G$16,Issu_Tr[#Headers],0)),\"\")","v":0},{"$f":"IFERROR(INDEX(Issu_Tr[],SMALL(IF(Issu_Tr[Order No]=$J$9,ROW(Issu_Tr[])-ROW(Issu_Tr[#Headers])),ROW(3:3)),MATCH($H$16,Issu_Tr[#Headers],0)),\"\")","v":""},{"$f":"IFERROR(INDEX(Issu_Tr[],SMALL(IF(Issu_Tr[Order No]=$J$9,ROW(Issu_Tr[])-ROW(Issu_Tr[#Headers])),ROW(3:3)),MATCH($I$16,Issu_Tr[#Headers],0)),\"\")","v":""},{"$f":"IFERROR(INDEX(Issu_Tr[],SMALL(IF(Issu_Tr[Order No]=$J$9,ROW(Issu_Tr[])-ROW(Issu_Tr[#Headers])),ROW(3:3)),MATCH($J$16,Issu_Tr[#Headers],0)),\"\")","v":0}]
[null,null,null,null,null,{"$f":"IF(H20=\"\",\"\",SUBTOTAL(3,H$17:H20))","v":""},{"$f":"IFERROR(INDEX(Issu_Tr[],SMALL(IF(Issu_Tr[Order No]=$J$9,ROW(Issu_Tr[])-ROW(Issu_Tr[#Headers])),ROW(4:4)),MATCH($G$16,Issu_Tr[#Headers],0)),\"\")","v":0},{"$f":"IFERROR(INDEX(Issu_Tr[],SMALL(IF(Issu_Tr[Order No]=$J$9,ROW(Issu_Tr[])-ROW(Issu_Tr[#Headers])),ROW(4:4)),MATCH($H$16,Issu_Tr[#Headers],0)),\"\")","v":""},{"$f":"IFERROR(INDEX(Issu_Tr[],SMALL(IF(Issu_Tr[Order No]=$J$9,ROW(Issu_Tr[])-ROW(Issu_Tr[#Headers])),ROW(4:4)),MATCH($I$16,Issu_Tr[#Headers],0)),\"\")","v":""},{"$f":"IFERROR(INDEX(Issu_Tr[],SMALL(IF(Issu_Tr[Order No]=$J$9,ROW(Issu_Tr[])-ROW(Issu_Tr[#Headers])),ROW(4:4)),MATCH($J$16,Issu_Tr[#Headers],0)),\"\")","v":0}]
[null,null,null,null,null,{"$f":"IF(H21=\"\",\"\",SUBTOTAL(3,H$17:H21))","v":""},{"$f":"IFERROR(INDEX(Issu_Tr[],SMALL(IF(Issu_Tr[Order No]=$J$9,ROW(Issu_Tr[])-ROW(Issu_Tr[#Headers])),ROW(5:5)),MATCH($G$16,Issu_Tr[#Headers],0)),\"\")","v":0},{"$f":"IFERROR(INDEX(Issu_Tr[],SMALL(IF(Issu_Tr[Order No]=$J$9,ROW(Issu_Tr[])-ROW(Issu_Tr[#Headers])),ROW(5:5)),MATCH($H$16,Issu_Tr[#Headers],0)),\"\")","v":""},{"$f":"IFERROR(INDEX(Issu_Tr[],SMALL(IF(Issu_Tr[Order No]=$J$9,ROW(Issu_Tr[])-ROW(Issu_Tr[#Headers])),ROW(5:5)),MATCH($I$16,Issu_Tr[#Headers],0)),\"\")","v":""},{"$f":"IFERROR(INDEX(Issu_Tr[],SMALL(IF(Issu_Tr[Order No]=$J$9,ROW(Issu_Tr[])-ROW(Issu_Tr[#Headers])),ROW(5:5)),MATCH($J$16,Issu_Tr[#Headers],0)),\"\")","v":0}]
[null,null,null,null,null,{"$f":"IF(H22=\"\",\"\",SUBTOTAL(3,H$17:H22))","v":""},{"$f":"IFERROR(INDEX(Issu_Tr[],SMALL(IF(Issu_Tr[Order No]=$J$9,ROW(Issu_Tr[])-ROW(Issu_Tr[#Headers])),ROW(6:6)),MATCH($G$16,Issu_Tr[#Headers],0)),\"\")","v":0},{"$f":"IFERROR(INDEX(Issu_Tr[],SMALL(IF(Issu_Tr[Order No]=$J$9,ROW(Issu_Tr[])-ROW(Issu_Tr[#Headers])),ROW(6:6)),MATCH($H$16,Issu_Tr[#Headers],0)),\"\")","v":""},{"$f":"IFERROR(INDEX(Issu_Tr[],SMALL(IF(Issu_Tr[Order No]=$J$9,ROW(Issu_Tr[])-ROW(Issu_Tr[#Headers])),ROW(6:6)),MATCH($I$16,Issu_Tr[#Headers],0)),\"\")","v":""},{"$f":"IFERROR(INDEX(Issu_Tr[],SMALL(IF(Issu_Tr[Order No]=$J$9,ROW(Issu_Tr[])-ROW(Issu_Tr[#Headers])),ROW(6:6)),MATCH($J$16,Issu_Tr[#Headers],0)),\"\")","v":0}]
[null,null,null,null,null,{"$f":"IF(H23=\"\",\"\",SUBTOTAL(3,H$17:H23))","v":""},{"$f":"IFERROR(INDEX(Issu_Tr[],SMALL(IF(Issu_Tr[Order No]=$J$9,ROW(Issu_Tr[])-ROW(Issu_Tr[#Headers])),ROW(7:7)),MATCH($G$16,Issu_Tr[#Headers],0)),\"\")","v":0},{"$f":"IFERROR(INDEX(Issu_Tr[],SMALL(IF(Issu_Tr[Order No]=$J$9,ROW(Issu_Tr[])-ROW(Issu_Tr[#Headers])),ROW(7:7)),MATCH($H$16,Issu_Tr[#Headers],0)),\"\")","v":""},{"$f":"IFERROR(INDEX(Issu_Tr[],SMALL(IF(Issu_Tr[Order No]=$J$9,ROW(Issu_Tr[])-ROW(Issu_Tr[#Headers])),ROW(7:7)),MATCH($I$16,Issu_Tr[#Headers],0)),\"\")","v":""},{"$f":"IFERROR(INDEX(Issu_Tr[],SMALL(IF(Issu_Tr[Order No]=$J$9,ROW(Issu_Tr[])-ROW(Issu_Tr[#Headers])),ROW(7:7)),MATCH($J$16,Issu_Tr[#Headers],0)),\"\")","v":0}]
[null,null,null,null,null,{"$f":"IF(H24=\"\",\"\",SUBTOTAL(3,H$17:H24))","v":""},{"$f":"IFERROR(INDEX(Issu_Tr[],SMALL(IF(Issu_Tr[Order No]=$J$9,ROW(Issu_Tr[])-ROW(Issu_Tr[#Headers])),ROW(8:8)),MATCH($G$16,Issu_Tr[#Headers],0)),\"\")","v":0},{"$f":"IFERROR(INDEX(Issu_Tr[],SMALL(IF(Issu_Tr[Order No]=$J$9,ROW(Issu_Tr[])-ROW(Issu_Tr[#Headers])),ROW(8:8)),MATCH($H$16,Issu_Tr[#Headers],0)),\"\")","v":""},{"$f":"IFERROR(INDEX(Issu_Tr[],SMALL(IF(Issu_Tr[Order No]=$J$9,ROW(Issu_Tr[])-ROW(Issu_Tr[#Headers])),ROW(8:8)),MATCH($I$16,Issu_Tr[#Headers],0)),\"\")","v":""},{"$f":"IFERROR(INDEX(Issu_Tr[],SMALL(IF(Issu_Tr[Order No]=$J$9,ROW(Issu_Tr[])-ROW(Issu_Tr[#Headers])),ROW(8:8)),MATCH($J$16,Issu_Tr[#Headers],0)),\"\")","v":0}]
[null,null,null,null,null,{"$f":"IF(H25=\"\",\"\",SUBTOTAL(3,H$17:H25))","v":""},{"$f":"IFERROR(INDEX(Issu_Tr[],SMALL(IF(Issu_Tr[Order No]=$J$9,ROW(Issu_Tr[])-ROW(Issu_Tr[#Headers])),ROW(9:9)),MATCH($G$16,Issu_Tr[#Headers],0)),\"\")","v":0},{"$f":"IFERROR(INDEX(Issu_Tr[],SMALL(IF(Issu_Tr[Order No]=$J$9,ROW(Issu_Tr[])-ROW(Issu_Tr[#Headers])),ROW(9:9)),MATCH($H$16,Issu_Tr[#Headers],0)),\"\")","v":""},{"$f":"IFERROR(INDEX(Issu_Tr[],SMALL(IF(Issu_Tr[Order No]=$J$9,ROW(Issu_Tr[])-ROW(Issu_Tr[#Headers])),ROW(9:9)),MATCH($I$16,Issu_Tr[#Headers],0)),\"\")","v":""},{"$f":"IFERROR(INDEX(Issu_Tr[],SMALL(IF(Issu_Tr[Order No]=$J$9,ROW(Issu_Tr[])-ROW(Issu_Tr[#Headers])),ROW(9:9)),MATCH($J$16,Issu_Tr[#Headers],0)),\"\")","v":0}]
[null,null,null,null,null,{"$f":"IF(H26=\"\",\"\",SUBTOTAL(3,H$17:H26))","v":""},{"$f":"IFERROR(INDEX(Issu_Tr[],SMALL(IF(Issu_Tr[Order No]=$J$9,ROW(Issu_Tr[])-ROW(Issu_Tr[#Headers])),ROW(10:10)),MATCH($G$16,Issu_Tr[#Headers],0)),\"\")","v":0},{"$f":"IFERROR(INDEX(Issu_Tr[],SMALL(IF(Issu_Tr[Order No]=$J$9,ROW(Issu_Tr[])-ROW(Issu_Tr[#Headers])),ROW(10:10)),MATCH($H$16,Issu_Tr[#Headers],0)),\"\")","v":""},{"$f":"IFERROR(INDEX(Issu_Tr[],SMALL(IF(Issu_Tr[Order No]=$J$9,ROW(Issu_Tr[])-ROW(Issu_Tr[#Headers])),ROW(10:10)),MATCH($I$16,Issu_Tr[#Headers],0)),\"\")","v":""},{"$f":"IFERROR(INDEX(Issu_Tr[],SMALL(IF(Issu_Tr[Order No]=$J$9,ROW(Issu_Tr[])-ROW(Issu_Tr[#Headers])),ROW(10:10)),MATCH($J$16,Issu_Tr[#Headers],0)),\"\")","v":0}]
[null,null,null,null,null,{"$f":"IF(H27=\"\",\"\",SUBTOTAL(3,H$17:H27))","v":""},{"$f":"IFERROR(INDEX(Issu_Tr[],SMALL(IF(Issu_Tr[Order No]=$J$9,ROW(Issu_Tr[])-ROW(Issu_Tr[#Headers])),ROW(11:11)),MATCH($G$16,Issu_Tr[#Headers],0)),\"\")","v":0},{"$f":"IFERROR(INDEX(Issu_Tr[],SMALL(IF(Issu_Tr[Order No]=$J$9,ROW(Issu_Tr[])-ROW(Issu_Tr[#Headers])),ROW(11:11)),MATCH($H$16,Issu_Tr[#Headers],0)),\"\")","v":""},{"$f":"IFERROR(INDEX(Issu_Tr[],SMALL(IF(Issu_Tr[Order No]=$J$9,ROW(Issu_Tr[])-ROW(Issu_Tr[#Headers])),ROW(11:11)),MATCH($I$16,Issu_Tr[#Headers],0)),\"\")","v":""},{"$f":"IFERROR(INDEX(Issu_Tr[],SMALL(IF(Issu_Tr[Order No]=$J$9,ROW(Issu_Tr[])-ROW(Issu_Tr[#Headers])),ROW(11:11)),MATCH($J$16,Issu_Tr[#Headers],0)),\"\")","v":0}]
[null,null,null,null,null,{"$f":"IF(H28=\"\",\"\",SUBTOTAL(3,H$17:H28))","v":""},{"$f":"IFERROR(INDEX(Issu_Tr[],SMALL(IF(Issu_Tr[Order No]=$J$9,ROW(Issu_Tr[])-ROW(Issu_Tr[#Headers])),ROW(12:12)),MATCH($G$16,Issu_Tr[#Headers],0)),\"\")","v":0},{"$f":"IFERROR(INDEX(Issu_Tr[],SMALL(IF(Issu_Tr[Order No]=$J$9,ROW(Issu_Tr[])-ROW(Issu_Tr[#Headers])),ROW(12:12)),MATCH($H$16,Issu_Tr[#Headers],0)),\"\")","v":""},{"$f":"IFERROR(INDEX(Issu_Tr[],SMALL(IF(Issu_Tr[Order No]=$J$9,ROW(Issu_Tr[])-ROW(Issu_Tr[#Headers])),ROW(12:12)),MATCH($I$16,Issu_Tr[#Headers],0)),\"\")","v":""},{"$f":"IFERROR(INDEX(Issu_Tr[],SMALL(IF(Issu_Tr[Order No]=$J$9,ROW(Issu_Tr[])-ROW(Issu_Tr[#Headers])),ROW(12:12)),MATCH($J$16,Issu_Tr[#Headers],0)),\"\")","v":0}]
[null,null,null,null,null,{"$f":"IF(H29=\"\",\"\",SUBTOTAL(3,H$17:H29))","v":""},{"$f":"IFERROR(INDEX(Issu_Tr[],SMALL(IF(Issu_Tr[Order No]=$J$9,ROW(Issu_Tr[])-ROW(Issu_Tr[#Headers])),ROW(13:13)),MATCH($G$16,Issu_Tr[#Headers],0)),\"\")","v":0},{"$f":"IFERROR(INDEX(Issu_Tr[],SMALL(IF(Issu_Tr[Order No]=$J$9,ROW(Issu_Tr[])-ROW(Issu_Tr[#Headers])),ROW(13:13)),MATCH($H$16,Issu_Tr[#Headers],0)),\"\")","v":""},{"$f":"IFERROR(INDEX(Issu_Tr[],SMALL(IF(Issu_Tr[Order No]=$J$9,ROW(Issu_Tr[])-ROW(Issu_Tr[#Headers])),ROW(13:13)),MATCH($I$16,Issu_Tr[#Headers],0)),\"\")","v":""},{"$f":"IFERROR(INDEX(Issu_Tr[],SMALL(IF(Issu_Tr[Order No]=$J$9,ROW(Issu_Tr[])-ROW(Issu_Tr[#Headers])),ROW(13:13)),MATCH($J$16,Issu_Tr[#Headers],0)),\"\")","v":0}]
[null,null,null,null,null,{"$f":"IF(H30=\"\",\"\",SUBTOTAL(3,H$17:H30))","v":""},{"$f":"IFERROR(INDEX(Issu_Tr[],SMALL(IF(Issu_Tr[Order No]=$J$9,ROW(Issu_Tr[])-ROW(Issu_Tr[#Headers])),ROW(14:14)),MATCH($G$16,Issu_Tr[#Headers],0)),\"\")","v":0},{"$f":"IFERROR(INDEX(Issu_Tr[],SMALL(IF(Issu_Tr[Order No]=$J$9,ROW(Issu_Tr[])-ROW(Issu_Tr[#Headers])),ROW(14:14)),MATCH($H$16,Issu_Tr[#Headers],0)),\"\")","v":""},{"$f":"IFERROR(INDEX(Issu_Tr[],SMALL(IF(Issu_Tr[Order No]=$J$9,ROW(Issu_Tr[])-ROW(Issu_Tr[#Headers])),ROW(14:14)),MATCH($I$16,Issu_Tr[#Headers],0)),\"\")","v":""},{"$f":"IFERROR(INDEX(Issu_Tr[],SMALL(IF(Issu_Tr[Order No]=$J$9,ROW(Issu_Tr[])-ROW(Issu_Tr[#Headers])),ROW(14:14)),MATCH($J$16,Issu_Tr[#Headers],0)),\"\")","v":0}]
[null,null,null,null,null,{"$f":"IF(H31=\"\",\"\",SUBTOTAL(3,H$17:H31))","v":""},{"$f":"IFERROR(INDEX(Issu_Tr[],SMALL(IF(Issu_Tr[Order No]=$J$9,ROW(Issu_Tr[])-ROW(Issu_Tr[#Headers])),ROW(15:15)),MATCH($G$16,Issu_Tr[#Headers],0)),\"\")","v":0},{"$f":"IFERROR(INDEX(Issu_Tr[],SMALL(IF(Issu_Tr[Order No]=$J$9,ROW(Issu_Tr[])-ROW(Issu_Tr[#Headers])),ROW(15:15)),MATCH($H$16,Issu_Tr[#Headers],0)),\"\")","v":""},{"$f":"IFERROR(INDEX(Issu_Tr[],SMALL(IF(Issu_Tr[Order No]=$J$9,ROW(Issu_Tr[])-ROW(Issu_Tr[#Headers])),ROW(15:15)),MATCH($I$16,Issu_Tr[#Headers],0)),\"\")","v":""},{"$f":"IFERROR(INDEX(Issu_Tr[],SMALL(IF(Issu_Tr[Order No]=$J$9,ROW(Issu_Tr[])-ROW(Issu_Tr[#Headers])),ROW(15:15)),MATCH($J$16,Issu_Tr[#Headers],0)),\"\")","v":0}]
[null,null,null,null,null,{"$f":"IF(H32=\"\",\"\",SUBTOTAL(3,H$17:H32))","v":""},{"$f":"IFERROR(INDEX(Issu_Tr[],SMALL(IF(Issu_Tr[Order No]=$J$9,ROW(Issu_Tr[])-ROW(Issu_Tr[#Headers])),ROW(16:16)),MATCH($G$16,Issu_Tr[#Headers],0)),\"\")","v":0},{"$f":"IFERROR(INDEX(Issu_Tr[],SMALL(IF(Issu_Tr[Order No]=$J$9,ROW(Issu_Tr[])-ROW(Issu_Tr[#Headers])),ROW(16:16)),MATCH($H$16,Issu_Tr[#Headers],0)),\"\")","v":""},{"$f":"IFERROR(INDEX(Issu_Tr[],SMALL(IF(Issu_Tr[Order No]=$J$9,ROW(Issu_Tr[])-ROW(Issu_Tr[#Headers])),ROW(16:16)),MATCH($I$16,Issu_Tr[#Headers],0)),\"\")","v":""},{"$f":"IFERROR(INDEX(Issu_Tr[],SMALL(IF(Issu_Tr[Order No]=$J$9,ROW(Issu_Tr[])-ROW(Issu_Tr[#Headers])),ROW(16:16)),MATCH($J$16,Issu_Tr[#Headers],0)),\"\")","v":0}]
[null,null,null,null,null,{"$f":"IF(H33=\"\",\"\",SUBTOTAL(3,H$17:H33))","v":""},{"$f":"IFERROR(INDEX(Issu_Tr[],SMALL(IF(Issu_Tr[Order No]=$J$9,ROW(Issu_Tr[])-ROW(Issu_Tr[#Headers])),ROW(17:17)),MATCH($G$16,Issu_Tr[#Headers],0)),\"\")","v":0},{"$f":"IFERROR(INDEX(Issu_Tr[],SMALL(IF(Issu_Tr[Order No]=$J$9,ROW(Issu_Tr[])-ROW(Issu_Tr[#Headers])),ROW(17:17)),MATCH($H$16,Issu_Tr[#Headers],0)),\"\")","v":""},{"$f":"IFERROR(INDEX(Issu_Tr[],SMALL(IF(Issu_Tr[Order No]=$J$9,ROW(Issu_Tr[])-ROW(Issu_Tr[#Headers])),ROW(17:17)),MATCH($I$16,Issu_Tr[#Headers],0)),\"\")","v":""},{"$f":"IFERROR(INDEX(Issu_Tr[],SMALL(IF(Issu_Tr[Order No]=$J$9,ROW(Issu_Tr[])-ROW(Issu_Tr[#Headers])),ROW(17:17)),MATCH($J$16,Issu_Tr[#Headers],0)),\"\")","v":0}]
[null,null,null,null,null,{"$f":"IF(H34=\"\",\"\",SUBTOTAL(3,H$17:H34))","v":""},{"$f":"IFERROR(INDEX(Issu_Tr[],SMALL(IF(Issu_Tr[Order No]=$J$9,ROW(Issu_Tr[])-ROW(Issu_Tr[#Headers])),ROW(18:18)),MATCH($G$16,Issu_Tr[#Headers],0)),\"\")","v":0},{"$f":"IFERROR(INDEX(Issu_Tr[],SMALL(IF(Issu_Tr[Order No]=$J$9,ROW(Issu_Tr[])-ROW(Issu_Tr[#Headers])),ROW(18:18)),MATCH($H$16,Issu_Tr[#Headers],0)),\"\")","v":""},{"$f":"IFERROR(INDEX(Issu_Tr[],SMALL(IF(Issu_Tr[Order No]=$J$9,ROW(Issu_Tr[])-ROW(Issu_Tr[#Headers])),ROW(18:18)),MATCH($I$16,Issu_Tr[#Headers],0)),\"\")","v":""},{"$f":"IFERROR(INDEX(Issu_Tr[],SMALL(IF(Issu_Tr[Order No]=$J$9,ROW(Issu_Tr[])-ROW(Issu_Tr[#Headers])),ROW(18:18)),MATCH($J$16,Issu_Tr[#Headers],0)),\"\")","v":0}]
[null,null,null,null,null,{"$f":"IF(H35=\"\",\"\",SUBTOTAL(3,H$17:H35))","v":""},{"$f":"IFERROR(INDEX(Issu_Tr[],SMALL(IF(Issu_Tr[Order No]=$J$9,ROW(Issu_Tr[])-ROW(Issu_Tr[#Headers])),ROW(19:19)),MATCH($G$16,Issu_Tr[#Headers],0)),\"\")","v":0},{"$f":"IFERROR(INDEX(Issu_Tr[],SMALL(IF(Issu_Tr[Order No]=$J$9,ROW(Issu_Tr[])-ROW(Issu_Tr[#Headers])),ROW(19:19)),MATCH($H$16,Issu_Tr[#Headers],0)),\"\")","v":""},{"$f":"IFERROR(INDEX(Issu_Tr[],SMALL(IF(Issu_Tr[Order No]=$J$9,ROW(Issu_Tr[])-ROW(Issu_Tr[#Headers])),ROW(19:19)),MATCH($I$16,Issu_Tr[#Headers],0)),\"\")","v":""},{"$f":"IFERROR(INDEX(Issu_Tr[],SMALL(IF(Issu_Tr[Order No]=$J$9,ROW(Issu_Tr[])-ROW(Issu_Tr[#Headers])),ROW(19:19)),MATCH($J$16,Issu_Tr[#Headers],0)),\"\")","v":0}]
[null,null,null,null,null,"Total",null,null,null,{"$f":"SUBTOTAL(109,Issu_Ord[Qty])","v":0}]

{"sheet":"Transfer Transaction","index":5,"n_rows":84,"n_cols":8,"rows_kept":84,"cut":false,"hidden":false,"merged":[]}
[]
[]
[]
[]
[]
[null,null,null,null,null,{"$f":"TODAY()","v":"2018-07-11"}]
[]
["S.N","Order No","Date","Location","Item Code","Item Name","Unit","Qty"]
[{"$f":"IF(E9=\"\",\"\",SUBTOTAL(3,E$9:E9))","v":""},null,null,null,null,{"$f":"IFERROR(VLOOKUP(Transfer_Tr[[#This Row],[Item Code]],Product[],2,FALSE),\"\")","v":""},{"$f":"IFERROR(VLOOKUP(Transfer_Tr[[#This Row],[Item Code]],Product[],3,FALSE),\"\")","v":""}]
[{"$f":"IF(E10=\"\",\"\",SUBTOTAL(3,E$9:E10))","v":""},null,null,null,null,{"$f":"IFERROR(VLOOKUP(Transfer_Tr[[#This Row],[Item Code]],Product[],2,FALSE),\"\")","v":""},{"$f":"IFERROR(VLOOKUP(Transfer_Tr[[#This Row],[Item Code]],Product[],3,FALSE),\"\")","v":""}]
[{"$f":"IF(E11=\"\",\"\",SUBTOTAL(3,E$9:E11))","v":""},null,null,null,null,{"$f":"IFERROR(VLOOKUP(Transfer_Tr[[#This Row],[Item Code]],Product[],2,FALSE),\"\")","v":""},{"$f":"IFERROR(VLOOKUP(Transfer_Tr[[#This Row],[Item Code]],Product[],3,FALSE),\"\")","v":""}]
[{"$f":"IF(E12=\"\",\"\",SUBTOTAL(3,E$9:E12))","v":""},null,null,null,null,{"$f":"IFERROR(VLOOKUP(Transfer_Tr[[#This Row],[Item Code]],Product[],2,FALSE),\"\")","v":""},{"$f":"IFERROR(VLOOKUP(Transfer_Tr[[#This Row],[Item Code]],Product[],3,FALSE),\"\")","v":""}]
[{"$f":"IF(E13=\"\",\"\",SUBTOTAL(3,E$9:E13))","v":""},null,null,null,null,{"$f":"IFERROR(VLOOKUP(Transfer_Tr[[#This Row],[Item Code]],Product[],2,FALSE),\"\")","v":""},{"$f":"IFERROR(VLOOKUP(Transfer_Tr[[#This Row],[Item Code]],Product[],3,FALSE),\"\")","v":""}]
[{"$f":"IF(E14=\"\",\"\",SUBTOTAL(3,E$9:E14))","v":""},null,null,null,null,{"$f":"IFERROR(VLOOKUP(Transfer_Tr[[#This Row],[Item Code]],Product[],2,FALSE),\"\")","v":""},{"$f":"IFERROR(VLOOKUP(Transfer_Tr[[#This Row],[Item Code]],Product[],3,FALSE),\"\")","v":""}]
[{"$f":"IF(E15=\"\",\"\",SUBTOTAL(3,E$9:E15))","v":""},null,null,null,null,{"$f":"IFERROR(VLOOKUP(Transfer_Tr[[#This Row],[Item Code]],Product[],2,FALSE),\"\")","v":""},{"$f":"IFERROR(VLOOKUP(Transfer_Tr[[#This Row],[Item Code]],Product[],3,FALSE),\"\")","v":""}]
[{"$f":"IF(E16=\"\",\"\",SUBTOTAL(3,E$9:E16))","v":""},null,null,null,null,{"$f":"IFERROR(VLOOKUP(Transfer_Tr[[#This Row],[Item Code]],Product[],2,FALSE),\"\")","v":""},{"$f":"IFERROR(VLOOKUP(Transfer_Tr[[#This Row],[Item Code]],Product[],3,FALSE),\"\")","v":""}]
[{"$f":"IF(E17=\"\",\"\",SUBTOTAL(3,E$9:E17))","v":""},null,null,null,null,{"$f":"IFERROR(VLOOKUP(Transfer_Tr[[#This Row],[Item Code]],Product[],2,FALSE),\"\")","v":""},{"$f":"IFERROR(VLOOKUP(Transfer_Tr[[#This Row],[Item Code]],Product[],3,FALSE),\"\")","v":""}]
[{"$f":"IF(E18=\"\",\"\",SUBTOTAL(3,E$9:E18))","v":""},null,null,null,null,{"$f":"IFERROR(VLOOKUP(Transfer_Tr[[#This Row],[Item Code]],Product[],2,FALSE),\"\")","v":""},{"$f":"IFERROR(VLOOKUP(Transfer_Tr[[#This Row],[Item Code]],Product[],3,FALSE),\"\")","v":""}]
[{"$f":"IF(E19=\"\",\"\",SUBTOTAL(3,E$9:E19))","v":""},null,null,null,null,{"$f":"IFERROR(VLOOKUP(Transfer_Tr[[#This Row],[Item Code]],Product[],2,FALSE),\"\")","v":""},{"$f":"IFERROR(VLOOKUP(Transfer_Tr[[#This Row],[Item Code]],Product[],3,FALSE),\"\")","v":""}]
[{"$f":"IF(E20=\"\",\"\",SUBTOTAL(3,E$9:E20))","v":""},null,null,null,null,{"$f":"IFERROR(VLOOKUP(Transfer_Tr[[#This Row],[Item Code]],Product[],2,FALSE),\"\")","v":""},{"$f":"IFERROR(VLOOKUP(Transfer_Tr[[#This Row],[Item Code]],Product[],3,FALSE),\"\")","v":""}]
[{"$f":"IF(E21=\"\",\"\",SUBTOTAL(3,E$9:E21))","v":""},null,null,null,null,{"$f":"IFERROR(VLOOKUP(Transfer_Tr[[#This Row],[Item Code]],Product[],2,FALSE),\"\")","v":""},{"$f":"IFERROR(VLOOKUP(Transfer_Tr[[#This Row],[Item Code]],Product[],3,FALSE),\"\")","v":""}]
[{"$f":"IF(E22=\"\",\"\",SUBTOTAL(3,E$9:E22))","v":""},null,null,null,null,{"$f":"IFERROR(VLOOKUP(Transfer_Tr[[#This Row],[Item Code]],Product[],2,FALSE),\"\")","v":""},{"$f":"IFERROR(VLOOKUP(Transfer_Tr[[#This Row],[Item Code]],Product[],3,FALSE),\"\")","v":""}]
[{"$f":"IF(E23=\"\",\"\",SUBTOTAL(3,E$9:E23))","v":""},null,null,null,null,{"$f":"IFERROR(VLOOKUP(Transfer_Tr[[#This Row],[Item Code]],Product[],2,FALSE),\"\")","v":""},{"$f":"IFERROR(VLOOKUP(Transfer_Tr[[#This Row],[Item Code]],Product[],3,FALSE),\"\")","v":""}]
[{"$f":"IF(E24=\"\",\"\",SUBTOTAL(3,E$9:E24))","v":""},null,null,null,null,{"$f":"IFERROR(VLOOKUP(Transfer_Tr[[#This Row],[Item Code]],Product[],2,FALSE),\"\")","v":""},{"$f":"IFERROR(VLOOKUP(Transfer_Tr[[#This Row],[Item Code]],Product[],3,FALSE),\"\")","v":""}]
[{"$f":"IF(E25=\"\",\"\",SUBTOTAL(3,E$9:E25))","v":""},null,null,null,null,{"$f":"IFERROR(VLOOKUP(Transfer_Tr[[#This Row],[Item Code]],Product[],2,FALSE),\"\")","v":""},{"$f":"IFERROR(VLOOKUP(Transfer_Tr[[#This Row],[Item Code]],Product[],3,FALSE),\"\")","v":""}]
[{"$f":"IF(E26=\"\",\"\",SUBTOTAL(3,E$9:E26))","v":""},null,null,null,null,{"$f":"IFERROR(VLOOKUP(Transfer_Tr[[#This Row],[Item Code]],Product[],2,FALSE),\"\")","v":""},{"$f":"IFERROR(VLOOKUP(Transfer_Tr[[#This Row],[Item Code]],Product[],3,FALSE),\"\")","v":""}]
[{"$f":"IF(E27=\"\",\"\",SUBTOTAL(3,E$9:E27))","v":""},null,null,null,null,{"$f":"IFERROR(VLOOKUP(Transfer_Tr[[#This Row],[Item Code]],Product[],2,FALSE),\"\")","v":""},{"$f":"IFERROR(VLOOKUP(Transfer_Tr[[#This Row],[Item Code]],Product[],3,FALSE),\"\")","v":""}]
[{"$f":"IF(E28=\"\",\"\",SUBTOTAL(3,E$9:E28))","v":""},null,null,null,null,{"$f":"IFERROR(VLOOKUP(Transfer_Tr[[#This Row],[Item Code]],Product[],2,FALSE),\"\")","v":""},{"$f":"IFERROR(VLOOKUP(Transfer_Tr[[#This Row],[Item Code]],Product[],3,FALSE),\"\")","v":""}]
[{"$f":"IF(E29=\"\",\"\",SUBTOTAL(3,E$9:E29))","v":""},null,null,null,null,{"$f":"IFERROR(VLOOKUP(Transfer_Tr[[#This Row],[Item Code]],Product[],2,FALSE),\"\")","v":""},{"$f":"IFERROR(VLOOKUP(Transfer_Tr[[#This Row],[Item Code]],Product[],3,FALSE),\"\")","v":""}]
[{"$f":"IF(E30=\"\",\"\",SUBTOTAL(3,E$9:E30))","v":""},null,null,null,null,{"$f":"IFERROR(VLOOKUP(Transfer_Tr[[#This Row],[Item Code]],Product[],2,FALSE),\"\")","v":""},{"$f":"IFERROR(VLOOKUP(Transfer_Tr[[#This Row],[Item Code]],Product[],3,FALSE),\"\")","v":""}]
[{"$f":"IF(E31=\"\",\"\",SUBTOTAL(3,E$9:E31))","v":""},null,null,null,null,{"$f":"IFERROR(VLOOKUP(Transfer_Tr[[#This Row],[Item Code]],Product[],2,FALSE),\"\")","v":""},{"$f":"IFERROR(VLOOKUP(Transfer_Tr[[#This Row],[Item Code]],Product[],3,FALSE),\"\")","v":""}]
[{"$f":"IF(E32=\"\",\"\",SUBTOTAL(3,E$9:E32))","v":""},null,null,null,null,{"$f":"IFERROR(VLOOKUP(Transfer_Tr[[#This Row],[Item Code]],Product[],2,FALSE),\"\")","v":""},{"$f":"IFERROR(VLOOKUP(Transfer_Tr[[#This Row],[Item Code]],Product[],3,FALSE),\"\")","v":""}]
[{"$f":"IF(E33=\"\",\"\",SUBTOTAL(3,E$9:E33))","v":""},null,null,null,null,{"$f":"IFERROR(VLOOKUP(Transfer_Tr[[#This Row],[Item Code]],Product[],2,FALSE),\"\")","v":""},{"$f":"IFERROR(VLOOKUP(Transfer_Tr[[#This Row],[Item Code]],Product[],3,FALSE),\"\")","v":""}]
[{"$f":"IF(E34=\"\",\"\",SUBTOTAL(3,E$9:E34))","v":""},null,null,null,null,{"$f":"IFERROR(VLOOKUP(Transfer_Tr[[#This Row],[Item Code]],Product[],2,FALSE),\"\")","v":""},{"$f":"IFERROR(VLOOKUP(Transfer_Tr[[#This Row],[Item Code]],Product[],3,FALSE),\"\")","v":""}]
[{"$f":"IF(E35=\"\",\"\",SUBTOTAL(3,E$9:E35))","v":""},null,null,null,null,{"$f":"IFERROR(VLOOKUP(Transfer_Tr[[#This Row],[Item Code]],Product[],2,FALSE),\"\")","v":""},{"$f":"IFERROR(VLOOKUP(Transfer_Tr[[#This Row],[Item Code]],Product[],3,FALSE),\"\")","v":""}]
[{"$f":"IF(E36=\"\",\"\",SUBTOTAL(3,E$9:E36))","v":""},null,null,null,null,{"$f":"IFERROR(VLOOKUP(Transfer_Tr[[#This Row],[Item Code]],Product[],2,FALSE),\"\")","v":""},{"$f":"IFERROR(VLOOKUP(Transfer_Tr[[#This Row],[Item Code]],Product[],3,FALSE),\"\")","v":""}]
[{"$f":"IF(E37=\"\",\"\",SUBTOTAL(3,E$9:E37))","v":""},null,null,null,null,{"$f":"IFERROR(VLOOKUP(Transfer_Tr[[#This Row],[Item Code]],Product[],2,FALSE),\"\")","v":""},{"$f":"IFERROR(VLOOKUP(Transfer_Tr[[#This Row],[Item Code]],Product[],3,FALSE),\"\")","v":""}]
[{"$f":"IF(E38=\"\",\"\",SUBTOTAL(3,E$9:E38))","v":""},null,null,null,null,{"$f":"IFERROR(VLOOKUP(Transfer_Tr[[#This Row],[Item Code]],Product[],2,FALSE),\"\")","v":""},{"$f":"IFERROR(VLOOKUP(Transfer_Tr[[#This Row],[Item Code]],Product[],3,FALSE),\"\")","v":""}]
[{"$f":"IF(E39=\"\",\"\",SUBTOTAL(3,E$9:E39))","v":""},null,null,null,null,{"$f":"IFERROR(VLOOKUP(Transfer_Tr[[#This Row],[Item Code]],Product[],2,FALSE),\"\")","v":""},{"$f":"IFERROR(VLOOKUP(Transfer_Tr[[#This Row],[Item Code]],Product[],3,FALSE),\"\")","v":""}]
[{"$f":"IF(E40=\"\",\"\",SUBTOTAL(3,E$9:E40))","v":""},null,null,null,null,{"$f":"IFERROR(VLOOKUP(Transfer_Tr[[#This Row],[Item Code]],Product[],2,FALSE),\"\")","v":""},{"$f":"IFERROR(VLOOKUP(Transfer_Tr[[#This Row],[Item Code]],Product[],3,FALSE),\"\")","v":""}]
[{"$f":"IF(E41=\"\",\"\",SUBTOTAL(3,E$9:E41))","v":""},null,null,null,null,{"$f":"IFERROR(VLOOKUP(Transfer_Tr[[#This Row],[Item Code]],Product[],2,FALSE),\"\")","v":""},{"$f":"IFERROR(VLOOKUP(Transfer_Tr[[#This Row],[Item Code]],Product[],3,FALSE),\"\")","v":""}]
[{"$f":"IF(E42=\"\",\"\",SUBTOTAL(3,E$9:E42))","v":""},null,null,null,null,{"$f":"IFERROR(VLOOKUP(Transfer_Tr[[#This Row],[Item Code]],Product[],2,FALSE),\"\")","v":""},{"$f":"IFERROR(VLOOKUP(Transfer_Tr[[#This Row],[Item Code]],Product[],3,FALSE),\"\")","v":""}]
[{"$f":"IF(E43=\"\",\"\",SUBTOTAL(3,E$9:E43))","v":""},null,null,null,null,{"$f":"IFERROR(VLOOKUP(Transfer_Tr[[#This Row],[Item Code]],Product[],2,FALSE),\"\")","v":""},{"$f":"IFERROR(VLOOKUP(Transfer_Tr[[#This Row],[Item Code]],Product[],3,FALSE),\"\")","v":""}]
[{"$f":"IF(E44=\"\",\"\",SUBTOTAL(3,E$9:E44))","v":""},null,null,null,null,{"$f":"IFERROR(VLOOKUP(Transfer_Tr[[#This Row],[Item Code]],Product[],2,FALSE),\"\")","v":""},{"$f":"IFERROR(VLOOKUP(Transfer_Tr[[#This Row],[Item Code]],Product[],3,FALSE),\"\")","v":""}]
[{"$f":"IF(E45=\"\",\"\",SUBTOTAL(3,E$9:E45))","v":""},null,null,null,null,{"$f":"IFERROR(VLOOKUP(Transfer_Tr[[#This Row],[Item Code]],Product[],2,FALSE),\"\")","v":""},{"$f":"IFERROR(VLOOKUP(Transfer_Tr[[#This Row],[Item Code]],Product[],3,FALSE),\"\")","v":""}]
[{"$f":"IF(E46=\"\",\"\",SUBTOTAL(3,E$9:E46))","v":""},null,null,null,null,{"$f":"IFERROR(VLOOKUP(Transfer_Tr[[#This Row],[Item Code]],Product[],2,FALSE),\"\")","v":""},{"$f":"IFERROR(VLOOKUP(Transfer_Tr[[#This Row],[Item Code]],Product[],3,FALSE),\"\")","v":""}]
[{"$f":"IF(E47=\"\",\"\",SUBTOTAL(3,E$9:E47))","v":""},null,null,null,null,{"$f":"IFERROR(VLOOKUP(Transfer_Tr[[#This Row],[Item Code]],Product[],2,FALSE),\"\")","v":""},{"$f":"IFERROR(VLOOKUP(Transfer_Tr[[#This Row],[Item Code]],Product[],3,FALSE),\"\")","v":""}]
[{"$f":"IF(E48=\"\",\"\",SUBTOTAL(3,E$9:E48))","v":""},null,null,null,null,{"$f":"IFERROR(VLOOKUP(Transfer_Tr[[#This Row],[Item Code]],Product[],2,FALSE),\"\")","v":""},{"$f":"IFERROR(VLOOKUP(Transfer_Tr[[#This Row],[Item Code]],Product[],3,FALSE),\"\")","v":""}]
[{"$f":"IF(E49=\"\",\"\",SUBTOTAL(3,E$9:E49))","v":""},null,null,null,null,{"$f":"IFERROR(VLOOKUP(Transfer_Tr[[#This Row],[Item Code]],Product[],2,FALSE),\"\")","v":""},{"$f":"IFERROR(VLOOKUP(Transfer_Tr[[#This Row],[Item Code]],Product[],3,FALSE),\"\")","v":""}]
[{"$f":"IF(E50=\"\",\"\",SUBTOTAL(3,E$9:E50))","v":""},null,null,null,null,{"$f":"IFERROR(VLOOKUP(Transfer_Tr[[#This Row],[Item Code]],Product[],2,FALSE),\"\")","v":""},{"$f":"IFERROR(VLOOKUP(Transfer_Tr[[#This Row],[Item Code]],Product[],3,FALSE),\"\")","v":""}]
[{"$f":"IF(E51=\"\",\"\",SUBTOTAL(3,E$9:E51))","v":""},null,null,null,null,{"$f":"IFERROR(VLOOKUP(Transfer_Tr[[#This Row],[Item Code]],Product[],2,FALSE),\"\")","v":""},{"$f":"IFERROR(VLOOKUP(Transfer_Tr[[#This Row],[Item Code]],Product[],3,FALSE),\"\")","v":""}]
[{"$f":"IF(E52=\"\",\"\",SUBTOTAL(3,E$9:E52))","v":""},null,null,null,null,{"$f":"IFERROR(VLOOKUP(Transfer_Tr[[#This Row],[Item Code]],Product[],2,FALSE),\"\")","v":""},{"$f":"IFERROR(VLOOKUP(Transfer_Tr[[#This Row],[Item Code]],Product[],3,FALSE),\"\")","v":""}]
[{"$f":"IF(E53=\"\",\"\",SUBTOTAL(3,E$9:E53))","v":""},null,null,null,null,{"$f":"IFERROR(VLOOKUP(Transfer_Tr[[#This Row],[Item Code]],Product[],2,FALSE),\"\")","v":""},{"$f":"IFERROR(VLOOKUP(Transfer_Tr[[#This Row],[Item Code]],Product[],3,FALSE),\"\")","v":""}]
[{"$f":"IF(E54=\"\",\"\",SUBTOTAL(3,E$9:E54))","v":""},null,null,null,null,{"$f":"IFERROR(VLOOKUP(Transfer_Tr[[#This Row],[Item Code]],Product[],2,FALSE),\"\")","v":""},{"$f":"IFERROR(VLOOKUP(Transfer_Tr[[#This Row],[Item Code]],Product[],3,FALSE),\"\")","v":""}]
[{"$f":"IF(E55=\"\",\"\",SUBTOTAL(3,E$9:E55))","v":""},null,null,null,null,{"$f":"IFERROR(VLOOKUP(Transfer_Tr[[#This Row],[Item Code]],Product[],2,FALSE),\"\")","v":""},{"$f":"IFERROR(VLOOKUP(Transfer_Tr[[#This Row],[Item Code]],Product[],3,FALSE),\"\")","v":""}]
[{"$f":"IF(E56=\"\",\"\",SUBTOTAL(3,E$9:E56))","v":""},null,null,null,null,{"$f":"IFERROR(VLOOKUP(Transfer_Tr[[#This Row],[Item Code]],Product[],2,FALSE),\"\")","v":""},{"$f":"IFERROR(VLOOKUP(Transfer_Tr[[#This Row],[Item Code]],Product[],3,FALSE),\"\")","v":""}]
[{"$f":"IF(E57=\"\",\"\",SUBTOTAL(3,E$9:E57))","v":""},null,null,null,null,{"$f":"IFERROR(VLOOKUP(Transfer_Tr[[#This Row],[Item Code]],Product[],2,FALSE),\"\")","v":""},{"$f":"IFERROR(VLOOKUP(Transfer_Tr[[#This Row],[Item Code]],Product[],3,FALSE),\"\")","v":""}]
[{"$f":"IF(E58=\"\",\"\",SUBTOTAL(3,E$9:E58))","v":""},null,null,null,null,{"$f":"IFERROR(VLOOKUP(Transfer_Tr[[#This Row],[Item Code]],Product[],2,FALSE),\"\")","v":""},{"$f":"IFERROR(VLOOKUP(Transfer_Tr[[#This Row],[Item Code]],Product[],3,FALSE),\"\")","v":""}]
[{"$f":"IF(E59=\"\",\"\",SUBTOTAL(3,E$9:E59))","v":""},null,null,null,null,{"$f":"IFERROR(VLOOKUP(Transfer_Tr[[#This Row],[Item Code]],Product[],2,FALSE),\"\")","v":""},{"$f":"IFERROR(VLOOKUP(Transfer_Tr[[#This Row],[Item Code]],Product[],3,FALSE),\"\")","v":""}]
[{"$f":"IF(E60=\"\",\"\",SUBTOTAL(3,E$9:E60))","v":""},null,null,null,null,{"$f":"IFERROR(VLOOKUP(Transfer_Tr[[#This Row],[Item Code]],Product[],2,FALSE),\"\")","v":""},{"$f":"IFERROR(VLOOKUP(Transfer_Tr[[#This Row],[Item Code]],Product[],3,FALSE),\"\")","v":""}]
[{"$f":"IF(E61=\"\",\"\",SUBTOTAL(3,E$9:E61))","v":""},null,null,null,null,{"$f":"IFERROR(VLOOKUP(Transfer_Tr[[#This Row],[Item Code]],Product[],2,FALSE),\"\")","v":""},{"$f":"IFERROR(VLOOKUP(Transfer_Tr[[#This Row],[Item Code]],Product[],3,FALSE),\"\")","v":""}]
[{"$f":"IF(E62=\"\",\"\",SUBTOTAL(3,E$9:E62))","v":""},null,null,null,null,{"$f":"IFERROR(VLOOKUP(Transfer_Tr[[#This Row],[Item Code]],Product[],2,FALSE),\"\")","v":""},{"$f":"IFERROR(VLOOKUP(Transfer_Tr[[#This Row],[Item Code]],Product[],3,FALSE),\"\")","v":""}]
[{"$f":"IF(E63=\"\",\"\",SUBTOTAL(3,E$9:E63))","v":""},null,null,null,null,{"$f":"IFERROR(VLOOKUP(Transfer_Tr[[#This Row],[Item Code]],Product[],2,FALSE),\"\")","v":""},{"$f":"IFERROR(VLOOKUP(Transfer_Tr[[#This Row],[Item Code]],Product[],3,FALSE),\"\")","v":""}]
[{"$f":"IF(E64=\"\",\"\",SUBTOTAL(3,E$9:E64))","v":""},null,null,null,null,{"$f":"IFERROR(VLOOKUP(Transfer_Tr[[#This Row],[Item Code]],Product[],2,FALSE),\"\")","v":""},{"$f":"IFERROR(VLOOKUP(Transfer_Tr[[#This Row],[Item Code]],Product[],3,FALSE),\"\")","v":""}]
[{"$f":"IF(E65=\"\",\"\",SUBTOTAL(3,E$9:E65))","v":""},null,null,null,null,{"$f":"IFERROR(VLOOKUP(Transfer_Tr[[#This Row],[Item Code]],Product[],2,FALSE),\"\")","v":""},{"$f":"IFERROR(VLOOKUP(Transfer_Tr[[#This Row],[Item Code]],Product[],3,FALSE),\"\")","v":""}]
[{"$f":"IF(E66=\"\",\"\",SUBTOTAL(3,E$9:E66))","v":""},null,null,null,null,{"$f":"IFERROR(VLOOKUP(Transfer_Tr[[#This Row],[Item Code]],Product[],2,FALSE),\"\")","v":""},{"$f":"IFERROR(VLOOKUP(Transfer_Tr[[#This Row],[Item Code]],Product[],3,FALSE),\"\")","v":""}]
[{"$f":"IF(E67=\"\",\"\",SUBTOTAL(3,E$9:E67))","v":""},null,null,null,null,{"$f":"IFERROR(VLOOKUP(Transfer_Tr[[#This Row],[Item Code]],Product[],2,FALSE),\"\")","v":""},{"$f":"IFERROR(VLOOKUP(Transfer_Tr[[#This Row],[Item Code]],Product[],3,FALSE),\"\")","v":""}]
[{"$f":"IF(E68=\"\",\"\",SUBTOTAL(3,E$9:E68))","v":""},null,null,null,null,{"$f":"IFERROR(VLOOKUP(Transfer_Tr[[#This Row],[Item Code]],Product[],2,FALSE),\"\")","v":""},{"$f":"IFERROR(VLOOKUP(Transfer_Tr[[#This Row],[Item Code]],Product[],3,FALSE),\"\")","v":""}]
[{"$f":"IF(E69=\"\",\"\",SUBTOTAL(3,E$9:E69))","v":""},null,null,null,null,{"$f":"IFERROR(VLOOKUP(Transfer_Tr[[#This Row],[Item Code]],Product[],2,FALSE),\"\")","v":""},{"$f":"IFERROR(VLOOKUP(Transfer_Tr[[#This Row],[Item Code]],Product[],3,FALSE),\"\")","v":""}]
[{"$f":"IF(E70=\"\",\"\",SUBTOTAL(3,E$9:E70))","v":""},null,null,null,null,{"$f":"IFERROR(VLOOKUP(Transfer_Tr[[#This Row],[Item Code]],Product[],2,FALSE),\"\")","v":""},{"$f":"IFERROR(VLOOKUP(Transfer_Tr[[#This Row],[Item Code]],Product[],3,FALSE),\"\")","v":""}]
[{"$f":"IF(E71=\"\",\"\",SUBTOTAL(3,E$9:E71))","v":""},null,null,null,null,{"$f":"IFERROR(VLOOKUP(Transfer_Tr[[#This Row],[Item Code]],Product[],2,FALSE),\"\")","v":""},{"$f":"IFERROR(VLOOKUP(Transfer_Tr[[#This Row],[Item Code]],Product[],3,FALSE),\"\")","v":""}]
[{"$f":"IF(E72=\"\",\"\",SUBTOTAL(3,E$9:E72))","v":""},null,null,null,null,{"$f":"IFERROR(VLOOKUP(Transfer_Tr[[#This Row],[Item Code]],Product[],2,FALSE),\"\")","v":""},{"$f":"IFERROR(VLOOKUP(Transfer_Tr[[#This Row],[Item Code]],Product[],3,FALSE),\"\")","v":""}]
[{"$f":"IF(E73=\"\",\"\",SUBTOTAL(3,E$9:E73))","v":""},null,null,null,null,{"$f":"IFERROR(VLOOKUP(Transfer_Tr[[#This Row],[Item Code]],Product[],2,FALSE),\"\")","v":""},{"$f":"IFERROR(VLOOKUP(Transfer_Tr[[#This Row],[Item Code]],Product[],3,FALSE),\"\")","v":""}]
[{"$f":"IF(E74=\"\",\"\",SUBTOTAL(3,E$9:E74))","v":""},null,null,null,null,{"$f":"IFERROR(VLOOKUP(Transfer_Tr[[#This Row],[Item Code]],Product[],2,FALSE),\"\")","v":""},{"$f":"IFERROR(VLOOKUP(Transfer_Tr[[#This Row],[Item Code]],Product[],3,FALSE),\"\")","v":""}]
[{"$f":"IF(E75=\"\",\"\",SUBTOTAL(3,E$9:E75))","v":""},null,null,null,null,{"$f":"IFERROR(VLOOKUP(Transfer_Tr[[#This Row],[Item Code]],Product[],2,FALSE),\"\")","v":""},{"$f":"IFERROR(VLOOKUP(Transfer_Tr[[#This Row],[Item Code]],Product[],3,FALSE),\"\")","v":""}]
[{"$f":"IF(E76=\"\",\"\",SUBTOTAL(3,E$9:E76))","v":""},null,null,null,null,{"$f":"IFERROR(VLOOKUP(Transfer_Tr[[#This Row],[Item Code]],Product[],2,FALSE),\"\")","v":""},{"$f":"IFERROR(VLOOKUP(Transfer_Tr[[#This Row],[Item Code]],Product[],3,FALSE),\"\")","v":""}]
[{"$f":"IF(E77=\"\",\"\",SUBTOTAL(3,E$9:E77))","v":""},null,null,null,null,{"$f":"IFERROR(VLOOKUP(Transfer_Tr[[#This Row],[Item Code]],Product[],2,FALSE),\"\")","v":""},{"$f":"IFERROR(VLOOKUP(Transfer_Tr[[#This Row],[Item Code]],Product[],3,FALSE),\"\")","v":""}]
[{"$f":"IF(E78=\"\",\"\",SUBTOTAL(3,E$9:E78))","v":""},null,null,null,null,{"$f":"IFERROR(VLOOKUP(Transfer_Tr[[#This Row],[Item Code]],Product[],2,FALSE),\"\")","v":""},{"$f":"IFERROR(VLOOKUP(Transfer_Tr[[#This Row],[Item Code]],Product[],3,FALSE),\"\")","v":""}]
[{"$f":"IF(E79=\"\",\"\",SUBTOTAL(3,E$9:E79))","v":""},null,null,null,null,{"$f":"IFERROR(VLOOKUP(Transfer_Tr[[#This Row],[Item Code]],Product[],2,FALSE),\"\")","v":""},{"$f":"IFERROR(VLOOKUP(Transfer_Tr[[#This Row],[Item Code]],Product[],3,FALSE),\"\")","v":""}]
[{"$f":"IF(E80=\"\",\"\",SUBTOTAL(3,E$9:E80))","v":""},null,null,null,null,{"$f":"IFERROR(VLOOKUP(Transfer_Tr[[#This Row],[Item Code]],Product[],2,FALSE),\"\")","v":""},{"$f":"IFERROR(VLOOKUP(Transfer_Tr[[#This Row],[Item Code]],Product[],3,FALSE),\"\")","v":""}]
[{"$f":"IF(E81=\"\",\"\",SUBTOTAL(3,E$9:E81))","v":""},null,null,null,null,{"$f":"IFERROR(VLOOKUP(Transfer_Tr[[#This Row],[Item Code]],Product[],2,FALSE),\"\")","v":""},{"$f":"IFERROR(VLOOKUP(Transfer_Tr[[#This Row],[Item Code]],Product[],3,FALSE),\"\")","v":""}]
[{"$f":"IF(E82=\"\",\"\",SUBTOTAL(3,E$9:E82))","v":""},null,null,null,null,{"$f":"IFERROR(VLOOKUP(Transfer_Tr[[#This Row],[Item Code]],Product[],2,FALSE),\"\")","v":""},{"$f":"IFERROR(VLOOKUP(Transfer_Tr[[#This Row],[Item Code]],Product[],3,FALSE),\"\")","v":""}]
[{"$f":"IF(E83=\"\",\"\",SUBTOTAL(3,E$9:E83))","v":""},null,null,null,null,{"$f":"IFERROR(VLOOKUP(Transfer_Tr[[#This Row],[Item Code]],Product[],2,FALSE),\"\")","v":""},{"$f":"IFERROR(VLOOKUP(Transfer_Tr[[#This Row],[Item Code]],Product[],3,FALSE),\"\")","v":""}]
[{"$f":"IF(E84=\"\",\"\",SUBTOTAL(3,E$9:E84))","v":""},null,null,null,null,{"$f":"IFERROR(VLOOKUP(Transfer_Tr[[#This Row],[Item Code]],Product[],2,FALSE),\"\")","v":""},{"$f":"IFERROR(VLOOKUP(Transfer_Tr[[#This Row],[Item Code]],Product[],3,FALSE),\"\")","v":""}]

{"sheet":"Tr.Order","index":6,"n_rows":56,"n_cols":14,"rows_kept":56,"cut":false,"hidden":false,"merged":[[8,8,8,9],[9,8,9,9],[10,8,10,9],[8,11,8,14],[9,11,9,14],[10,11,10,14]]}
[]
[]
[]
[]
[]
[]
[]
[]
[null,null,null,null,null,null,null,null,"S.N"]
[null,null,null,null,null,null,null,null,"Date",null,null,{"$f":"IFERROR(VLOOKUP($L$9,TransTable,2,FALSE),\"\")","v":""}]
[null,null,null,null,null,null,null,null,"Location",null,null,{"$f":"IFERROR(VLOOKUP($L$9,TransTable,3,FALSE),\"\")","v":""}]
[]
[]
[]
[]
[null,null,null,null,null,"Sl","Item Code","Item Name","Unit","Qty"]
[null,null,null,null,null,{"$f":"IF(H17=\"\",\"\",SUBTOTAL(3,H$17:H17))","v":""},{"$f":"IFERROR(INDEX(Transfer_Tr[],SMALL(IF(Transfer_Tr[Order No]=$L$9,ROW(Transfer_Tr[])-ROW(Transfer_Tr[#Headers])),ROW(1:1)),MATCH($G$16,Transfer_Tr[#Headers],0)),\"\")","v":0},{"$f":"IFERROR(INDEX(Transfer_Tr[],SMALL(IF(Transfer_Tr[Order No]=$L$9,ROW(Transfer_Tr[])-ROW(Transfer_Tr[#Headers])),ROW(1:1)),MATCH($H$16,Transfer_Tr[#Headers],0)),\"\")","v":""},{"$f":"IFERROR(INDEX(Transfer_Tr[],SMALL(IF(Transfer_Tr[Order No]=$L$9,ROW(Transfer_Tr[])-ROW(Transfer_Tr[#Headers])),ROW(1:1)),MATCH($I$16,Transfer_Tr[#Headers],0)),\"\")","v":""},{"$f":"IFERROR(INDEX(Transfer_Tr[],SMALL(IF(Transfer_Tr[Order No]=$L$9,ROW(Transfer_Tr[])-ROW(Transfer_Tr[#Headers])),ROW(1:1)),MATCH($J$16,Transfer_Tr[#Headers],0)),\"\")","v":0}]
[null,null,null,null,null,{"$f":"IF(H18=\"\",\"\",SUBTOTAL(3,H$17:H18))","v":""},{"$f":"IFERROR(INDEX(Transfer_Tr[],SMALL(IF(Transfer_Tr[Order No]=$L$9,ROW(Transfer_Tr[])-ROW(Transfer_Tr[#Headers])),ROW(2:2)),MATCH($G$16,Transfer_Tr[#Headers],0)),\"\")","v":0},{"$f":"IFERROR(INDEX(Transfer_Tr[],SMALL(IF(Transfer_Tr[Order No]=$L$9,ROW(Transfer_Tr[])-ROW(Transfer_Tr[#Headers])),ROW(2:2)),MATCH($H$16,Transfer_Tr[#Headers],0)),\"\")","v":""},{"$f":"IFERROR(INDEX(Transfer_Tr[],SMALL(IF(Transfer_Tr[Order No]=$L$9,ROW(Transfer_Tr[])-ROW(Transfer_Tr[#Headers])),ROW(2:2)),MATCH($I$16,Transfer_Tr[#Headers],0)),\"\")","v":""},{"$f":"IFERROR(INDEX(Transfer_Tr[],SMALL(IF(Transfer_Tr[Order No]=$L$9,ROW(Transfer_Tr[])-ROW(Transfer_Tr[#Headers])),ROW(2:2)),MATCH($J$16,Transfer_Tr[#Headers],0)),\"\")","v":0}]
[null,null,null,null,null,{"$f":"IF(H19=\"\",\"\",SUBTOTAL(3,H$17:H19))","v":""},{"$f":"IFERROR(INDEX(Transfer_Tr[],SMALL(IF(Transfer_Tr[Order No]=$L$9,ROW(Transfer_Tr[])-ROW(Transfer_Tr[#Headers])),ROW(3:3)),MATCH($G$16,Transfer_Tr[#Headers],0)),\"\")","v":0},{"$f":"IFERROR(INDEX(Transfer_Tr[],SMALL(IF(Transfer_Tr[Order No]=$L$9,ROW(Transfer_Tr[])-ROW(Transfer_Tr[#Headers])),ROW(3:3)),MATCH($H$16,Transfer_Tr[#Headers],0)),\"\")","v":""},{"$f":"IFERROR(INDEX(Transfer_Tr[],SMALL(IF(Transfer_Tr[Order No]=$L$9,ROW(Transfer_Tr[])-ROW(Transfer_Tr[#Headers])),ROW(3:3)),MATCH($I$16,Transfer_Tr[#Headers],0)),\"\")","v":""},{"$f":"IFERROR(INDEX(Transfer_Tr[],SMALL(IF(Transfer_Tr[Order No]=$L$9,ROW(Transfer_Tr[])-ROW(Transfer_Tr[#Headers])),ROW(3:3)),MATCH($J$16,Transfer_Tr[#Headers],0)),\"\")","v":0}]
[null,null,null,null,null,{"$f":"IF(H20=\"\",\"\",SUBTOTAL(3,H$17:H20))","v":""},{"$f":"IFERROR(INDEX(Transfer_Tr[],SMALL(IF(Transfer_Tr[Order No]=$L$9,ROW(Transfer_Tr[])-ROW(Transfer_Tr[#Headers])),ROW(4:4)),MATCH($G$16,Transfer_Tr[#Headers],0)),\"\")","v":0},{"$f":"IFERROR(INDEX(Transfer_Tr[],SMALL(IF(Transfer_Tr[Order No]=$L$9,ROW(Transfer_Tr[])-ROW(Transfer_Tr[#Headers])),ROW(4:4)),MATCH($H$16,Transfer_Tr[#Headers],0)),\"\")","v":""},{"$f":"IFERROR(INDEX(Transfer_Tr[],SMALL(IF(Transfer_Tr[Order No]=$L$9,ROW(Transfer_Tr[])-ROW(Transfer_Tr[#Headers])),ROW(4:4)),MATCH($I$16,Transfer_Tr[#Headers],0)),\"\")","v":""},{"$f":"IFERROR(INDEX(Transfer_Tr[],SMALL(IF(Transfer_Tr[Order No]=$L$9,ROW(Transfer_Tr[])-ROW(Transfer_Tr[#Headers])),ROW(4:4)),MATCH($J$16,Transfer_Tr[#Headers],0)),\"\")","v":0}]
[null,null,null,null,null,{"$f":"IF(H21=\"\",\"\",SUBTOTAL(3,H$17:H21))","v":""},{"$f":"IFERROR(INDEX(Transfer_Tr[],SMALL(IF(Transfer_Tr[Order No]=$L$9,ROW(Transfer_Tr[])-ROW(Transfer_Tr[#Headers])),ROW(5:5)),MATCH($G$16,Transfer_Tr[#Headers],0)),\"\")","v":0},{"$f":"IFERROR(INDEX(Transfer_Tr[],SMALL(IF(Transfer_Tr[Order No]=$L$9,ROW(Transfer_Tr[])-ROW(Transfer_Tr[#Headers])),ROW(5:5)),MATCH($H$16,Transfer_Tr[#Headers],0)),\"\")","v":""},{"$f":"IFERROR(INDEX(Transfer_Tr[],SMALL(IF(Transfer_Tr[Order No]=$L$9,ROW(Transfer_Tr[])-ROW(Transfer_Tr[#Headers])),ROW(5:5)),MATCH($I$16,Transfer_Tr[#Headers],0)),\"\")","v":""},{"$f":"IFERROR(INDEX(Transfer_Tr[],SMALL(IF(Transfer_Tr[Order No]=$L$9,ROW(Transfer_Tr[])-ROW(Transfer_Tr[#Headers])),ROW(5:5)),MATCH($J$16,Transfer_Tr[#Headers],0)),\"\")","v":0}]
[null,null,null,null,null,{"$f":"IF(H22=\"\",\"\",SUBTOTAL(3,H$17:H22))","v":""},{"$f":"IFERROR(INDEX(Transfer_Tr[],SMALL(IF(Transfer_Tr[Order No]=$L$9,ROW(Transfer_Tr[])-ROW(Transfer_Tr[#Headers])),ROW(6:6)),MATCH($G$16,Transfer_Tr[#Headers],0)),\"\")","v":0},{"$f":"IFERROR(INDEX(Transfer_Tr[],SMALL(IF(Transfer_Tr[Order No]=$L$9,ROW(Transfer_Tr[])-ROW(Transfer_Tr[#Headers])),ROW(6:6)),MATCH($H$16,Transfer_Tr[#Headers],0)),\"\")","v":""},{"$f":"IFERROR(INDEX(Transfer_Tr[],SMALL(IF(Transfer_Tr[Order No]=$L$9,ROW(Transfer_Tr[])-ROW(Transfer_Tr[#Headers])),ROW(6:6)),MATCH($I$16,Transfer_Tr[#Headers],0)),\"\")","v":""},{"$f":"IFERROR(INDEX(Transfer_Tr[],SMALL(IF(Transfer_Tr[Order No]=$L$9,ROW(Transfer_Tr[])-ROW(Transfer_Tr[#Headers])),ROW(6:6)),MATCH($J$16,Transfer_Tr[#Headers],0)),\"\")","v":0}]
[null,null,null,null,null,{"$f":"IF(H23=\"\",\"\",SUBTOTAL(3,H$17:H23))","v":""},{"$f":"IFERROR(INDEX(Transfer_Tr[],SMALL(IF(Transfer_Tr[Order No]=$L$9,ROW(Transfer_Tr[])-ROW(Transfer_Tr[#Headers])),ROW(7:7)),MATCH($G$16,Transfer_Tr[#Headers],0)),\"\")","v":0},{"$f":"IFERROR(INDEX(Transfer_Tr[],SMALL(IF(Transfer_Tr[Order No]=$L$9,ROW(Transfer_Tr[])-ROW(Transfer_Tr[#Headers])),ROW(7:7)),MATCH($H$16,Transfer_Tr[#Headers],0)),\"\")","v":""},{"$f":"IFERROR(INDEX(Transfer_Tr[],SMALL(IF(Transfer_Tr[Order No]=$L$9,ROW(Transfer_Tr[])-ROW(Transfer_Tr[#Headers])),ROW(7:7)),MATCH($I$16,Transfer_Tr[#Headers],0)),\"\")","v":""},{"$f":"IFERROR(INDEX(Transfer_Tr[],SMALL(IF(Transfer_Tr[Order No]=$L$9,ROW(Transfer_Tr[])-ROW(Transfer_Tr[#Headers])),ROW(7:7)),MATCH($J$16,Transfer_Tr[#Headers],0)),\"\")","v":0}]
[null,null,null,null,null,{"$f":"IF(H24=\"\",\"\",SUBTOTAL(3,H$17:H24))","v":""},{"$f":"IFERROR(INDEX(Transfer_Tr[],SMALL(IF(Transfer_Tr[Order No]=$L$9,ROW(Transfer_Tr[])-ROW(Transfer_Tr[#Headers])),ROW(8:8)),MATCH($G$16,Transfer_Tr[#Headers],0)),\"\")","v":0},{"$f":"IFERROR(INDEX(Transfer_Tr[],SMALL(IF(Transfer_Tr[Order No]=$L$9,ROW(Transfer_Tr[])-ROW(Transfer_Tr[#Headers])),ROW(8:8)),MATCH($H$16,Transfer_Tr[#Headers],0)),\"\")","v":""},{"$f":"IFERROR(INDEX(Transfer_Tr[],SMALL(IF(Transfer_Tr[Order No]=$L$9,ROW(Transfer_Tr[])-ROW(Transfer_Tr[#Headers])),ROW(8:8)),MATCH($I$16,Transfer_Tr[#Headers],0)),\"\")","v":""},{"$f":"IFERROR(INDEX(Transfer_Tr[],SMALL(IF(Transfer_Tr[Order No]=$L$9,ROW(Transfer_Tr[])-ROW(Transfer_Tr[#Headers])),ROW(8:8)),MATCH($J$16,Transfer_Tr[#Headers],0)),\"\")","v":0}]
[null,null,null,null,null,{"$f":"IF(H25=\"\",\"\",SUBTOTAL(3,H$17:H25))","v":""},{"$f":"IFERROR(INDEX(Transfer_Tr[],SMALL(IF(Transfer_Tr[Order No]=$L$9,ROW(Transfer_Tr[])-ROW(Transfer_Tr[#Headers])),ROW(9:9)),MATCH($G$16,Transfer_Tr[#Headers],0)),\"\")","v":0},{"$f":"IFERROR(INDEX(Transfer_Tr[],SMALL(IF(Transfer_Tr[Order No]=$L$9,ROW(Transfer_Tr[])-ROW(Transfer_Tr[#Headers])),ROW(9:9)),MATCH($H$16,Transfer_Tr[#Headers],0)),\"\")","v":""},{"$f":"IFERROR(INDEX(Transfer_Tr[],SMALL(IF(Transfer_Tr[Order No]=$L$9,ROW(Transfer_Tr[])-ROW(Transfer_Tr[#Headers])),ROW(9:9)),MATCH($I$16,Transfer_Tr[#Headers],0)),\"\")","v":""},{"$f":"IFERROR(INDEX(Transfer_Tr[],SMALL(IF(Transfer_Tr[Order No]=$L$9,ROW(Transfer_Tr[])-ROW(Transfer_Tr[#Headers])),ROW(9:9)),MATCH($J$16,Transfer_Tr[#Headers],0)),\"\")","v":0}]
[null,null,null,null,null,{"$f":"IF(H26=\"\",\"\",SUBTOTAL(3,H$17:H26))","v":""},{"$f":"IFERROR(INDEX(Transfer_Tr[],SMALL(IF(Transfer_Tr[Order No]=$L$9,ROW(Transfer_Tr[])-ROW(Transfer_Tr[#Headers])),ROW(10:10)),MATCH($G$16,Transfer_Tr[#Headers],0)),\"\")","v":0},{"$f":"IFERROR(INDEX(Transfer_Tr[],SMALL(IF(Transfer_Tr[Order No]=$L$9,ROW(Transfer_Tr[])-ROW(Transfer_Tr[#Headers])),ROW(10:10)),MATCH($H$16,Transfer_Tr[#Headers],0)),\"\")","v":""},{"$f":"IFERROR(INDEX(Transfer_Tr[],SMALL(IF(Transfer_Tr[Order No]=$L$9,ROW(Transfer_Tr[])-ROW(Transfer_Tr[#Headers])),ROW(10:10)),MATCH($I$16,Transfer_Tr[#Headers],0)),\"\")","v":""},{"$f":"IFERROR(INDEX(Transfer_Tr[],SMALL(IF(Transfer_Tr[Order No]=$L$9,ROW(Transfer_Tr[])-ROW(Transfer_Tr[#Headers])),ROW(10:10)),MATCH($J$16,Transfer_Tr[#Headers],0)),\"\")","v":0}]
[null,null,null,null,null,{"$f":"IF(H27=\"\",\"\",SUBTOTAL(3,H$17:H27))","v":""},{"$f":"IFERROR(INDEX(Transfer_Tr[],SMALL(IF(Transfer_Tr[Order No]=$L$9,ROW(Transfer_Tr[])-ROW(Transfer_Tr[#Headers])),ROW(11:11)),MATCH($G$16,Transfer_Tr[#Headers],0)),\"\")","v":0},{"$f":"IFERROR(INDEX(Transfer_Tr[],SMALL(IF(Transfer_Tr[Order No]=$L$9,ROW(Transfer_Tr[])-ROW(Transfer_Tr[#Headers])),ROW(11:11)),MATCH($H$16,Transfer_Tr[#Headers],0)),\"\")","v":""},{"$f":"IFERROR(INDEX(Transfer_Tr[],SMALL(IF(Transfer_Tr[Order No]=$L$9,ROW(Transfer_Tr[])-ROW(Transfer_Tr[#Headers])),ROW(11:11)),MATCH($I$16,Transfer_Tr[#Headers],0)),\"\")","v":""},{"$f":"IFERROR(INDEX(Transfer_Tr[],SMALL(IF(Transfer_Tr[Order No]=$L$9,ROW(Transfer_Tr[])-ROW(Transfer_Tr[#Headers])),ROW(11:11)),MATCH($J$16,Transfer_Tr[#Headers],0)),\"\")","v":0}]
[null,null,null,null,null,{"$f":"IF(H28=\"\",\"\",SUBTOTAL(3,H$17:H28))","v":""},{"$f":"IFERROR(INDEX(Transfer_Tr[],SMALL(IF(Transfer_Tr[Order No]=$L$9,ROW(Transfer_Tr[])-ROW(Transfer_Tr[#Headers])),ROW(12:12)),MATCH($G$16,Transfer_Tr[#Headers],0)),\"\")","v":0},{"$f":"IFERROR(INDEX(Transfer_Tr[],SMALL(IF(Transfer_Tr[Order No]=$L$9,ROW(Transfer_Tr[])-ROW(Transfer_Tr[#Headers])),ROW(12:12)),MATCH($H$16,Transfer_Tr[#Headers],0)),\"\")","v":""},{"$f":"IFERROR(INDEX(Transfer_Tr[],SMALL(IF(Transfer_Tr[Order No]=$L$9,ROW(Transfer_Tr[])-ROW(Transfer_Tr[#Headers])),ROW(12:12)),MATCH($I$16,Transfer_Tr[#Headers],0)),\"\")","v":""},{"$f":"IFERROR(INDEX(Transfer_Tr[],SMALL(IF(Transfer_Tr[Order No]=$L$9,ROW(Transfer_Tr[])-ROW(Transfer_Tr[#Headers])),ROW(12:12)),MATCH($J$16,Transfer_Tr[#Headers],0)),\"\")","v":0}]
[null,null,null,null,null,{"$f":"IF(H29=\"\",\"\",SUBTOTAL(3,H$17:H29))","v":""},{"$f":"IFERROR(INDEX(Transfer_Tr[],SMALL(IF(Transfer_Tr[Order No]=$L$9,ROW(Transfer_Tr[])-ROW(Transfer_Tr[#Headers])),ROW(13:13)),MATCH($G$16,Transfer_Tr[#Headers],0)),\"\")","v":0},{"$f":"IFERROR(INDEX(Transfer_Tr[],SMALL(IF(Transfer_Tr[Order No]=$L$9,ROW(Transfer_Tr[])-ROW(Transfer_Tr[#Headers])),ROW(13:13)),MATCH($H$16,Transfer_Tr[#Headers],0)),\"\")","v":""},{"$f":"IFERROR(INDEX(Transfer_Tr[],SMALL(IF(Transfer_Tr[Order No]=$L$9,ROW(Transfer_Tr[])-ROW(Transfer_Tr[#Headers])),ROW(13:13)),MATCH($I$16,Transfer_Tr[#Headers],0)),\"\")","v":""},{"$f":"IFERROR(INDEX(Transfer_Tr[],SMALL(IF(Transfer_Tr[Order No]=$L$9,ROW(Transfer_Tr[])-ROW(Transfer_Tr[#Headers])),ROW(13:13)),MATCH($J$16,Transfer_Tr[#Headers],0)),\"\")","v":0}]
[null,null,null,null,null,{"$f":"IF(H30=\"\",\"\",SUBTOTAL(3,H$17:H30))","v":""},{"$f":"IFERROR(INDEX(Transfer_Tr[],SMALL(IF(Transfer_Tr[Order No]=$L$9,ROW(Transfer_Tr[])-ROW(Transfer_Tr[#Headers])),ROW(14:14)),MATCH($G$16,Transfer_Tr[#Headers],0)),\"\")","v":0},{"$f":"IFERROR(INDEX(Transfer_Tr[],SMALL(IF(Transfer_Tr[Order No]=$L$9,ROW(Transfer_Tr[])-ROW(Transfer_Tr[#Headers])),ROW(14:14)),MATCH($H$16,Transfer_Tr[#Headers],0)),\"\")","v":""},{"$f":"IFERROR(INDEX(Transfer_Tr[],SMALL(IF(Transfer_Tr[Order No]=$L$9,ROW(Transfer_Tr[])-ROW(Transfer_Tr[#Headers])),ROW(14:14)),MATCH($I$16,Transfer_Tr[#Headers],0)),\"\")","v":""},{"$f":"IFERROR(INDEX(Transfer_Tr[],SMALL(IF(Transfer_Tr[Order No]=$L$9,ROW(Transfer_Tr[])-ROW(Transfer_Tr[#Headers])),ROW(14:14)),MATCH($J$16,Transfer_Tr[#Headers],0)),\"\")","v":0}]
[null,null,null,null,null,{"$f":"IF(H31=\"\",\"\",SUBTOTAL(3,H$17:H31))","v":""},{"$f":"IFERROR(INDEX(Transfer_Tr[],SMALL(IF(Transfer_Tr[Order No]=$L$9,ROW(Transfer_Tr[])-ROW(Transfer_Tr[#Headers])),ROW(15:15)),MATCH($G$16,Transfer_Tr[#Headers],0)),\"\")","v":0},{"$f":"IFERROR(INDEX(Transfer_Tr[],SMALL(IF(Transfer_Tr[Order No]=$L$9,ROW(Transfer_Tr[])-ROW(Transfer_Tr[#Headers])),ROW(15:15)),MATCH($H$16,Transfer_Tr[#Headers],0)),\"\")","v":""},{"$f":"IFERROR(INDEX(Transfer_Tr[],SMALL(IF(Transfer_Tr[Order No]=$L$9,ROW(Transfer_Tr[])-ROW(Transfer_Tr[#Headers])),ROW(15:15)),MATCH($I$16,Transfer_Tr[#Headers],0)),\"\")","v":""},{"$f":"IFERROR(INDEX(Transfer_Tr[],SMALL(IF(Transfer_Tr[Order No]=$L$9,ROW(Transfer_Tr[])-ROW(Transfer_Tr[#Headers])),ROW(15:15)),MATCH($J$16,Transfer_Tr[#Headers],0)),\"\")","v":0}]
[null,null,null,null,null,{"$f":"IF(H32=\"\",\"\",SUBTOTAL(3,H$17:H32))","v":""},{"$f":"IFERROR(INDEX(Transfer_Tr[],SMALL(IF(Transfer_Tr[Order No]=$L$9,ROW(Transfer_Tr[])-ROW(Transfer_Tr[#Headers])),ROW(16:16)),MATCH($G$16,Transfer_Tr[#Headers],0)),\"\")","v":0},{"$f":"IFERROR(INDEX(Transfer_Tr[],SMALL(IF(Transfer_Tr[Order No]=$L$9,ROW(Transfer_Tr[])-ROW(Transfer_Tr[#Headers])),ROW(16:16)),MATCH($H$16,Transfer_Tr[#Headers],0)),\"\")","v":""},{"$f":"IFERROR(INDEX(Transfer_Tr[],SMALL(IF(Transfer_Tr[Order No]=$L$9,ROW(Transfer_Tr[])-ROW(Transfer_Tr[#Headers])),ROW(16:16)),MATCH($I$16,Transfer_Tr[#Headers],0)),\"\")","v":""},{"$f":"IFERROR(INDEX(Transfer_Tr[],SMALL(IF(Transfer_Tr[Order No]=$L$9,ROW(Transfer_Tr[])-ROW(Transfer_Tr[#Headers])),ROW(16:16)),MATCH($J$16,Transfer_Tr[#Headers],0)),\"\")","v":0}]
[null,null,null,null,null,{"$f":"IF(H33=\"\",\"\",SUBTOTAL(3,H$17:H33))","v":""},{"$f":"IFERROR(INDEX(Transfer_Tr[],SMALL(IF(Transfer_Tr[Order No]=$L$9,ROW(Transfer_Tr[])-ROW(Transfer_Tr[#Headers])),ROW(17:17)),MATCH($G$16,Transfer_Tr[#Headers],0)),\"\")","v":0},{"$f":"IFERROR(INDEX(Transfer_Tr[],SMALL(IF(Transfer_Tr[Order No]=$L$9,ROW(Transfer_Tr[])-ROW(Transfer_Tr[#Headers])),ROW(17:17)),MATCH($H$16,Transfer_Tr[#Headers],0)),\"\")","v":""},{"$f":"IFERROR(INDEX(Transfer_Tr[],SMALL(IF(Transfer_Tr[Order No]=$L$9,ROW(Transfer_Tr[])-ROW(Transfer_Tr[#Headers])),ROW(17:17)),MATCH($I$16,Transfer_Tr[#Headers],0)),\"\")","v":""},{"$f":"IFERROR(INDEX(Transfer_Tr[],SMALL(IF(Transfer_Tr[Order No]=$L$9,ROW(Transfer_Tr[])-ROW(Transfer_Tr[#Headers])),ROW(17:17)),MATCH($J$16,Transfer_Tr[#Headers],0)),\"\")","v":0}]
[null,null,null,null,null,{"$f":"IF(H34=\"\",\"\",SUBTOTAL(3,H$17:H34))","v":""},{"$f":"IFERROR(INDEX(Transfer_Tr[],SMALL(IF(Transfer_Tr[Order No]=$L$9,ROW(Transfer_Tr[])-ROW(Transfer_Tr[#Headers])),ROW(18:18)),MATCH($G$16,Transfer_Tr[#Headers],0)),\"\")","v":0},{"$f":"IFERROR(INDEX(Transfer_Tr[],SMALL(IF(Transfer_Tr[Order No]=$L$9,ROW(Transfer_Tr[])-ROW(Transfer_Tr[#Headers])),ROW(18:18)),MATCH($H$16,Transfer_Tr[#Headers],0)),\"\")","v":""},{"$f":"IFERROR(INDEX(Transfer_Tr[],SMALL(IF(Transfer_Tr[Order No]=$L$9,ROW(Transfer_Tr[])-ROW(Transfer_Tr[#Headers])),ROW(18:18)),MATCH($I$16,Transfer_Tr[#Headers],0)),\"\")","v":""},{"$f":"IFERROR(INDEX(Transfer_Tr[],SMALL(IF(Transfer_Tr[Order No]=$L$9,ROW(Transfer_Tr[])-ROW(Transfer_Tr[#Headers])),ROW(18:18)),MATCH($J$16,Transfer_Tr[#Headers],0)),\"\")","v":0}]
[null,null,null,null,null,{"$f":"IF(H35=\"\",\"\",SUBTOTAL(3,H$17:H35))","v":""},{"$f":"IFERROR(INDEX(Transfer_Tr[],SMALL(IF(Transfer_Tr[Order No]=$L$9,ROW(Transfer_Tr[])-ROW(Transfer_Tr[#Headers])),ROW(19:19)),MATCH($G$16,Transfer_Tr[#Headers],0)),\"\")","v":0},{"$f":"IFERROR(INDEX(Transfer_Tr[],SMALL(IF(Transfer_Tr[Order No]=$L$9,ROW(Transfer_Tr[])-ROW(Transfer_Tr[#Headers])),ROW(19:19)),MATCH($H$16,Transfer_Tr[#Headers],0)),\"\")","v":""},{"$f":"IFERROR(INDEX(Transfer_Tr[],SMALL(IF(Transfer_Tr[Order No]=$L$9,ROW(Transfer_Tr[])-ROW(Transfer_Tr[#Headers])),ROW(19:19)),MATCH($I$16,Transfer_Tr[#Headers],0)),\"\")","v":""},{"$f":"IFERROR(INDEX(Transfer_Tr[],SMALL(IF(Transfer_Tr[Order No]=$L$9,ROW(Transfer_Tr[])-ROW(Transfer_Tr[#Headers])),ROW(19:19)),MATCH($J$16,Transfer_Tr[#Headers],0)),\"\")","v":0}]
[null,null,null,null,null,{"$f":"IF(H36=\"\",\"\",SUBTOTAL(3,H$17:H36))","v":""},{"$f":"IFERROR(INDEX(Transfer_Tr[],SMALL(IF(Transfer_Tr[Order No]=$L$9,ROW(Transfer_Tr[])-ROW(Transfer_Tr[#Headers])),ROW(20:20)),MATCH($G$16,Transfer_Tr[#Headers],0)),\"\")","v":0},{"$f":"IFERROR(INDEX(Transfer_Tr[],SMALL(IF(Transfer_Tr[Order No]=$L$9,ROW(Transfer_Tr[])-ROW(Transfer_Tr[#Headers])),ROW(20:20)),MATCH($H$16,Transfer_Tr[#Headers],0)),\"\")","v":""},{"$f":"IFERROR(INDEX(Transfer_Tr[],SMALL(IF(Transfer_Tr[Order No]=$L$9,ROW(Transfer_Tr[])-ROW(Transfer_Tr[#Headers])),ROW(20:20)),MATCH($I$16,Transfer_Tr[#Headers],0)),\"\")","v":""},{"$f":"IFERROR(INDEX(Transfer_Tr[],SMALL(IF(Transfer_Tr[Order No]=$L$9,ROW(Transfer_Tr[])-ROW(Transfer_Tr[#Headers])),ROW(20:20)),MATCH($J$16,Transfer_Tr[#Headers],0)),\"\")","v":0}]
[null,null,null,null,null,{"$f":"IF(H37=\"\",\"\",SUBTOTAL(3,H$17:H37))","v":""},{"$f":"IFERROR(INDEX(Transfer_Tr[],SMALL(IF(Transfer_Tr[Order No]=$L$9,ROW(Transfer_Tr[])-ROW(Transfer_Tr[#Headers])),ROW(21:21)),MATCH($G$16,Transfer_Tr[#Headers],0)),\"\")","v":0},{"$f":"IFERROR(INDEX(Transfer_Tr[],SMALL(IF(Transfer_Tr[Order No]=$L$9,ROW(Transfer_Tr[])-ROW(Transfer_Tr[#Headers])),ROW(21:21)),MATCH($H$16,Transfer_Tr[#Headers],0)),\"\")","v":""},{"$f":"IFERROR(INDEX(Transfer_Tr[],SMALL(IF(Transfer_Tr[Order No]=$L$9,ROW(Transfer_Tr[])-ROW(Transfer_Tr[#Headers])),ROW(21:21)),MATCH($I$16,Transfer_Tr[#Headers],0)),\"\")","v":""},{"$f":"IFERROR(INDEX(Transfer_Tr[],SMALL(IF(Transfer_Tr[Order No]=$L$9,ROW(Transfer_Tr[])-ROW(Transfer_Tr[#Headers])),ROW(21:21)),MATCH($J$16,Transfer_Tr[#Headers],0)),\"\")","v":0}]
[null,null,null,null,null,"Total",null,null,null,{"$f":"SUBTOTAL(109,Transfer_Ord[Qty])","v":0}]
[]
[]
[]
[]
[]
[]
[]
[]
[]
[]
[]
[]
[]
[]
[null,null,null,null,null,null,null,null,null,null,null,null,null,"Receiver's Name & Badge No :"]
["Requested By :"]
["Post CLK Name :"]
["Approved By :"]

{"sheet":"Received Transaction","index":7,"n_rows":44,"n_cols":8,"rows_kept":44,"cut":false,"hidden":false,"merged":[]}
[]
[]
[]
[]
[null,null,null,null,null,{"$f":"TODAY()","v":"2018-07-11"}]
[]
["S.N","Order No","Date","Location","Item Code","Item Name","Unit","Qty"]
[{"$f":"IF(E8=\"\",\"\",SUBTOTAL(3,E$8:E8))","v":""},null,null,null,null,{"$f":"IFERROR(VLOOKUP(Received_Tr[[#This Row],[Item Code]],Product[],2,FALSE),\"\")","v":""},{"$f":"IFERROR(VLOOKUP(Received_Tr[[#This Row],[Item Code]],Product[],3,FALSE),\"\")","v":""}]
[{"$f":"IF(E9=\"\",\"\",SUBTOTAL(3,E$8:E9))","v":""},null,null,null,null,{"$f":"IFERROR(VLOOKUP(Received_Tr[[#This Row],[Item Code]],Product[],2,FALSE),\"\")","v":""},{"$f":"IFERROR(VLOOKUP(Received_Tr[[#This Row],[Item Code]],Product[],3,FALSE),\"\")","v":""}]
[{"$f":"IF(E10=\"\",\"\",SUBTOTAL(3,E$8:E10))","v":""},null,null,null,null,{"$f":"IFERROR(VLOOKUP(Received_Tr[[#This Row],[Item Code]],Product[],2,FALSE),\"\")","v":""},{"$f":"IFERROR(VLOOKUP(Received_Tr[[#This Row],[Item Code]],Product[],3,FALSE),\"\")","v":""}]
[{"$f":"IF(E11=\"\",\"\",SUBTOTAL(3,E$8:E11))","v":""},null,null,null,null,{"$f":"IFERROR(VLOOKUP(Received_Tr[[#This Row],[Item Code]],Product[],2,FALSE),\"\")","v":""},{"$f":"IFERROR(VLOOKUP(Received_Tr[[#This Row],[Item Code]],Product[],3,FALSE),\"\")","v":""}]
[{"$f":"IF(E12=\"\",\"\",SUBTOTAL(3,E$8:E12))","v":""},null,null,null,null,{"$f":"IFERROR(VLOOKUP(Received_Tr[[#This Row],[Item Code]],Product[],2,FALSE),\"\")","v":""},{"$f":"IFERROR(VLOOKUP(Received_Tr[[#This Row],[Item Code]],Product[],3,FALSE),\"\")","v":""}]
[{"$f":"IF(E13=\"\",\"\",SUBTOTAL(3,E$8:E13))","v":""},null,null,null,null,{"$f":"IFERROR(VLOOKUP(Received_Tr[[#This Row],[Item Code]],Product[],2,FALSE),\"\")","v":""},{"$f":"IFERROR(VLOOKUP(Received_Tr[[#This Row],[Item Code]],Product[],3,FALSE),\"\")","v":""}]
[{"$f":"IF(E14=\"\",\"\",SUBTOTAL(3,E$8:E14))","v":""},null,null,null,null,{"$f":"IFERROR(VLOOKUP(Received_Tr[[#This Row],[Item Code]],Product[],2,FALSE),\"\")","v":""},{"$f":"IFERROR(VLOOKUP(Received_Tr[[#This Row],[Item Code]],Product[],3,FALSE),\"\")","v":""}]
[{"$f":"IF(E15=\"\",\"\",SUBTOTAL(3,E$8:E15))","v":""},null,null,null,null,{"$f":"IFERROR(VLOOKUP(Received_Tr[[#This Row],[Item Code]],Product[],2,FALSE),\"\")","v":""},{"$f":"IFERROR(VLOOKUP(Received_Tr[[#This Row],[Item Code]],Product[],3,FALSE),\"\")","v":""}]
[{"$f":"IF(E16=\"\",\"\",SUBTOTAL(3,E$8:E16))","v":""},null,null,null,null,{"$f":"IFERROR(VLOOKUP(Received_Tr[[#This Row],[Item Code]],Product[],2,FALSE),\"\")","v":""},{"$f":"IFERROR(VLOOKUP(Received_Tr[[#This Row],[Item Code]],Product[],3,FALSE),\"\")","v":""}]
[{"$f":"IF(E17=\"\",\"\",SUBTOTAL(3,E$8:E17))","v":""},null,null,null,null,{"$f":"IFERROR(VLOOKUP(Received_Tr[[#This Row],[Item Code]],Product[],2,FALSE),\"\")","v":""},{"$f":"IFERROR(VLOOKUP(Received_Tr[[#This Row],[Item Code]],Product[],3,FALSE),\"\")","v":""}]
[{"$f":"IF(E18=\"\",\"\",SUBTOTAL(3,E$8:E18))","v":""},null,null,null,null,{"$f":"IFERROR(VLOOKUP(Received_Tr[[#This Row],[Item Code]],Product[],2,FALSE),\"\")","v":""},{"$f":"IFERROR(VLOOKUP(Received_Tr[[#This Row],[Item Code]],Product[],3,FALSE),\"\")","v":""}]
[{"$f":"IF(E19=\"\",\"\",SUBTOTAL(3,E$8:E19))","v":""},null,null,null,null,{"$f":"IFERROR(VLOOKUP(Received_Tr[[#This Row],[Item Code]],Product[],2,FALSE),\"\")","v":""},{"$f":"IFERROR(VLOOKUP(Received_Tr[[#This Row],[Item Code]],Product[],3,FALSE),\"\")","v":""}]
[{"$f":"IF(E20=\"\",\"\",SUBTOTAL(3,E$8:E20))","v":""},null,null,null,null,{"$f":"IFERROR(VLOOKUP(Received_Tr[[#This Row],[Item Code]],Product[],2,FALSE),\"\")","v":""},{"$f":"IFERROR(VLOOKUP(Received_Tr[[#This Row],[Item Code]],Product[],3,FALSE),\"\")","v":""}]
[{"$f":"IF(E21=\"\",\"\",SUBTOTAL(3,E$8:E21))","v":""},null,null,null,null,{"$f":"IFERROR(VLOOKUP(Received_Tr[[#This Row],[Item Code]],Product[],2,FALSE),\"\")","v":""},{"$f":"IFERROR(VLOOKUP(Received_Tr[[#This Row],[Item Code]],Product[],3,FALSE),\"\")","v":""}]
[{"$f":"IF(E22=\"\",\"\",SUBTOTAL(3,E$8:E22))","v":""},null,null,null,null,{"$f":"IFERROR(VLOOKUP(Received_Tr[[#This Row],[Item Code]],Product[],2,FALSE),\"\")","v":""},{"$f":"IFERROR(VLOOKUP(Received_Tr[[#This Row],[Item Code]],Product[],3,FALSE),\"\")","v":""}]
[{"$f":"IF(E23=\"\",\"\",SUBTOTAL(3,E$8:E23))","v":""},null,null,null,null,{"$f":"IFERROR(VLOOKUP(Received_Tr[[#This Row],[Item Code]],Product[],2,FALSE),\"\")","v":""},{"$f":"IFERROR(VLOOKUP(Received_Tr[[#This Row],[Item Code]],Product[],3,FALSE),\"\")","v":""}]
[{"$f":"IF(E24=\"\",\"\",SUBTOTAL(3,E$8:E24))","v":""},null,null,null,null,{"$f":"IFERROR(VLOOKUP(Received_Tr[[#This Row],[Item Code]],Product[],2,FALSE),\"\")","v":""},{"$f":"IFERROR(VLOOKUP(Received_Tr[[#This Row],[Item Code]],Product[],3,FALSE),\"\")","v":""}]
[{"$f":"IF(E25=\"\",\"\",SUBTOTAL(3,E$8:E25))","v":""},null,null,null,null,{"$f":"IFERROR(VLOOKUP(Received_Tr[[#This Row],[Item Code]],Product[],2,FALSE),\"\")","v":""},{"$f":"IFERROR(VLOOKUP(Received_Tr[[#This Row],[Item Code]],Product[],3,FALSE),\"\")","v":""}]
[{"$f":"IF(E26=\"\",\"\",SUBTOTAL(3,E$8:E26))","v":""},null,null,null,null,{"$f":"IFERROR(VLOOKUP(Received_Tr[[#This Row],[Item Code]],Product[],2,FALSE),\"\")","v":""},{"$f":"IFERROR(VLOOKUP(Received_Tr[[#This Row],[Item Code]],Product[],3,FALSE),\"\")","v":""}]
[{"$f":"IF(E27=\"\",\"\",SUBTOTAL(3,E$8:E27))","v":""},null,null,null,null,{"$f":"IFERROR(VLOOKUP(Received_Tr[[#This Row],[Item Code]],Product[],2,FALSE),\"\")","v":""},{"$f":"IFERROR(VLOOKUP(Received_Tr[[#This Row],[Item Code]],Product[],3,FALSE),\"\")","v":""}]
[{"$f":"IF(E28=\"\",\"\",SUBTOTAL(3,E$8:E28))","v":""},null,null,null,null,{"$f":"IFERROR(VLOOKUP(Received_Tr[[#This Row],[Item Code]],Product[],2,FALSE),\"\")","v":""},{"$f":"IFERROR(VLOOKUP(Received_Tr[[#This Row],[Item Code]],Product[],3,FALSE),\"\")","v":""}]
[{"$f":"IF(E29=\"\",\"\",SUBTOTAL(3,E$8:E29))","v":""},null,null,null,null,{"$f":"IFERROR(VLOOKUP(Received_Tr[[#This Row],[Item Code]],Product[],2,FALSE),\"\")","v":""},{"$f":"IFERROR(VLOOKUP(Received_Tr[[#This Row],[Item Code]],Product[],3,FALSE),\"\")","v":""}]
[{"$f":"IF(E30=\"\",\"\",SUBTOTAL(3,E$8:E30))","v":""},null,null,null,null,{"$f":"IFERROR(VLOOKUP(Received_Tr[[#This Row],[Item Code]],Product[],2,FALSE),\"\")","v":""},{"$f":"IFERROR(VLOOKUP(Received_Tr[[#This Row],[Item Code]],Product[],3,FALSE),\"\")","v":""}]
[{"$f":"IF(E31=\"\",\"\",SUBTOTAL(3,E$8:E31))","v":""},null,null,null,null,{"$f":"IFERROR(VLOOKUP(Received_Tr[[#This Row],[Item Code]],Product[],2,FALSE),\"\")","v":""},{"$f":"IFERROR(VLOOKUP(Received_Tr[[#This Row],[Item Code]],Product[],3,FALSE),\"\")","v":""}]
[{"$f":"IF(E32=\"\",\"\",SUBTOTAL(3,E$8:E32))","v":""},null,null,null,null,{"$f":"IFERROR(VLOOKUP(Received_Tr[[#This Row],[Item Code]],Product[],2,FALSE),\"\")","v":""},{"$f":"IFERROR(VLOOKUP(Received_Tr[[#This Row],[Item Code]],Product[],3,FALSE),\"\")","v":""}]
[{"$f":"IF(E33=\"\",\"\",SUBTOTAL(3,E$8:E33))","v":""},null,null,null,null,{"$f":"IFERROR(VLOOKUP(Received_Tr[[#This Row],[Item Code]],Product[],2,FALSE),\"\")","v":""},{"$f":"IFERROR(VLOOKUP(Received_Tr[[#This Row],[Item Code]],Product[],3,FALSE),\"\")","v":""}]
[{"$f":"IF(E34=\"\",\"\",SUBTOTAL(3,E$8:E34))","v":""},null,null,null,null,{"$f":"IFERROR(VLOOKUP(Received_Tr[[#This Row],[Item Code]],Product[],2,FALSE),\"\")","v":""},{"$f":"IFERROR(VLOOKUP(Received_Tr[[#This Row],[Item Code]],Product[],3,FALSE),\"\")","v":""}]
[{"$f":"IF(E35=\"\",\"\",SUBTOTAL(3,E$8:E35))","v":""},null,null,null,null,{"$f":"IFERROR(VLOOKUP(Received_Tr[[#This Row],[Item Code]],Product[],2,FALSE),\"\")","v":""},{"$f":"IFERROR(VLOOKUP(Received_Tr[[#This Row],[Item Code]],Product[],3,FALSE),\"\")","v":""}]
[{"$f":"IF(E36=\"\",\"\",SUBTOTAL(3,E$8:E36))","v":""},null,null,null,null,{"$f":"IFERROR(VLOOKUP(Received_Tr[[#This Row],[Item Code]],Product[],2,FALSE),\"\")","v":""},{"$f":"IFERROR(VLOOKUP(Received_Tr[[#This Row],[Item Code]],Product[],3,FALSE),\"\")","v":""}]
[{"$f":"IF(E37=\"\",\"\",SUBTOTAL(3,E$8:E37))","v":""},null,null,null,null,{"$f":"IFERROR(VLOOKUP(Received_Tr[[#This Row],[Item Code]],Product[],2,FALSE),\"\")","v":""},{"$f":"IFERROR(VLOOKUP(Received_Tr[[#This Row],[Item Code]],Product[],3,FALSE),\"\")","v":""}]
[{"$f":"IF(E38=\"\",\"\",SUBTOTAL(3,E$8:E38))","v":""},null,null,null,null,{"$f":"IFERROR(VLOOKUP(Received_Tr[[#This Row],[Item Code]],Product[],2,FALSE),\"\")","v":""},{"$f":"IFERROR(VLOOKUP(Received_Tr[[#This Row],[Item Code]],Product[],3,FALSE),\"\")","v":""}]
[{"$f":"IF(E39=\"\",\"\",SUBTOTAL(3,E$8:E39))","v":""},null,null,null,null,{"$f":"IFERROR(VLOOKUP(Received_Tr[[#This Row],[Item Code]],Product[],2,FALSE),\"\")","v":""},{"$f":"IFERROR(VLOOKUP(Received_Tr[[#This Row],[Item Code]],Product[],3,FALSE),\"\")","v":""}]
[{"$f":"IF(E40=\"\",\"\",SUBTOTAL(3,E$8:E40))","v":""},null,null,null,null,{"$f":"IFERROR(VLOOKUP(Received_Tr[[#This Row],[Item Code]],Product[],2,FALSE),\"\")","v":""},{"$f":"IFERROR(VLOOKUP(Received_Tr[[#This Row],[Item Code]],Product[],3,FALSE),\"\")","v":""}]
[{"$f":"IF(E41=\"\",\"\",SUBTOTAL(3,E$8:E41))","v":""},null,null,null,null,{"$f":"IFERROR(VLOOKUP(Received_Tr[[#This Row],[Item Code]],Product[],2,FALSE),\"\")","v":""},{"$f":"IFERROR(VLOOKUP(Received_Tr[[#This Row],[Item Code]],Product[],3,FALSE),\"\")","v":""}]
[{"$f":"IF(E42=\"\",\"\",SUBTOTAL(3,E$8:E42))","v":""},null,null,null,null,{"$f":"IFERROR(VLOOKUP(Received_Tr[[#This Row],[Item Code]],Product[],2,FALSE),\"\")","v":""},{"$f":"IFERROR(VLOOKUP(Received_Tr[[#This Row],[Item Code]],Product[],3,FALSE),\"\")","v":""}]
[{"$f":"IF(E43=\"\",\"\",SUBTOTAL(3,E$8:E43))","v":""},null,null,null,null,{"$f":"IFERROR(VLOOKUP(Received_Tr[[#This Row],[Item Code]],Product[],2,FALSE),\"\")","v":""},{"$f":"IFERROR(VLOOKUP(Received_Tr[[#This Row],[Item Code]],Product[],3,FALSE),\"\")","v":""}]
[{"$f":"IF(E44=\"\",\"\",SUBTOTAL(3,E$8:E44))","v":""},null,null,null,null,{"$f":"IFERROR(VLOOKUP(Received_Tr[[#This Row],[Item Code]],Product[],2,FALSE),\"\")","v":""},{"$f":"IFERROR(VLOOKUP(Received_Tr[[#This Row],[Item Code]],Product[],3,FALSE),\"\")","v":""}]

{"sheet":"R.Order","index":8,"n_rows":36,"n_cols":11,"rows_kept":36,"cut":false,"hidden":false,"merged":[[7,10,7,13],[9,10,9,13],[10,10,10,13],[7,8,7,9],[8,8,8,9],[9,8,9,9],[10,8,10,9],[8,10,8,14]]}
[]
[]
[]
[]
[]
[]
[]
[null,null,null,null,null,null,null,null,"S.N"]
[null,null,null,null,null,null,null,null,"Date",null,{"$f":"IFERROR(VLOOKUP($K$8,PurRec,2,FALSE),\"\")","v":""}]
[null,null,null,null,null,null,null,null,"Location",null,{"$f":"IFERROR(VLOOKUP($K$8,PurRec,3,FALSE),\"\")","v":""}]
[null,null,null,null,null,null,null,null,"Inv&Del #"]
[]
[]
[]
[null,null,null,null,null,"Sl","Item Code","Item Name","Unit","Qty"]
[null,null,null,null,null,{"$f":"IF(H16=\"\",\"\",SUBTOTAL(3,H$16:H16))","v":""},{"$f":"IFERROR(INDEX(Received_Tr[],SMALL(IF(Received_Tr[Order No]=$K$8,ROW(Received_Tr[])-ROW(Received_Tr[#Headers])),ROW(1:1)),MATCH($G$15,Received_Tr[#Headers],0)),\"\")","v":0},{"$f":"IFERROR(INDEX(Received_Tr[],SMALL(IF(Received_Tr[Order No]=$K$8,ROW(Received_Tr[])-ROW(Received_Tr[#Headers])),ROW(1:1)),MATCH($H$15,Received_Tr[#Headers],0)),\"\")","v":""},{"$f":"IFERROR(INDEX(Received_Tr[],SMALL(IF(Received_Tr[Order No]=$K$8,ROW(Received_Tr[])-ROW(Received_Tr[#Headers])),ROW(1:1)),MATCH($I$15,Received_Tr[#Headers],0)),\"\")","v":""},{"$f":"IFERROR(INDEX(Received_Tr[],SMALL(IF(Received_Tr[Order No]=$K$8,ROW(Received_Tr[])-ROW(Received_Tr[#Headers])),ROW(1:1)),MATCH($J$15,Received_Tr[#Headers],0)),\"\")","v":0}]
[null,null,null,null,null,{"$f":"IF(H17=\"\",\"\",SUBTOTAL(3,H$16:H17))","v":""},{"$f":"IFERROR(INDEX(Received_Tr[],SMALL(IF(Received_Tr[Order No]=$K$8,ROW(Received_Tr[])-ROW(Received_Tr[#Headers])),ROW(2:2)),MATCH($G$15,Received_Tr[#Headers],0)),\"\")","v":0},{"$f":"IFERROR(INDEX(Received_Tr[],SMALL(IF(Received_Tr[Order No]=$K$8,ROW(Received_Tr[])-ROW(Received_Tr[#Headers])),ROW(2:2)),MATCH($H$15,Received_Tr[#Headers],0)),\"\")","v":""},{"$f":"IFERROR(INDEX(Received_Tr[],SMALL(IF(Received_Tr[Order No]=$K$8,ROW(Received_Tr[])-ROW(Received_Tr[#Headers])),ROW(2:2)),MATCH($I$15,Received_Tr[#Headers],0)),\"\")","v":""},{"$f":"IFERROR(INDEX(Received_Tr[],SMALL(IF(Received_Tr[Order No]=$K$8,ROW(Received_Tr[])-ROW(Received_Tr[#Headers])),ROW(2:2)),MATCH($J$15,Received_Tr[#Headers],0)),\"\")","v":0}]
[null,null,null,null,null,{"$f":"IF(H18=\"\",\"\",SUBTOTAL(3,H$16:H18))","v":""},{"$f":"IFERROR(INDEX(Received_Tr[],SMALL(IF(Received_Tr[Order No]=$K$8,ROW(Received_Tr[])-ROW(Received_Tr[#Headers])),ROW(3:3)),MATCH($G$15,Received_Tr[#Headers],0)),\"\")","v":0},{"$f":"IFERROR(INDEX(Received_Tr[],SMALL(IF(Received_Tr[Order No]=$K$8,ROW(Received_Tr[])-ROW(Received_Tr[#Headers])),ROW(3:3)),MATCH($H$15,Received_Tr[#Headers],0)),\"\")","v":""},{"$f":"IFERROR(INDEX(Received_Tr[],SMALL(IF(Received_Tr[Order No]=$K$8,ROW(Received_Tr[])-ROW(Received_Tr[#Headers])),ROW(3:3)),MATCH($I$15,Received_Tr[#Headers],0)),\"\")","v":""},{"$f":"IFERROR(INDEX(Received_Tr[],SMALL(IF(Received_Tr[Order No]=$K$8,ROW(Received_Tr[])-ROW(Received_Tr[#Headers])),ROW(3:3)),MATCH($J$15,Received_Tr[#Headers],0)),\"\")","v":0}]
[null,null,null,null,null,{"$f":"IF(H19=\"\",\"\",SUBTOTAL(3,H$16:H19))","v":""},{"$f":"IFERROR(INDEX(Received_Tr[],SMALL(IF(Received_Tr[Order No]=$K$8,ROW(Received_Tr[])-ROW(Received_Tr[#Headers])),ROW(4:4)),MATCH($G$15,Received_Tr[#Headers],0)),\"\")","v":0},{"$f":"IFERROR(INDEX(Received_Tr[],SMALL(IF(Received_Tr[Order No]=$K$8,ROW(Received_Tr[])-ROW(Received_Tr[#Headers])),ROW(4:4)),MATCH($H$15,Received_Tr[#Headers],0)),\"\")","v":""},{"$f":"IFERROR(INDEX(Received_Tr[],SMALL(IF(Received_Tr[Order No]=$K$8,ROW(Received_Tr[])-ROW(Received_Tr[#Headers])),ROW(4:4)),MATCH($I$15,Received_Tr[#Headers],0)),\"\")","v":""},{"$f":"IFERROR(INDEX(Received_Tr[],SMALL(IF(Received_Tr[Order No]=$K$8,ROW(Received_Tr[])-ROW(Received_Tr[#Headers])),ROW(4:4)),MATCH($J$15,Received_Tr[#Headers],0)),\"\")","v":0}]
[null,null,null,null,null,{"$f":"IF(H20=\"\",\"\",SUBTOTAL(3,H$16:H20))","v":""},{"$f":"IFERROR(INDEX(Received_Tr[],SMALL(IF(Received_Tr[Order No]=$K$8,ROW(Received_Tr[])-ROW(Received_Tr[#Headers])),ROW(5:5)),MATCH($G$15,Received_Tr[#Headers],0)),\"\")","v":0},{"$f":"IFERROR(INDEX(Received_Tr[],SMALL(IF(Received_Tr[Order No]=$K$8,ROW(Received_Tr[])-ROW(Received_Tr[#Headers])),ROW(5:5)),MATCH($H$15,Received_Tr[#Headers],0)),\"\")","v":""},{"$f":"IFERROR(INDEX(Received_Tr[],SMALL(IF(Received_Tr[Order No]=$K$8,ROW(Received_Tr[])-ROW(Received_Tr[#Headers])),ROW(5:5)),MATCH($I$15,Received_Tr[#Headers],0)),\"\")","v":""},{"$f":"IFERROR(INDEX(Received_Tr[],SMALL(IF(Received_Tr[Order No]=$K$8,ROW(Received_Tr[])-ROW(Received_Tr[#Headers])),ROW(5:5)),MATCH($J$15,Received_Tr[#Headers],0)),\"\")","v":0}]
[null,null,null,null,null,{"$f":"IF(H21=\"\",\"\",SUBTOTAL(3,H$16:H21))","v":""},{"$f":"IFERROR(INDEX(Received_Tr[],SMALL(IF(Received_Tr[Order No]=$K$8,ROW(Received_Tr[])-ROW(Received_Tr[#Headers])),ROW(6:6)),MATCH($G$15,Received_Tr[#Headers],0)),\"\")","v":0},{"$f":"IFERROR(INDEX(Received_Tr[],SMALL(IF(Received_Tr[Order No]=$K$8,ROW(Received_Tr[])-ROW(Received_Tr[#Headers])),ROW(6:6)),MATCH($H$15,Received_Tr[#Headers],0)),\"\")","v":""},{"$f":"IFERROR(INDEX(Received_Tr[],SMALL(IF(Received_Tr[Order No]=$K$8,ROW(Received_Tr[])-ROW(Received_Tr[#Headers])),ROW(6:6)),MATCH($I$15,Received_Tr[#Headers],0)),\"\")","v":""},{"$f":"IFERROR(INDEX(Received_Tr[],SMALL(IF(Received_Tr[Order No]=$K$8,ROW(Received_Tr[])-ROW(Received_Tr[#Headers])),ROW(6:6)),MATCH($J$15,Received_Tr[#Headers],0)),\"\")","v":0}]
[null,null,null,null,null,{"$f":"IF(H22=\"\",\"\",SUBTOTAL(3,H$16:H22))","v":""},{"$f":"IFERROR(INDEX(Received_Tr[],SMALL(IF(Received_Tr[Order No]=$K$8,ROW(Received_Tr[])-ROW(Received_Tr[#Headers])),ROW(7:7)),MATCH($G$15,Received_Tr[#Headers],0)),\"\")","v":0},{"$f":"IFERROR(INDEX(Received_Tr[],SMALL(IF(Received_Tr[Order No]=$K$8,ROW(Received_Tr[])-ROW(Received_Tr[#Headers])),ROW(7:7)),MATCH($H$15,Received_Tr[#Headers],0)),\"\")","v":""},{"$f":"IFERROR(INDEX(Received_Tr[],SMALL(IF(Received_Tr[Order No]=$K$8,ROW(Received_Tr[])-ROW(Received_Tr[#Headers])),ROW(7:7)),MATCH($I$15,Received_Tr[#Headers],0)),\"\")","v":""},{"$f":"IFERROR(INDEX(Received_Tr[],SMALL(IF(Received_Tr[Order No]=$K$8,ROW(Received_Tr[])-ROW(Received_Tr[#Headers])),ROW(7:7)),MATCH($J$15,Received_Tr[#Headers],0)),\"\")","v":0}]
[null,null,null,null,null,{"$f":"IF(H23=\"\",\"\",SUBTOTAL(3,H$16:H23))","v":""},{"$f":"IFERROR(INDEX(Received_Tr[],SMALL(IF(Received_Tr[Order No]=$K$8,ROW(Received_Tr[])-ROW(Received_Tr[#Headers])),ROW(8:8)),MATCH($G$15,Received_Tr[#Headers],0)),\"\")","v":0},{"$f":"IFERROR(INDEX(Received_Tr[],SMALL(IF(Received_Tr[Order No]=$K$8,ROW(Received_Tr[])-ROW(Received_Tr[#Headers])),ROW(8:8)),MATCH($H$15,Received_Tr[#Headers],0)),\"\")","v":""},{"$f":"IFERROR(INDEX(Received_Tr[],SMALL(IF(Received_Tr[Order No]=$K$8,ROW(Received_Tr[])-ROW(Received_Tr[#Headers])),ROW(8:8)),MATCH($I$15,Received_Tr[#Headers],0)),\"\")","v":""},{"$f":"IFERROR(INDEX(Received_Tr[],SMALL(IF(Received_Tr[Order No]=$K$8,ROW(Received_Tr[])-ROW(Received_Tr[#Headers])),ROW(8:8)),MATCH($J$15,Received_Tr[#Headers],0)),\"\")","v":0}]
[null,null,null,null,null,{"$f":"IF(H24=\"\",\"\",SUBTOTAL(3,H$16:H24))","v":""},{"$f":"IFERROR(INDEX(Received_Tr[],SMALL(IF(Received_Tr[Order No]=$K$8,ROW(Received_Tr[])-ROW(Received_Tr[#Headers])),ROW(9:9)),MATCH($G$15,Received_Tr[#Headers],0)),\"\")","v":0},{"$f":"IFERROR(INDEX(Received_Tr[],SMALL(IF(Received_Tr[Order No]=$K$8,ROW(Received_Tr[])-ROW(Received_Tr[#Headers])),ROW(9:9)),MATCH($H$15,Received_Tr[#Headers],0)),\"\")","v":""},{"$f":"IFERROR(INDEX(Received_Tr[],SMALL(IF(Received_Tr[Order No]=$K$8,ROW(Received_Tr[])-ROW(Received_Tr[#Headers])),ROW(9:9)),MATCH($I$15,Received_Tr[#Headers],0)),\"\")","v":""},{"$f":"IFERROR(INDEX(Received_Tr[],SMALL(IF(Received_Tr[Order No]=$K$8,ROW(Received_Tr[])-ROW(Received_Tr[#Headers])),ROW(9:9)),MATCH($J$15,Received_Tr[#Headers],0)),\"\")","v":0}]
[null,null,null,null,null,{"$f":"IF(H25=\"\",\"\",SUBTOTAL(3,H$16:H25))","v":""},{"$f":"IFERROR(INDEX(Received_Tr[],SMALL(IF(Received_Tr[Order No]=$K$8,ROW(Received_Tr[])-ROW(Received_Tr[#Headers])),ROW(10:10)),MATCH($G$15,Received_Tr[#Headers],0)),\"\")","v":0},{"$f":"IFERROR(INDEX(Received_Tr[],SMALL(IF(Received_Tr[Order No]=$K$8,ROW(Received_Tr[])-ROW(Received_Tr[#Headers])),ROW(10:10)),MATCH($H$15,Received_Tr[#Headers],0)),\"\")","v":""},{"$f":"IFERROR(INDEX(Received_Tr[],SMALL(IF(Received_Tr[Order No]=$K$8,ROW(Received_Tr[])-ROW(Received_Tr[#Headers])),ROW(10:10)),MATCH($I$15,Received_Tr[#Headers],0)),\"\")","v":""},{"$f":"IFERROR(INDEX(Received_Tr[],SMALL(IF(Received_Tr[Order No]=$K$8,ROW(Received_Tr[])-ROW(Received_Tr[#Headers])),ROW(10:10)),MATCH($J$15,Received_Tr[#Headers],0)),\"\")","v":0}]
[null,null,null,null,null,{"$f":"IF(H26=\"\",\"\",SUBTOTAL(3,H$16:H26))","v":""},{"$f":"IFERROR(INDEX(Received_Tr[],SMALL(IF(Received_Tr[Order No]=$K$8,ROW(Received_Tr[])-ROW(Received_Tr[#Headers])),ROW(11:11)),MATCH($G$15,Received_Tr[#Headers],0)),\"\")","v":0},{"$f":"IFERROR(INDEX(Received_Tr[],SMALL(IF(Received_Tr[Order No]=$K$8,ROW(Received_Tr[])-ROW(Received_Tr[#Headers])),ROW(11:11)),MATCH($H$15,Received_Tr[#Headers],0)),\"\")","v":""},{"$f":"IFERROR(INDEX(Received_Tr[],SMALL(IF(Received_Tr[Order No]=$K$8,ROW(Received_Tr[])-ROW(Received_Tr[#Headers])),ROW(11:11)),MATCH($I$15,Received_Tr[#Headers],0)),\"\")","v":""},{"$f":"IFERROR(INDEX(Received_Tr[],SMALL(IF(Received_Tr[Order No]=$K$8,ROW(Received_Tr[])-ROW(Received_Tr[#Headers])),ROW(11:11)),MATCH($J$15,Received_Tr[#Headers],0)),\"\")","v":0}]
[null,null,null,null,null,{"$f":"IF(H27=\"\",\"\",SUBTOTAL(3,H$16:H27))","v":""},{"$f":"IFERROR(INDEX(Received_Tr[],SMALL(IF(Received_Tr[Order No]=$K$8,ROW(Received_Tr[])-ROW(Received_Tr[#Headers])),ROW(12:12)),MATCH($G$15,Received_Tr[#Headers],0)),\"\")","v":0},{"$f":"IFERROR(INDEX(Received_Tr[],SMALL(IF(Received_Tr[Order No]=$K$8,ROW(Received_Tr[])-ROW(Received_Tr[#Headers])),ROW(12:12)),MATCH($H$15,Received_Tr[#Headers],0)),\"\")","v":""},{"$f":"IFERROR(INDEX(Received_Tr[],SMALL(IF(Received_Tr[Order No]=$K$8,ROW(Received_Tr[])-ROW(Received_Tr[#Headers])),ROW(12:12)),MATCH($I$15,Received_Tr[#Headers],0)),\"\")","v":""},{"$f":"IFERROR(INDEX(Received_Tr[],SMALL(IF(Received_Tr[Order No]=$K$8,ROW(Received_Tr[])-ROW(Received_Tr[#Headers])),ROW(12:12)),MATCH($J$15,Received_Tr[#Headers],0)),\"\")","v":0}]
[null,null,null,null,null,{"$f":"IF(H28=\"\",\"\",SUBTOTAL(3,H$16:H28))","v":""},{"$f":"IFERROR(INDEX(Received_Tr[],SMALL(IF(Received_Tr[Order No]=$K$8,ROW(Received_Tr[])-ROW(Received_Tr[#Headers])),ROW(13:13)),MATCH($G$15,Received_Tr[#Headers],0)),\"\")","v":0},{"$f":"IFERROR(INDEX(Received_Tr[],SMALL(IF(Received_Tr[Order No]=$K$8,ROW(Received_Tr[])-ROW(Received_Tr[#Headers])),ROW(13:13)),MATCH($H$15,Received_Tr[#Headers],0)),\"\")","v":""},{"$f":"IFERROR(INDEX(Received_Tr[],SMALL(IF(Received_Tr[Order No]=$K$8,ROW(Received_Tr[])-ROW(Received_Tr[#Headers])),ROW(13:13)),MATCH($I$15,Received_Tr[#Headers],0)),\"\")","v":""},{"$f":"IFERROR(INDEX(Received_Tr[],SMALL(IF(Received_Tr[Order No]=$K$8,ROW(Received_Tr[])-ROW(Received_Tr[#Headers])),ROW(13:13)),MATCH($J$15,Received_Tr[#Headers],0)),\"\")","v":0}]
[null,null,null,null,null,{"$f":"IF(H29=\"\",\"\",SUBTOTAL(3,H$16:H29))","v":""},{"$f":"IFERROR(INDEX(Received_Tr[],SMALL(IF(Received_Tr[Order No]=$K$8,ROW(Received_Tr[])-ROW(Received_Tr[#Headers])),ROW(14:14)),MATCH($G$15,Received_Tr[#Headers],0)),\"\")","v":0},{"$f":"IFERROR(INDEX(Received_Tr[],SMALL(IF(Received_Tr[Order No]=$K$8,ROW(Received_Tr[])-ROW(Received_Tr[#Headers])),ROW(14:14)),MATCH($H$15,Received_Tr[#Headers],0)),\"\")","v":""},{"$f":"IFERROR(INDEX(Received_Tr[],SMALL(IF(Received_Tr[Order No]=$K$8,ROW(Received_Tr[])-ROW(Received_Tr[#Headers])),ROW(14:14)),MATCH($I$15,Received_Tr[#Headers],0)),\"\")","v":""},{"$f":"IFERROR(INDEX(Received_Tr[],SMALL(IF(Received_Tr[Order No]=$K$8,ROW(Received_Tr[])-ROW(Received_Tr[#Headers])),ROW(14:14)),MATCH($J$15,Received_Tr[#Headers],0)),\"\")","v":0}]
[null,null,null,null,null,{"$f":"IF(H30=\"\",\"\",SUBTOTAL(3,H$16:H30))","v":""},{"$f":"IFERROR(INDEX(Received_Tr[],SMALL(IF(Received_Tr[Order No]=$K$8,ROW(Received_Tr[])-ROW(Received_Tr[#Headers])),ROW(15:15)),MATCH($G$15,Received_Tr[#Headers],0)),\"\")","v":0},{"$f":"IFERROR(INDEX(Received_Tr[],SMALL(IF(Received_Tr[Order No]=$K$8,ROW(Received_Tr[])-ROW(Received_Tr[#Headers])),ROW(15:15)),MATCH($H$15,Received_Tr[#Headers],0)),\"\")","v":""},{"$f":"IFERROR(INDEX(Received_Tr[],SMALL(IF(Received_Tr[Order No]=$K$8,ROW(Received_Tr[])-ROW(Received_Tr[#Headers])),ROW(15:15)),MATCH($I$15,Received_Tr[#Headers],0)),\"\")","v":""},{"$f":"IFERROR(INDEX(Received_Tr[],SMALL(IF(Received_Tr[Order No]=$K$8,ROW(Received_Tr[])-ROW(Received_Tr[#Headers])),ROW(15:15)),MATCH($J$15,Received_Tr[#Headers],0)),\"\")","v":0}]
[null,null,null,null,null,{"$f":"IF(H31=\"\",\"\",SUBTOTAL(3,H$16:H31))","v":""},{"$f":"IFERROR(INDEX(Received_Tr[],SMALL(IF(Received_Tr[Order No]=$K$8,ROW(Received_Tr[])-ROW(Received_Tr[#Headers])),ROW(16:16)),MATCH($G$15,Received_Tr[#Headers],0)),\"\")","v":0},{"$f":"IFERROR(INDEX(Received_Tr[],SMALL(IF(Received_Tr[Order No]=$K$8,ROW(Received_Tr[])-ROW(Received_Tr[#Headers])),ROW(16:16)),MATCH($H$15,Received_Tr[#Headers],0)),\"\")","v":""},{"$f":"IFERROR(INDEX(Received_Tr[],SMALL(IF(Received_Tr[Order No]=$K$8,ROW(Received_Tr[])-ROW(Received_Tr[#Headers])),ROW(16:16)),MATCH($I$15,Received_Tr[#Headers],0)),\"\")","v":""},{"$f":"IFERROR(INDEX(Received_Tr[],SMALL(IF(Received_Tr[Order No]=$K$8,ROW(Received_Tr[])-ROW(Received_Tr[#Headers])),ROW(16:16)),MATCH($J$15,Received_Tr[#Headers],0)),\"\")","v":0}]
[null,null,null,null,null,{"$f":"IF(H32=\"\",\"\",SUBTOTAL(3,H$16:H32))","v":""},{"$f":"IFERROR(INDEX(Received_Tr[],SMALL(IF(Received_Tr[Order No]=$K$8,ROW(Received_Tr[])-ROW(Received_Tr[#Headers])),ROW(17:17)),MATCH($G$15,Received_Tr[#Headers],0)),\"\")","v":0},{"$f":"IFERROR(INDEX(Received_Tr[],SMALL(IF(Received_Tr[Order No]=$K$8,ROW(Received_Tr[])-ROW(Received_Tr[#Headers])),ROW(17:17)),MATCH($H$15,Received_Tr[#Headers],0)),\"\")","v":""},{"$f":"IFERROR(INDEX(Received_Tr[],SMALL(IF(Received_Tr[Order No]=$K$8,ROW(Received_Tr[])-ROW(Received_Tr[#Headers])),ROW(17:17)),MATCH($I$15,Received_Tr[#Headers],0)),\"\")","v":""},{"$f":"IFERROR(INDEX(Received_Tr[],SMALL(IF(Received_Tr[Order No]=$K$8,ROW(Received_Tr[])-ROW(Received_Tr[#Headers])),ROW(17:17)),MATCH($J$15,Received_Tr[#Headers],0)),\"\")","v":0}]
[null,null,null,null,null,{"$f":"IF(H33=\"\",\"\",SUBTOTAL(3,H$16:H33))","v":""},{"$f":"IFERROR(INDEX(Received_Tr[],SMALL(IF(Received_Tr[Order No]=$K$8,ROW(Received_Tr[])-ROW(Received_Tr[#Headers])),ROW(18:18)),MATCH($G$15,Received_Tr[#Headers],0)),\"\")","v":0},{"$f":"IFERROR(INDEX(Received_Tr[],SMALL(IF(Received_Tr[Order No]=$K$8,ROW(Received_Tr[])-ROW(Received_Tr[#Headers])),ROW(18:18)),MATCH($H$15,Received_Tr[#Headers],0)),\"\")","v":""},{"$f":"IFERROR(INDEX(Received_Tr[],SMALL(IF(Received_Tr[Order No]=$K$8,ROW(Received_Tr[])-ROW(Received_Tr[#Headers])),ROW(18:18)),MATCH($I$15,Received_Tr[#Headers],0)),\"\")","v":""},{"$f":"IFERROR(INDEX(Received_Tr[],SMALL(IF(Received_Tr[Order No]=$K$8,ROW(Received_Tr[])-ROW(Received_Tr[#Headers])),ROW(18:18)),MATCH($J$15,Received_Tr[#Headers],0)),\"\")","v":0}]
[null,null,null,null,null,{"$f":"IF(H34=\"\",\"\",SUBTOTAL(3,H$16:H34))","v":""},{"$f":"IFERROR(INDEX(Received_Tr[],SMALL(IF(Received_Tr[Order No]=$K$8,ROW(Received_Tr[])-ROW(Received_Tr[#Headers])),ROW(19:19)),MATCH($G$15,Received_Tr[#Headers],0)),\"\")","v":0},{"$f":"IFERROR(INDEX(Received_Tr[],SMALL(IF(Received_Tr[Order No]=$K$8,ROW(Received_Tr[])-ROW(Received_Tr[#Headers])),ROW(19:19)),MATCH($H$15,Received_Tr[#Headers],0)),\"\")","v":""},{"$f":"IFERROR(INDEX(Received_Tr[],SMALL(IF(Received_Tr[Order No]=$K$8,ROW(Received_Tr[])-ROW(Received_Tr[#Headers])),ROW(19:19)),MATCH($I$15,Received_Tr[#Headers],0)),\"\")","v":""},{"$f":"IFERROR(INDEX(Received_Tr[],SMALL(IF(Received_Tr[Order No]=$K$8,ROW(Received_Tr[])-ROW(Received_Tr[#Headers])),ROW(19:19)),MATCH($J$15,Received_Tr[#Headers],0)),\"\")","v":0}]
[null,null,null,null,null,{"$f":"IF(H35=\"\",\"\",SUBTOTAL(3,H$16:H35))","v":""},{"$f":"IFERROR(INDEX(Received_Tr[],SMALL(IF(Received_Tr[Order No]=$K$8,ROW(Received_Tr[])-ROW(Received_Tr[#Headers])),ROW(20:20)),MATCH($G$15,Received_Tr[#Headers],0)),\"\")","v":0},{"$f":"IFERROR(INDEX(Received_Tr[],SMALL(IF(Received_Tr[Order No]=$K$8,ROW(Received_Tr[])-ROW(Received_Tr[#Headers])),ROW(20:20)),MATCH($H$15,Received_Tr[#Headers],0)),\"\")","v":""},{"$f":"IFERROR(INDEX(Received_Tr[],SMALL(IF(Received_Tr[Order No]=$K$8,ROW(Received_Tr[])-ROW(Received_Tr[#Headers])),ROW(20:20)),MATCH($I$15,Received_Tr[#Headers],0)),\"\")","v":""},{"$f":"IFERROR(INDEX(Received_Tr[],SMALL(IF(Received_Tr[Order No]=$K$8,ROW(Received_Tr[])-ROW(Received_Tr[#Headers])),ROW(20:20)),MATCH($J$15,Received_Tr[#Headers],0)),\"\")","v":0}]
[null,null,null,null,null,"Total",null,null,null,{"$f":"SUBTOTAL(109,Receive_Ord[Qty])","v":0}]

{"sheet":"Counting","index":9,"n_rows":109,"n_cols":8,"rows_kept":109,"cut":false,"hidden":false,"merged":[]}
[]
["Sl","Item Code","Category","Item Name","Unit","Opening Balance 1","Opening Balance 2","Opening Balance 3"]
[{"$f":"IF(B3=\"\",\"\",SUBTOTAL(3,B$3:B3))","v":""}]
[{"$f":"IF(B4=\"\",\"\",SUBTOTAL(3,B$3:B4))","v":""}]
[{"$f":"IF(B5=\"\",\"\",SUBTOTAL(3,B$3:B5))","v":""}]
[{"$f":"IF(B6=\"\",\"\",SUBTOTAL(3,B$3:B6))","v":""}]
[{"$f":"IF(B7=\"\",\"\",SUBTOTAL(3,B$3:B7))","v":""}]
[{"$f":"IF(B8=\"\",\"\",SUBTOTAL(3,B$3:B8))","v":""}]
[{"$f":"IF(B9=\"\",\"\",SUBTOTAL(3,B$3:B9))","v":""}]
[{"$f":"IF(B10=\"\",\"\",SUBTOTAL(3,B$3:B10))","v":""}]
[{"$f":"IF(B11=\"\",\"\",SUBTOTAL(3,B$3:B11))","v":""}]
[{"$f":"IF(B12=\"\",\"\",SUBTOTAL(3,B$3:B12))","v":""}]
[{"$f":"IF(B13=\"\",\"\",SUBTOTAL(3,B$3:B13))","v":""}]
[{"$f":"IF(B14=\"\",\"\",SUBTOTAL(3,B$3:B14))","v":""}]
[{"$f":"IF(B15=\"\",\"\",SUBTOTAL(3,B$3:B15))","v":""}]
[{"$f":"IF(B16=\"\",\"\",SUBTOTAL(3,B$3:B16))","v":""}]
[{"$f":"IF(B17=\"\",\"\",SUBTOTAL(3,B$3:B17))","v":""}]
[{"$f":"IF(B18=\"\",\"\",SUBTOTAL(3,B$3:B18))","v":""}]
[{"$f":"IF(B19=\"\",\"\",SUBTOTAL(3,B$3:B19))","v":""}]
[{"$f":"IF(B20=\"\",\"\",SUBTOTAL(3,B$3:B20))","v":""}]
[{"$f":"IF(B21=\"\",\"\",SUBTOTAL(3,B$3:B21))","v":""}]
[{"$f":"IF(B22=\"\",\"\",SUBTOTAL(3,B$3:B22))","v":""}]
[{"$f":"IF(B23=\"\",\"\",SUBTOTAL(3,B$3:B23))","v":""}]
[{"$f":"IF(B24=\"\",\"\",SUBTOTAL(3,B$3:B24))","v":""}]
[{"$f":"IF(B25=\"\",\"\",SUBTOTAL(3,B$3:B25))","v":""}]
[{"$f":"IF(B26=\"\",\"\",SUBTOTAL(3,B$3:B26))","v":""}]
[{"$f":"IF(B27=\"\",\"\",SUBTOTAL(3,B$3:B27))","v":""}]
[{"$f":"IF(B28=\"\",\"\",SUBTOTAL(3,B$3:B28))","v":""}]
[{"$f":"IF(B29=\"\",\"\",SUBTOTAL(3,B$3:B29))","v":""}]
[{"$f":"IF(B30=\"\",\"\",SUBTOTAL(3,B$3:B30))","v":""}]
[{"$f":"IF(B31=\"\",\"\",SUBTOTAL(3,B$3:B31))","v":""}]
[{"$f":"IF(B32=\"\",\"\",SUBTOTAL(3,B$3:B32))","v":""}]
[{"$f":"IF(B33=\"\",\"\",SUBTOTAL(3,B$3:B33))","v":""}]
[{"$f":"IF(B34=\"\",\"\",SUBTOTAL(3,B$3:B34))","v":""}]
[{"$f":"IF(B35=\"\",\"\",SUBTOTAL(3,B$3:B35))","v":""}]
[{"$f":"IF(B36=\"\",\"\",SUBTOTAL(3,B$3:B36))","v":""}]
[{"$f":"IF(B37=\"\",\"\",SUBTOTAL(3,B$3:B37))","v":""}]
[{"$f":"IF(B38=\"\",\"\",SUBTOTAL(3,B$3:B38))","v":""}]
[{"$f":"IF(B39=\"\",\"\",SUBTOTAL(3,B$3:B39))","v":""}]
[{"$f":"IF(B40=\"\",\"\",SUBTOTAL(3,B$3:B40))","v":""}]
[{"$f":"IF(B41=\"\",\"\",SUBTOTAL(3,B$3:B41))","v":""}]
[{"$f":"IF(B42=\"\",\"\",SUBTOTAL(3,B$3:B42))","v":""}]
[{"$f":"IF(B43=\"\",\"\",SUBTOTAL(3,B$3:B43))","v":""}]
[{"$f":"IF(B44=\"\",\"\",SUBTOTAL(3,B$3:B44))","v":""}]
[{"$f":"IF(B45=\"\",\"\",SUBTOTAL(3,B$3:B45))","v":""}]
[{"$f":"IF(B46=\"\",\"\",SUBTOTAL(3,B$3:B46))","v":""}]
[{"$f":"IF(B47=\"\",\"\",SUBTOTAL(3,B$3:B47))","v":""}]
[{"$f":"IF(B48=\"\",\"\",SUBTOTAL(3,B$3:B48))","v":""}]
[{"$f":"IF(B49=\"\",\"\",SUBTOTAL(3,B$3:B49))","v":""}]
[{"$f":"IF(B50=\"\",\"\",SUBTOTAL(3,B$3:B50))","v":""}]
[{"$f":"IF(B51=\"\",\"\",SUBTOTAL(3,B$3:B51))","v":""}]
[{"$f":"IF(B52=\"\",\"\",SUBTOTAL(3,B$3:B52))","v":""}]
[{"$f":"IF(B53=\"\",\"\",SUBTOTAL(3,B$3:B53))","v":""}]
[{"$f":"IF(B54=\"\",\"\",SUBTOTAL(3,B$3:B54))","v":""}]
[{"$f":"IF(B55=\"\",\"\",SUBTOTAL(3,B$3:B55))","v":""}]
[{"$f":"IF(B56=\"\",\"\",SUBTOTAL(3,B$3:B56))","v":""}]
[{"$f":"IF(B57=\"\",\"\",SUBTOTAL(3,B$3:B57))","v":""}]
[{"$f":"IF(B58=\"\",\"\",SUBTOTAL(3,B$3:B58))","v":""}]
[{"$f":"IF(B59=\"\",\"\",SUBTOTAL(3,B$3:B59))","v":""}]
[{"$f":"IF(B60=\"\",\"\",SUBTOTAL(3,B$3:B60))","v":""}]
[{"$f":"IF(B61=\"\",\"\",SUBTOTAL(3,B$3:B61))","v":""}]
[{"$f":"IF(B62=\"\",\"\",SUBTOTAL(3,B$3:B62))","v":""}]
[{"$f":"IF(B63=\"\",\"\",SUBTOTAL(3,B$3:B63))","v":""}]
[{"$f":"IF(B64=\"\",\"\",SUBTOTAL(3,B$3:B64))","v":""}]
[{"$f":"IF(B65=\"\",\"\",SUBTOTAL(3,B$3:B65))","v":""}]
[{"$f":"IF(B66=\"\",\"\",SUBTOTAL(3,B$3:B66))","v":""}]
[{"$f":"IF(B67=\"\",\"\",SUBTOTAL(3,B$3:B67))","v":""}]
[{"$f":"IF(B68=\"\",\"\",SUBTOTAL(3,B$3:B68))","v":""}]
[{"$f":"IF(B69=\"\",\"\",SUBTOTAL(3,B$3:B69))","v":""}]
[{"$f":"IF(B70=\"\",\"\",SUBTOTAL(3,B$3:B70))","v":""}]
[{"$f":"IF(B71=\"\",\"\",SUBTOTAL(3,B$3:B71))","v":""}]
[{"$f":"IF(B72=\"\",\"\",SUBTOTAL(3,B$3:B72))","v":""}]
[{"$f":"IF(B73=\"\",\"\",SUBTOTAL(3,B$3:B73))","v":""}]
[{"$f":"IF(B74=\"\",\"\",SUBTOTAL(3,B$3:B74))","v":""}]
[{"$f":"IF(B75=\"\",\"\",SUBTOTAL(3,B$3:B75))","v":""}]
[{"$f":"IF(B76=\"\",\"\",SUBTOTAL(3,B$3:B76))","v":""}]
[{"$f":"IF(B77=\"\",\"\",SUBTOTAL(3,B$3:B77))","v":""}]
[{"$f":"IF(B78=\"\",\"\",SUBTOTAL(3,B$3:B78))","v":""}]
[{"$f":"IF(B79=\"\",\"\",SUBTOTAL(3,B$3:B79))","v":""}]
[{"$f":"IF(B80=\"\",\"\",SUBTOTAL(3,B$3:B80))","v":""}]
[{"$f":"IF(B81=\"\",\"\",SUBTOTAL(3,B$3:B81))","v":""}]
[{"$f":"IF(B82=\"\",\"\",SUBTOTAL(3,B$3:B82))","v":""}]
[{"$f":"IF(B83=\"\",\"\",SUBTOTAL(3,B$3:B83))","v":""}]
[{"$f":"IF(B84=\"\",\"\",SUBTOTAL(3,B$3:B84))","v":""}]
[{"$f":"IF(B85=\"\",\"\",SUBTOTAL(3,B$3:B85))","v":""}]
[{"$f":"IF(B86=\"\",\"\",SUBTOTAL(3,B$3:B86))","v":""}]
[{"$f":"IF(B87=\"\",\"\",SUBTOTAL(3,B$3:B87))","v":""}]
[{"$f":"IF(B88=\"\",\"\",SUBTOTAL(3,B$3:B88))","v":""}]
[{"$f":"IF(B89=\"\",\"\",SUBTOTAL(3,B$3:B89))","v":""}]
[{"$f":"IF(B90=\"\",\"\",SUBTOTAL(3,B$3:B90))","v":""}]
[{"$f":"IF(B91=\"\",\"\",SUBTOTAL(3,B$3:B91))","v":""}]
[{"$f":"IF(B92=\"\",\"\",SUBTOTAL(3,B$3:B92))","v":""}]
[{"$f":"IF(B93=\"\",\"\",SUBTOTAL(3,B$3:B93))","v":""}]
[{"$f":"IF(B94=\"\",\"\",SUBTOTAL(3,B$3:B94))","v":""}]
[{"$f":"IF(B95=\"\",\"\",SUBTOTAL(3,B$3:B95))","v":""}]
[{"$f":"IF(B96=\"\",\"\",SUBTOTAL(3,B$3:B96))","v":""}]
[{"$f":"IF(B97=\"\",\"\",SUBTOTAL(3,B$3:B97))","v":""}]
[{"$f":"IF(B98=\"\",\"\",SUBTOTAL(3,B$3:B98))","v":""}]
[{"$f":"IF(B99=\"\",\"\",SUBTOTAL(3,B$3:B99))","v":""}]
[{"$f":"IF(B100=\"\",\"\",SUBTOTAL(3,B$3:B100))","v":""}]
[{"$f":"IF(B101=\"\",\"\",SUBTOTAL(3,B$3:B101))","v":""}]
[{"$f":"IF(B102=\"\",\"\",SUBTOTAL(3,B$3:B102))","v":""}]
[{"$f":"IF(B103=\"\",\"\",SUBTOTAL(3,B$3:B103))","v":""}]
[{"$f":"IF(B104=\"\",\"\",SUBTOTAL(3,B$3:B104))","v":""}]
[{"$f":"IF(B105=\"\",\"\",SUBTOTAL(3,B$3:B105))","v":""}]
[{"$f":"IF(B106=\"\",\"\",SUBTOTAL(3,B$3:B106))","v":""}]
[{"$f":"IF(B107=\"\",\"\",SUBTOTAL(3,B$3:B107))","v":""}]
[{"$f":"IF(B108=\"\",\"\",SUBTOTAL(3,B$3:B108))","v":""}]
[null,null,null,"",""]

{"sheet":"Data","index":10,"n_rows":165,"n_cols":15,"rows_kept":165,"cut":false,"hidden":false,"merged":[[2,5,2,7]]}
[]
[]
[null,null,null,null,null,"GROUP"]
[null,null,null,null,null,1,"< ELECTRICAL MATERIALS >","ELE-XXX"]
[null,"Item Code","Item Name","Unit",null,2,"< NURSE CALL SYSTEM >","NCS-XXX",null,null,null,"< ELECTRICAL MATERIALS >"]
[{"$f":"IF(B6=\"\",\"\",SUBTOTAL(3,B$6:B6))","v":1},"ELE-001","AWG 12M [YELLOW]",null,null,3,"< MECHANICAL / MEDICAL GAS >","MMG-XXX",null,null,null,"Code","Name","Unit","Qtty"]
[{"$f":"IF(B7=\"\",\"\",SUBTOTAL(3,B$6:B7))","v":""},null,null,null,null,4,"< MECHANICAL DUCT ITEM >","MDI-XXX",null,null,null,"ELE-00001","WIRE AWG  #14 CLR: YELLOW","Roll",64]
[{"$f":"IF(B8=\"\",\"\",SUBTOTAL(3,B$6:B8))","v":""},null,null,null,null,5,"< MECHANICAL CHILLAR ITEM >","MCI-XXX",null,null,null,"ELE-00002","WIRE AWG  #14 CLR: BLUE","Roll",34]
[{"$f":"IF(B9=\"\",\"\",SUBTOTAL(3,B$6:B9))","v":""},null,null,null,null,6,"< PLUMBING MATERIALS CPVC >","PLM-XXX",null,null,null,"ELE-00003","WIRE AWG  #14 CLR: BLACK","Roll",36]
[{"$f":"IF(B10=\"\",\"\",SUBTOTAL(3,B$6:B10))","v":""},null,null,null,null,7,"< PLUMBING MATERIALS PVC >","PVC-XXX",null,null,null,"ELE-00004","WIRE AWG  #14 CLR: RED","Roll",24]
[{"$f":"IF(B11=\"\",\"\",SUBTOTAL(3,B$6:B11))","v":""},null,null,null,null,8,"< GENERAL MATERIAL IN STORE >","GEM-XXX",null,null,null,"ELE-00005","WIRE AWG  #12 CLR: WHITE","Roll",130]
[{"$f":"IF(B12=\"\",\"\",SUBTOTAL(3,B$6:B12))","v":""},null,null,null,null,null,null,null,null,null,null,"ELE-00006","WIRE AWG  #12 CLR: BLUE","Roll",72]
[{"$f":"IF(B13=\"\",\"\",SUBTOTAL(3,B$6:B13))","v":""},null,null,null,null,null,null,null,null,null,null,"ELE-00007","WIRE AWG  #12 CLR: BLACK","Roll",118]
[{"$f":"IF(B14=\"\",\"\",SUBTOTAL(3,B$6:B14))","v":""},null,null,null,null,null,null,null,null,null,null,"ELE-00008","WIRE AWG  #12 CLR: RED","Roll",37]
[{"$f":"IF(B15=\"\",\"\",SUBTOTAL(3,B$6:B15))","v":""},null,null,null,null,null,null,null,null,null,null,"ELE-00009","WIRE AWG  #12 CLR: YELLOW","Roll",18]
[{"$f":"IF(B16=\"\",\"\",SUBTOTAL(3,B$6:B16))","v":""},null,null,null,null,null,null,null,null,null,null,"ELE-00010","WIRE AWG  #10 CLR: YELLOW","Roll",16]
[{"$f":"IF(B17=\"\",\"\",SUBTOTAL(3,B$6:B17))","v":""},null,null,null,null,null,null,null,null,null,null,"NCS-00013","CONNECTION BOARD  # 72583Z1","PCS",13]
[{"$f":"IF(B18=\"\",\"\",SUBTOTAL(3,B$6:B18))","v":""},null,null,null,null,null,null,null,null,null,null,"NCS-00014","CORRIDOR DATA BUS TERMINATION  # 72639A","PCS",22]
[{"$f":"IF(B19=\"\",\"\",SUBTOTAL(3,B$6:B19))","v":""},null,null,null,null,null,null,null,null,null,null,"NCS-00015","SYSTEVO CONTROL  # 72700A1","PCS",11]
[{"$f":"IF(B20=\"\",\"\",SUBTOTAL(3,B$6:B20))","v":""},null,null,null,null,null,null,null,null,null,null,"NCS-00016","DATABUS CONNECTION UNIT  # 73070A","PCS",13]
[{"$f":"IF(B21=\"\",\"\",SUBTOTAL(3,B$6:B21))","v":""},null,null,null,null,null,null,null,null,null,null,"NCS-00017","MASTER STATION WITH TOUCH ST  # 74422A","PCS",13]
[{"$f":"IF(B22=\"\",\"\",SUBTOTAL(3,B$6:B22))","v":""},null,null,null,null,null,null,null,null,null,null,"NCS-00018","DISPLAY MOUDLE  # 74910C5","PCS",10]
[{"$f":"IF(B23=\"\",\"\",SUBTOTAL(3,B$6:B23))","v":""},null,null,null,null,null,null,null,null,null,null,"NCS-00019","CELLING KIT FOR STANDARD  # 88160A","PCS",44]
[{"$f":"IF(B24=\"\",\"\",SUBTOTAL(3,B$6:B24))","v":""},null,null,null,null,null,null,null,null,null,null,"NCS-00020","FRAME FOR COVER PLATE  # 88914A3","PCS",532]
[{"$f":"IF(B25=\"\",\"\",SUBTOTAL(3,B$6:B25))","v":""},null,null,null,null,null,null,null,null,null,null,"NCS-00021","SAFETY COVER & MOUNTING  # 89954MB","PCS",11]
[{"$f":"IF(B26=\"\",\"\",SUBTOTAL(3,B$6:B26))","v":""},null,null,null,null,null,null,null,null,null,null,"NCS-00022","SINGLE PHASE POWER SUPPLY  # 89954R2","PCS",11]
[{"$f":"IF(B27=\"\",\"\",SUBTOTAL(3,B$6:B27))","v":""},null,null,null,null,null,null,null,null,null,null,"NCS-00023","HANGING MOUNT FOR MPB  74154Z1","PCS",152]
[{"$f":"IF(B28=\"\",\"\",SUBTOTAL(3,B$6:B28))","v":""},null,null,null,null,null,null,null,null,null,null,"NCS-00024","INFO-DISPLAY CELLING MOUNT  # 88160A","PCS",14]
[{"$f":"IF(B29=\"\",\"\",SUBTOTAL(3,B$6:B29))","v":""},null,null,null,null,null,null,null,null,null,null,"MMG-00023","COPPER ISO VALVE SINGLE PORT 1-1/4\"","PCS",5]
[{"$f":"IF(B30=\"\",\"\",SUBTOTAL(3,B$6:B30))","v":""},null,null,null,null,null,null,null,null,null,null,"MMG-00024","COPPER ISO VALVE SINGLE PORT 3/4\"","PCS","X"]
[{"$f":"IF(B31=\"\",\"\",SUBTOTAL(3,B$6:B31))","v":""},null,null,null,null,null,null,null,null,null,null,"MMG-00025","COPPER ISO VALVE SINGLE PORT 1\"","PCS",21]
[{"$f":"IF(B32=\"\",\"\",SUBTOTAL(3,B$6:B32))","v":""},null,null,null,null,null,null,null,null,null,null,"MMG-00026","COPPER ISO VALVE SINGLE PORT 1/2\"","PCS","X"]
[{"$f":"IF(B33=\"\",\"\",SUBTOTAL(3,B$6:B33))","v":""},null,null,null,null,null,null,null,null,null,null,"MMG-00027","MEDICAL GAS PANNEL BOARD  5 LINE","PCS",5]
[{"$f":"IF(B34=\"\",\"\",SUBTOTAL(3,B$6:B34))","v":""},null,null,null,null,null,null,null,null,null,null,"MMG-00028","MEDICAL GAS PANNEL BOARD  3 LINE","PCS",7]
[{"$f":"IF(B35=\"\",\"\",SUBTOTAL(3,B$6:B35))","v":""},null,null,null,null,null,null,null,null,null,null,"MMG-00029","MEDICAL GAS OUTLATE FLUSH MOUNT - OXIGEN","PCS",115]
[{"$f":"IF(B36=\"\",\"\",SUBTOTAL(3,B$6:B36))","v":""},null,null,null,null,null,null,null,null,null,null,"MMG-00030","MEDICAL GAS OUTLATE FLUSH MOUNT -  VACUUM","PCS",115]
[{"$f":"IF(B37=\"\",\"\",SUBTOTAL(3,B$6:B37))","v":""},null,null,null,null,null,null,null,null,null,null,"MMG-00031","MEDICAL GAS OUTLETE FLUSH MOUNT - AIR [4BAR]","PCS",115]
[{"$f":"IF(B38=\"\",\"\",SUBTOTAL(3,B$6:B38))","v":""},null,null,null,null,null,null,null,null,null,null,"MMG-00032","MEDICAL GAS OUTLATE FLUSH MOUNT -AIR [7 BAR]","PCS",10]
[{"$f":"IF(B39=\"\",\"\",SUBTOTAL(3,B$6:B39))","v":""},null,null,null,null,null,null,null,null,null,null,"MMG-00033","MEDICAL GAS OUTLATE FLUSH MOUNT - NITROUS ","PCS",5]
[{"$f":"IF(B40=\"\",\"\",SUBTOTAL(3,B$6:B40))","v":""},null,null,null,null,null,null,null,null,null,null,"MMG-00034","MEDICAL GAS OUTLETE FLUSH MOUNT - AGSS","PCS",10]
[{"$f":"IF(B41=\"\",\"\",SUBTOTAL(3,B$6:B41))","v":""},null,null,null,null,null,null,null,null,null,null,"MMG-00035","COPPER WELDING ROD","PKT",10]
[{"$f":"IF(B42=\"\",\"\",SUBTOTAL(3,B$6:B42))","v":""},null,null,null,null,null,null,null,null,null,null,"MCI-00007","B.I CHEACK VALVE 4\"","PCS",4]
[{"$f":"IF(B43=\"\",\"\",SUBTOTAL(3,B$6:B43))","v":""},null,null,null,null,null,null,null,null,null,null,"MCI-00008","B.I FLANGE 4\"","PCS",6]
[{"$f":"IF(B44=\"\",\"\",SUBTOTAL(3,B$6:B44))","v":""},null,null,null,null,null,null,null,null,null,null,"MCI-00009","B.I FLANGE 10\" ","PCS",6]
[{"$f":"IF(B45=\"\",\"\",SUBTOTAL(3,B$6:B45))","v":""},null,null,null,null,null,null,null,null,null,null,"MCI-00010","B.I ELBOW 90DEG 6\"","PCS",12]
[{"$f":"IF(B46=\"\",\"\",SUBTOTAL(3,B$6:B46))","v":""},null,null,null,null,null,null,null,null,null,null,"MCI-00011","B.I ELBOW 45DEG 4\"","PCS",20]
[{"$f":"IF(B47=\"\",\"\",SUBTOTAL(3,B$6:B47))","v":""},null,null,null,null,null,null,null,null,null,null,"MCI-00012","B.I TEE 6\"","PCS",10]
[{"$f":"IF(B48=\"\",\"\",SUBTOTAL(3,B$6:B48))","v":""},null,null,null,null,null,null,null,null,null,null,"MCI-00013","B.I BUSING REDUCER 8\" X 6\"","PCS",6]
[{"$f":"IF(B49=\"\",\"\",SUBTOTAL(3,B$6:B49))","v":""},null,null,null,null,null,null,null,null,null,null,"MCI-00014","B.I COUPLING REDUCER  8\" X 6\" ","PCS",20]
[{"$f":"IF(B50=\"\",\"\",SUBTOTAL(3,B$6:B50))","v":""},null,null,null,null,null,null,null,null,null,null,"MCI-00015","B.I COUPLING REDUCER 10\" X 8\"","PCS",10]
[{"$f":"IF(B51=\"\",\"\",SUBTOTAL(3,B$6:B51))","v":""},null,null,null,null,null,null,null,null,null,null,"MCI-00016","B.I COUPLING REDUCER 10\" X 6\"","PCS",4]
[{"$f":"IF(B52=\"\",\"\",SUBTOTAL(3,B$6:B52))","v":""},null,null,null,null,null,null,null,null,null,null,"MCI-00017","B.I COUPLING REDUCER 6\" X 4\" ","PCS",10]
[{"$f":"IF(B53=\"\",\"\",SUBTOTAL(3,B$6:B53))","v":""},null,null,null,null,null,null,null,null,null,null,"MCI-00018","B.I TEE 3\"","PCS",8]
[{"$f":"IF(B54=\"\",\"\",SUBTOTAL(3,B$6:B54))","v":""},null,null,null,null,null,null,null,null,null,null,"MCI-00020","BI FLANGE WITH RUBBER 6\"","PCS",20]
[{"$f":"IF(B55=\"\",\"\",SUBTOTAL(3,B$6:B55))","v":""},null,null,null,null,null,null,null,null,null,null,"MCI-00021","BI FLANGE WITH RUBBER 6\"","PCS",20]
[{"$f":"IF(B56=\"\",\"\",SUBTOTAL(3,B$6:B56))","v":""},null,null,null,null,null,null,null,null,null,null,"MCI-00022","AC UNIT FILTER  24\" X 24\" X 2\"","PCS",25]
[{"$f":"IF(B57=\"\",\"\",SUBTOTAL(3,B$6:B57))","v":""},null,null,null,null,null,null,null,null,null,null,"MCI-00023","DUCT FOSTER INSULATION COTTON","BDL",5]
[{"$f":"IF(B58=\"\",\"\",SUBTOTAL(3,B$6:B58))","v":""},null,null,null,null,null,null,null,null,null,null,"MCI-00024","ITAB PRESSURE REDUCING VALVE2\"","PCS",4]
[{"$f":"IF(B59=\"\",\"\",SUBTOTAL(3,B$6:B59))","v":""},null,null,null,null,null,null,null,null,null,null,"MCI-00025","FIBER GLASS PIPE INSULATION 2\"","PCS",40]
[{"$f":"IF(B60=\"\",\"\",SUBTOTAL(3,B$6:B60))","v":""},null,null,null,null,null,null,null,null,null,null,"MCI-00026","FIBER GLASS PIPE INSULATION 1\"","PCS",50]
[{"$f":"IF(B61=\"\",\"\",SUBTOTAL(3,B$6:B61))","v":""},null,null,null,null,null,null,null,null,null,null,"MCI-00027","BLACK RUBBER INSULATION 1/2\" X 1/2\"","PCS",400]
[{"$f":"IF(B62=\"\",\"\",SUBTOTAL(3,B$6:B62))","v":""},null,null,null,null,null,null,null,null,null,null,"MCI-00028","BLACK RUBBER INSULATION 3/4\" X 1/2\"","PCS",70]
[{"$f":"IF(B63=\"\",\"\",SUBTOTAL(3,B$6:B63))","v":""},null,null,null,null,null,null,null,null,null,null,"MCI-00029","BLACK RUBBER INSULATION 1-1/2\" X 1/2\"","PCS",440]
[{"$f":"IF(B64=\"\",\"\",SUBTOTAL(3,B$6:B64))","v":""},null,null,null,null,null,null,null,null,null,null,"MCI-00030","BLACK RUBBER INSULATION  2\" X 1/2\"","PCS",180]
[{"$f":"IF(B65=\"\",\"\",SUBTOTAL(3,B$6:B65))","v":""},null,null,null,null,null,null,null,null,null,null,"MCI-00031","INSULATION TAPE 2\" BLACK","BOX",10]
[{"$f":"IF(B66=\"\",\"\",SUBTOTAL(3,B$6:B66))","v":""},null,null,null,null,null,null,null,null,null,null,"PLM-00023","CPVC ELBOW 2\" X 90 DEG SCH80 ","PCS",30]
[{"$f":"IF(B67=\"\",\"\",SUBTOTAL(3,B$6:B67))","v":""},null,null,null,null,null,null,null,null,null,null,"PLM-00024","CPVC ELBOW 2\" X 45 DEG SCH80 ","PCS",140]
[{"$f":"IF(B68=\"\",\"\",SUBTOTAL(3,B$6:B68))","v":""},null,null,null,null,null,null,null,null,null,null,"PLM-00025","CPVC ELBOW 1-1/2\" X 90 DEG SCH80 ","PCS",40]
[{"$f":"IF(B69=\"\",\"\",SUBTOTAL(3,B$6:B69))","v":""},null,null,null,null,null,null,null,null,null,null,"PLM-00026","CPVC ELBOW 1-1/2\" X 45 DEG SCH80 ","PCS",210]
[{"$f":"IF(B70=\"\",\"\",SUBTOTAL(3,B$6:B70))","v":""},null,null,null,null,null,null,null,null,null,null,"PLM-00027","CPVC ELBOW 1\" X 90 DEG SCH80 ","PCS",100]
[{"$f":"IF(B71=\"\",\"\",SUBTOTAL(3,B$6:B71))","v":""},null,null,null,null,null,null,null,null,null,null,"PLM-00028","CPVC ELBOW 1\" X 45 DEG SCH80 ","PCS",250]
[{"$f":"IF(B72=\"\",\"\",SUBTOTAL(3,B$6:B72))","v":""},null,null,null,null,null,null,null,null,null,null,"PLM-00029","PVC BUSING REDUCER 2\" X 1\" SCH 40","PCS",330]
[{"$f":"IF(B73=\"\",\"\",SUBTOTAL(3,B$6:B73))","v":""},null,null,null,null,null,null,null,null,null,null,"PLM-00030","CPVC ELBOW 3/4\" X 45 DEG SCH80 ","PCS",600]
[{"$f":"IF(B74=\"\",\"\",SUBTOTAL(3,B$6:B74))","v":""},null,null,null,null,null,null,null,null,null,null,"PLM-00031","CPVC ELBOW 1/2\" X 90 DEG SCH80 ","PCS",300]
[{"$f":"IF(B75=\"\",\"\",SUBTOTAL(3,B$6:B75))","v":""},null,null,null,null,null,null,null,null,null,null,"PLM-00032","CPVC ELBOW 1/2\" X 45 DEG SCH80 ","PCS",100]
[{"$f":"IF(B76=\"\",\"\",SUBTOTAL(3,B$6:B76))","v":""},null,null,null,null,null,null,null,null,null,null,"PLM-00033","CPVC BRASS ELBOW 1/2\" X 90 SCH80","PCS",120]
[{"$f":"IF(B77=\"\",\"\",SUBTOTAL(3,B$6:B77))","v":""},null,null,null,null,null,null,null,null,null,null,"PLM-00034","CPVC TEE 4 X 2\"","PCS",5]
[{"$f":"IF(B78=\"\",\"\",SUBTOTAL(3,B$6:B78))","v":""},null,null,null,null,null,null,null,null,null,null,"PVC-00002","PVC PIPE 6\" SCH40","PCS",20]
[{"$f":"IF(B79=\"\",\"\",SUBTOTAL(3,B$6:B79))","v":""}]
[{"$f":"IF(B80=\"\",\"\",SUBTOTAL(3,B$6:B80))","v":""}]
[{"$f":"IF(B81=\"\",\"\",SUBTOTAL(3,B$6:B81))","v":""},null,null,null,null,null,null,null,null,null,null,"PVC-00003","PVC PIPE 4\" SCH40","PCS",20]
[{"$f":"IF(B82=\"\",\"\",SUBTOTAL(3,B$6:B82))","v":""},null,null,null,null,null,null,null,null,null,null,"PVC-00004","PVC PIPE 2\" SCH40","PCS",20]
[{"$f":"IF(B83=\"\",\"\",SUBTOTAL(3,B$6:B83))","v":""},null,null,null,null,null,null,null,null,null,null,"PVC-00005","PVC PIPE 1-1/2\" SCH 40","PCS",40]
[{"$f":"IF(B84=\"\",\"\",SUBTOTAL(3,B$6:B84))","v":""},null,null,null,null,null,null,null,null,null,null,"PVC-00006","PVC PIPE 1-1/4\" SCH 40","PCS",35]
[{"$f":"IF(B85=\"\",\"\",SUBTOTAL(3,B$6:B85))","v":""},null,null,null,null,null,null,null,null,null,null,"PVC-00007","PVC PIPE 1\" SCH 40","PCS",100]
[{"$f":"IF(B86=\"\",\"\",SUBTOTAL(3,B$6:B86))","v":""},null,null,null,null,null,null,null,null,null,null,"PVC-00008","PVC ELBOW 4\" X 90 DEG SCH40 ","PCS",50]
[{"$f":"IF(B87=\"\",\"\",SUBTOTAL(3,B$6:B87))","v":""},null,null,null,null,null,null,null,null,null,null,"PVC-00009","PVC ELBOW 4\" X 45 DEG SCH40 ","PCS",45]
[{"$f":"IF(B88=\"\",\"\",SUBTOTAL(3,B$6:B88))","v":""},null,null,null,null,null,null,null,null,null,null,"PVC-00010","PVC ELBOW 2\" X 90 DEG SCH40 ","PCS",105]
[{"$f":"IF(B89=\"\",\"\",SUBTOTAL(3,B$6:B89))","v":""},null,null,null,null,null,null,null,null,null,null,"PVC-00011","PVC ELBOW 2\" X 45 DEG SCH40 ","PCS",200]
[{"$f":"IF(B90=\"\",\"\",SUBTOTAL(3,B$6:B90))","v":""},null,null,null,null,null,null,null,null,null,null,"GEM-00033","SQUARE WOOD 4cm X 4cm","PCS",690]
[{"$f":"IF(B91=\"\",\"\",SUBTOTAL(3,B$6:B91))","v":""}]
[{"$f":"IF(B92=\"\",\"\",SUBTOTAL(3,B$6:B92))","v":""}]
[{"$f":"IF(B93=\"\",\"\",SUBTOTAL(3,B$6:B93))","v":""}]
[{"$f":"IF(B94=\"\",\"\",SUBTOTAL(3,B$6:B94))","v":""}]
[{"$f":"IF(B95=\"\",\"\",SUBTOTAL(3,B$6:B95))","v":""}]
[{"$f":"IF(B96=\"\",\"\",SUBTOTAL(3,B$6:B96))","v":""}]
[{"$f":"IF(B97=\"\",\"\",SUBTOTAL(3,B$6:B97))","v":""}]
[{"$f":"IF(B98=\"\",\"\",SUBTOTAL(3,B$6:B98))","v":""}]
[{"$f":"IF(B99=\"\",\"\",SUBTOTAL(3,B$6:B99))","v":""}]
[{"$f":"IF(B100=\"\",\"\",SUBTOTAL(3,B$6:B100))","v":""}]
[{"$f":"IF(B101=\"\",\"\",SUBTOTAL(3,B$6:B101))","v":""}]
[{"$f":"IF(B102=\"\",\"\",SUBTOTAL(3,B$6:B102))","v":""}]
[{"$f":"IF(B103=\"\",\"\",SUBTOTAL(3,B$6:B103))","v":""}]
[{"$f":"IF(B104=\"\",\"\",SUBTOTAL(3,B$6:B104))","v":""}]
[{"$f":"IF(B105=\"\",\"\",SUBTOTAL(3,B$6:B105))","v":""}]
[{"$f":"IF(B106=\"\",\"\",SUBTOTAL(3,B$6:B106))","v":""}]
[{"$f":"IF(B107=\"\",\"\",SUBTOTAL(3,B$6:B107))","v":""}]
[{"$f":"IF(B108=\"\",\"\",SUBTOTAL(3,B$6:B108))","v":""}]
[{"$f":"IF(B109=\"\",\"\",SUBTOTAL(3,B$6:B109))","v":""}]
[{"$f":"IF(B110=\"\",\"\",SUBTOTAL(3,B$6:B110))","v":""}]
[{"$f":"IF(B111=\"\",\"\",SUBTOTAL(3,B$6:B111))","v":""}]
[{"$f":"IF(B112=\"\",\"\",SUBTOTAL(3,B$6:B112))","v":""}]
[{"$f":"IF(B113=\"\",\"\",SUBTOTAL(3,B$6:B113))","v":""}]
[{"$f":"IF(B114=\"\",\"\",SUBTOTAL(3,B$6:B114))","v":""}]
[{"$f":"IF(B115=\"\",\"\",SUBTOTAL(3,B$6:B115))","v":""}]
[{"$f":"IF(B116=\"\",\"\",SUBTOTAL(3,B$6:B116))","v":""}]
[{"$f":"IF(B117=\"\",\"\",SUBTOTAL(3,B$6:B117))","v":""}]
[{"$f":"IF(B118=\"\",\"\",SUBTOTAL(3,B$6:B118))","v":""}]
[{"$f":"IF(B119=\"\",\"\",SUBTOTAL(3,B$6:B119))","v":""}]
[{"$f":"IF(B120=\"\",\"\",SUBTOTAL(3,B$6:B120))","v":""}]
[{"$f":"IF(B121=\"\",\"\",SUBTOTAL(3,B$6:B121))","v":""}]
[{"$f":"IF(B122=\"\",\"\",SUBTOTAL(3,B$6:B122))","v":""}]
[{"$f":"IF(B123=\"\",\"\",SUBTOTAL(3,B$6:B123))","v":""}]
[{"$f":"IF(B124=\"\",\"\",SUBTOTAL(3,B$6:B124))","v":""}]
[{"$f":"IF(B125=\"\",\"\",SUBTOTAL(3,B$6:B125))","v":""}]
[{"$f":"IF(B126=\"\",\"\",SUBTOTAL(3,B$6:B126))","v":""}]
[{"$f":"IF(B127=\"\",\"\",SUBTOTAL(3,B$6:B127))","v":""}]
[{"$f":"IF(B128=\"\",\"\",SUBTOTAL(3,B$6:B128))","v":""}]
[{"$f":"IF(B129=\"\",\"\",SUBTOTAL(3,B$6:B129))","v":""}]
[{"$f":"IF(B130=\"\",\"\",SUBTOTAL(3,B$6:B130))","v":""}]
[{"$f":"IF(B131=\"\",\"\",SUBTOTAL(3,B$6:B131))","v":""}]
[{"$f":"IF(B132=\"\",\"\",SUBTOTAL(3,B$6:B132))","v":""}]
[{"$f":"IF(B133=\"\",\"\",SUBTOTAL(3,B$6:B133))","v":""}]
[{"$f":"IF(B134=\"\",\"\",SUBTOTAL(3,B$6:B134))","v":""}]
[{"$f":"IF(B135=\"\",\"\",SUBTOTAL(3,B$6:B135))","v":""}]
[{"$f":"IF(B136=\"\",\"\",SUBTOTAL(3,B$6:B136))","v":""}]
[{"$f":"IF(B137=\"\",\"\",SUBTOTAL(3,B$6:B137))","v":""}]
[{"$f":"IF(B138=\"\",\"\",SUBTOTAL(3,B$6:B138))","v":""}]
[{"$f":"IF(B139=\"\",\"\",SUBTOTAL(3,B$6:B139))","v":""}]
[{"$f":"IF(B140=\"\",\"\",SUBTOTAL(3,B$6:B140))","v":""}]
[{"$f":"IF(B141=\"\",\"\",SUBTOTAL(3,B$6:B141))","v":""}]
[{"$f":"IF(B142=\"\",\"\",SUBTOTAL(3,B$6:B142))","v":""}]
[{"$f":"IF(B143=\"\",\"\",SUBTOTAL(3,B$6:B143))","v":""}]
[{"$f":"IF(B144=\"\",\"\",SUBTOTAL(3,B$6:B144))","v":""}]
[{"$f":"IF(B145=\"\",\"\",SUBTOTAL(3,B$6:B145))","v":""}]
[{"$f":"IF(B146=\"\",\"\",SUBTOTAL(3,B$6:B146))","v":""}]
[{"$f":"IF(B147=\"\",\"\",SUBTOTAL(3,B$6:B147))","v":""}]
[{"$f":"IF(B148=\"\",\"\",SUBTOTAL(3,B$6:B148))","v":""}]
[{"$f":"IF(B149=\"\",\"\",SUBTOTAL(3,B$6:B149))","v":""}]
[{"$f":"IF(B150=\"\",\"\",SUBTOTAL(3,B$6:B150))","v":""}]
[{"$f":"IF(B151=\"\",\"\",SUBTOTAL(3,B$6:B151))","v":""}]
[{"$f":"IF(B152=\"\",\"\",SUBTOTAL(3,B$6:B152))","v":""}]
[{"$f":"IF(B153=\"\",\"\",SUBTOTAL(3,B$6:B153))","v":""}]
[{"$f":"IF(B154=\"\",\"\",SUBTOTAL(3,B$6:B154))","v":""}]
[{"$f":"IF(B155=\"\",\"\",SUBTOTAL(3,B$6:B155))","v":""}]
[{"$f":"IF(B156=\"\",\"\",SUBTOTAL(3,B$6:B156))","v":""}]
[{"$f":"IF(B157=\"\",\"\",SUBTOTAL(3,B$6:B157))","v":""}]
[{"$f":"IF(B158=\"\",\"\",SUBTOTAL(3,B$6:B158))","v":""}]
[{"$f":"IF(B159=\"\",\"\",SUBTOTAL(3,B$6:B159))","v":""}]
[{"$f":"IF(B160=\"\",\"\",SUBTOTAL(3,B$6:B160))","v":""}]
[{"$f":"IF(B161=\"\",\"\",SUBTOTAL(3,B$6:B161))","v":""}]
[{"$f":"IF(B162=\"\",\"\",SUBTOTAL(3,B$6:B162))","v":""}]
[{"$f":"IF(B163=\"\",\"\",SUBTOTAL(3,B$6:B163))","v":""}]
[{"$f":"IF(B164=\"\",\"\",SUBTOTAL(3,B$6:B164))","v":""}]
[null,"Total",null,{"$f":"SUBTOTAL(103,Product[Unit])","v":0}]

{"sheet":"Sheet2","index":11,"n_rows":99,"n_cols":6,"rows_kept":99,"cut":false,"hidden":true,"merged":[]}
["Category","ELECTRICAL MATERIALS"]
[]
["Row Labels","Sum of Opening Balance (Qty)","Sum of Items Received (Qty)","Sum of Items Issue (Qty)","Sum of Item TransFer (Qty)","Sum of Balance"]
[" LEGRAND SINGLE OUTLET # 617043",30,0,0,0,30]
["13amp SOCKET WITH 2 GANG USB OUTLET",220,0,0,0,220]
["BATTERY CABINET WITH JOINT HOSE 12V 200A",2,0,0,0,2]
["BELDEN COMPUTER CABLE CAT- 5",2,0,0,0,2]
["BELDEN COMPUTER CABLE CAT- 6",18,0,0,0,18]
["BELDEN T.V CABLE RG-06",52,0,0,0,52]
["BELDEN T.V CABLE RG-11",10,0,0,0,10]
["BELDEN TELEPHONE WIRE 2-PR",42,0,0,0,42]
["BREAK GLASS COVER",47,0,0,0,47]
["CABLE TRAY 30CM x 240M",100,0,0,0,100]
["CABLE TRAY 80CM x 240M",70,0,0,0,70]
["CU / PVC COPPER CABLE  1  x  25mm2  [ roll ] ",2500,0,0,0,2500]
["DISBO PANNEL BOARD 150AMP",15,0,0,0,15]
["DISBO PANNEL BOARD 200AMP",22,0,0,0,22]
["EMT BOX  10 X 10cm  KO 3/4\" x 1/2\"",200,0,0,0,200]
["EMT BOX  3\" x 3\" FOR FIRE / KO 3/4\" x 1/2\"",600,0,0,0,600]
["EMT BOX  7 X 14cm  KO 3/4\" x 1/2\" [ Deep 5cm]",3000,0,0,0,3000]
["EMT BOX  7 X 14cm  KO 3/4\" x 1/2\" [ Deep 7cm]",2500,0,0,0,2500]
["EMT CONNECTOR 1/2\"",500,0,0,0,500]
["EMT CONNECTOR 2\"",100,0,0,0,100]
["EMT CONNECTOR 3/4\"",400,0,0,0,400]
["EMT COUPLING 1/2\"",400,0,0,0,400]
["EMT COUPLING 2\"",100,0,0,0,100]
["EMT ELBOW 2\"",100,0,0,0,100]
["EMT FLEXIBLE CONNECTOR 3/4\"",1300,0,0,0,1300]
["EMT FLEXIBLE LIQUED TYPE 1/2'",30,0,0,0,30]
["EMT PIPE 3/4\"",100,0,0,0,100]
["EMT PIPE CLAMP [STRIP] 3/4\"",100,0,0,0,100]
["EXIT SIGN LIGHT ",100,0,0,0,100]
["FIRE SMOKE DETECTOR SENSOR",960,0,0,0,960]
["FIRE SMOKE SENSOR BASE",850,0,0,0,850]
["GARDEN POLE LIGHT ",7,0,0,0,7]
["ISOLATED POWER SYSTEM FOR ISOLATION ROOM",5,0,0,0,5]
["LED FLOOD LIGHT ",9,0,0,0,9]
["LED TUBE LIGHT 15W STRIP",900,0,0,0,900]
["LEGRAND 1G/1W SWITCH # 617000E",840,0,0,0,840]
["LEGRAND 2G SWITCH # 617302",1440,0,0,0,1440]
["LEGRAND 2G/1W SWITCH 617002E",1540,0,0,0,1540]
["LEGRAND 2WAY SWITCH # 617001E",100,0,0,0,100]
["LEGRAND 2WAY SWITCH # 617003E",250,0,0,0,250]
["LEGRAND DEMAR SWITCH # 617030",200,0,0,0,200]
["LEGRAND DOUBLE OUTLET # 617048",1974,0,0,0,1974]
["LEGRAND OUTLET COVER # 678041",2500,0,0,0,2500]
["LEGRAND SINGLE OUTLET # 678140",3750,0,0,0,3750]
["LEGRAND SWITCH COVER # 678021",900,0,0,0,900]
["LEGRAND TELEPHONE OUTLET # 617097E",700,0,0,0,700]
["LEGRAND TV SOKET # 617120",290,0,0,0,290]
["MCB BREAKER 20AMP",980,0,0,0,980]
["MCB BREAKER 25AMP",980,0,0,0,980]
["MCB BREAKER 32AMP",980,0,0,0,980]
["MCB BREAKER 32AMP  3 pole",50,0,0,0,50]
["MCB BREAKER 63AMP  3 pole",50,0,0,0,50]
["MODULAR UPS SYSTEM 150KVA / 50KVA EACH",1,0,0,0,1]
["NAD30LED/30W LED CELLING LIGHT ",50,0,0,0,50]
["NLED105/2W NVC LED SPOT LIGHT ",430,0,0,0,430]
["NLED1195DL/6W NVC LED SPOT LIGHT",240,0,0,0,240]
["NLED4203/36W NVC LED PANNEL LIGHT",255,0,0,0,255]
["NLED551NS/12W NVC DOWN LIGHT ",440,0,0,0,440]
["NLED552N/20W NVC LED MULTIPLE LIGHT",120,0,0,0,120]
["NLED9124/8W NVC LED DOWN LIGHT",500,0,0,0,500]
["NLED9246/20W NVC LED DOWN LIGHT ",500,0,0,0,500]
["REMOTE ALARM INDICATOR FOR ISOLATION ROOM",2,0,0,0,2]
["SAFETY SWITCH 100amp",9,0,0,0,9]
["SAFETY SWITCH 150AMP",2,0,0,0,2]
["SAFETY SWITCH 200amp",1,0,0,0,1]
["SAFETY SWITCH 30amp",4,0,0,0,4]
["SAFETY SWITCH 60amp",9,0,0,0,9]
["SPEAKER WIRE",30,0,0,0,30]
["T.V CABLE CONNECTOR FEMALE",1000,0,0,0,1000]
["T.V SPLITER 3 WAY",100,0,0,0,100]
["T.V SPLITER 5 WAY",100,0,0,0,100]
["TELEPHONE BOX 100 - PR",6,0,0,0,6]
["TELEPHONE CABLE 100PR 24AWG",500,0,0,0,500]
["TELEPHONE CONNECTOR",110,0,0,0,110]
["UPS BATTERY  60KVA / 120W",80,0,0,0,80]
["WIRE AWG  #10 CLR: BLACK",15,0,0,0,15]
["WIRE AWG  #10 CLR: BLUE",11,0,0,0,11]
["WIRE AWG  #10 CLR: GREEN",19,0,0,0,19]
["WIRE AWG  #10 CLR: RED",17,0,0,0,17]
["WIRE AWG  #10 CLR: WHITE",33,0,0,0,33]
["WIRE AWG  #10 CLR: YELLOW",16,0,0,0,16]
["WIRE AWG  #12 CLR: BLACK",118,0,0,0,118]
["WIRE AWG  #12 CLR: BLUE",72,0,0,0,72]
["WIRE AWG  #12 CLR: RED",37,0,0,0,37]
["WIRE AWG  #12 CLR: WHITE",130,0,0,0,130]
["WIRE AWG  #12 CLR: YELLOW",18,0,0,0,18]
["WIRE AWG  #14 CLR: BLACK",36,0,0,0,36]
["WIRE AWG  #14 CLR: BLUE",34,0,0,0,34]
["WIRE AWG  #14 CLR: RED",24,0,0,0,24]
["WIRE AWG  #14 CLR: YELLOW",64,0,0,0,64]
["WIRE AWG  #16 CLR: BLUE",26,0,0,0,26]
["WIRE AWG  #16 CLR: WHITE",24,0,0,0,24]
["XLPE / PVC COPPER CABLE  4 x  50 mm2  [3 roll ]",1400,0,0,0,1400]
["XLPE / PVC COPPER CABLE  4 x  70 mm2  [3 roll ]",1300,0,0,0,1300]
["YIDUO HANGING LIGHT YD10 / 200W",10,0,0,0,10]
["Grand Total",40808,0,0,0,40808]